Workbook

Sheet J
A1: =COUNT(C3:V2503)/20 -> 1870 | C1: Último concurso cadastrado | AX1: Estatística das VINDAS por QUADRAS | BX1: GERAL Todos | CA1: Média | CB1: Total | CE1: Média | CF1: Total | CI1: Média | CJ1: Total | CM1: Média | CN1: Total | CQ1: Média | CR1: Total
A2: Concursos | C2: 1 | D2: 2 | E2: 3 | F2: 4 | G2: 5 | H2: 6 | I2: 7 | J2: 8 | K2: 9 | L2: 10 | M2: 11 | N2: 12 | O2: 13 | P2: 14 | Q2: 15 | R2: 16 | S2: 17 | T2: 18 | U2: 19 | V2: 20 | X2: Repete | Y2: Pares | Z2: Soma | AB2: Repetições do jogo anterior | AC2: de 00 = | AD2: =SUM(COUNTIF($X$3:$X$3000,0)) -> 149 | AG2: PARES | AH2: de 05 = | AJ2: =SUM(COUNTIF($Y$3:$Y$3000,5)) -> 31 | AM2: Faixa das Somas | AN2: < 160= | AP2: =SUM(COUNTIF($Z$3:$Z$3000,"<160")) -> 130 | AX2: A 1 | AY2: A 2 | AZ2: A 3 | BA2: A 4 | BB2: A 5 | BC2: B 1 | BD2: B 2 | BE2: B 3 | BF2: B 4 | BG2: B 5 | BH2: C 1 | BI2: C 2 | BJ2: C 3 | BK2: C 4 | BL2: C 5 | BM2: D 1 | BN2: D 2 | BO2: D 3 | BP2: D 4 | BQ2: D 5 | BR2: E 1 | BS2: E 2 | BT2: E 3 | BU2: E 4 | BV2: E 5 | BX2: = 00 | BZ2: A 1 | CA2: =SUM($A$1/$CB2) -> 2.06401766 | CB2: =SUM(COUNTIF($AX$3:$AX$3000,0)) -> 906 | CD2: A 2 | CE2: =SUM($A$1/$CB2) -> 2.06401766 | CF2: =SUM(COUNTIF($AY$3:$AY$3000,0)) -> 864 | CH2: A 3 | CI2: =SUM($A$1/$CJ2) -> 2.125 | CJ2: =SUM(COUNTIF($AZ$3:$AZ$3000,0)) -> 880 | CL2: A 4 | CM2: =SUM($A$1/$CN2) -> 2.108229989 | CN2: =SUM(COUNTIF($BA$3:$BA$3000,0)) -> 887 | CP2: A 5 | CQ2: =SUM($A$1/$CR2) -> 2.207792208 | CR2: =SUM(COUNTIF($BB$3:$BB$3000,0)) -> 847 | CX2: A1 | CY2: A2 | CZ2: A3 | DA2: A4 | DB2: A5
A3: 1 | C3: 16 | D3: 11 | E3: 88 | F3: 32 | G3: 25 | H3: 0 | I3: 70 | J3: 78 | K3: 73 | L3: 61 | M3: 90 | N3: 89 | O3: 46 | P3: 95 | Q3: 6 | R3: 33 | S3: 34 | T3: 21 | U3: 14 | V3: 22 | X3: =SUMPRODUCT(COUNTIF(C3:V3,C2:V2)) -> 4 | Y3: =SUMPRODUCT(N(MOD((C3:V3),2)=0)*(C3:V3>0)) -> 11 | Z3: =SUM(C3:V3) -> 904 | AC3: de 01 = | AD3: =SUM(COUNTIF($X$3:$X$3000,1)) -> 90 | AH3: de 06 = | AJ3: =SUM(COUNTIF($Y$3:$Y$3000,6)) -> 61 | AN3: > 160 e < 170 = | AP3: =COUNTIFS($Z$3:$Z$3000,">=160",$Z$3:$Z$3000,"<170") -> 0 | AX3: =SUMPRODUCT(COUNTIF($C3:$V3,$AB$17:$AC$18)) -> 2 | AY3: =SUMPRODUCT(COUNTIF($C3:$V3,$AD$17:$AE$18)) -> 2 | AZ3: =SUMPRODUCT(COUNTIF($C3:$V3,$AF$17:$AG$18)) -> 1 | BA3: =SUMPRODUCT(COUNTIF($C3:$V3,$AH$17:$AI$18)) -> 0 | BB3: =SUMPRODUCT(COUNTIF($C3:$V3,$AJ$17:$AK$18)) -> 0 | BC3: =SUMPRODUCT(COUNTIF($C3:$V3,$AB$19:$AC$20)) -> 1 | BD3: =SUMPRODUCT(COUNTIF($C3:$V3,$AD$19:$AE$20)) -> 0 | BE3: =SUMPRODUCT(COUNTIF($C3:$V3,$AF$19:$AG$20)) -> 1 | BF3: =SUMPRODUCT(COUNTIF($C3:$V3,$AH$19:$AI$20)) -> 0 | BG3: =SUMPRODUCT(COUNTIF($C3:$V3,$AJ$19:$AK$20)) -> 1 | BH3: =SUMPRODUCT(COUNTIF($C3:$V3,$AB$21:$AC$22)) -> 0 | BI3: =SUMPRODUCT(COUNTIF($C3:$V3,$AD$21:$AE$22)) -> 1 | BJ3: =SUMPRODUCT(COUNTIF($C3:$V3,$AF$21:$AG$22)) -> 1 | BK3: =SUMPRODUCT(COUNTIF($C3:$V3,$AH$21:$AI$22)) -> 0 | BL3: =SUMPRODUCT(COUNTIF($C3:$V3,$AJ$21:$AK$22)) -> 0 | BM3: =SUMPRODUCT(COUNTIF($C3:$V3,$AB$23:$AC$24)) -> 2 | BN3: =SUMPRODUCT(COUNTIF($C3:$V3,$AD$23:$AE$24)) -> 2 | BO3: =SUMPRODUCT(COUNTIF($C3:$V3,$AF$23:$AG$24)) -> 0 | BP3: =SUMPRODUCT(COUNTIF($C3:$V3,$AH$23:$AI$24)) -> 2 | BQ3: =SUMPRODUCT(COUNTIF($C3:$V3,$AJ$23:$AK$24)) -> 0 | BR3: =SUMPRODUCT(COUNTIF($C3:$V3,$AB$25:$AC$26)) -> 1 | BS3: =SUMPRODUCT(COUNTIF($C3:$V3,$AD$25:$AE$26)) -> 1 | BT3: =SUMPRODUCT(COUNTIF($C3:$V3,$AF$25:$AG$26)) -> 0 | BU3: =SUMPRODUCT(COUNTIF($C3:$V3,$AH$25:$AI$26)) -> 1 | BV3: =SUMPRODUCT(COUNTIF($C3:$V3,$AJ$25:$AK$26)) -> 1 | BX3: = 01 | BZ3: A 3ª | CA3: =SUM($A$1/$CB3) -> 2.460526316 | CB3: =SUM(COUNTIF($AX$3:$AX$3000,1)) -> 760 | CD3: A 3ª | CE3: =SUM($A$1/$CB3) -> 2.460526316 | CF3: =SUM(COUNTIF($AY$3:$AY$3000,1)) -> 795 | CH3: A 3ª | CI3: =SUM($A$1/$CJ3) -> 2.382165605 | CJ3: =SUM(COUNTIF($AZ$3:$AZ$3000,1)) -> 785 | CL3: A 3ª | CM3: =SUM($A$1/$CN3) -> 2.406692407 | CN3: =SUM(COUNTIF($BA$3:$BA$3000,1)) -> 777 | CP3: A 3ª | CQ3: =SUM($A$1/$CR3) -> 2.352201258 | CR3: =SUM(COUNTIF($BB$3:$BB$3000,1)) -> 795 | CX3: B1 | CY3: B2 | CZ3: B3 | DA3: B4 | DB3: B5 | DE3: Inclui Base Inicial para iniciar/partir as outras variacoes dos 13x | DT3: Para dar o ponto de partida
A4: 2 | C4: 76 | D4: 63 | E4: 18 | F4: 44 | G4: 84 | H4: 11 | I4: 55 | J4: 93 | K4: 8 | L4: 29 | M4: 82 | N4: 62 | O4: 17 | P4: 64 | Q4: 24 | R4: 14 | S4: 37 | T4: 97 | U4: 49 | V4: 51 | X4: =SUMPRODUCT(COUNTIF(C4:V4,C3:V3)) -> 2 | Y4: =SUMPRODUCT(N(MOD((C4:V4),2)=0)*(C4:V4>0)) -> 10 | Z4: =SUM(C4:V4) -> 978 | AC4: de 02 = | AD4: =SUM(COUNTIF($X$3:$X$3000,2)) -> 223 | AH4: de 07 = | AJ4: =SUM(COUNTIF($Y$3:$Y$3000,7)) -> 139 | AN4: > 170 e < 180 = | AP4: =COUNTIFS($Z$3:$Z$3000,">=170",$Z$3:$Z$3000,"<180") -> 0 | AX4: 1 | AY4: 0 | AZ4: 0 | BA4: 1 | BB4: 0 | BC4: 0 | BD4: 1 | BE4: 0 | BF4: 2 | BG4: 1 | BH4: 0 | BI4: 1 | BJ4: 1 | BK4: 1 | BL4: 1 | BM4: 2 | BN4: 0 | BO4: 2 | BP4: 2 | BQ4: 2 | BR4: 0 | BS4: 1 | BT4: 0 | BU4: 1 | BV4: 0 | BX4: = 02 | BZ4: A 3ª | CA4: =SUM($A$1/$CB4) -> 6.538461538 | CB4: =SUM(COUNTIF($AX$3:$AX$3000,2)) -> 286 | CD4: A 3ª | CE4: =SUM($A$1/$CB4) -> 6.538461538 | CF4: =SUM(COUNTIF($AY$3:$AY$3000,2)) -> 287 | CH4: A 3ª | CI4: =SUM($A$1/$CJ4) -> 6.448275862 | CJ4: =SUM(COUNTIF($AZ$3:$AZ$3000,2)) -> 290 | CL4: A 3ª | CM4: =SUM($A$1/$CN4) -> 6.38225256 | CN4: =SUM(COUNTIF($BA$3:$BA$3000,2)) -> 293 | CP4: A 3ª | CQ4: =SUM($A$1/$CR4) -> 5.993589744 | CR4: =SUM(COUNTIF($BB$3:$BB$3000,2)) -> 312 | CX4: C1 | CY4: C2 | CZ4: C3 | DA4: C4 | DB4: C5
A5: 3 | C5: 34 | D5: 8 | E5: 10 | F5: 11 | G5: 99 | H5: 28 | I5: 67 | J5: 20 | K5: 55 | L5: 74 | M5: 45 | N5: 48 | O5: 85 | P5: 91 | Q5: 79 | R5: 57 | S5: 47 | T5: 22 | U5: 17 | V5: 54 | X5: 4 | Y5: 9 | Z5: 951 | AC5: de 03 = | AD5: =SUM(COUNTIF($X$3:$X$3000,3)) -> 395 | AH5: de 08 = | AJ5: =SUM(COUNTIF($Y$3:$Y$3000,8)) -> 263 | AN5: > 180 e < 190 = | AP5: =COUNTIFS($Z$3:$Z$3000,">=180",$Z$3:$Z$3000,"<190") -> 0 | AX5: 1 | AY5: 1 | AZ5: 3 | BA5: 0 | BB5: 0 | BC5: 0 | BD5: 2 | BE5: 1 | BF5: 1 | BG5: 0 | BH5: 1 | BI5: 0 | BJ5: 0 | BK5: 3 | BL5: 1 | BM5: 1 | BN5: 1 | BO5: 1 | BP5: 0 | BQ5: 2 | BR5: 0 | BS5: 0 | BT5: 0 | BU5: 1 | BV5: 0 | BX5: = 03 | BZ5: A 3ª | CA5: =SUM($A$1/$CB5) -> 41.55555556 | CB5: =SUM(COUNTIF($AX$3:$AX$3000,3)) -> 45 | CD5: A 3ª | CE5: =SUM($A$1/$CB5) -> 41.55555556 | CF5: =SUM(COUNTIF($AY$3:$AY$3000,3)) -> 53 | CH5: A 3ª | CI5: =SUM($A$1/$CJ5) -> 43.48837209 | CJ5: =SUM(COUNTIF($AZ$3:$AZ$3000,3)) -> 43 | CL5: A 3ª | CM5: =SUM($A$1/$CN5) -> 43.48837209 | CN5: =SUM(COUNTIF($BA$3:$BA$3000,3)) -> 43 | CP5: A 3ª | CQ5: =SUM($A$1/$CR5) -> 44.52380952 | CR5: =SUM(COUNTIF($BB$3:$BB$3000,3)) -> 42 | CX5: D1 | CY5: D2 | CZ5: D3 | DA5: D4 | DB5: D5 | DE5: (Pretendo fazer isso para cada Forca 100, 50, 25) | DT5: Inclui esta tabela na Aba Quadras
A6: 4 | C6: 14 | D6: 67 | E6: 12 | F6: 55 | G6: 25 | H6: 60 | I6: 51 | J6: 30 | K6: 41 | L6: 35 | M6: 78 | N6: 83 | O6: 93 | P6: 64 | Q6: 98 | R6: 39 | S6: 44 | T6: 49 | U6: 5 | V6: 63 | X6: 2 | Y6: 8 | Z6: 1006 | AC6: de 04 = | AD6: =SUM(COUNTIF($X$3:$X$3000,4)) -> 456 | AH6: de 09 = | AJ6: =SUM(COUNTIF($Y$3:$Y$3000,9)) -> 352 | AN6: > 190 e < 200 = | AP6: =COUNTIFS($Z$3:$Z$3000,">=190",$Z$3:$Z$3000,"<200") -> 0 | AX6: 0 | AY6: 0 | AZ6: 0 | BA6: 3 | BB6: 1 | BC6: 0 | BD6: 1 | BE6: 1 | BF6: 0 | BG6: 1 | BH6: 1 | BI6: 0 | BJ6: 1 | BK6: 1 | BL6: 1 | BM6: 1 | BN6: 0 | BO6: 1 | BP6: 1 | BQ6: 2 | BR6: 1 | BS6: 1 | BT6: 0 | BU6: 2 | BV6: 0 | BX6: = 04 | BZ6: A 3ª | CA6: =IF($CB6>0,SUM($A$1/$CB6),$A$1) -> 623.3333333 | CB6: =SUM(COUNTIF($AX$3:$AX$3000,4)) -> 3 | CD6: A 3ª | CE6: =IF($CF6>0,SUM($A$1/$CF6),$A$1) -> 1870 | CF6: =SUM(COUNTIF($AY$3:$AY$3000,4)) -> 1 | CH6: A 3ª | CI6: =IF($CJ6>0,SUM($A$1/$CJ6),$A$1) -> 935 | CJ6: =SUM(COUNTIF($AZ$3:$AZ$3000,4)) -> 2 | CL6: A 3ª | CM6: =IF($CN6>0,SUM($A$1/$CN6),$A$1) -> 1870 | CN6: =SUM(COUNTIF($BA$3:$BA$3000,4)) -> 0 | CP6: A 3ª | CQ6: =IF($CR6>0,SUM($A$1/$CR6),$A$1) -> 467.5 | CR6: =SUM(COUNTIF($BB$3:$BB$3000,4)) -> 4 | CX6: E1 | CY6: E2 | CZ6: E3 | DA6: E4 | DB6: E5
A7: 5 | C7: 39 | D7: 32 | E7: 65 | F7: 8 | G7: 51 | H7: 42 | I7: 17 | J7: 92 | K7: 43 | L7: 71 | M7: 28 | N7: 73 | O7: 98 | P7: 69 | Q7: 59 | R7: 54 | S7: 20 | T7: 87 | U7: 99 | V7: 0 | X7: 3 | Y7: 8 | Z7: 1047 | AC7: de 05 = | AD7: =SUM(COUNTIF($X$3:$X$3000,5)) -> 357 | AH7: de 10 = | AJ7: =SUM(COUNTIF($Y$3:$Y$3000,10)) -> 371 | AN7: > 200 e < 210 = | AP7: =COUNTIFS($Z$3:$Z$3000,">=200",$Z$3:$Z$3000,"<210") -> 0 | AX7: 0 | AY7: 1 | AZ7: 1 | BA7: 1 | BB7: 0 | BC7: 1 | BD7: 1 | BE7: 1 | BF7: 1 | BG7: 0 | BH7: 0 | BI7: 1 | BJ7: 1 | BK7: 1 | BL7: 0 | BM7: 0 | BN7: 2 | BO7: 2 | BP7: 1 | BQ7: 0 | BR7: 1 | BS7: 0 | BT7: 2 | BU7: 2 | BV7: 0
A8: 6 | C8: 48 | D8: 12 | E8: 24 | F8: 76 | G8: 33 | H8: 58 | I8: 27 | J8: 13 | K8: 93 | L8: 42 | M8: 35 | N8: 74 | O8: 17 | P8: 72 | Q8: 73 | R8: 47 | S8: 75 | T8: 30 | U8: 20 | V8: 80 | X8: 4 | Y8: 11 | Z8: 949 | AC8: de 06 = | AD8: =SUM(COUNTIF($X$3:$X$3000,6)) -> 207 | AH8: de 11 = | AJ8: =SUM(COUNTIF($Y$3:$Y$3000,11)) -> 294 | AN8: > 210 e < 220 = | AP8: =COUNTIFS($Z$3:$Z$3000,">=210",$Z$3:$Z$3000,"<220") -> 0 | AX8: 0 | AY8: 0 | AZ8: 2 | BA8: 2 | BB8: 1 | BC8: 0 | BD8: 0 | BE8: 1 | BF8: 0 | BG8: 2 | BH8: 0 | BI8: 1 | BJ8: 2 | BK8: 1 | BL8: 1 | BM8: 0 | BN8: 1 | BO8: 1 | BP8: 1 | BQ8: 1 | BR8: 1 | BS8: 1 | BT8: 1 | BU8: 0 | BV8: 0 | BX8: = 00 | BZ8: B 1 | CA8: =SUM($A$1/$CB8) -> 2.176949942 | CB8: =SUM(COUNTIF($BC$3:$BC$3000,0)) -> 859 | CD8: B 2 | CE8: =SUM($A$1/$CF8) -> 2.096412556 | CF8: =SUM(COUNTIF($BD$3:$BD$3000,0)) -> 892 | CH8: B 3 | CI8: =SUM($A$1/$CJ8) -> 2.059471366 | CJ8: =SUM(COUNTIF($BE$3:$BE$3000,0)) -> 908 | CL8: B 4 | CM8: =SUM($A$1/$CN8) -> 2.139588101 | CN8: =SUM(COUNTIF($BF$3:$BF$3000,0)) -> 874 | CP8: B 5 | CQ8: =SUM($A$1/$CR8) -> 2.096412556 | CR8: =SUM(COUNTIF($BG$3:$BG$3000,0)) -> 892 | CU8: GERAL TODOS - Indicação Base para Variações dos 13x
A9: 7 | C9: 97 | D9: 19 | E9: 94 | F9: 23 | G9: 85 | H9: 39 | I9: 50 | J9: 59 | K9: 46 | L9: 45 | M9: 99 | N9: 36 | O9: 70 | P9: 64 | Q9: 92 | R9: 3 | S9: 56 | T9: 18 | U9: 6 | V9: 73 | X9: 1 | Y9: 10 | Z9: 1074 | AC9: de 07 = | AD9: =SUM(COUNTIF($X$3:$X$3000,7)) -> 83 | AH9: de 12 = | AJ9: =SUM(COUNTIF($Y$3:$Y$3000,12)) -> 195 | AN9: > 220 e < 230 = | AP9: =COUNTIFS($Z$3:$Z$3000,">=220",$Z$3:$Z$3000,"<=230") -> 0 | AX9: 1 | AY9: 2 | AZ9: 1 | BA9: 0 | BB9: 0 | BC9: 1 | BD9: 1 | BE9: 0 | BF9: 0 | BG9: 0 | BH9: 1 | BI9: 0 | BJ9: 2 | BK9: 1 | BL9: 2 | BM9: 0 | BN9: 1 | BO9: 1 | BP9: 0 | BQ9: 2 | BR9: 0 | BS9: 2 | BT9: 0 | BU9: 1 | BV9: 1 | BX9: = 01 | CA9: =SUM($A$1/$CB9) -> 2.308641975 | CB9: =SUM(COUNTIF($BC$3:$BC$3000,1)) -> 810 | CE9: =SUM($A$1/$CF9) -> 2.340425532 | CF9: =SUM(COUNTIF($BD$3:$BD$3000,1)) -> 799 | CI9: =SUM($A$1/$CJ9) -> 2.470277411 | CJ9: =SUM(COUNTIF($BE$3:$BE$3000,1)) -> 757 | CM9: =SUM($A$1/$CN9) -> 2.391304348 | CN9: =SUM(COUNTIF($BF$3:$BF$3000,1)) -> 782 | CQ9: =SUM($A$1/$CR9) -> 2.422279793 | CR9: =SUM(COUNTIF($BG$3:$BG$3000,1)) -> 772 | CU9: Baixa | CV9: Incid | CX9: Alta | CY9: Incid | DB9: Baixa | DC9: Incid | DE9: Alta | DF9: Incid
A10: 8 | C10: 19 | D10: 41 | E10: 26 | F10: 65 | G10: 47 | H10: 75 | I10: 5 | J10: 94 | K10: 10 | L10: 0 | M10: 59 | N10: 33 | O10: 99 | P10: 57 | Q10: 84 | R10: 11 | S10: 74 | T10: 83 | U10: 7 | V10: 53 | X10: 4 | Y10: 5 | Z10: 942 | AC10: de 08 = | AD10: =SUM(COUNTIF($X$3:$X$3000,8)) -> 30 | AH10: de 13 = | AJ10: =SUM(COUNTIF($Y$3:$Y$3000,13)) -> 99 | AN10: > 220 e < 230 = | AP10: =COUNTIFS($Z$3:$Z$3000,">=220",$Z$3:$Z$3000,"<=230") -> 0 | AX10: 1 | AY10: 0 | AZ10: 1 | BA10: 0 | BB10: 2 | BC10: 0 | BD10: 1 | BE10: 1 | BF10: 0 | BG10: 2 | BH10: 1 | BI10: 1 | BJ10: 0 | BK10: 2 | BL10: 0 | BM10: 1 | BN10: 1 | BO10: 1 | BP10: 1 | BQ10: 1 | BR10: 0 | BS10: 1 | BT10: 0 | BU10: 1 | BV10: 1 | BX10: = 02 | CA10: =SUM($A$1/$CB10) -> 6.750902527 | CB10: =SUM(COUNTIF($BC$3:$BC$3000,2)) -> 277 | CE10: =SUM($A$1/$CF10) -> 6.900369004 | CF10: =SUM(COUNTIF($BD$3:$BD$3000,2)) -> 271 | CI10: =SUM($A$1/$CJ10) -> 6.317567568 | CJ10: =SUM(COUNTIF($BE$3:$BE$3000,2)) -> 296 | CM10: =SUM($A$1/$CN10) -> 6.317567568 | CN10: =SUM(COUNTIF($BF$3:$BF$3000,2)) -> 296 | CQ10: =SUM($A$1/$CR10) -> 6.404109589 | CR10: =SUM(COUNTIF($BG$3:$BG$3000,2)) -> 292
A11: 9 | C11: 73 | D11: 36 | E11: 21 | F11: 98 | G11: 30 | H11: 17 | I11: 70 | J11: 60 | K11: 67 | L11: 22 | M11: 29 | N11: 0 | O11: 3 | P11: 10 | Q11: 7 | R11: 32 | S11: 9 | T11: 1 | U11: 69 | V11: 77 | X11: 3 | Y11: 8 | Z11: 731 | AC11: de 09 = | AD11: =SUM(COUNTIF($X$3:$X$3000,9)) -> 8 | AH11: de 14 = | AJ11: =SUM(COUNTIF($Y$3:$Y$3000,14)) -> 42 | AN11: > 220 e < 230 = | AP11: =COUNTIFS($Z$3:$Z$3000,">=220",$Z$3:$Z$3000,"<=230") -> 0 | AX11: 0 | AY11: 2 | AZ11: 0 | BA11: 1 | BB11: 1 | BC11: 1 | BD11: 1 | BE11: 2 | BF11: 1 | BG11: 0 | BH11: 1 | BI11: 1 | BJ11: 0 | BK11: 1 | BL11: 1 | BM11: 0 | BN11: 2 | BO11: 1 | BP11: 0 | BQ11: 0 | BR11: 3 | BS11: 0 | BT11: 0 | BU11: 0 | BV11: 1 | BX11: = 03 | CA11: =SUM($A$1/$CB11) -> 36.66666667 | CB11: =SUM(COUNTIF($BC$3:$BC$3000,3)) -> 51 | CE11: =SUM($A$1/$CF11) -> 50.54054054 | CF11: =SUM(COUNTIF($BD$3:$BD$3000,3)) -> 37 | CI11: =SUM($A$1/$CJ11) -> 49.21052632 | CJ11: =SUM(COUNTIF($BE$3:$BE$3000,3)) -> 38 | CM11: =SUM($A$1/$CN11) -> 40.65217391 | CN11: =SUM(COUNTIF($BF$3:$BF$3000,3)) -> 46 | CQ11: =SUM($A$1/$CR11) -> 45.6097561 | CR11: =SUM(COUNTIF($BG$3:$BG$3000,3)) -> 41 | CU11: A1 | CV11: =SUM(CB2:CB3) -> 1666 | CX11: A1 | CY11: =SUM(CB4:CB6) -> 334 | DB11: E1 | DC11: 1701 | DE11: C1 | DF11: 362
A12: 10 | C12: 47 | D12: 42 | E12: 51 | F12: 28 | G12: 25 | H12: 81 | I12: 34 | J12: 41 | K12: 8 | L12: 60 | M12: 86 | N12: 38 | O12: 65 | P12: 55 | Q12: 63 | R12: 79 | S12: 9 | T12: 87 | U12: 95 | V12: 98 | X12: 3 | Y12: 8 | Z12: 1092 | AC12: de 10 = | AD12: =SUM(COUNTIF($X$3:$X$3000,10)) -> 2 | AH12: de 15 = | AJ12: =SUM(COUNTIF($Y$3:$Y$3000,15)) -> 16 | AN12: > 230 = | AP12: =SUM(COUNTIF($Z$3:$Z$3000,">230")) -> 1870 | AX12: 2 | AY12: 0 | AZ12: 0 | BA12: 2 | BB12: 1 | BC12: 0 | BD12: 1 | BE12: 1 | BF12: 1 | BG12: 0 | BH12: 0 | BI12: 0 | BJ12: 0 | BK12: 1 | BL12: 1 | BM12: 0 | BN12: 1 | BO12: 0 | BP12: 0 | BQ12: 2 | BR12: 0 | BS12: 1 | BT12: 4 | BU12: 2 | BV12: 0 | BX12: = 04 | CA12: =IF($CB12>0,SUM($A$1/$CB12),$A$1) -> 623.3333333 | CB12: =SUM(COUNTIF($BC$3:$BC$3000,4)) -> 3 | CE12: =IF($CF12>0,SUM($A$1/$CF12),$A$1) -> 1870 | CF12: =SUM(COUNTIF($BD$3:$BD$3000,4)) -> 1 | CI12: =IF($CJ12>0,SUM($A$1/$CJ12),$A$1) -> 1870 | CJ12: =SUM(COUNTIF($BE$3:$BE$3000,4)) -> 1 | CM12: =IF($CN12>0,SUM($A$1/$CN12),$A$1) -> 935 | CN12: =SUM(COUNTIF($BF$3:$BF$3000,4)) -> 2 | CQ12: =IF($CR12>0,SUM($A$1/$CR12),$A$1) -> 623.3333333 | CR12: =SUM(COUNTIF($BG$3:$BG$3000,4)) -> 3 | CU12: A2 | CV12: =SUM(CF2:CF3) -> 1659 | CX12: A2 | CY12: =SUM(CF4:CF6) -> 341 | DB12: B2 | DC12: 1691 | DE12: A5 | DF12: 354
A13: 11 | C13: 16 | D13: 54 | E13: 53 | F13: 93 | G13: 46 | H13: 87 | I13: 79 | J13: 24 | K13: 14 | L13: 83 | M13: 34 | N13: 58 | O13: 74 | P13: 8 | Q13: 94 | R13: 78 | S13: 51 | T13: 71 | U13: 64 | V13: 35 | X13: 5 | Y13: 12 | Z13: 1116 | AX13: 1 | AY13: 1 | AZ13: 1 | BA13: 2 | BB13: 0 | BC13: 1 | BD13: 1 | BE13: 0 | BF13: 1 | BG13: 2 | BH13: 1 | BI13: 0 | BJ13: 2 | BK13: 0 | BL13: 0 | BM13: 0 | BN13: 0 | BO13: 0 | BP13: 2 | BQ13: 1 | BR13: 0 | BS13: 1 | BT13: 1 | BU13: 2 | BV13: 0 | CU13: A3 | CV13: =SUM(CJ2:CJ3) -> 1665 | CX13: A3 | CY13: =SUM(CJ4:CJ6) -> 335 | DB13: D2 | DC13: 1682 | DE13: E3 | DF13: 351 | DK13: Obs: Veja lá em Baixo
A14: 12 | C14: 89 | D14: 81 | E14: 37 | F14: 16 | G14: 56 | H14: 63 | I14: 5 | J14: 21 | K14: 22 | L14: 49 | M14: 20 | N14: 36 | O14: 39 | P14: 32 | Q14: 65 | R14: 10 | S14: 88 | T14: 28 | U14: 52 | V14: 43 | X14: 1 | Y14: 10 | Z14: 852 | AX14: 0 | AY14: 0 | AZ14: 2 | BA14: 0 | BB14: 0 | BC14: 2 | BD14: 2 | BE14: 1 | BF14: 0 | BG14: 0 | BH14: 1 | BI14: 0 | BJ14: 1 | BK14: 2 | BL14: 0 | BM14: 2 | BN14: 3 | BO14: 0 | BP14: 0 | BQ14: 1 | BR14: 1 | BS14: 0 | BT14: 1 | BU14: 1 | BV14: 0 | BX14: = 00 | BZ14: C 1 | CA14: =SUM($A$1/$CB14) -> 2.073170732 | CB14: =SUM(COUNTIF($BH$3:$BH$3000,0)) -> 902 | CD14: C 2 | CE14: =SUM($A$1/$CF14) -> 2.187134503 | CF14: =SUM(COUNTIF($BI$3:$BI$3000,0)) -> 855 | CH14: C 3 | CI14: =SUM($A$1/$CJ14) -> 2.110609481 | CJ14: =SUM(COUNTIF($BJ$3:$BJ$3000,0)) -> 886 | CL14: C 4 | CM14: =SUM($A$1/$CN14) -> 2.098765432 | CN14: =SUM(COUNTIF($BK$3:$BK$3000,0)) -> 891 | CP14: C 5 | CQ14: =SUM($A$1/$CR14) -> 2.09406495 | CR14: =SUM(COUNTIF($BL$3:$BL$3000,0)) -> 893 | CU14: A4 | CV14: =SUM(CN2:CN3) -> 1664 | CX14: A4 | CY14: =SUM(CN4:CN6) -> 336 | DB14: E5 | DC14: 1681 | DE14: C5 | DF14: 348
A15: 13 | C15: 75 | D15: 84 | E15: 0 | F15: 79 | G15: 32 | H15: 42 | I15: 76 | J15: 58 | K15: 2 | L15: 47 | M15: 59 | N15: 82 | O15: 3 | P15: 66 | Q15: 91 | R15: 6 | S15: 35 | T15: 56 | U15: 68 | V15: 88 | X15: 3 | Y15: 12 | Z15: 1049 | AB15: Da FORÇA pela FREQUÊNCIA dos 100 PARES & ÍMPARES | AM15: Da FORÇA pela FREQUÊNCIA de TODOS PARES & ÍMPARES | AX15: 3 | AY15: 1 | AZ15: 0 | BA15: 1 | BB15: 0 | BC15: 0 | BD15: 0 | BE15: 1 | BF15: 1 | BG15: 2 | BH15: 2 | BI15: 2 | BJ15: 0 | BK15: 0 | BL15: 0 | BM15: 1 | BN15: 0 | BO15: 1 | BP15: 0 | BQ15: 2 | BR15: 1 | BS15: 1 | BT15: 1 | BU15: 0 | BV15: 0 | BX15: = 01 | CA15: =SUM($A$1/$CB15) -> 2.544217687 | CB15: =SUM(COUNTIF($BH$3:$BH$3000,1)) -> 735 | CE15: =SUM($A$1/$CF15) -> 2.27217497 | CF15: =SUM(COUNTIF($BI$3:$BI$3000,1)) -> 823 | CI15: =SUM($A$1/$CJ15) -> 2.367088608 | CJ15: =SUM(COUNTIF($BJ$3:$BJ$3000,1)) -> 790 | CM15: =SUM($A$1/$CN15) -> 2.403598972 | CN15: =SUM(COUNTIF($BK$3:$BK$3000,1)) -> 778 | CQ15: =SUM($A$1/$CR15) -> 2.480106101 | CR15: =SUM(COUNTIF($BL$3:$BL$3000,1)) -> 754 | CU15: A5 | CV15: =SUM(CR2:CR3) -> 1642 | CX15: A5 | CY15: =SUM(CR4:CR6) -> 358 | DB15: C2 | DC15: 1680 | DE15: D3 | DF15: 344
A16: 14 | C16: 83 | D16: 36 | E16: 85 | F16: 43 | G16: 3 | H16: 52 | I16: 30 | J16: 59 | K16: 97 | L16: 76 | M16: 13 | N16: 11 | O16: 29 | P16: 4 | Q16: 37 | R16: 40 | S16: 86 | T16: 55 | U16: 81 | V16: 18 | X16: 3 | Y16: 8 | Z16: 938 | AX16: 0 | AY16: 1 | AZ16: 1 | BA16: 0 | BB16: 0 | BC16: 1 | BD16: 1 | BE16: 0 | BF16: 1 | BG16: 1 | BH16: 2 | BI16: 0 | BJ16: 1 | BK16: 0 | BL16: 1 | BM16: 2 | BN16: 1 | BO16: 2 | BP16: 0 | BQ16: 1 | BR16: 1 | BS16: 1 | BT16: 2 | BU16: 0 | BV16: 0 | BX16: = 02 | CA16: =SUM($A$1/$CB16) -> 5.825545171 | CB16: =SUM(COUNTIF($BH$3:$BH$3000,2)) -> 321 | CE16: =SUM($A$1/$CF16) -> 6.65480427 | CF16: =SUM(COUNTIF($BI$3:$BI$3000,2)) -> 281 | CI16: =SUM($A$1/$CJ16) -> 6.726618705 | CJ16: =SUM(COUNTIF($BJ$3:$BJ$3000,2)) -> 278 | CM16: =SUM($A$1/$CN16) -> 6.584507042 | CN16: =SUM(COUNTIF($BK$3:$BK$3000,2)) -> 284 | CQ16: =SUM($A$1/$CR16) -> 6.012861736 | CR16: =SUM(COUNTIF($BL$3:$BL$3000,2)) -> 311 | CU16: B1 | CV16: =SUM(CB8:CB9) -> 1669 | CX16: B1 | CY16: =SUM(CB10:CB12) -> 331 | DB16: C3 | DC16: 1677 | DE16: B4 | DF16: 342
A17: 15 | C17: 14 | D17: 12 | E17: 13 | F17: 54 | G17: 92 | H17: 38 | I17: 26 | J17: 31 | K17: 5 | L17: 48 | M17: 4 | N17: 29 | O17: 73 | P17: 97 | Q17: 15 | R17: 22 | S17: 19 | T17: 41 | U17: 65 | V17: 94 | X17: 4 | Y17: 10 | Z17: 792 | AA17: A | AB17: =$AD$45 -> 6 | AC17: =$AD$46 -> 84 | AD17: =$AD$47 -> 70 | AE17: =$AD$48 -> 54 | AF17: =$AD$49 -> 20 | AG17: =$AD$50 -> 74 | AH17: =$AD$51 -> 98 | AI17: =$AD$52 -> 38 | AJ17: =$AD$53 -> 26 | AK17: =$AD$54 -> 80 | AM17: =AK$45 -> 48 | AN17: =$AK$46 -> 92 | AO17: =$AK$47 -> 54 | AP17: =$AK$48 -> 26 | AQ17: =$AK$49 -> 6 | AR17: =$AK$50 -> 38 | AS17: =$AK$51 -> 58 | AT17: =$AK$52 -> 76 | AU17: =$AK$53 -> 4 | AV17: =$AK$54 -> 64 | AX17: 0 | AY17: 1 | AZ17: 0 | BA17: 1 | BB17: 2 | BC17: 0 | BD17: 1 | BE17: 1 | BF17: 2 | BG17: 0 | BH17: 0 | BI17: 1 | BJ17: 1 | BK17: 1 | BL17: 1 | BM17: 0 | BN17: 3 | BO17: 1 | BP17: 1 | BQ17: 0 | BR17: 0 | BS17: 1 | BT17: 0 | BU17: 2 | BV17: 0 | BX17: = 03 | CA17: =SUM($A$1/$CB17) -> 45.6097561 | CB17: =SUM(COUNTIF($BH$3:$BH$3000,3)) -> 41 | CE17: =SUM($A$1/$CF17) -> 47.94871795 | CF17: =SUM(COUNTIF($BI$3:$BI$3000,3)) -> 39 | CI17: =SUM($A$1/$CJ17) -> 45.6097561 | CJ17: =SUM(COUNTIF($BJ$3:$BJ$3000,3)) -> 41 | CM17: =SUM($A$1/$CN17) -> 42.5 | CN17: =SUM(COUNTIF($BK$3:$BK$3000,3)) -> 44 | CQ17: =SUM($A$1/$CR17) -> 45.6097561 | CR17: =SUM(COUNTIF($BL$3:$BL$3000,3)) -> 41 | CU17: B2 | CV17: =SUM(CF8:CF9) -> 1691 | CX17: B2 | CY17: =SUM(CF10:CF12) -> 309 | DB17: D4 | DC17: 1673 | DE17: E2 | DF17: 342
A18: 16 | C18: 91 | D18: 57 | E18: 59 | F18: 49 | G18: 94 | H18: 1 | I18: 45 | J18: 51 | K18: 73 | L18: 16 | M18: 13 | N18: 46 | O18: 48 | P18: 63 | Q18: 10 | R18: 12 | S18: 78 | T18: 11 | U18: 22 | V18: 29 | X18: 7 | Y18: 8 | Z18: 868 | AB18: =$AG$45 -> 79 | AC18: =$AG$46 -> 95 | AD18: =$AG$47 -> 61 | AE18: =$AG$48 -> 3 | AF18: =$AG$49 -> 89 | AG18: =$AG$50 -> 85 | AH18: =$AG$51 -> 35 | AI18: =$AG$52 -> 93 | AJ18: =$AG$53 -> 41 | AK18: =$AG$54 -> 1 | AM18: =$AN$45 -> 47 | AN18: =$AN$46 -> 41 | AO18: =$AN$47 -> 49 | AP18: =$AN$48 -> 17 | AQ18: =$AN$49 -> 43 | AR18: =$AN$50 -> 45 | AS18: =$AN$51 -> 91 | AT18: =$AN$52 -> 85 | AU18: =$AN$53 -> 31 | AV18: =$AN$54 -> 19 | AX18: 0 | AY18: 0 | AZ18: 0 | BA18: 0 | BB18: 1 | BC18: 1 | BD18: 1 | BE18: 2 | BF18: 1 | BG18: 1 | BH18: 1 | BI18: 0 | BJ18: 2 | BK18: 3 | BL18: 1 | BM18: 2 | BN18: 2 | BO18: 1 | BP18: 0 | BQ18: 0 | BR18: 0 | BS18: 0 | BT18: 0 | BU18: 1 | BV18: 0 | BX18: = 04 | CA18: =IF($CB18>0,SUM($A$1/$CB18),$A$1) -> 1870 | CB18: =SUM(COUNTIF($BH$3:$BH$3000,4)) -> 1 | CE18: =IF($CF18>0,SUM($A$1/$CF18),$A$1) -> 935 | CF18: =SUM(COUNTIF($BI$3:$BI$3000,4)) -> 2 | CI18: =IF($CJ18>0,SUM($A$1/$CJ18),$A$1) -> 374 | CJ18: =SUM(COUNTIF($BJ$3:$BJ$3000,4)) -> 5 | CM18: =IF($CN18>0,SUM($A$1/$CN18),$A$1) -> 623.3333333 | CN18: =SUM(COUNTIF($BK$3:$BK$3000,4)) -> 3 | CQ18: =IF($CR18>0,SUM($A$1/$CR18),$A$1) -> 1870 | CR18: =SUM(COUNTIF($BL$3:$BL$3000,4)) -> 1 | CU18: B3 | CV18: =SUM(CJ8:CJ9) -> 1665 | CX18: B3 | CY18: =SUM(CJ10:CJ12) -> 335 | DB18: C4 | DC18: 1671 | DE18: E4 | DF18: 341
A19: 17 | C19: 98 | D19: 39 | E19: 38 | F19: 29 | G19: 43 | H19: 78 | I19: 19 | J19: 97 | K19: 92 | L19: 79 | M19: 1 | N19: 37 | O19: 47 | P19: 30 | Q19: 96 | R19: 59 | S19: 13 | T19: 31 | U19: 22 | V19: 61 | X19: 6 | Y19: 7 | Z19: 1009 | AA19: B | AB19: =$AD$55 -> 16 | AC19: =$AD$56 -> 50 | AD19: =$AD$57 -> 28 | AE19: =$AD$58 -> 94 | AF19: =$AD$59 -> 12 | AG19: =$AD$60 -> 32 | AH19: =$AD$61 -> 68 | AI19: =$AD$62 -> 8 | AJ19: =$AD$63 -> 76 | AK19: =$AD$64 -> 78 | AM19: =$AK$55 -> 78 | AN19: =$AK$56 -> 42 | AO19: =$AK$57 -> 44 | AP19: =$AK$58 -> 16 | AQ19: =$AK$59 -> 82 | AR19: =$AK$60 -> 68 | AS19: =$AK$61 -> 20 | AT19: =$AK$62 -> 8 | AU19: =$AK$63 -> 24 | AV19: =$AK$64 -> 14 | AX19: 1 | AY19: 1 | AZ19: 0 | BA19: 2 | BB19: 1 | BC19: 1 | BD19: 1 | BE19: 0 | BF19: 2 | BG19: 1 | BH19: 0 | BI19: 0 | BJ19: 2 | BK19: 0 | BL19: 1 | BM19: 0 | BN19: 1 | BO19: 1 | BP19: 0 | BQ19: 1 | BR19: 1 | BS19: 1 | BT19: 0 | BU19: 1 | BV19: 1 | CU19: B4 | CV19: =SUM(CN8:CN9) -> 1656 | CX19: B4 | CY19: =SUM(CN10:CN12) -> 344 | DB19: A1 | DC19: 1670 | DE19: A2 | DF19: 339
A20: 18 | C20: 92 | D20: 34 | E20: 69 | F20: 85 | G20: 16 | H20: 97 | I20: 47 | J20: 46 | K20: 0 | L20: 60 | M20: 79 | N20: 96 | O20: 59 | P20: 91 | Q20: 70 | R20: 78 | S20: 5 | T20: 40 | U20: 32 | V20: 76 | X20: 7 | Y20: 11 | Z20: 1172 | AB20: =$AG$55 -> 77 | AC20: =$AG$56 -> 43 | AD20: =$AG$57 -> 37 | AE20: =$AG$58 -> 67 | AF20: =$AG$59 -> 57 | AG20: =$AG$60 -> 9 | AH20: =$AG$61 -> 31 | AI20: =$AG$62 -> 29 | AJ20: =$AG$63 -> 53 | AK20: =$AG$64 -> 75 | AM20: =$AN$55 -> 11 | AN20: =$AN$56 -> 55 | AO20: =$AN$57 -> 23 | AP20: =$AN$58 -> 1 | AQ20: =$AN$59 -> 27 | AR20: =$AN$60 -> 37 | AS20: =$AN$61 -> 73 | AT20: =$AN$62 -> 93 | AU20: =$AN$63 -> 3 | AV20: =$AN$64 -> 51 | AX20: 1 | AY20: 1 | AZ20: 1 | BA20: 0 | BB20: 0 | BC20: 1 | BD20: 0 | BE20: 1 | BF20: 0 | BG20: 2 | BH20: 1 | BI20: 1 | BJ20: 1 | BK20: 0 | BL20: 2 | BM20: 1 | BN20: 0 | BO20: 1 | BP20: 0 | BQ20: 1 | BR20: 1 | BS20: 0 | BT20: 0 | BU20: 3 | BV20: 1 | BX20: = 00 | BZ20: D 1 | CA20: =SUM($A$1/$CB20) -> 2.205188679 | CB20: =SUM(COUNTIF($BM$3:$BM$3000,0)) -> 848 | CD20: D 2 | CE20: =SUM($A$1/$CF20) -> 2.028199566 | CF20: =SUM(COUNTIF($BN$3:$BN$3000,0)) -> 922 | CH20: D 3 | CI20: =SUM($A$1/$CJ20) -> 2.149425287 | CJ20: =SUM(COUNTIF($BO$3:$BO$3000,0)) -> 870 | CL20: D 4 | CM20: =SUM($A$1/$CN20) -> 2.015086207 | CN20: =SUM(COUNTIF($BP$3:$BP$3000,0)) -> 928 | CP20: D 5 | CQ20: =SUM($A$1/$CR20) -> 2.263922518 | CR20: =SUM(COUNTIF($BQ$3:$BQ$3000,0)) -> 826 | CU20: B5 | CV20: =SUM(CR8:CR9) -> 1664 | CX20: B5 | CY20: =SUM(CR10:CR12) -> 336 | DB20: B1 | DC20: 1670 | DE20: A3 | DF20: 334
A21: 19 | C21: 67 | D21: 31 | E21: 86 | F21: 8 | G21: 53 | H21: 82 | I21: 94 | J21: 36 | K21: 21 | L21: 0 | M21: 25 | N21: 13 | O21: 11 | P21: 77 | Q21: 98 | R21: 33 | S21: 48 | T21: 10 | U21: 18 | V21: 99 | X21: 1 | Y21: 9 | Z21: 910 | AA21: C | AB21: =$AD$65 -> 66 | AC21: =$AD$66 -> 36 | AD21: =$AD$67 -> 82 | AE21: =$AD$68 -> 0 | AF21: =$AD$69 -> 46 | AG21: =$AD$70 -> 24 | AH21: =$AD$71 -> 10 | AI21: =$AD$72 -> 48 | AJ21: =$AD$73 -> 60 | AK21: =$AD$74 -> 72 | AM21: =$AK$65 -> 66 | AN21: =$AK$66 -> 12 | AO21: =$AK$67 -> 72 | AP21: =$AK$68 -> 0 | AQ21: =$AK$69 -> 50 | AR21: =$AK$70 -> 74 | AS21: =$AK$71 -> 18 | AT21: =$AK$72 -> 86 | AU21: =$AK$73 -> 28 | AV21: =$AK$74 -> 70 | AX21: 0 | AY21: 0 | AZ21: 0 | BA21: 1 | BB21: 0 | BC21: 1 | BD21: 2 | BE21: 0 | BF21: 2 | BG21: 1 | BH21: 1 | BI21: 2 | BJ21: 1 | BK21: 3 | BL21: 0 | BM21: 1 | BN21: 0 | BO21: 0 | BP21: 1 | BQ21: 0 | BR21: 1 | BS21: 2 | BT21: 1 | BU21: 0 | BV21: 0 | BX21: = 01 | CA21: =SUM($A$1/$CB21) -> 2.28606357 | CB21: =SUM(COUNTIF($BM$3:$BM$3000,1)) -> 818 | CE21: =SUM($A$1/$CF21) -> 2.470277411 | CF21: =SUM(COUNTIF($BN$3:$BN$3000,1)) -> 757 | CI21: =SUM($A$1/$CJ21) -> 2.382165605 | CJ21: =SUM(COUNTIF($BO$3:$BO$3000,1)) -> 785 | CM21: =SUM($A$1/$CN21) -> 2.520215633 | CN21: =SUM(COUNTIF($BP$3:$BP$3000,1)) -> 742 | CQ21: =SUM($A$1/$CR21) -> 2.226190476 | CR21: =SUM(COUNTIF($BQ$3:$BQ$3000,1)) -> 840 | CU21: C1 | CV21: =SUM(CB14:CB15) -> 1637 | CX21: C1 | CY21: =SUM(CB16:CB18) -> 363 | DB21: D1 | DC21: 1668 | DE21: A4 | DF21: 334
A22: 20 | C22: 84 | D22: 72 | E22: 59 | F22: 90 | G22: 97 | H22: 30 | I22: 75 | J22: 26 | K22: 42 | L22: 55 | M22: 31 | N22: 93 | O22: 71 | P22: 65 | Q22: 61 | R22: 60 | S22: 70 | T22: 43 | U22: 51 | V22: 20 | X22: 1 | Y22: 9 | Z22: 1195 | AB22: =$AG$65 -> 83 | AC22: =$AG$66 -> 91 | AD22: =$AG$67 -> 27 | AE22: =$AG$68 -> 15 | AF22: =$AG$69 -> 39 | AG22: =$AG$70 -> 13 | AH22: =$AG$71 -> 63 | AI22: =$AG$72 -> 99 | AJ22: =$AG$73 -> 97 | AK22: =$AG$74 -> 45 | AM22: =$AN$65 -> 15 | AN22: =$AN$66 -> 61 | AO22: =$AN$67 -> 29 | AP22: =$AN$68 -> 25 | AQ22: =$AN$69 -> 39 | AR22: =$AN$70 -> 35 | AS22: =$AN$71 -> 95 | AT22: =$AN$72 -> 97 | AU22: =$AN$73 -> 13 | AV22: =$AN$74 -> 53 | AX22: 1 | AY22: 2 | AZ22: 1 | BA22: 1 | BB22: 1 | BC22: 1 | BD22: 0 | BE22: 0 | BF22: 1 | BG22: 1 | BH22: 0 | BI22: 0 | BJ22: 0 | BK22: 0 | BL22: 3 | BM22: 0 | BN22: 1 | BO22: 1 | BP22: 1 | BQ22: 1 | BR22: 1 | BS22: 0 | BT22: 1 | BU22: 1 | BV22: 1 | BX22: = 02 | CA22: =SUM($A$1/$CB22) -> 6.470588235 | CB22: =SUM(COUNTIF($BM$3:$BM$3000,2)) -> 289 | CE22: =SUM($A$1/$CF22) -> 6.515679443 | CF22: =SUM(COUNTIF($BN$3:$BN$3000,2)) -> 287 | CI22: =SUM($A$1/$CJ22) -> 6.470588235 | CJ22: =SUM(COUNTIF($BO$3:$BO$3000,2)) -> 289 | CM22: =SUM($A$1/$CN22) -> 6.65480427 | CN22: =SUM(COUNTIF($BP$3:$BP$3000,2)) -> 281 | CQ22: =SUM($A$1/$CR22) -> 6.296296296 | CR22: =SUM(COUNTIF($BQ$3:$BQ$3000,2)) -> 297 | CU22: C2 | CV22: =SUM(CF14:CF15) -> 1678 | CX22: C2 | CY22: =SUM(CF16:CF18) -> 322 | DB22: D5 | DC22: 1668 | DE22: B3 | DF22: 333
A23: 21 | C23: 71 | D23: 54 | E23: 67 | F23: 38 | G23: 59 | H23: 16 | I23: 89 | J23: 2 | K23: 92 | L23: 77 | M23: 45 | N23: 75 | O23: 7 | P23: 73 | Q23: 26 | R23: 99 | S23: 97 | T23: 29 | U23: 41 | V23: 8 | X23: 5 | Y23: 7 | Z23: 1065 | AA23: D | AB23: =$AD$75 -> 40 | AC23: =$AD$76 -> 88 | AD23: =$AD$77 -> 22 | AE23: =$AD$78 -> 52 | AF23: =$AD$79 -> 4 | AG23: =$AD$80 -> 44 | AH23: =$AD$81 -> 14 | AI23: =$AD$82 -> 62 | AJ23: =$AD$83 -> 56 | AK23: =$AD$84 -> 64 | AM23: =$AK$75 -> 36 | AN23: =$AK$76 -> 88 | AO23: =$AK$77 -> 30 | AP23: =$AK$78 -> 34 | AQ23: =$AK$79 -> 40 | AR23: =$AK$80 -> 62 | AS23: =$AK$81 -> 46 | AT23: =$AK$82 -> 32 | AU23: =$AK$83 -> 10 | AV23: =$AK$84 -> 56 | AX23: 0 | AY23: 1 | AZ23: 1 | BA23: 1 | BB23: 2 | BC23: 2 | BD23: 1 | BE23: 0 | BF23: 2 | BG23: 1 | BH23: 0 | BI23: 0 | BJ23: 0 | BK23: 1 | BL23: 2 | BM23: 0 | BN23: 1 | BO23: 1 | BP23: 1 | BQ23: 0 | BR23: 1 | BS23: 0 | BT23: 0 | BU23: 1 | BV23: 1 | BX23: = 03 | CA23: =SUM($A$1/$CB23) -> 43.48837209 | CB23: =SUM(COUNTIF($BM$3:$BM$3000,3)) -> 43 | CE23: =SUM($A$1/$CF23) -> 56.66666667 | CF23: =SUM(COUNTIF($BN$3:$BN$3000,3)) -> 33 | CI23: =SUM($A$1/$CJ23) -> 38.95833333 | CJ23: =SUM(COUNTIF($BO$3:$BO$3000,3)) -> 48 | CM23: =SUM($A$1/$CN23) -> 39.78723404 | CN23: =SUM(COUNTIF($BP$3:$BP$3000,3)) -> 47 | CQ23: =SUM($A$1/$CR23) -> 51.94444444 | CR23: =SUM(COUNTIF($BQ$3:$BQ$3000,3)) -> 36 | CU23: C3 | CV23: =SUM(CJ14:CJ15) -> 1676 | CX23: C3 | CY23: =SUM(CJ16:CJ18) -> 324 | DB23: B3 | DC23: 1667 | DE23: B5 | DF23: 333
A24: 22 | C24: 13 | D24: 94 | E24: 0 | F24: 5 | G24: 37 | H24: 56 | I24: 84 | J24: 85 | K24: 93 | L24: 11 | M24: 38 | N24: 29 | O24: 41 | P24: 23 | Q24: 33 | R24: 42 | S24: 49 | T24: 95 | U24: 45 | V24: 79 | X24: 4 | Y24: 5 | Z24: 952 | AB24: =$AG$75 -> 11 | AC24: =$AG$76 -> 49 | AD24: =$AG$77 -> 65 | AE24: =$AG$78 -> 73 | AF24: =$AG$79 -> 59 | AG24: =$AG$80 -> 17 | AH24: =$AG$81 -> 71 | AI24: =$AG$82 -> 33 | AJ24: =$AG$83 -> 47 | AK24: =$AG$84 -> 55 | AM24: =$AN$75 -> 87 | AN24: =$AN$76 -> 83 | AO24: =$AN$77 -> 79 | AP24: =$AN$78 -> 67 | AQ24: =$AN$79 -> 77 | AR24: =$AN$80 -> 99 | AS24: =$AN$81 -> 57 | AT24: =$AN$82 -> 71 | AU24: =$AN$83 -> 89 | AV24: =$AN$84 -> 81 | AX24: 3 | AY24: 0 | AZ24: 1 | BA24: 2 | BB24: 1 | BC24: 0 | BD24: 2 | BE24: 0 | BF24: 1 | BG24: 0 | BH24: 0 | BI24: 1 | BJ24: 1 | BK24: 0 | BL24: 1 | BM24: 2 | BN24: 0 | BO24: 0 | BP24: 1 | BQ24: 1 | BR24: 0 | BS24: 0 | BT24: 1 | BU24: 1 | BV24: 1 | BX24: = 04 | CA24: =IF($CB24>0,SUM($A$1/$CB24),$A$1) -> 935 | CB24: =SUM(COUNTIF($BM$3:$BM$3000,4)) -> 2 | CE24: =IF($CF24>0,SUM($A$1/$CF24),$A$1) -> 1870 | CF24: =SUM(COUNTIF($BN$3:$BN$3000,4)) -> 1 | CI24: =IF($CJ24>0,SUM($A$1/$CJ24),$A$1) -> 233.75 | CJ24: =SUM(COUNTIF($BO$3:$BO$3000,4)) -> 8 | CM24: =IF($CN24>0,SUM($A$1/$CN24),$A$1) -> 935 | CN24: =SUM(COUNTIF($BP$3:$BP$3000,4)) -> 2 | CQ24: =IF($CR24>0,SUM($A$1/$CR24),$A$1) -> 1870 | CR24: =SUM(COUNTIF($BQ$3:$BQ$3000,4)) -> 1 | CU24: C4 | CV24: =SUM(CN14:CN15) -> 1669 | CX24: C4 | CY24: =SUM(CN16:CN18) -> 331 | DB24: B5 | DC24: 1667 | DE24: D1 | DF24: 332
A25: 23 | C25: 77 | D25: 4 | E25: 41 | F25: 53 | G25: 28 | H25: 17 | I25: 40 | J25: 19 | K25: 99 | L25: 24 | M25: 26 | N25: 18 | O25: 32 | P25: 78 | Q25: 60 | R25: 64 | S25: 37 | T25: 25 | U25: 89 | V25: 31 | X25: 2 | Y25: 10 | Z25: 862 | AA25: E | AB25: =$AD$85 -> 2 | AC25: =$AD$86 -> 30 | AD25: =$AD$87 -> 58 | AE25: =$AD$88 -> 18 | AF25: =$AD$89 -> 42 | AG25: =$AD$90 -> 86 | AH25: =$AD$91 -> 34 | AI25: =$AD$92 -> 92 | AJ25: =$AD$93 -> 90 | AK25: =$AD$94 -> 96 | AM25: =$AK$85 -> 80 | AN25: =$AK$86 -> 60 | AO25: =$AK$87 -> 2 | AP25: =$AK$88 -> 22 | AQ25: =$AK$89 -> 90 | AR25: =$AK$90 -> 98 | AS25: =$AK$91 -> 96 | AT25: =$AK$92 -> 94 | AU25: =$AK$93 -> 84 | AV25: =$AK$94 -> 52 | AX25: 0 | AY25: 0 | AZ25: 1 | BA25: 0 | BB25: 2 | BC25: 1 | BD25: 2 | BE25: 1 | BF25: 1 | BG25: 2 | BH25: 0 | BI25: 0 | BJ25: 1 | BK25: 1 | BL25: 1 | BM25: 1 | BN25: 0 | BO25: 2 | BP25: 0 | BQ25: 1 | BR25: 0 | BS25: 3 | BT25: 0 | BU25: 0 | BV25: 0 | CU25: C5 | CV25: =SUM(CR14:CR15) -> 1647 | CX25: C5 | CY25: =SUM(CR16:CR18) -> 353 | DB25: A3 | DC25: 1666 | DE25: D5 | DF25: 332
A26: 24 | C26: 95 | D26: 42 | E26: 13 | F26: 66 | G26: 48 | H26: 46 | I26: 51 | J26: 75 | K26: 43 | L26: 49 | M26: 32 | N26: 1 | O26: 11 | P26: 50 | Q26: 23 | R26: 94 | S26: 41 | T26: 45 | U26: 59 | V26: 86 | X26: 2 | Y26: 8 | Z26: 970 | AB26: =$AG$85 -> 21 | AC26: =$AG$86 -> 69 | AD26: =$AG$87 -> 25 | AE26: =$AG$88 -> 19 | AF26: =$AG$89 -> 87 | AG26: =$AG$90 -> 81 | AH26: =$AG$91 -> 5 | AI26: =$AG$92 -> 51 | AJ26: =$AG$93 -> 23 | AK26: =$AG$94 -> 7 | AM26: =$AN$85 -> 9 | AN26: =$AN$86 -> 65 | AO26: =$AN$87 -> 59 | AP26: =$AN$88 -> 63 | AQ26: =$AN$89 -> 7 | AR26: =$AN$90 -> 21 | AS26: =$AN$91 -> 5 | AT26: =$AN$92 -> 69 | AU26: =$AN$93 -> 33 | AV26: =$AN$94 -> 75 | AX26: 1 | AY26: 0 | AZ26: 0 | BA26: 0 | BB26: 2 | BC26: 2 | BD26: 1 | BE26: 1 | BF26: 0 | BG26: 1 | BH26: 1 | BI26: 0 | BJ26: 2 | BK26: 1 | BL26: 1 | BM26: 2 | BN26: 0 | BO26: 1 | BP26: 0 | BQ26: 0 | BR26: 0 | BS26: 0 | BT26: 2 | BU26: 1 | BV26: 1 | BX26: = 00 | BZ26: E 1 | CA26: =SUM($A$1/$CB26) -> 2.054945055 | CB26: =SUM(COUNTIF($BR$3:$BR$3000,0)) -> 910 | CD26: E 2 | CE26: =SUM($A$1/$CB26) -> 2.054945055 | CF26: =SUM(COUNTIF($BS$3:$BS$3000,0)) -> 872 | CH26: E 3 | CI26: =SUM($A$1/$CJ26) -> 2.057205721 | CJ26: =SUM(COUNTIF($BT$3:$BT$3000,0)) -> 909 | CL26: E 4 | CM26: =SUM($A$1/$CN26) -> 2.125 | CN26: =SUM(COUNTIF($BU$3:$BU$3000,0)) -> 880 | CP26: E 5 | CQ26: =SUM($A$1/$CR26) -> 2.017259978 | CR26: =SUM(COUNTIF($BV$3:$BV$3000,0)) -> 927 | CU26: D1 | CV26: =SUM(CB20:CB21) -> 1666 | CX26: D1 | CY26: =SUM(CB22:CB24) -> 334 | DB26: A4 | DC26: 1666 | DE26: A1 | DF26: 330
A27: 25 | C27: 98 | D27: 48 | E27: 85 | F27: 5 | G27: 21 | H27: 73 | I27: 95 | J27: 49 | K27: 64 | L27: 46 | M27: 45 | N27: 94 | O27: 88 | P27: 47 | Q27: 59 | R27: 31 | S27: 19 | T27: 82 | U27: 93 | V27: 92 | X27: 7 | Y27: 8 | Z27: 1234 | AB27: 1 | AD27: 2 | AF27: 3 | AH27: 4 | AJ27: 5 | AX27: 1 | AY27: 0 | AZ27: 1 | BA27: 2 | BB27: 0 | BC27: 0 | BD27: 1 | BE27: 0 | BF27: 1 | BG27: 0 | BH27: 0 | BI27: 1 | BJ27: 1 | BK27: 1 | BL27: 1 | BM27: 2 | BN27: 1 | BO27: 1 | BP27: 0 | BQ27: 2 | BR27: 1 | BS27: 1 | BT27: 0 | BU27: 2 | BV27: 0 | BX27: = 01 | CA27: =SUM($A$1/$CB27) -> 2.37008872 | CB27: =SUM(COUNTIF($BR$3:$BR$3000,1)) -> 789 | CE27: =SUM($A$1/$CB27) -> 2.37008872 | CF27: =SUM(COUNTIF($BS$3:$BS$3000,1)) -> 785 | CI27: =SUM($A$1/$CJ27) -> 2.533875339 | CJ27: =SUM(COUNTIF($BT$3:$BT$3000,1)) -> 738 | CM27: =SUM($A$1/$CN27) -> 2.412903226 | CN27: =SUM(COUNTIF($BU$3:$BU$3000,1)) -> 775 | CQ27: =SUM($A$1/$CR27) -> 2.483399734 | CR27: =SUM(COUNTIF($BV$3:$BV$3000,1)) -> 753 | CU27: D2 | CV27: =SUM(CF20:CF21) -> 1679 | CX27: D2 | CY27: =SUM(CF22:CF24) -> 321 | DB27: A2 | DC27: 1661 | DE27: B1 | DF27: 330
A28: 26 | C28: 33 | D28: 81 | E28: 42 | F28: 51 | G28: 66 | H28: 78 | I28: 19 | J28: 92 | K28: 13 | L28: 88 | M28: 53 | N28: 15 | O28: 3 | P28: 5 | Q28: 27 | R28: 4 | S28: 30 | T28: 48 | U28: 32 | V28: 49 | X28: 6 | Y28: 9 | Z28: 829 | AB28: IFRAP é uma índice baseado no atraso de um número dividido por quantas vezes eles saiu na historia | AX28: 0 | AY28: 1 | AZ28: 0 | BA28: 0 | BB28: 0 | BC28: 0 | BD28: 0 | BE28: 1 | BF28: 0 | BG28: 2 | BH28: 1 | BI28: 2 | BJ28: 1 | BK28: 1 | BL28: 0 | BM28: 2 | BN28: 0 | BO28: 1 | BP28: 1 | BQ28: 0 | BR28: 1 | BS28: 1 | BT28: 2 | BU28: 3 | BV28: 0 | BX28: = 02 | CA28: =SUM($A$1/$CB28) -> 6.97761194 | CB28: =SUM(COUNTIF($BR$3:$BR$3000,2)) -> 268 | CE28: =SUM($A$1/$CB28) -> 6.97761194 | CF28: =SUM(COUNTIF($BS$3:$BS$3000,2)) -> 296 | CI28: =SUM($A$1/$CJ28) -> 5.974440895 | CJ28: =SUM(COUNTIF($BT$3:$BT$3000,2)) -> 313 | CM28: =SUM($A$1/$CN28) -> 6.091205212 | CN28: =SUM(COUNTIF($BU$3:$BU$3000,2)) -> 307 | CQ28: =SUM($A$1/$CR28) -> 6.631205674 | CR28: =SUM(COUNTIF($BV$3:$BV$3000,2)) -> 282 | CU28: D3 | CV28: =SUM(CJ20:CJ21) -> 1655 | CX28: D3 | CY28: =SUM(CJ22:CJ24) -> 345 | DB28: E4 | DC28: 1659 | DE28: C4 | DF28: 329
A29: 27 | C29: 3 | D29: 56 | E29: 86 | F29: 84 | G29: 31 | H29: 58 | I29: 59 | J29: 32 | K29: 61 | L29: 6 | M29: 21 | N29: 91 | O29: 82 | P29: 75 | Q29: 16 | R29: 71 | S29: 98 | T29: 19 | U29: 39 | V29: 1 | X29: 3 | Y29: 9 | Z29: 989 | AB29: Da FORÇA pela FREQUÊNCIA de todos os Sorteios | AM29: Da FORÇA pela FREQUÊNCIA dos 100 | AX29: 2 | AY29: 2 | AZ29: 0 | BA29: 1 | BB29: 1 | BC29: 1 | BD29: 0 | BE29: 1 | BF29: 1 | BG29: 1 | BH29: 1 | BI29: 1 | BJ29: 1 | BK29: 0 | BL29: 0 | BM29: 0 | BN29: 0 | BO29: 1 | BP29: 1 | BQ29: 1 | BR29: 1 | BS29: 2 | BT29: 1 | BU29: 0 | BV29: 0 | BX29: = 03 | CA29: =SUM($A$1/$CB29) -> 60.32258065 | CB29: =SUM(COUNTIF($BR$3:$BR$3000,3)) -> 31 | CE29: =SUM($A$1/$CB29) -> 60.32258065 | CF29: =SUM(COUNTIF($BS$3:$BS$3000,3)) -> 47 | CI29: =SUM($A$1/$CJ29) -> 50.54054054 | CJ29: =SUM(COUNTIF($BT$3:$BT$3000,3)) -> 37 | CM29: =SUM($A$1/$CN29) -> 55 | CN29: =SUM(COUNTIF($BU$3:$BU$3000,3)) -> 34 | CQ29: =SUM($A$1/$CR29) -> 50.54054054 | CR29: =SUM(COUNTIF($BV$3:$BV$3000,3)) -> 37 | CU29: D4 | CV29: =SUM(CN20:CN21) -> 1670 | CX29: D4 | CY29: =SUM(CN22:CN24) -> 330 | DB29: B4 | DC29: 1658 | DE29: D4 | DF29: 327
A30: 28 | C30: 85 | D30: 37 | E30: 96 | F30: 5 | G30: 89 | H30: 64 | I30: 24 | J30: 67 | K30: 68 | L30: 49 | M30: 54 | N30: 33 | O30: 73 | P30: 65 | Q30: 57 | R30: 60 | S30: 45 | T30: 44 | U30: 56 | V30: 41 | X30: 1 | Y30: 8 | Z30: 1112 | AX30: 0 | AY30: 1 | AZ30: 2 | BA30: 0 | BB30: 1 | BC30: 0 | BD30: 2 | BE30: 1 | BF30: 1 | BG30: 0 | BH30: 0 | BI30: 0 | BJ30: 1 | BK30: 0 | BL30: 2 | BM30: 1 | BN30: 2 | BO30: 1 | BP30: 1 | BQ30: 2 | BR30: 0 | BS30: 0 | BT30: 0 | BU30: 1 | BV30: 1 | BX30: = 04 | CA30: =IF($CB30>0,SUM($A$1/$CB30),$A$1) -> 935 | CB30: =SUM(COUNTIF($BR$3:$BR$3000,4)) -> 2 | CE30: =IF($CF30>0,SUM($A$1/$CF30),$A$1) -> 1870 | CF30: =SUM(COUNTIF($BS$3:$BS$3000,4)) -> 0 | CI30: =IF($CJ30>0,SUM($A$1/$CJ30),$A$1) -> 623.3333333 | CJ30: =SUM(COUNTIF($BT$3:$BT$3000,4)) -> 3 | CM30: =IF($CN30>0,SUM($A$1/$CN30),$A$1) -> 467.5 | CN30: =SUM(COUNTIF($BU$3:$BU$3000,4)) -> 4 | CQ30: =IF($CR30>0,SUM($A$1/$CR30),$A$1) -> 1870 | CR30: =SUM(COUNTIF($BV$3:$BV$3000,4)) -> 1 | CU30: D5 | CV30: =SUM(CR20:CR21) -> 1666 | CX30: D5 | CY30: =SUM(CR22:CR24) -> 334 | DB30: E2 | DC30: 1658 | DE30: C3 | DF30: 323
A31: 29 | C31: 84 | D31: 11 | E31: 42 | F31: 96 | G31: 5 | H31: 29 | I31: 9 | J31: 27 | K31: 86 | L31: 87 | M31: 61 | N31: 68 | O31: 78 | P31: 69 | Q31: 85 | R31: 1 | S31: 2 | T31: 53 | U31: 74 | V31: 93 | X31: 4 | Y31: 8 | Z31: 1060 | AB31: =$AR$45 -> 47 | AC31: =$AR$46 -> 41 | AD31: =$AR$47 -> 49 | AE31: =$AR$48 -> 17 | AF31: =$AR$49 -> 43 | AG31: =$AR$50 -> 92 | AH31: =$AR$51 -> 48 | AI31: =$AR$52 -> 54 | AJ31: =$AR$53 -> 26 | AK31: =$AR$54 -> 45 | AM31: =AU$45 -> 6 | AN31: =$AU$46 -> 84 | AO31: =$AU$47 -> 70 | AP31: =$AU$48 -> 79 | AQ31: =$AU$49 -> 95 | AR31: =$AU$50 -> 54 | AS31: =$AU$51 -> 20 | AT31: =$AU$52 -> 61 | AU31: =$AU$53 -> 74 | AV31: =$AU$54 -> 98 | AX31: 1 | AY31: 1 | AZ31: 2 | BA31: 1 | BB31: 1 | BC31: 0 | BD31: 0 | BE31: 1 | BF31: 2 | BG31: 2 | BH31: 0 | BI31: 1 | BJ31: 0 | BK31: 0 | BL31: 0 | BM31: 1 | BN31: 0 | BO31: 0 | BP31: 0 | BQ31: 0 | BR31: 2 | BS31: 0 | BT31: 3 | BU31: 1 | BV31: 1 | CU31: E1 | CV31: =SUM(CB26:CB27) -> 1699 | CX31: E1 | CY31: =SUM(CB28:CB30) -> 301 | DB31: D3 | DC31: 1656 | DE31: C2 | DF31: 320
A32: 30 | C32: 79 | D32: 33 | E32: 0 | F32: 15 | G32: 60 | H32: 5 | I32: 61 | J32: 23 | K32: 97 | L32: 40 | M32: 29 | N32: 34 | O32: 42 | P32: 43 | Q32: 71 | R32: 24 | S32: 36 | T32: 49 | U32: 22 | V32: 72 | X32: 4 | Y32: 8 | Z32: 835 | AB32: =$AR$55 -> 6 | AC32: =$AR$56 -> 91 | AD32: =$AR$57 -> 85 | AE32: =$AR$58 -> 38 | AF32: =$AR$59 -> 76 | AG32: =$AR$60 -> 58 | AH32: =$AR$61 -> 31 | AI32: =$AR$62 -> 78 | AJ32: =$AR$63 -> 64 | AK32: =$AR$64 -> 19 | AM32: =$AU$55 -> 38 | AN32: =$AU$56 -> 26 | AO32: =$AU$57 -> 3 | AP32: =$AU$58 -> 89 | AQ32: =$AU$59 -> 85 | AR32: =$AU$60 -> 35 | AS32: =$AU$61 -> 80 | AT32: =$AU$62 -> 93 | AU32: =$AU$63 -> 41 | AV32: =$AU$64 -> 16 | AX32: 1 | AY32: 1 | AZ32: 0 | BA32: 0 | BB32: 0 | BC32: 1 | BD32: 0 | BE32: 0 | BF32: 1 | BG32: 0 | BH32: 1 | BI32: 2 | BJ32: 1 | BK32: 0 | BL32: 3 | BM32: 2 | BN32: 1 | BO32: 0 | BP32: 2 | BQ32: 0 | BR32: 0 | BS32: 0 | BT32: 1 | BU32: 2 | BV32: 1 | CU32: E2 | CV32: =SUM(CF26:CF27) -> 1657 | CX32: E2 | CY32: =SUM(CF28:CF30) -> 343 | DB32: C5 | DC32: 1652 | DE32: E5 | DF32: 319
A33: 31 | C33: 15 | D33: 7 | E33: 52 | F33: 94 | G33: 24 | H33: 64 | I33: 73 | J33: 35 | K33: 14 | L33: 10 | M33: 53 | N33: 44 | O33: 0 | P33: 68 | Q33: 48 | R33: 8 | S33: 1 | T33: 79 | U33: 13 | V33: 43 | X33: 5 | Y33: 10 | Z33: 745 | AB33: =$AR$65 -> 4 | AC33: =$AR$66 -> 42 | AD33: =$AR$67 -> 44 | AE33: =$AR$68 -> 55 | AF33: =$AR$69 -> 11 | AG33: =$AR$70 -> 23 | AH33: =$AR$71 -> 93 | AI33: =$AR$72 -> 73 | AJ33: =$AR$73 -> 37 | AK33: =$AR$74 -> 27 | AM33: =$AU$65 -> 1 | AN33: =$AU$66 -> 50 | AO33: =$AU$67 -> 28 | AP33: =$AU$68 -> 77 | AQ33: =$AU$69 -> 94 | AR33: =$AU$70 -> 12 | AS33: =$AU$71 -> 32 | AT33: =$AU$72 -> 43 | AU33: =$AU$73 -> 37 | AV33: =$AU$74 -> 68 | AX33: 1 | AY33: 0 | AZ33: 0 | BA33: 1 | BB33: 1 | BC33: 1 | BD33: 1 | BE33: 0 | BF33: 2 | BG33: 1 | BH33: 0 | BI33: 2 | BJ33: 2 | BK33: 2 | BL33: 0 | BM33: 0 | BN33: 2 | BO33: 1 | BP33: 1 | BQ33: 1 | BR33: 0 | BS33: 0 | BT33: 0 | BU33: 0 | BV33: 1 | CU33: E3 | CV33: =SUM(CJ26:CJ27) -> 1647 | CX33: E3 | CY33: =SUM(CJ28:CJ30) -> 353 | DB33: E3 | DC33: 1649 | DE33: D2 | DF33: 318
A34: 32 | C34: 5 | D34: 20 | E34: 29 | F34: 49 | G34: 12 | H34: 83 | I34: 23 | J34: 28 | K34: 41 | L34: 80 | M34: 79 | N34: 42 | O34: 95 | P34: 67 | Q34: 94 | R34: 66 | S34: 92 | T34: 39 | U34: 76 | V34: 17 | X34: 2 | Y34: 9 | Z34: 1037 | AB34: =$AR$75 -> 16 | AC34: =$AR$76 -> 1 | AD34: =$AR$77 -> 82 | AE34: =$AR$78 -> 68 | AF34: =$AR$79 -> 20 | AG34: =$AR$80 -> 24 | AH34: =$AR$81 -> 8 | AI34: =$AR$82 -> 3 | AJ34: =$AR$83 -> 66 | AK34: =$AR$84 -> 14 | AM34: =$AU$75 -> 67 | AN34: =$AU$76 -> 57 | AO34: =$AU$77 -> 8 | AP34: =$AU$78 -> 9 | AQ34: =$AU$79 -> 76 | AR34: =$AU$80 -> 31 | AS34: =$AU$81 -> 78 | AT34: =$AU$82 -> 66 | AU34: =$AU$83 -> 29 | AV34: =$AU$84 -> 53 | AX34: 2 | AY34: 0 | AZ34: 1 | BA34: 0 | BB34: 2 | BC34: 0 | BD34: 3 | BE34: 1 | BF34: 1 | BG34: 1 | BH34: 2 | BI34: 0 | BJ34: 1 | BK34: 0 | BL34: 0 | BM34: 1 | BN34: 0 | BO34: 1 | BP34: 0 | BQ34: 0 | BR34: 0 | BS34: 0 | BT34: 1 | BU34: 2 | BV34: 1 | CU34: E4 | CV34: =SUM(CN26:CN27) -> 1655 | CX34: E4 | CY34: =SUM(CN28:CN30) -> 345 | DB34: A5 | DC34: 1646 | DE34: B2 | DF34: 309
A35: 33 | C35: 49 | D35: 13 | E35: 82 | F35: 93 | G35: 14 | H35: 52 | I35: 34 | J35: 11 | K35: 6 | L35: 23 | M35: 90 | N35: 76 | O35: 60 | P35: 28 | Q35: 71 | R35: 56 | S35: 39 | T35: 86 | U35: 33 | V35: 12 | X35: 6 | Y35: 12 | Z35: 928 | AB35: =$AR$85 -> 51 | AC35: =$AR$86 -> 12 | AD35: =$AR$87 -> 61 | AE35: =$AR$88 -> 15 | AF35: =$AR$89 -> 29 | AG35: =$AR$90 -> 39 | AH35: =$AR$91 -> 25 | AI35: =$AR$92 -> 35 | AJ35: =$AR$93 -> 72 | AK35: =$AR$94 -> 0 | AM35: =$AU$85 -> 36 | AN35: =$AU$86 -> 82 | AO35: =$AU$87 -> 75 | AP35: =$AU$88 -> 83 | AQ35: =$AU$89 -> 91 | AR35: =$AU$90 -> 27 | AS35: =$AU$91 -> 15 | AT35: =$AU$92 -> 39 | AU35: =$AU$93 -> 0 | AV35: =$AU$94 -> 13 | AX35: 1 | AY35: 0 | AZ35: 0 | BA35: 1 | BB35: 0 | BC35: 0 | BD35: 1 | BE35: 1 | BF35: 0 | BG35: 1 | BH35: 0 | BI35: 1 | BJ35: 2 | BK35: 0 | BL35: 1 | BM35: 2 | BN35: 1 | BO35: 0 | BP35: 3 | BQ35: 1 | BR35: 0 | BS35: 0 | BT35: 1 | BU35: 1 | BV35: 2 | CU35: E5 | CV35: =SUM(CR26:CR27) -> 1680 | CX35: E5 | CY35: =SUM(CR28:CR30) -> 320 | DB35: C1 | DC35: 1638 | DE35: E1 | DF35: 299
A36: 34 | C36: 66 | D36: 45 | E36: 77 | F36: 82 | G36: 61 | H36: 24 | I36: 23 | J36: 28 | K36: 51 | L36: 20 | M36: 19 | N36: 89 | O36: 44 | P36: 54 | Q36: 9 | R36: 58 | S36: 2 | T36: 14 | U36: 79 | V36: 12 | X36: 5 | Y36: 11 | Z36: 857 | AB36: =$AR$95 -> 50 | AC36: =$AR$96 -> 74 | AD36: =$AR$97 -> 97 | AE36: =$AR$98 -> 95 | AF36: =$AR$99 -> 86 | AG36: =$AR$100 -> 18 | AH36: =$AR$101 -> 70 | AI36: =$AR$102 -> 53 | AJ36: =$AR$103 -> 28 | AK36: =$AR$104 -> 13 | AM36: =$AU$95 -> 46 | AN36: =$AU$96 -> 63 | AO36: =$AU$97 -> 24 | AP36: =$AU$98 -> 10 | AQ36: =$AU$99 -> 99 | AR36: =$AU$100 -> 48 | AS36: =$AU$101 -> 97 | AT36: =$AU$102 -> 60 | AU36: =$AU$103 -> 72 | AV36: =$AU$104 -> 40 | AX36: 1 | AY36: 2 | AZ36: 2 | BA36: 0 | BB36: 0 | BC36: 1 | BD36: 1 | BE36: 2 | BF36: 0 | BG36: 0 | BH36: 1 | BI36: 1 | BJ36: 1 | BK36: 0 | BL36: 1 | BM36: 0 | BN36: 0 | BO36: 1 | BP36: 1 | BQ36: 0 | BR36: 1 | BS36: 2 | BT36: 0 | BU36: 1 | BV36: 1
A37: 35 | C37: 23 | D37: 48 | E37: 85 | F37: 47 | G37: 88 | H37: 12 | I37: 11 | J37: 42 | K37: 99 | L37: 67 | M37: 22 | N37: 4 | O37: 14 | P37: 49 | Q37: 28 | R37: 54 | S37: 53 | T37: 8 | U37: 36 | V37: 60 | X37: 5 | Y37: 12 | Z37: 850 | AB37: =$AR$105 -> 87 | AC37: =$AR$106 -> 83 | AD37: =$AR$107 -> 79 | AE37: =$AR$108 -> 77 | AF37: =$AR$109 -> 67 | AG37: =$AR$110 -> 36 | AH37: =$AR$111 -> 99 | AI37: =$AR$112 -> 88 | AJ37: =$AR$113 -> 57 | AK37: =$AR$114 -> 30 | AM37: =$AU$105 -> 45 | AN37: =$AU$106 -> 11 | AO37: =$AU$107 -> 88 | AP37: =$AU$108 -> 22 | AQ37: =$AU$109 -> 52 | AR37: =$AU$110 -> 49 | AS37: =$AU$111 -> 65 | AT37: =$AU$112 -> 4 | AU37: =$AU$113 -> 44 | AV37: =$AU$114 -> 73 | AX37: 0 | AY37: 1 | AZ37: 1 | BA37: 0 | BB37: 0 | BC37: 0 | BD37: 2 | BE37: 1 | BF37: 1 | BG37: 1 | BH37: 1 | BI37: 0 | BJ37: 0 | BK37: 2 | BL37: 1 | BM37: 3 | BN37: 1 | BO37: 1 | BP37: 1 | BQ37: 1 | BR37: 0 | BS37: 0 | BT37: 1 | BU37: 0 | BV37: 1 | CS37: Ver Intervalos de Baixa/Alta Incidencia no Ultimo Concurso lá em baixo.
A38: 36 | C38: 71 | D38: 56 | E38: 58 | F38: 5 | G38: 16 | H38: 17 | I38: 85 | J38: 86 | K38: 65 | L38: 50 | M38: 88 | N38: 76 | O38: 78 | P38: 57 | Q38: 43 | R38: 69 | S38: 51 | T38: 55 | U38: 9 | V38: 89 | X38: 2 | Y38: 8 | Z38: 1124 | AB38: =$AR$115 -> 89 | AC38: =$AR$116 -> 71 | AD38: =$AR$117 -> 40 | AE38: =$AR$118 -> 34 | AF38: =$AR$119 -> 81 | AG38: =$AR$120 -> 62 | AH38: =$AR$121 -> 9 | AI38: =$AR$122 -> 46 | AJ38: =$AR$123 -> 65 | AK38: =$AR$124 -> 32 | AM38: =$AU$115 -> 14 | AN38: =$AU$116 -> 62 | AO38: =$AU$117 -> 59 | AP38: =$AU$118 -> 56 | AQ38: =$AU$119 -> 17 | AR38: =$AU$120 -> 71 | AS38: =$AU$121 -> 33 | AT38: =$AU$122 -> 47 | AU38: =$AU$123 -> 64 | AV38: =$AU$124 -> 55 | AX38: 0 | AY38: 0 | AZ38: 2 | BA38: 0 | BB38: 0 | BC38: 3 | BD38: 0 | BE38: 2 | BF38: 0 | BG38: 2 | BH38: 0 | BI38: 0 | BJ38: 0 | BK38: 0 | BL38: 0 | BM38: 1 | BN38: 1 | BO38: 1 | BP38: 1 | BQ38: 2 | BR38: 1 | BS38: 1 | BT38: 1 | BU38: 2 | BV38: 0
A39: 37 | C39: 44 | D39: 43 | E39: 74 | F39: 73 | G39: 99 | H39: 1 | I39: 20 | J39: 3 | K39: 82 | L39: 97 | M39: 98 | N39: 50 | O39: 9 | P39: 55 | Q39: 17 | R39: 35 | S39: 38 | T39: 21 | U39: 52 | V39: 6 | X39: 5 | Y39: 9 | Z39: 917 | AB39: =$AR$125 -> 63 | AC39: =$AR$126 -> 59 | AD39: =$AR$127 -> 10 | AE39: =$AR$128 -> 56 | AF39: =$AR$129 -> 21 | AG39: =$AR$130 -> 7 | AH39: =$AR$131 -> 80 | AI39: =$AR$132 -> 60 | AJ39: =$AR$133 -> 5 | AK39: =$AR$134 -> 22 | AM39: =$AU$125 -> 21 | AN39: =$AU$126 -> 2 | AO39: =$AU$127 -> 69 | AP39: =$AU$128 -> 30 | AQ39: =$AU$129 -> 25 | AR39: =$AU$130 -> 58 | AS39: =$AU$131 -> 19 | AT39: =$AU$132 -> 18 | AU39: =$AU$133 -> 87 | AV39: =$AU$134 -> 81 | AX39: 1 | AY39: 1 | AZ39: 2 | BA39: 3 | BB39: 1 | BC39: 2 | BD39: 0 | BE39: 1 | BF39: 0 | BG39: 0 | BH39: 0 | BI39: 1 | BJ39: 0 | BK39: 1 | BL39: 1 | BM39: 0 | BN39: 2 | BO39: 2 | BP39: 0 | BQ39: 1 | BR39: 1 | BS39: 0 | BT39: 0 | BU39: 0 | BV39: 0
A40: 38 | C40: 56 | D40: 4 | E40: 58 | F40: 55 | G40: 30 | H40: 35 | I40: 66 | J40: 36 | K40: 57 | L40: 2 | M40: 11 | N40: 20 | O40: 83 | P40: 99 | Q40: 12 | R40: 53 | S40: 61 | T40: 49 | U40: 23 | V40: 98 | X40: 5 | Y40: 10 | Z40: 908 | AB40: =$AR$135 -> 2 | AC40: =$AR$136 -> 90 | AD40: =$AR$137 -> 69 | AE40: =$AR$138 -> 98 | AF40: =$AR$139 -> 33 | AG40: =$AR$140 -> 96 | AH40: =$AR$141 -> 94 | AI40: =$AR$142 -> 75 | AJ40: =$AR$143 -> 84 | AK40: =$AR$144 -> 52 | AM40: =$AU$135 -> 5 | AN40: =$AU$136 -> 42 | AO40: =$AU$137 -> 86 | AP40: =$AU$138 -> 34 | AQ40: =$AU$139 -> 51 | AR40: =$AU$140 -> 92 | AS40: =$AU$141 -> 90 | AT40: =$AU$142 -> 96 | AU40: =$AU$143 -> 23 | AV40: =$AU$144 -> 7 | AX40: 0 | AY40: 1 | AZ40: 1 | BA40: 2 | BB40: 0 | BC40: 0 | BD40: 0 | BE40: 2 | BF40: 0 | BG40: 1 | BH40: 3 | BI40: 0 | BJ40: 0 | BK40: 1 | BL40: 0 | BM40: 2 | BN40: 0 | BO40: 1 | BP40: 0 | BQ40: 2 | BR40: 2 | BS40: 1 | BT40: 0 | BU40: 0 | BV40: 1
A41: 39 | C41: 84 | D41: 24 | E41: 17 | F41: 26 | G41: 33 | H41: 57 | I41: 78 | J41: 70 | K41: 72 | L41: 2 | M41: 0 | N41: 5 | O41: 38 | P41: 30 | Q41: 81 | R41: 52 | S41: 44 | T41: 9 | U41: 11 | V41: 18 | X41: 4 | Y41: 12 | Z41: 751 | AX41: 1 | AY41: 1 | AZ41: 0 | BA41: 1 | BB41: 1 | BC41: 0 | BD41: 0 | BE41: 2 | BF41: 0 | BG41: 1 | BH41: 0 | BI41: 1 | BJ41: 1 | BK41: 0 | BL41: 1 | BM41: 1 | BN41: 1 | BO41: 2 | BP41: 1 | BQ41: 0 | BR41: 2 | BS41: 1 | BT41: 1 | BU41: 1 | BV41: 0
A42: 40 | C42: 55 | D42: 74 | E42: 7 | F42: 5 | G42: 62 | H42: 9 | I42: 77 | J42: 57 | K42: 80 | L42: 41 | M42: 83 | N42: 16 | O42: 90 | P42: 67 | Q42: 51 | R42: 8 | S42: 99 | T42: 86 | U42: 43 | V42: 25 | X42: 3 | Y42: 7 | Z42: 1035 | AX42: 0 | AY42: 0 | AZ42: 1 | BA42: 0 | BB42: 2 | BC42: 3 | BD42: 1 | BE42: 2 | BF42: 1 | BG42: 0 | BH42: 1 | BI42: 0 | BJ42: 0 | BK42: 1 | BL42: 0 | BM42: 0 | BN42: 0 | BO42: 0 | BP42: 1 | BQ42: 1 | BR42: 0 | BS42: 1 | BT42: 1 | BU42: 2 | BV42: 2
A43: 41 | C43: 98 | D43: 50 | E43: 37 | F43: 33 | G43: 47 | H43: 4 | I43: 86 | J43: 64 | K43: 26 | L43: 82 | M43: 29 | N43: 58 | O43: 11 | P43: 9 | Q43: 71 | R43: 77 | S43: 22 | T43: 41 | U43: 52 | V43: 65 | X43: 4 | Y43: 10 | Z43: 962 | AB43: =A$1-100 -> 1770 | AD43: Dos últimos 100 Sorteios | AK43: DeTodos | AN43: DeTodos | AR43: DeTodos | AU43: Dos 100 | AX43: 0 | AY43: 0 | AZ43: 0 | BA43: 1 | BB43: 2 | BC43: 2 | BD43: 1 | BE43: 1 | BF43: 1 | BG43: 0 | BH43: 0 | BI43: 1 | BJ43: 0 | BK43: 0 | BL43: 0 | BM43: 1 | BN43: 3 | BO43: 1 | BP43: 2 | BQ43: 2 | BR43: 0 | BS43: 1 | BT43: 1 | BU43: 0 | BV43: 0
A44: 42 | C44: 12 | D44: 18 | E44: 48 | F44: 74 | G44: 75 | H44: 29 | I44: 35 | J44: 41 | K44: 83 | L44: 64 | M44: 3 | N44: 80 | O44: 86 | P44: 89 | Q44: 67 | R44: 73 | S44: 99 | T44: 21 | U44: 20 | V44: 47 | X44: 5 | Y44: 8 | Z44: 1064 | AD44: Dos 50 Pares | AG44: Dos 50 Ímp | AK44: Dos 50 Pares | AN44: Dos 50 Ímpares | AQ44: Pares & Ímpares | AT44: Pares & Ímpares | AX44: 0 | AY44: 1 | AZ44: 3 | BA44: 1 | BB44: 2 | BC44: 0 | BD44: 1 | BE44: 1 | BF44: 1 | BG44: 1 | BH44: 1 | BI44: 0 | BJ44: 0 | BK44: 2 | BL44: 0 | BM44: 0 | BN44: 1 | BO44: 0 | BP44: 0 | BQ44: 2 | BR44: 1 | BS44: 1 | BT44: 1 | BU44: 0 | BV44: 0
A45: 43 | C45: 17 | D45: 54 | E45: 93 | F45: 31 | G45: 96 | H45: 32 | I45: 8 | J45: 94 | K45: 18 | L45: 39 | M45: 30 | N45: 53 | O45: 75 | P45: 77 | Q45: 86 | R45: 90 | S45: 58 | T45: 84 | U45: 6 | V45: 19 | X45: 3 | Y45: 12 | Z45: 1060 | AD45: 6 | AE45: =COUNTIF($C$1763:$V$3000,AD45) -> 33 | AG45: 79 | AH45: =COUNTIF($C$1763:$V$3000,AG45) -> 33 | AK45: 48 | AL45: =COUNTIF($C$3:$V$3000,AK45) -> 408 | AN45: 47 | AO45: =COUNTIF($C$3:$V$3000,AN45) -> 422 | AR45: 47 | AS45: =COUNTIF($C$3:$V$3000,AR45) -> 422 | AU45: 6 | AV45: =COUNTIF($C$1756:$V$3000,AU45) -> 33 | AX45: 2 | AY45: 1 | AZ45: 0 | BA45: 1 | BB45: 0 | BC45: 1 | BD45: 1 | BE45: 1 | BF45: 2 | BG45: 2 | BH45: 0 | BI45: 0 | BJ45: 1 | BK45: 0 | BL45: 0 | BM45: 0 | BN45: 0 | BO45: 1 | BP45: 0 | BQ45: 0 | BR45: 1 | BS45: 3 | BT45: 1 | BU45: 0 | BV45: 2
A46: 44 | C46: 78 | D46: 15 | E46: 40 | F46: 28 | G46: 32 | H46: 87 | I46: 36 | J46: 52 | K46: 44 | L46: 72 | M46: 23 | N46: 38 | O46: 80 | P46: 18 | Q46: 54 | R46: 0 | S46: 81 | T46: 77 | U46: 8 | V46: 99 | X46: 5 | Y46: 13 | Z46: 962 | AC46: Dos últimos 100 sorteios - PARES | AD46: 84 | AE46: =COUNTIF($C$1763:$V$3000,AD46) -> 29 | AF46: Dos últimos 100 sorteios - ÍMPARES | AG46: 95 | AH46: =COUNTIF($C$1763:$V$3000,AG46) -> 33 | AJ46: De todos PARES | AK46: 92 | AL46: 407 | AM46: De todos ÍMPARES | AN46: 41 | AO46: 423 | AR46: 41 | AS46: 423 | AU46: 84 | AV46: 30 | AX46: 0 | AY46: 1 | AZ46: 0 | BA46: 1 | BB46: 1 | BC46: 1 | BD46: 1 | BE46: 1 | BF46: 1 | BG46: 1 | BH46: 1 | BI46: 2 | BJ46: 0 | BK46: 1 | BL46: 1 | BM46: 1 | BN46: 1 | BO46: 1 | BP46: 0 | BQ46: 0 | BR46: 0 | BS46: 1 | BT46: 2 | BU46: 0 | BV46: 1
A47: 45 | C47: 3 | D47: 33 | E47: 74 | F47: 80 | G47: 18 | H47: 70 | I47: 90 | J47: 24 | K47: 1 | L47: 30 | M47: 67 | N47: 69 | O47: 37 | P47: 68 | Q47: 42 | R47: 57 | S47: 14 | T47: 41 | U47: 86 | V47: 0 | X47: 3 | Y47: 11 | Z47: 904 | AD47: 70 | AE47: 29 | AG47: 61 | AH47: 30 | AK47: 54 | AL47: 403 | AN47: 49 | AO47: 418 | AR47: 49 | AS47: 418 | AU47: 70 | AV47: 32 | AX47: 0 | AY47: 2 | AZ47: 1 | BA47: 0 | BB47: 3 | BC47: 0 | BD47: 2 | BE47: 1 | BF47: 1 | BG47: 0 | BH47: 0 | BI47: 1 | BJ47: 1 | BK47: 0 | BL47: 0 | BM47: 0 | BN47: 0 | BO47: 0 | BP47: 2 | BQ47: 0 | BR47: 2 | BS47: 1 | BT47: 2 | BU47: 0 | BV47: 1
A48: 46 | C48: 5 | D48: 2 | E48: 98 | F48: 97 | G48: 28 | H48: 50 | I48: 93 | J48: 94 | K48: 24 | L48: 12 | M48: 78 | N48: 25 | O48: 63 | P48: 45 | Q48: 0 | R48: 9 | S48: 81 | T48: 32 | U48: 31 | V48: 41 | X48: 3 | Y48: 9 | Z48: 908 | AD48: 54 | AE48: 26 | AG48: 3 | AH48: 27 | AK48: 26 | AL48: 400 | AN48: 17 | AO48: 414 | AR48: 17 | AS48: 414 | AU48: 79 | AV48: 35 | AX48: 0 | AY48: 0 | AZ48: 0 | BA48: 2 | BB48: 1 | BC48: 1 | BD48: 2 | BE48: 3 | BF48: 1 | BG48: 1 | BH48: 0 | BI48: 1 | BJ48: 1 | BK48: 1 | BL48: 2 | BM48: 0 | BN48: 0 | BO48: 0 | BP48: 0 | BQ48: 0 | BR48: 1 | BS48: 1 | BT48: 1 | BU48: 1 | BV48: 0
A49: 47 | C49: 7 | D49: 21 | E49: 18 | F49: 95 | G49: 80 | H49: 75 | I49: 10 | J49: 78 | K49: 31 | L49: 96 | M49: 50 | N49: 11 | O49: 92 | P49: 42 | Q49: 89 | R49: 97 | S49: 82 | T49: 70 | U49: 34 | V49: 39 | X49: 4 | Y49: 11 | Z49: 1117 | AD49: 20 | AE49: 28 | AG49: 89 | AH49: 25 | AK49: 6 | AL49: 392 | AN49: 43 | AO49: 411 | AR49: 43 | AS49: 411 | AU49: 95 | AV49: 33 | AX49: 1 | AY49: 1 | AZ49: 1 | BA49: 0 | BB49: 1 | BC49: 1 | BD49: 0 | BE49: 0 | BF49: 1 | BG49: 2 | BH49: 0 | BI49: 1 | BJ49: 1 | BK49: 1 | BL49: 1 | BM49: 1 | BN49: 0 | BO49: 0 | BP49: 0 | BQ49: 0 | BR49: 1 | BS49: 1 | BT49: 1 | BU49: 2 | BV49: 2
A50: 48 | C50: 34 | D50: 64 | E50: 15 | F50: 14 | G50: 37 | H50: 13 | I50: 56 | J50: 0 | K50: 30 | L50: 5 | M50: 98 | N50: 9 | O50: 68 | P50: 47 | Q50: 45 | R50: 35 | S50: 88 | T50: 18 | U50: 74 | V50: 70 | X50: 3 | Y50: 11 | Z50: 820 | AD50: 74 | AE50: 25 | AG50: 85 | AH50: 27 | AK50: 38 | AL50: 394 | AN50: 45 | AO50: 400 | AR50: 92 | AS50: 407 | AU50: 54 | AV50: 27 | AX50: 0 | AY50: 1 | AZ50: 1 | BA50: 2 | BB50: 0 | BC50: 0 | BD50: 1 | BE50: 1 | BF50: 1 | BG50: 0 | BH50: 0 | BI50: 2 | BJ50: 1 | BK50: 0 | BL50: 1 | BM50: 1 | BN50: 0 | BO50: 0 | BP50: 1 | BQ50: 3 | BR50: 1 | BS50: 1 | BT50: 0 | BU50: 2 | BV50: 0
A51: 49 | C51: 29 | D51: 45 | E51: 50 | F51: 85 | G51: 86 | H51: 55 | I51: 21 | J51: 80 | K51: 61 | L51: 81 | M51: 79 | N51: 40 | O51: 44 | P51: 62 | Q51: 37 | R51: 95 | S51: 83 | T51: 97 | U51: 88 | V51: 31 | X51: 3 | Y51: 7 | Z51: 1249 | AD51: 98 | AE51: 26 | AG51: 35 | AH51: 23 | AK51: 58 | AL51: 389 | AN51: 91 | AO51: 391 | AR51: 48 | AS51: 408 | AU51: 20 | AV51: 28 | AX51: 2 | AY51: 1 | AZ51: 1 | BA51: 0 | BB51: 1 | BC51: 1 | BD51: 1 | BE51: 0 | BF51: 2 | BG51: 0 | BH51: 1 | BI51: 0 | BJ51: 0 | BK51: 0 | BL51: 2 | BM51: 2 | BN51: 0 | BO51: 1 | BP51: 1 | BQ51: 1 | BR51: 1 | BS51: 0 | BT51: 2 | BU51: 0 | BV51: 0
A52: 50 | C52: 34 | D52: 20 | E52: 26 | F52: 24 | G52: 73 | H52: 68 | I52: 6 | J52: 54 | K52: 8 | L52: 40 | M52: 28 | N52: 0 | O52: 27 | P52: 71 | Q52: 30 | R52: 66 | S52: 82 | T52: 39 | U52: 43 | V52: 42 | X52: 1 | Y52: 14 | Z52: 781 | AD52: 38 | AE52: 31 | AG52: 93 | AH52: 24 | AK52: 76 | AL52: 389 | AN52: 85 | AO52: 390 | AR52: 54 | AS52: 403 | AU52: 61 | AV52: 31 | AX52: 1 | AY52: 1 | AZ52: 1 | BA52: 0 | BB52: 1 | BC52: 1 | BD52: 1 | BE52: 0 | BF52: 2 | BG52: 0 | BH52: 1 | BI52: 3 | BJ52: 2 | BK52: 0 | BL52: 0 | BM52: 1 | BN52: 1 | BO52: 0 | BP52: 1 | BQ52: 0 | BR52: 1 | BS52: 0 | BT52: 1 | BU52: 1 | BV52: 0
A53: 51 | C53: 41 | D53: 21 | E53: 1 | F53: 53 | G53: 10 | H53: 83 | I53: 3 | J53: 98 | K53: 16 | L53: 89 | M53: 51 | N53: 82 | O53: 40 | P53: 46 | Q53: 60 | R53: 75 | S53: 63 | T53: 47 | U53: 57 | V53: 4 | X53: 2 | Y53: 8 | Z53: 940 | AD53: 26 | AE53: 26 | AG53: 41 | AH53: 27 | AK53: 4 | AL53: 383 | AN53: 31 | AO53: 387 | AR53: 26 | AS53: 400 | AU53: 74 | AV53: 27 | AX53: 0 | AY53: 1 | AZ53: 1 | BA53: 1 | BB53: 2 | BC53: 1 | BD53: 0 | BE53: 1 | BF53: 0 | BG53: 2 | BH53: 1 | BI53: 1 | BJ53: 1 | BK53: 2 | BL53: 1 | BM53: 1 | BN53: 0 | BO53: 1 | BP53: 0 | BQ53: 1 | BR53: 1 | BS53: 0 | BT53: 0 | BU53: 1 | BV53: 0
A54: 52 | C54: 85 | D54: 50 | E54: 81 | F54: 9 | G54: 53 | H54: 26 | I54: 89 | J54: 87 | K54: 31 | L54: 18 | M54: 65 | N54: 37 | O54: 80 | P54: 45 | Q54: 73 | R54: 99 | S54: 69 | T54: 6 | U54: 1 | V54: 13 | X54: 3 | Y54: 5 | Z54: 1017 | AD54: 80 | AE54: 25 | AG54: 1 | AH54: 29 | AK54: 64 | AL54: 388 | AN54: 19 | AO54: 384 | AR54: 45 | AS54: 400 | AU54: 98 | AV54: 28 | AX54: 1 | AY54: 0 | AZ54: 2 | BA54: 0 | BB54: 3 | BC54: 1 | BD54: 1 | BE54: 1 | BF54: 1 | BG54: 1 | BH54: 0 | BI54: 0 | BJ54: 1 | BK54: 1 | BL54: 1 | BM54: 0 | BN54: 2 | BO54: 0 | BP54: 0 | BQ54: 0 | BR54: 1 | BS54: 1 | BT54: 2 | BU54: 0 | BV54: 0
A55: 53 | C55: 56 | D55: 8 | E55: 28 | F55: 42 | G55: 82 | H55: 18 | I55: 12 | J55: 41 | K55: 10 | L55: 34 | M55: 86 | N55: 49 | O55: 59 | P55: 32 | Q55: 62 | R55: 95 | S55: 21 | T55: 50 | U55: 39 | V55: 6 | X55: 3 | Y55: 14 | Z55: 830 | AD55: 16 | AE55: 23 | AG55: 77 | AH55: 26 | AK55: 78 | AL55: 386 | AN55: 11 | AO55: 386 | AR55: 6 | AS55: 392 | AU55: 38 | AV55: 33 | AX55: 2 | AY55: 0 | AZ55: 0 | BA55: 0 | BB55: 1 | BC55: 1 | BD55: 1 | BE55: 2 | BF55: 1 | BG55: 0 | BH55: 0 | BI55: 1 | BJ55: 1 | BK55: 1 | BL55: 0 | BM55: 1 | BN55: 0 | BO55: 1 | BP55: 1 | BQ55: 1 | BR55: 1 | BS55: 1 | BT55: 2 | BU55: 1 | BV55: 0
A56: 54 | C56: 97 | D56: 88 | E56: 23 | F56: 98 | G56: 6 | H56: 87 | I56: 45 | J56: 22 | K56: 18 | L56: 43 | M56: 56 | N56: 40 | O56: 17 | P56: 38 | Q56: 74 | R56: 94 | S56: 15 | T56: 53 | U56: 91 | V56: 86 | X56: 4 | Y56: 11 | Z56: 1091 | AD56: 50 | AE56: 23 | AG56: 43 | AH56: 24 | AK56: 42 | AL56: 387 | AN56: 55 | AO56: 380 | AR56: 91 | AS56: 391 | AU56: 26 | AV56: 28 | AX56: 1 | AY56: 0 | AZ56: 1 | BA56: 2 | BB56: 0 | BC56: 1 | BD56: 1 | BE56: 0 | BF56: 0 | BG56: 1 | BH56: 1 | BI56: 1 | BJ56: 0 | BK56: 0 | BL56: 2 | BM56: 2 | BN56: 1 | BO56: 1 | BP56: 0 | BQ56: 1 | BR56: 0 | BS56: 1 | BT56: 2 | BU56: 0 | BV56: 1
A57: 55 | C57: 97 | D57: 37 | E57: 5 | F57: 4 | G57: 96 | H57: 26 | I57: 44 | J57: 49 | K57: 40 | L57: 99 | M57: 50 | N57: 89 | O57: 54 | P57: 3 | Q57: 64 | R57: 63 | S57: 32 | T57: 74 | U57: 67 | V57: 73 | X57: 3 | Y57: 10 | Z57: 1066 | AD57: 28 | AE57: 21 | AG57: 37 | AH57: 21 | AK57: 44 | AL57: 386 | AN57: 23 | AO57: 380 | AR57: 85 | AS57: 390 | AU57: 3 | AV57: 28 | AX57: 0 | AY57: 2 | AZ57: 2 | BA57: 0 | BB57: 1 | BC57: 1 | BD57: 2 | BE57: 1 | BF57: 0 | BG57: 0 | BH57: 0 | BI57: 0 | BJ57: 0 | BK57: 2 | BL57: 1 | BM57: 2 | BN57: 1 | BO57: 2 | BP57: 0 | BQ57: 1 | BR57: 0 | BS57: 0 | BT57: 0 | BU57: 1 | BV57: 1
A58: 56 | C58: 82 | D58: 74 | E58: 88 | F58: 92 | G58: 47 | H58: 56 | I58: 28 | J58: 60 | K58: 30 | L58: 24 | M58: 12 | N58: 16 | O58: 91 | P58: 31 | Q58: 8 | R58: 35 | S58: 36 | T58: 17 | U58: 80 | V58: 63 | X58: 2 | Y58: 14 | Z58: 970 | AD58: 94 | AE58: 23 | AG58: 67 | AH58: 24 | AK58: 16 | AL58: 379 | AN58: 1 | AO58: 383 | AR58: 38 | AS58: 394 | AU58: 89 | AV58: 27 | AX58: 0 | AY58: 0 | AZ58: 1 | BA58: 1 | BB58: 1 | BC58: 1 | BD58: 1 | BE58: 1 | BF58: 2 | BG58: 0 | BH58: 2 | BI58: 1 | BJ58: 1 | BK58: 1 | BL58: 1 | BM58: 1 | BN58: 0 | BO58: 1 | BP58: 0 | BQ58: 2 | BR58: 1 | BS58: 0 | BT58: 0 | BU58: 1 | BV58: 0
A59: 57 | C59: 41 | D59: 67 | E59: 98 | F59: 58 | G59: 85 | H59: 79 | I59: 64 | J59: 44 | K59: 9 | L59: 78 | M59: 93 | N59: 83 | O59: 73 | P59: 97 | Q59: 50 | R59: 5 | S59: 28 | T59: 2 | U59: 95 | V59: 25 | X59: 1 | Y59: 8 | Z59: 1174 | AD59: 12 | AE59: 27 | AG59: 57 | AH59: 23 | AK59: 82 | AL59: 378 | AN59: 27 | AO59: 382 | AR59: 76 | AS59: 389 | AU59: 85 | AV59: 27 | AX59: 2 | AY59: 0 | AZ59: 1 | BA59: 2 | BB59: 1 | BC59: 1 | BD59: 2 | BE59: 1 | BF59: 0 | BG59: 1 | BH59: 1 | BI59: 0 | BJ59: 0 | BK59: 0 | BL59: 1 | BM59: 0 | BN59: 1 | BO59: 1 | BP59: 0 | BQ59: 1 | BR59: 1 | BS59: 2 | BT59: 0 | BU59: 1 | BV59: 0
A60: 58 | C60: 8 | D60: 80 | E60: 92 | F60: 23 | G60: 25 | H60: 22 | I60: 78 | J60: 85 | K60: 48 | L60: 95 | M60: 16 | N60: 19 | O60: 13 | P60: 74 | Q60: 90 | R60: 11 | S60: 51 | T60: 61 | U60: 56 | V60: 66 | X60: 4 | Y60: 11 | Z60: 1013 | AD60: 32 | AE60: 26 | AG60: 9 | AH60: 21 | AK60: 68 | AL60: 378 | AN60: 37 | AO60: 379 | AR60: 58 | AS60: 389 | AU60: 35 | AV60: 25 | AX60: 1 | AY60: 1 | AZ60: 2 | BA60: 0 | BB60: 1 | BC60: 1 | BD60: 0 | BE60: 0 | BF60: 1 | BG60: 1 | BH60: 1 | BI60: 0 | BJ60: 1 | BK60: 1 | BL60: 0 | BM60: 1 | BN60: 1 | BO60: 0 | BP60: 0 | BQ60: 1 | BR60: 0 | BS60: 2 | BT60: 0 | BU60: 2 | BV60: 2
A61: 59 | C61: 27 | D61: 81 | E61: 92 | F61: 63 | G61: 14 | H61: 83 | I61: 35 | J61: 96 | K61: 7 | L61: 89 | M61: 45 | N61: 76 | O61: 56 | P61: 53 | Q61: 52 | R61: 94 | S61: 20 | T61: 91 | U61: 16 | V61: 30 | X61: 3 | Y61: 10 | Z61: 1120 | AD61: 68 | AE61: 22 | AG61: 31 | AH61: 25 | AK61: 20 | AL61: 378 | AN61: 73 | AO61: 380 | AR61: 31 | AS61: 387 | AU61: 80 | AV61: 27 | AX61: 0 | AY61: 0 | AZ61: 2 | BA61: 1 | BB61: 0 | BC61: 1 | BD61: 1 | BE61: 0 | BF61: 0 | BG61: 2 | BH61: 2 | BI61: 1 | BJ61: 0 | BK61: 1 | BL61: 1 | BM61: 0 | BN61: 1 | BO61: 0 | BP61: 1 | BQ61: 1 | BR61: 1 | BS61: 0 | BT61: 1 | BU61: 1 | BV61: 2
A62: 60 | C62: 60 | D62: 76 | E62: 4 | F62: 41 | G62: 88 | H62: 12 | I62: 14 | J62: 42 | K62: 22 | L62: 17 | M62: 87 | N62: 93 | O62: 45 | P62: 40 | Q62: 26 | R62: 67 | S62: 68 | T62: 43 | U62: 47 | V62: 2 | X62: 3 | Y62: 12 | Z62: 894 | AD62: 8 | AE62: 27 | AG62: 29 | AH62: 23 | AK62: 8 | AL62: 381 | AN62: 93 | AO62: 379 | AR62: 78 | AS62: 386 | AU62: 93 | AV62: 25 | AX62: 0 | AY62: 0 | AZ62: 0 | BA62: 1 | BB62: 2 | BC62: 1 | BD62: 1 | BE62: 1 | BF62: 1 | BG62: 1 | BH62: 0 | BI62: 0 | BJ62: 0 | BK62: 0 | BL62: 2 | BM62: 2 | BN62: 1 | BO62: 2 | BP62: 1 | BQ62: 1 | BR62: 1 | BS62: 0 | BT62: 2 | BU62: 0 | BV62: 0
A63: 61 | C63: 64 | D63: 60 | E63: 84 | F63: 70 | G63: 68 | H63: 6 | I63: 0 | J63: 53 | K63: 40 | L63: 74 | M63: 88 | N63: 27 | O63: 26 | P63: 61 | Q63: 30 | R63: 14 | S63: 35 | T63: 34 | U63: 55 | V63: 51 | X63: 6 | Y63: 13 | Z63: 940 | AD63: 76 | AE63: 24 | AG63: 53 | AH63: 23 | AK63: 24 | AL63: 380 | AN63: 3 | AO63: 379 | AR63: 64 | AS63: 388 | AU63: 41 | AV63: 28 | AX63: 2 | AY63: 2 | AZ63: 1 | BA63: 1 | BB63: 1 | BC63: 0 | BD63: 0 | BE63: 0 | BF63: 1 | BG63: 1 | BH63: 0 | BI63: 2 | BJ63: 0 | BK63: 0 | BL63: 1 | BM63: 2 | BN63: 0 | BO63: 0 | BP63: 1 | BQ63: 2 | BR63: 1 | BS63: 0 | BT63: 0 | BU63: 2 | BV63: 0
A64: 62 | C64: 33 | D64: 32 | E64: 66 | F64: 43 | G64: 44 | H64: 31 | I64: 27 | J64: 19 | K64: 20 | L64: 14 | M64: 24 | N64: 62 | O64: 49 | P64: 61 | Q64: 9 | R64: 81 | S64: 36 | T64: 41 | U64: 25 | V64: 23 | X64: 3 | Y64: 8 | Z64: 740 | AD64: 78 | AE64: 23 | AG64: 75 | AH64: 26 | AK64: 14 | AL64: 377 | AN64: 51 | AO64: 379 | AR64: 19 | AS64: 384 | AU64: 16 | AV64: 25 | AX64: 0 | AY64: 1 | AZ64: 1 | BA64: 0 | BB64: 1 | BC64: 1 | BD64: 0 | BE64: 2 | BF64: 1 | BG64: 0 | BH64: 2 | BI64: 1 | BJ64: 1 | BK64: 0 | BL64: 0 | BM64: 1 | BN64: 0 | BO64: 1 | BP64: 3 | BQ64: 0 | BR64: 0 | BS64: 2 | BT64: 1 | BU64: 0 | BV64: 1
A65: 63 | C65: 82 | D65: 52 | E65: 78 | F65: 24 | G65: 74 | H65: 91 | I65: 92 | J65: 41 | K65: 54 | L65: 47 | M65: 69 | N65: 1 | O65: 99 | P65: 36 | Q65: 65 | R65: 48 | S65: 57 | T65: 33 | U65: 3 | V65: 18 | X65: 4 | Y65: 10 | Z65: 1064 | AD65: 66 | AE65: 21 | AG65: 83 | AH65: 24 | AK65: 66 | AL65: 377 | AN65: 15 | AO65: 376 | AR65: 4 | AS65: 383 | AU65: 1 | AV65: 29 | AX65: 0 | AY65: 2 | AZ65: 1 | BA65: 0 | BB65: 2 | BC65: 0 | BD65: 0 | BE65: 1 | BF65: 0 | BG65: 1 | BH65: 2 | BI65: 1 | BJ65: 1 | BK65: 2 | BL65: 0 | BM65: 0 | BN65: 2 | BO65: 0 | BP65: 1 | BQ65: 1 | BR65: 1 | BS65: 1 | BT65: 0 | BU65: 1 | BV65: 0
A66: 64 | C66: 6 | D66: 54 | E66: 38 | F66: 21 | G66: 93 | H66: 66 | I66: 5 | J66: 9 | K66: 69 | L66: 47 | M66: 16 | N66: 37 | O66: 85 | P66: 98 | Q66: 84 | R66: 68 | S66: 29 | T66: 51 | U66: 11 | V66: 3 | X66: 4 | Y66: 8 | Z66: 890 | AD66: 36 | AE66: 24 | AG66: 91 | AH66: 23 | AK66: 12 | AL66: 379 | AN66: 61 | AO66: 379 | AR66: 42 | AS66: 387 | AU66: 50 | AV66: 26 | AX66: 2 | AY66: 2 | AZ66: 1 | BA66: 3 | BB66: 0 | BC66: 1 | BD66: 1 | BE66: 1 | BF66: 2 | BG66: 0 | BH66: 1 | BI66: 0 | BJ66: 0 | BK66: 0 | BL66: 0 | BM66: 1 | BN66: 0 | BO66: 0 | BP66: 0 | BQ66: 1 | BR66: 2 | BS66: 0 | BT66: 0 | BU66: 2 | BV66: 0
A67: 65 | C67: 98 | D67: 83 | E67: 72 | F67: 23 | G67: 79 | H67: 7 | I67: 69 | J67: 14 | K67: 8 | L67: 58 | M67: 21 | N67: 39 | O67: 18 | P67: 1 | Q67: 27 | R67: 45 | S67: 31 | T67: 86 | U67: 11 | V67: 92 | X67: 4 | Y67: 8 | Z67: 882 | AD67: 82 | AE67: 22 | AG67: 27 | AH67: 23 | AK67: 72 | AL67: 375 | AN67: 29 | AO67: 374 | AR67: 44 | AS67: 386 | AU67: 28 | AV67: 25 | AX67: =SUMPRODUCT(COUNTIF($C67:$V67,$AB$17:$AC$18)) -> 1 | AY67: =SUMPRODUCT(COUNTIF($C67:$V67,$AD$17:$AE$18)) -> 0 | AZ67: =SUMPRODUCT(COUNTIF($C67:$V67,$AF$17:$AG$18)) -> 0 | BA67: =SUMPRODUCT(COUNTIF($C67:$V67,$AH$17:$AI$18)) -> 1 | BB67: =SUMPRODUCT(COUNTIF($C67:$V67,$AJ$17:$AK$18)) -> 1 | BC67: =SUMPRODUCT(COUNTIF($C67:$V67,$AB$19:$AC$20)) -> 0 | BD67: =SUMPRODUCT(COUNTIF($C67:$V67,$AD$19:$AE$20)) -> 0 | BE67: =SUMPRODUCT(COUNTIF($C67:$V67,$AF$19:$AG$20)) -> 0 | BF67: =SUMPRODUCT(COUNTIF($C67:$V67,$AH$19:$AI$20)) -> 2 | BG67: =SUMPRODUCT(COUNTIF($C67:$V67,$AJ$19:$AK$20)) -> 0 | BH67: =SUMPRODUCT(COUNTIF($C67:$V67,$AB$21:$AC$22)) -> 1 | BI67: =SUMPRODUCT(COUNTIF($C67:$V67,$AD$21:$AE$22)) -> 1 | BJ67: =SUMPRODUCT(COUNTIF($C67:$V67,$AF$21:$AG$22)) -> 1 | BK67: =SUMPRODUCT(COUNTIF($C67:$V67,$AH$21:$AI$22)) -> 0 | BL67: =SUMPRODUCT(COUNTIF($C67:$V67,$AJ$21:$AK$22)) -> 2 | BM67: =SUMPRODUCT(COUNTIF($C67:$V67,$AB$23:$AC$24)) -> 1 | BN67: =SUMPRODUCT(COUNTIF($C67:$V67,$AD$23:$AE$24)) -> 0 | BO67: =SUMPRODUCT(COUNTIF($C67:$V67,$AF$23:$AG$24)) -> 0 | BP67: =SUMPRODUCT(COUNTIF($C67:$V67,$AH$23:$AI$24)) -> 1 | BQ67: =SUMPRODUCT(COUNTIF($C67:$V67,$AJ$23:$AK$24)) -> 0 | BR67: =SUMPRODUCT(COUNTIF($C67:$V67,$AB$25:$AC$26)) -> 2 | BS67: =SUMPRODUCT(COUNTIF($C67:$V67,$AD$25:$AE$26)) -> 2 | BT67: =SUMPRODUCT(COUNTIF($C67:$V67,$AF$25:$AG$26)) -> 1 | BU67: =SUMPRODUCT(COUNTIF($C67:$V67,$AH$25:$AI$26)) -> 1 | BV67: =SUMPRODUCT(COUNTIF($C67:$V67,$AJ$25:$AK$26)) -> 2
A68: 66 | C68: 16 | D68: 54 | E68: 76 | F68: 92 | G68: 62 | H68: 99 | I68: 38 | J68: 4 | K68: 66 | L68: 36 | M68: 23 | N68: 88 | O68: 14 | P68: 94 | Q68: 33 | R68: 17 | S68: 57 | T68: 78 | U68: 44 | V68: 26 | X68: =SUMPRODUCT(COUNTIF(C68:V68,C67:V67)) -> 3 | Y68: =SUMPRODUCT(N(MOD((C68:V68),2)=0)*(C68:V68>0)) -> 15 | Z68: =SUM(C68:V68) -> 1017 | AD68: 0 | AE68: 24 | AG68: 15 | AH68: 21 | AK68: 0 | AL68: 374 | AN68: 25 | AO68: 373 | AR68: 55 | AS68: 380 | AU68: 77 | AV68: 27 | AX68: 0 | AY68: 1 | AZ68: 0 | BA68: 1 | BB68: 1 | BC68: 1 | BD68: 1 | BE68: 1 | BF68: 0 | BG68: 2 | BH68: 2 | BI68: 0 | BJ68: 0 | BK68: 1 | BL68: 0 | BM68: 1 | BN68: 0 | BO68: 3 | BP68: 3 | BQ68: 0 | BR68: 0 | BS68: 0 | BT68: 0 | BU68: 1 | BV68: 1
A69: 67 | C69: 14 | D69: 64 | E69: 46 | F69: 62 | G69: 9 | H69: 18 | I69: 76 | J69: 7 | K69: 50 | L69: 25 | M69: 49 | N69: 91 | O69: 26 | P69: 89 | Q69: 85 | R69: 3 | S69: 36 | T69: 98 | U69: 94 | V69: 75 | X69: 6 | Y69: 11 | Z69: 1017 | AD69: 46 | AE69: 22 | AG69: 39 | AH69: 24 | AK69: 50 | AL69: 372 | AN69: 39 | AO69: 377 | AR69: 11 | AS69: 386 | AU69: 94 | AV69: 25 | AX69: 0 | AY69: 1 | AZ69: 2 | BA69: 1 | BB69: 1 | BC69: 1 | BD69: 1 | BE69: 1 | BF69: 0 | BG69: 2 | BH69: 2 | BI69: 0 | BJ69: 1 | BK69: 0 | BL69: 0 | BM69: 1 | BN69: 0 | BO69: 0 | BP69: 2 | BQ69: 1 | BR69: 0 | BS69: 2 | BT69: 0 | BU69: 0 | BV69: 1
A70: 68 | C70: 82 | D70: 8 | E70: 28 | F70: 88 | G70: 3 | H70: 46 | I70: 78 | J70: 94 | K70: 32 | L70: 54 | M70: 71 | N70: 6 | O70: 23 | P70: 5 | Q70: 24 | R70: 25 | S70: 45 | T70: 22 | U70: 57 | V70: 53 | X70: 4 | Y70: 12 | Z70: 844 | AD70: 24 | AE70: 25 | AG70: 13 | AH70: 24 | AK70: 74 | AL70: 370 | AN70: 35 | AO70: 372 | AR70: 23 | AS70: 380 | AU70: 12 | AV70: 28 | AX70: 1 | AY70: 2 | AZ70: 0 | BA70: 0 | BB70: 0 | BC70: 0 | BD70: 2 | BE70: 2 | BF70: 1 | BG70: 2 | BH70: 0 | BI70: 1 | BJ70: 2 | BK70: 0 | BL70: 1 | BM70: 1 | BN70: 1 | BO70: 0 | BP70: 1 | BQ70: 0 | BR70: 0 | BS70: 1 | BT70: 0 | BU70: 1 | BV70: 1
A71: 69 | C71: 55 | D71: 0 | E71: 95 | F71: 45 | G71: 94 | H71: 15 | I71: 72 | J71: 34 | K71: 76 | L71: 24 | M71: 69 | N71: 73 | O71: 98 | P71: 58 | Q71: 86 | R71: 30 | S71: 29 | T71: 14 | U71: 1 | V71: 83 | X71: 3 | Y71: 10 | Z71: 1051 | AD71: 10 | AE71: 20 | AG71: 63 | AH71: 21 | AK71: 18 | AL71: 372 | AN71: 95 | AO71: 374 | AR71: 93 | AS71: 379 | AU71: 32 | AV71: 26 | AX71: 1 | AY71: 0 | AZ71: 0 | BA71: 1 | BB71: 1 | BC71: 0 | BD71: 1 | BE71: 0 | BF71: 1 | BG71: 1 | BH71: 1 | BI71: 2 | BJ71: 1 | BK71: 0 | BL71: 2 | BM71: 0 | BN71: 1 | BO71: 0 | BP71: 1 | BQ71: 1 | BR71: 2 | BS71: 1 | BT71: 1 | BU71: 1 | BV71: 0
A72: 70 | C72: 17 | D72: 44 | E72: 89 | F72: 66 | G72: 90 | H72: 80 | I72: 38 | J72: 94 | K72: 81 | L72: 12 | M72: 46 | N72: 30 | O72: 83 | P72: 41 | Q72: 91 | R72: 13 | S72: 0 | T72: 39 | U72: 47 | V72: 33 | X72: 4 | Y72: 9 | Z72: 1034 | AD72: 48 | AE72: 21 | AG72: 99 | AH72: 24 | AK72: 86 | AL72: 370 | AN72: 97 | AO72: 370 | AR72: 73 | AS72: 380 | AU72: 43 | AV72: 26 | AX72: 0 | AY72: 0 | AZ72: 1 | BA72: 1 | BB72: 2 | BC72: 0 | BD72: 1 | BE72: 1 | BF72: 0 | BG72: 0 | BH72: 3 | BI72: 1 | BJ72: 3 | BK72: 0 | BL72: 0 | BM72: 0 | BN72: 0 | BO72: 2 | BP72: 1 | BQ72: 1 | BR72: 1 | BS72: 0 | BT72: 1 | BU72: 0 | BV72: 1
A73: 71 | C73: 39 | D73: 30 | E73: 66 | F73: 69 | G73: 24 | H73: 81 | I73: 90 | J73: 61 | K73: 94 | L73: 59 | M73: 44 | N73: 53 | O73: 73 | P73: 36 | Q73: 63 | R73: 46 | S73: 55 | T73: 50 | U73: 27 | V73: 11 | X73: 8 | Y73: 9 | Z73: 1071 | AD73: 60 | AE73: 25 | AG73: 97 | AH73: 21 | AK73: 28 | AL73: 368 | AN73: 13 | AO73: 371 | AR73: 37 | AS73: 379 | AU73: 37 | AV73: 24 | AX73: 0 | AY73: 1 | AZ73: 0 | BA73: 0 | BB73: 0 | BC73: 1 | BD73: 1 | BE73: 0 | BF73: 0 | BG73: 1 | BH73: 2 | BI73: 1 | BJ73: 3 | BK73: 1 | BL73: 0 | BM73: 1 | BN73: 1 | BO73: 2 | BP73: 0 | BQ73: 1 | BR73: 2 | BS73: 0 | BT73: 1 | BU73: 0 | BV73: 1
A74: 72 | C74: 74 | D74: 93 | E74: 0 | F74: 35 | G74: 31 | H74: 25 | I74: 16 | J74: 11 | K74: 39 | L74: 52 | M74: 68 | N74: 70 | O74: 87 | P74: 64 | Q74: 47 | R74: 90 | S74: 45 | T74: 8 | U74: 9 | V74: 20 | X74: 3 | Y74: 9 | Z74: 884 | AD74: 72 | AE74: 23 | AG74: 45 | AH74: 21 | AK74: 70 | AL74: 371 | AN74: 53 | AO74: 370 | AR74: 27 | AS74: 382 | AU74: 68 | AV74: 24 | AX74: 0 | AY74: 1 | AZ74: 2 | BA74: 2 | BB74: 0 | BC74: 1 | BD74: 0 | BE74: 1 | BF74: 3 | BG74: 0 | BH74: 0 | BI74: 1 | BJ74: 1 | BK74: 0 | BL74: 1 | BM74: 1 | BN74: 1 | BO74: 0 | BP74: 0 | BQ74: 2 | BR74: 0 | BS74: 1 | BT74: 1 | BU74: 0 | BV74: 1
A75: 73 | C75: 81 | D75: 39 | E75: 50 | F75: 94 | G75: 69 | H75: 18 | I75: 91 | J75: 92 | K75: 73 | L75: 11 | M75: 71 | N75: 99 | O75: 83 | P75: 59 | Q75: 41 | R75: 98 | S75: 93 | T75: 74 | U75: 14 | V75: 30 | X75: 4 | Y75: 8 | Z75: 1280 | AD75: 40 | AE75: 21 | AG75: 11 | AH75: 22 | AK75: 36 | AL75: 367 | AN75: 87 | AO75: 368 | AR75: 16 | AS75: 379 | AU75: 67 | AV75: 25 | AX75: 0 | AY75: 0 | AZ75: 1 | BA75: 2 | BB75: 1 | BC75: 1 | BD75: 1 | BE75: 0 | BF75: 0 | BG75: 0 | BH75: 2 | BI75: 0 | BJ75: 1 | BK75: 1 | BL75: 0 | BM75: 1 | BN75: 1 | BO75: 1 | BP75: 2 | BQ75: 0 | BR75: 2 | BS75: 1 | BT75: 1 | BU75: 1 | BV75: 0
A76: 74 | C76: 13 | D76: 48 | E76: 53 | F76: 99 | G76: 11 | H76: 96 | I76: 57 | J76: 71 | K76: 92 | L76: 17 | M76: 42 | N76: 28 | O76: 40 | P76: 24 | Q76: 49 | R76: 87 | S76: 41 | T76: 61 | U76: 46 | V76: 43 | X76: 5 | Y76: 8 | Z76: 1018 | AD76: 88 | AE76: 17 | AG76: 49 | AH76: 23 | AK76: 88 | AL76: 363 | AN76: 83 | AO76: 369 | AR76: 1 | AS76: 383 | AU76: 57 | AV76: 25 | AX76: 0 | AY76: 1 | AZ76: 0 | BA76: 0 | BB76: 1 | BC76: 1 | BD76: 1 | BE76: 1 | BF76: 0 | BG76: 1 | BH76: 0 | BI76: 0 | BJ76: 3 | BK76: 2 | BL76: 0 | BM76: 3 | BN76: 0 | BO76: 1 | BP76: 1 | BQ76: 0 | BR76: 0 | BS76: 0 | BT76: 2 | BU76: 1 | BV76: 1
A77: 75 | C77: 98 | D77: 64 | E77: 87 | F77: 78 | G77: 15 | H77: 73 | I77: 37 | J77: 85 | K77: 1 | L77: 95 | M77: 94 | N77: 76 | O77: 48 | P77: 26 | Q77: 59 | R77: 57 | S77: 11 | T77: 27 | U77: 38 | V77: 39 | X77: 4 | Y77: 8 | Z77: 1108 | AD77: 22 | AE77: 21 | AG77: 65 | AH77: 22 | AK77: 30 | AL77: =COUNTIF($C$3:$V$3000,AK77) -> 367 | AN77: 79 | AO77: =COUNTIF($C$3:$V$3000,AN77) -> 373 | AR77: 82 | AS77: =COUNTIF($C$3:$V$3000,AR77) -> 378 | AU77: 8 | AV77: =COUNTIF($C$1756:$V$3000,AU77) -> 28 | AX77: 1 | AY77: 0 | AZ77: 1 | BA77: 2 | BB77: 2 | BC77: 0 | BD77: 2 | BE77: 1 | BF77: 0 | BG77: 2 | BH77: 0 | BI77: 2 | BJ77: 1 | BK77: 1 | BL77: 0 | BM77: 1 | BN77: 1 | BO77: 1 | BP77: 0 | BQ77: 1 | BR77: 0 | BS77: 0 | BT77: 1 | BU77: 0 | BV77: 0
A78: 76 | C78: 0 | D78: 22 | E78: 61 | F78: 80 | G78: 96 | H78: 31 | I78: 30 | J78: 7 | K78: 67 | L78: 48 | M78: 29 | N78: 56 | O78: 10 | P78: 55 | Q78: 68 | R78: 50 | S78: 6 | T78: 52 | U78: 86 | V78: 18 | X78: 1 | Y78: 13 | Z78: 872 | AD78: 52 | AE78: 19 | AG78: 73 | AH78: 20 | AK78: 34 | AL78: 365 | AN78: 67 | AO78: 366 | AR78: 68 | AS78: 378 | AU78: 9 | AV78: 24 | AX78: 1 | AY78: 1 | AZ78: 0 | BA78: 0 | BB78: 1 | BC78: 1 | BD78: 1 | BE78: 0 | BF78: 3 | BG78: 0 | BH78: 0 | BI78: 1 | BJ78: 0 | BK78: 2 | BL78: 0 | BM78: 0 | BN78: 2 | BO78: 0 | BP78: 0 | BQ78: 2 | BR78: 1 | BS78: 1 | BT78: 1 | BU78: 0 | BV78: 2
A79: 77 | C79: 56 | D79: 98 | E79: 38 | F79: 83 | G79: 31 | H79: 85 | I79: 80 | J79: 28 | K79: 0 | L79: 2 | M79: 89 | N79: 16 | O79: 41 | P79: 76 | Q79: 5 | R79: 7 | S79: 32 | T79: 27 | U79: 91 | V79: 49 | X79: 5 | Y79: 9 | Z79: 934 | AD79: 4 | AE79: 17 | AG79: 59 | AH79: 18 | AK79: 40 | AL79: 366 | AN79: 77 | AO79: 367 | AR79: 20 | AS79: 378 | AU79: 76 | AV79: 25 | AX79: 0 | AY79: 0 | AZ79: 2 | BA79: 2 | BB79: 2 | BC79: 1 | BD79: 1 | BE79: 1 | BF79: 1 | BG79: 1 | BH79: 2 | BI79: 2 | BJ79: 0 | BK79: 0 | BL79: 0 | BM79: 1 | BN79: 0 | BO79: 0 | BP79: 0 | BQ79: 1 | BR79: 1 | BS79: 0 | BT79: 0 | BU79: 1 | BV79: 1
A80: 78 | C80: 83 | D80: 87 | E80: 94 | F80: 72 | G80: 71 | H80: 86 | I80: 33 | J80: 29 | K80: 84 | L80: 41 | M80: 24 | N80: 81 | O80: 21 | P80: 46 | Q80: 7 | R80: 53 | S80: 45 | T80: 36 | U80: 63 | V80: 67 | X80: 3 | Y80: 7 | Z80: 1123 | AD80: 44 | AE80: 18 | AG80: 17 | AH80: 21 | AK80: 62 | AL80: 365 | AN80: 99 | AO80: 369 | AR80: 24 | AS80: 380 | AU80: 31 | AV80: 25 | AX80: 1 | AY80: 0 | AZ80: 0 | BA80: 0 | BB80: 1 | BC80: 0 | BD80: 2 | BE80: 0 | BF80: 1 | BG80: 1 | BH80: 2 | BI80: 0 | BJ80: 2 | BK80: 1 | BL80: 2 | BM80: 0 | BN80: 0 | BO80: 0 | BP80: 2 | BQ80: 0 | BR80: 1 | BS80: 0 | BT80: 3 | BU80: 0 | BV80: 1
A81: 79 | C81: 30 | D81: 20 | E81: 51 | F81: 85 | G81: 15 | H81: 26 | I81: 86 | J81: 9 | K81: 87 | L81: 37 | M81: 7 | N81: 2 | O81: 67 | P81: 43 | Q81: 47 | R81: 77 | S81: 4 | T81: 3 | U81: 55 | V81: 38 | X81: 4 | Y81: 7 | Z81: 789 | AD81: 14 | AE81: 19 | AG81: 71 | AH81: 18 | AK81: 46 | AL81: 361 | AN81: 57 | AO81: 365 | AR81: 8 | AS81: 381 | AU81: 78 | AV81: 25 | AX81: 0 | AY81: 1 | AZ81: 2 | BA81: 1 | BB81: 1 | BC81: 2 | BD81: 2 | BE81: 1 | BF81: 0 | BG81: 0 | BH81: 0 | BI81: 1 | BJ81: 0 | BK81: 0 | BL81: 0 | BM81: 0 | BN81: 0 | BO81: 1 | BP81: 0 | BQ81: 2 | BR81: 2 | BS81: 0 | BT81: 2 | BU81: 1 | BV81: 1
A82: 80 | C82: 0 | D82: 6 | E82: 12 | F82: 17 | G82: 20 | H82: 22 | I82: 30 | J82: 36 | K82: 41 | L82: 42 | M82: 50 | N82: 55 | O82: 77 | P82: 81 | Q82: 86 | R82: 88 | S82: 91 | T82: 93 | U82: 95 | V82: 98 | X82: 5 | Y82: 11 | Z82: 1040 | AD82: 62 | AE82: 19 | AG82: 33 | AH82: 19 | AK82: 32 | AL82: 361 | AN82: 71 | AO82: 364 | AR82: 3 | AS82: 379 | AU82: 66 | AV82: 24 | AX82: 2 | AY82: 0 | AZ82: 1 | BA82: 2 | BB82: 1 | BC82: 2 | BD82: 0 | BE82: 1 | BF82: 0 | BG82: 0 | BH82: 2 | BI82: 1 | BJ82: 0 | BK82: 0 | BL82: 0 | BM82: 1 | BN82: 1 | BO82: 1 | BP82: 0 | BQ82: 1 | BR82: 1 | BS82: 0 | BT82: 3 | BU82: 0 | BV82: 0
A83: 81 | C83: 14 | D83: 16 | E83: 23 | F83: 30 | G83: 33 | H83: 39 | I83: 43 | J83: 47 | K83: 52 | L83: 63 | M83: 65 | N83: 67 | O83: 68 | P83: 74 | Q83: 83 | R83: 86 | S83: 87 | T83: 92 | U83: 94 | V83: 97 | X83: 2 | Y83: 9 | Z83: 1173 | AD83: 56 | AE83: 20 | AG83: 47 | AH83: 18 | AK83: 10 | AL83: 355 | AN83: 89 | AO83: 364 | AR83: 66 | AS83: 377 | AU83: 29 | AV83: 23 | AX83: 0 | AY83: 0 | AZ83: 1 | BA83: 0 | BB83: 0 | BC83: 2 | BD83: 2 | BE83: 0 | BF83: 1 | BG83: 0 | BH83: 1 | BI83: 0 | BJ83: 1 | BK83: 1 | BL83: 1 | BM83: 0 | BN83: 2 | BO83: 0 | BP83: 2 | BQ83: 1 | BR83: 1 | BS83: 0 | BT83: 2 | BU83: 1 | BV83: 1
A84: 82 | C84: 1 | D84: 6 | E84: 14 | F84: 21 | G84: 22 | H84: 42 | I84: 47 | J84: 48 | K84: 49 | L84: 52 | M84: 53 | N84: 59 | O84: 62 | P84: 64 | Q84: 69 | R84: 79 | S84: 85 | T84: 88 | U84: 90 | V84: 93 | X84: 3 | Y84: 10 | Z84: 1044 | AD84: 64 | AE84: 21 | AG84: 55 | AH84: 15 | AK84: 56 | AL84: 356 | AN84: 81 | AO84: 362 | AR84: 14 | AS84: 377 | AU84: 53 | AV84: 25 | AX84: 2 | AY84: 0 | AZ84: 1 | BA84: 1 | BB84: 1 | BC84: 0 | BD84: 0 | BE84: 0 | BF84: 0 | BG84: 1 | BH84: 0 | BI84: 0 | BJ84: 0 | BK84: 1 | BL84: 0 | BM84: 2 | BN84: 2 | BO84: 1 | BP84: 2 | BQ84: 2 | BR84: 2 | BS84: 0 | BT84: 1 | BU84: 0 | BV84: 1
A85: 83 | C85: 0 | D85: 4 | E85: 11 | F85: 13 | G85: 30 | H85: 37 | I85: 40 | J85: 43 | K85: 44 | L85: 45 | M85: 50 | N85: 51 | O85: 61 | P85: 65 | Q85: 71 | R85: 74 | S85: 76 | T85: 79 | U85: 83 | V85: 85 | X85: 2 | Y85: 7 | Z85: 962 | AD85: 2 | AE85: 18 | AG85: 21 | AH85: 17 | AK85: 80 | AL85: 355 | AN85: 9 | AO85: 362 | AR85: 51 | AS85: 379 | AU85: 36 | AV85: 25 | AX85: 1 | AY85: 1 | AZ85: 2 | BA85: 0 | BB85: 0 | BC85: 2 | BD85: 1 | BE85: 0 | BF85: 0 | BG85: 1 | BH85: 1 | BI85: 1 | BJ85: 1 | BK85: 0 | BL85: 1 | BM85: 2 | BN85: 1 | BO85: 2 | BP85: 1 | BQ85: 0 | BR85: 1 | BS85: 0 | BT85: 0 | BU85: 1 | BV85: 0
A86: 84 | C86: 2 | D86: 3 | E86: 4 | F86: 8 | G86: 11 | H86: 12 | I86: 16 | J86: 19 | K86: 22 | L86: 25 | M86: 42 | N86: 45 | O86: 50 | P86: 55 | Q86: 57 | R86: 65 | S86: 68 | T86: 81 | U86: 88 | V86: 95 | X86: 5 | Y86: 10 | Z86: 768 | AD86: 30 | AE86: 20 | AG86: 69 | AH86: 16 | AK86: 60 | AL86: 358 | AN86: 65 | AO86: 363 | AR86: 12 | AS86: 379 | AU86: 82 | AV86: 22 | AX86: 1 | AY86: 1 | AZ86: 0 | BA86: 0 | BB86: 0 | BC86: 2 | BD86: 0 | BE86: 2 | BF86: 2 | BG86: 0 | BH86: 0 | BI86: 0 | BJ86: 0 | BK86: 0 | BL86: 1 | BM86: 2 | BN86: 2 | BO86: 1 | BP86: 0 | BQ86: 1 | BR86: 1 | BS86: 2 | BT86: 2 | BU86: 0 | BV86: 0
A87: 85 | C87: 2 | D87: 4 | E87: 7 | F87: 10 | G87: 13 | H87: 23 | I87: 25 | J87: 30 | K87: 31 | L87: 36 | M87: 44 | N87: 45 | O87: 47 | P87: 51 | Q87: 58 | R87: 60 | S87: 63 | T87: 71 | U87: 84 | V87: 92 | X87: 4 | Y87: 10 | Z87: 796 | AD87: 58 | AE87: 18 | AG87: 25 | AH87: 16 | AK87: 2 | AL87: 354 | AN87: 59 | AO87: 356 | AR87: 61 | AS87: 379 | AU87: 75 | AV87: 27 | AX87: 1 | AY87: 0 | AZ87: 0 | BA87: 0 | BB87: 0 | BC87: 0 | BD87: 0 | BE87: 0 | BF87: 1 | BG87: 0 | BH87: 1 | BI87: 0 | BJ87: 1 | BK87: 2 | BL87: 2 | BM87: 0 | BN87: 0 | BO87: 2 | BP87: 1 | BQ87: 1 | BR87: 2 | BS87: 2 | BT87: 0 | BU87: 2 | BV87: 2
A88: 86 | C88: 1 | D88: 14 | E88: 19 | F88: 24 | G88: 26 | H88: 33 | I88: 38 | J88: 42 | K88: 45 | L88: 47 | M88: 51 | N88: 59 | O88: 60 | P88: 61 | Q88: 64 | R88: 71 | S88: 87 | T88: 96 | U88: 98 | V88: 99 | X88: 5 | Y88: 9 | Z88: 1035 | AD88: 18 | AE88: 20 | AG88: 19 | AH88: 16 | AK88: 22 | AL88: 356 | AN88: 63 | AO88: 358 | AR88: 15 | AS88: 376 | AU88: 83 | AV88: 24 | AX88: 0 | AY88: 1 | AZ88: 0 | BA88: 2 | BB88: 2 | BC88: 0 | BD88: 0 | BE88: 0 | BF88: 0 | BG88: 0 | BH88: 0 | BI88: 0 | BJ88: 1 | BK88: 1 | BL88: 2 | BM88: 0 | BN88: 0 | BO88: 1 | BP88: 3 | BQ88: 2 | BR88: 0 | BS88: 1 | BT88: 2 | BU88: 1 | BV88: 1
A89: 87 | C89: 6 | D89: 15 | E89: 17 | F89: 24 | G89: 30 | H89: 42 | I89: 43 | J89: 47 | K89: 51 | L89: 53 | M89: 54 | N89: 59 | O89: 67 | P89: 83 | Q89: 85 | R89: 87 | S89: 93 | T89: 96 | U89: 98 | V89: 99 | X89: 9 | Y89: 7 | Z89: 1149 | AD89: 42 | AE89: 18 | AG89: 87 | AH89: 18 | AK89: 90 | AL89: 350 | AN89: 7 | AO89: 355 | AR89: 29 | AS89: 374 | AU89: 91 | AV89: 24 | AX89: 1 | AY89: 1 | AZ89: 1 | BA89: 2 | BB89: 0 | BC89: 1 | BD89: 1 | BE89: 0 | BF89: 0 | BG89: 1 | BH89: 1 | BI89: 1 | BJ89: 1 | BK89: 1 | BL89: 0 | BM89: 0 | BN89: 0 | BO89: 2 | BP89: 0 | BQ89: 1 | BR89: 1 | BS89: 0 | BT89: 2 | BU89: 1 | BV89: 1
A90: 88 | C90: 11 | D90: 17 | E90: 23 | F90: 28 | G90: 30 | H90: 33 | I90: 41 | J90: 45 | K90: 46 | L90: 47 | M90: 51 | N90: 57 | O90: 60 | P90: 66 | Q90: 76 | R90: 77 | S90: 84 | T90: 86 | U90: 94 | V90: 95 | X90: 4 | Y90: 9 | Z90: 1067 | AD90: 86 | AE90: 15 | AG90: 81 | AH90: 16 | AK90: 98 | AL90: 347 | AN90: 21 | AO90: 355 | AR90: 39 | AS90: 377 | AU90: 27 | AV90: 25 | AX90: 2 | AY90: 0 | AZ90: 0 | BA90: 0 | BB90: 1 | BC90: 1 | BD90: 2 | BE90: 1 | BF90: 0 | BG90: 1 | BH90: 1 | BI90: 0 | BJ90: 1 | BK90: 0 | BL90: 2 | BM90: 1 | BN90: 0 | BO90: 1 | BP90: 1 | BQ90: 1 | BR90: 1 | BS90: 0 | BT90: 1 | BU90: 1 | BV90: 1
A91: 89 | C91: 1 | D91: 11 | E91: 17 | F91: 25 | G91: 33 | H91: 41 | I91: 44 | J91: 48 | K91: 50 | L91: 56 | M91: 59 | N91: 60 | O91: 63 | P91: 64 | Q91: 67 | R91: 68 | S91: 76 | T91: 83 | U91: 86 | V91: 88 | X91: 7 | Y91: 10 | Z91: 1040 | AD91: 34 | AE91: 16 | AG91: 5 | AH91: 18 | AK91: 96 | AL91: 347 | AN91: 5 | AO91: 356 | AR91: 25 | AS91: 373 | AU91: 15 | AV91: 23 | AX91: 0 | AY91: 0 | AZ91: 0 | BA91: 0 | BB91: 2 | BC91: 1 | BD91: 1 | BE91: 0 | BF91: 1 | BG91: 1 | BH91: 1 | BI91: 0 | BJ91: 0 | BK91: 2 | BL91: 1 | BM91: 2 | BN91: 0 | BO91: 3 | BP91: 1 | BQ91: 2 | BR91: 0 | BS91: 1 | BT91: 1 | BU91: 0 | BV91: 0
A92: 90 | C92: 17 | D92: 20 | E92: 24 | F92: 25 | G92: 26 | H92: 31 | I92: 32 | J92: 34 | K92: 37 | L92: 52 | M92: 55 | N92: 57 | O92: 62 | P92: 66 | Q92: 73 | R92: 80 | S92: 88 | T92: 92 | U92: 93 | V92: 94 | X92: 3 | Y92: 12 | Z92: 1058 | AD92: 92 | AE92: 14 | AG92: 51 | AH92: 17 | AK92: 94 | AL92: 343 | AN92: 69 | AO92: 350 | AR92: 35 | AS92: 372 | AU92: 39 | AV92: 26 | AX92: 0 | AY92: 0 | AZ92: 1 | BA92: 1 | BB92: 2 | BC92: 0 | BD92: 2 | BE92: 2 | BF92: 1 | BG92: 0 | BH92: 1 | BI92: 0 | BJ92: 1 | BK92: 0 | BL92: 0 | BM92: 1 | BN92: 2 | BO92: 1 | BP92: 1 | BQ92: 1 | BR92: 0 | BS92: 1 | BT92: 0 | BU92: 2 | BV92: 0
A93: 91 | C93: 0 | D93: 8 | E93: 14 | F93: 22 | G93: 23 | H93: 25 | I93: 26 | J93: 27 | K93: 31 | L93: 34 | M93: 35 | N93: 36 | O93: 55 | P93: 58 | Q93: 64 | R93: 66 | S93: 67 | T93: 81 | U93: 85 | V93: 91 | X93: 6 | Y93: 9 | Z93: 848 | AD93: 90 | AE93: 13 | AG93: 23 | AH93: 12 | AK93: 84 | AL93: 340 | AN93: 33 | AO93: 347 | AR93: 72 | AS93: 375 | AU93: 0 | AV93: 25 | AX93: 0 | AY93: 0 | AZ93: 1 | BA93: 1 | BB93: 1 | BC93: 0 | BD93: 1 | BE93: 0 | BF93: 2 | BG93: 0 | BH93: 3 | BI93: 2 | BJ93: 0 | BK93: 0 | BL93: 0 | BM93: 0 | BN93: 1 | BO93: 0 | BP93: 1 | BQ93: 2 | BR93: 0 | BS93: 2 | BT93: 1 | BU93: 1 | BV93: 1
A94: 92 | C94: 5 | D94: 13 | E94: 21 | F94: 27 | G94: 29 | H94: 35 | I94: 42 | J94: 48 | K94: 51 | L94: 55 | M94: 58 | N94: 60 | O94: 61 | P94: 62 | Q94: 63 | R94: 70 | S94: 86 | T94: 89 | U94: 90 | V94: 92 | X94: 4 | Y94: 9 | Z94: 1057 | AD94: 96 | AE94: 16 | AG94: 7 | AH94: 14 | AK94: 52 | AL94: 335 | AN94: 75 | AO94: 346 | AR94: 0 | AS94: 374 | AU94: 13 | AV94: 25 | AX94: 0 | AY94: 2 | AZ94: 1 | BA94: 1 | BB94: 0 | BC94: 0 | BD94: 0 | BE94: 0 | BF94: 1 | BG94: 0 | BH94: 0 | BI94: 1 | BJ94: 1 | BK94: 2 | BL94: 1 | BM94: 0 | BN94: 0 | BO94: 0 | BP94: 1 | BQ94: 1 | BR94: 1 | BS94: 1 | BT94: 2 | BU94: 3 | BV94: 1
A95: 93 | C95: 1 | D95: 7 | E95: 14 | F95: 19 | G95: 20 | H95: 28 | I95: 34 | J95: 43 | K95: 49 | L95: 52 | M95: 53 | N95: 54 | O95: 69 | P95: 74 | Q95: 77 | R95: 81 | S95: 82 | T95: 84 | U95: 90 | V95: 94 | X95: 1 | Y95: 11 | Z95: 1025 | AR95: 50 | AS95: 372 | AU95: 46 | AV95: 22 | AX95: 1 | AY95: 1 | AZ95: 2 | BA95: 0 | BB95: 1 | BC95: 2 | BD95: 2 | BE95: 0 | BF95: 0 | BG95: 1 | BH95: 0 | BI95: 1 | BJ95: 0 | BK95: 0 | BL95: 0 | BM95: 1 | BN95: 1 | BO95: 0 | BP95: 1 | BQ95: 0 | BR95: 1 | BS95: 1 | BT95: 1 | BU95: 1 | BV95: 2
A96: 94 | C96: 7 | D96: 13 | E96: 14 | F96: 21 | G96: 23 | H96: 26 | I96: 37 | J96: 42 | K96: 46 | L96: 47 | M96: 54 | N96: 59 | O96: 60 | P96: 67 | Q96: 72 | R96: 83 | S96: 84 | T96: 88 | U96: 90 | V96: 94 | X96: 6 | Y96: 11 | Z96: 1027 | AR96: 74 | AS96: 370 | AU96: 63 | AV96: 23 | AX96: 1 | AY96: 1 | AZ96: 0 | BA96: 0 | BB96: 1 | BC96: 0 | BD96: 3 | BE96: 0 | BF96: 0 | BG96: 0 | BH96: 1 | BI96: 0 | BJ96: 2 | BK96: 0 | BL96: 2 | BM96: 1 | BN96: 0 | BO96: 1 | BP96: 1 | BQ96: 1 | BR96: 1 | BS96: 0 | BT96: 1 | BU96: 0 | BV96: 3
A97: 95 | C97: 1 | D97: 16 | E97: 20 | F97: 23 | G97: 27 | H97: 41 | I97: 44 | J97: 48 | K97: 53 | L97: 55 | M97: 57 | N97: 69 | O97: 72 | P97: 79 | Q97: 84 | R97: 85 | S97: 86 | T97: 87 | U97: 91 | V97: 94 | X97: 4 | Y97: 8 | Z97: 1132 | AD97: Da FORÇA pela FREQUÊNCIA dos 50 PARES & ÍMPARES | AR97: 97 | AS97: 370 | AU97: 24 | AV97: 25 | AX97: 2 | AY97: 0 | AZ97: 2 | BA97: 0 | BB97: 2 | BC97: 1 | BD97: 1 | BE97: 1 | BF97: 0 | BG97: 1 | BH97: 1 | BI97: 1 | BJ97: 0 | BK97: 1 | BL97: 1 | BM97: 0 | BN97: 0 | BO97: 1 | BP97: 0 | BQ97: 1 | BR97: 1 | BS97: 0 | BT97: 2 | BU97: 0 | BV97: 1
A98: 96 | C98: 3 | D98: 6 | E98: 9 | F98: 15 | G98: 18 | H98: 19 | I98: 22 | J98: 24 | K98: 32 | L98: 42 | M98: 51 | N98: 62 | O98: 64 | P98: 65 | Q98: 70 | R98: 73 | S98: 75 | T98: 86 | U98: 94 | V98: 95 | X98: 2 | Y98: 11 | Z98: 925 | AR98: 95 | AS98: 374 | AU98: 10 | AV98: 21 | AX98: 2 | AY98: 2 | AZ98: 0 | BA98: 0 | BB98: 0 | BC98: 0 | BD98: 1 | BE98: 2 | BF98: 0 | BG98: 1 | BH98: 0 | BI98: 1 | BJ98: 1 | BK98: 0 | BL98: 0 | BM98: 0 | BN98: 3 | BO98: 0 | BP98: 1 | BQ98: 1 | BR98: 0 | BS98: 2 | BT98: 2 | BU98: 1 | BV98: 0
A99: 97 | C99: 1 | D99: 5 | E99: 8 | F99: 16 | G99: 31 | H99: 34 | I99: 38 | J99: 39 | K99: 43 | L99: 44 | M99: 45 | N99: 49 | O99: 50 | P99: 51 | Q99: 55 | R99: 57 | S99: 63 | T99: 85 | U99: 92 | V99: 97 | X99: 1 | Y99: 7 | Z99: 903 | AD99: =$AD$112 -> 6 | AE99: =$AD$113 -> 70 | AF99: =$AD$114 -> 38 | AG99: =$AD$115 -> 8 | AH99: =$AD$116 -> 32 | AI99: =$AD$117 -> 78 | AJ99: =$AD$118 -> 82 | AK99: =$AD$119 -> 20 | AL99: =$AD$120 -> 26 | AM99: =$AD$121 -> 94 | AR99: 86 | AS99: 370 | AU99: 99 | AV99: 25 | AX99: 0 | AY99: 0 | AZ99: 1 | BA99: 1 | BB99: 1 | BC99: 3 | BD99: 0 | BE99: 1 | BF99: 2 | BG99: 0 | BH99: 0 | BI99: 0 | BJ99: 1 | BK99: 1 | BL99: 2 | BM99: 1 | BN99: 0 | BO99: 1 | BP99: 0 | BQ99: 1 | BR99: 0 | BS99: 0 | BT99: 0 | BU99: 4 | BV99: 0
A100: 98 | C100: 2 | D100: 18 | E100: 26 | F100: 27 | G100: 38 | H100: 39 | I100: 45 | J100: 46 | K100: 51 | L100: 55 | M100: 63 | N100: 64 | O100: 68 | P100: 70 | Q100: 72 | R100: 73 | S100: 76 | T100: 84 | U100: 89 | V100: 96 | X100: 6 | Y100: 12 | Z100: 1102 | AC100: A | AD100: =$AG$112 -> 93 | AE100: =$AG$113 -> 61 | AF100: =$AG$114 -> 79 | AG100: =$AG$115 -> 85 | AH100: =$AG$116 -> 77 | AI100: =$AG$117 -> 95 | AJ100: =$AG$118 -> 3 | AK100: =$AG$119 -> 75 | AL100: =$AG$120 -> 41 | AM100: =$AG$121 -> 63 | AR100: 18 | AS100: 372 | AU100: 48 | AV100: 24 | AX100: 1 | AY100: 1 | AZ100: 1 | BA100: 1 | BB100: 1 | BC100: 0 | BD100: 0 | BE100: 0 | BF100: 1 | BG100: 1 | BH100: 0 | BI100: 1 | BJ100: 2 | BK100: 1 | BL100: 2 | BM100: 0 | BN100: 1 | BO100: 0 | BP100: 0 | BQ100: 2 | BR100: 1 | BS100: 1 | BT100: 0 | BU100: 1 | BV100: 1
A101: 99 | C101: 2 | D101: 4 | E101: 6 | F101: 10 | G101: 16 | H101: 26 | I101: 28 | J101: 32 | K101: 34 | L101: 38 | M101: 39 | N101: 42 | O101: 53 | P101: 62 | Q101: 69 | R101: 82 | S101: 89 | T101: 90 | U101: 92 | V101: 97 | X101: 5 | Y101: 15 | Z101: 911 | AD101: =$AD$122 -> 80 | AE101: =$AD$123 -> 14 | AF101: =$AD$124 -> 76 | AG101: =$AD$125 -> 60 | AH101: =$AD$126 -> 56 | AI101: =$AD$127 -> 98 | AJ101: =$AD$128 -> 74 | AK101: =$AD$129 -> 50 | AL101: =$AD$130 -> 12 | AM101: =$AD$131 -> 48 | AR101: 70 | AS101: 371 | AU101: 97 | AV101: 22 | AX101: 1 | AY101: 0 | AZ101: 1 | BA101: 1 | BB101: 1 | BC101: 1 | BD101: 1 | BE101: 1 | BF101: 0 | BG101: 1 | BH101: 0 | BI101: 1 | BJ101: 1 | BK101: 1 | BL101: 1 | BM101: 0 | BN101: 0 | BO101: 1 | BP101: 1 | BQ101: 0 | BR101: 2 | BS101: 0 | BT101: 1 | BU101: 2 | BV101: 1
A102: 100 | C102: 2 | D102: 6 | E102: 7 | F102: 11 | G102: 12 | H102: 21 | I102: 27 | J102: 28 | K102: 38 | L102: 48 | M102: 51 | N102: 56 | O102: 58 | P102: 60 | Q102: 66 | R102: 67 | S102: 77 | T102: 90 | U102: 91 | V102: 95 | X102: 5 | Y102: 11 | Z102: 911 | AC102: B | AD102: =$AG$122 -> 67 | AE102: =$AG$123 -> 1 | AF102: =$AG$124 -> 37 | AG102: =$AG$125 -> 71 | AH102: =$AG$126 -> 35 | AI102: =$AG$127 -> 43 | AJ102: =$AG$128 -> 9 | AK102: =$AG$129 -> 91 | AL102: =$AG$130 -> 53 | AM102: =$AG$131 -> 45 | AR102: 53 | AS102: 370 | AU102: 60 | AV102: 26 | AX102: 2 | AY102: 0 | AZ102: 0 | BA102: 1 | BB102: 0 | BC102: 1 | BD102: 2 | BE102: 1 | BF102: 0 | BG102: 0 | BH102: 2 | BI102: 1 | BJ102: 0 | BK102: 1 | BL102: 1 | BM102: 1 | BN102: 0 | BO102: 0 | BP102: 0 | BQ102: 1 | BR102: 2 | BS102: 1 | BT102: 0 | BU102: 1 | BV102: 2
A103: 101 | C103: 1 | D103: 2 | E103: 3 | F103: 5 | G103: 12 | H103: 16 | I103: 19 | J103: 20 | K103: 27 | L103: 30 | M103: 33 | N103: 39 | O103: 49 | P103: 51 | Q103: 59 | R103: 68 | S103: 74 | T103: 80 | U103: 82 | V103: 83 | X103: 4 | Y103: 9 | Z103: 753 | AD103: =$AD$132 -> 24 | AE103: =$AD$133 -> 72 | AF103: =$AD$134 -> 84 | AG103: =$AD$135 -> 16 | AH103: =$AD$136 -> 30 | AI103: =$AD$137 -> 0 | AJ103: =$AD$138 -> 66 | AK103: =$AD$139 -> 54 | AL103: =$AD$140 -> 68 | AM103: =$AD$141 -> 46 | AR103: 28 | AS103: 368 | AU103: 72 | AV103: 23 | AX103: 0 | AY103: 1 | AZ103: 2 | BA103: 0 | BB103: 2 | BC103: 1 | BD103: 0 | BE103: 1 | BF103: 1 | BG103: 0 | BH103: 1 | BI103: 2 | BJ103: 1 | BK103: 0 | BL103: 0 | BM103: 1 | BN103: 0 | BO103: 1 | BP103: 1 | BQ103: 0 | BR103: 2 | BS103: 1 | BT103: 0 | BU103: 2 | BV103: 0
A104: 102 | C104: 4 | D104: 9 | E104: 11 | F104: 13 | G104: 21 | H104: 24 | I104: 35 | J104: 47 | K104: 48 | L104: 57 | M104: 62 | N104: 64 | O104: 70 | P104: 72 | Q104: 76 | R104: 85 | S104: 89 | T104: 91 | U104: 94 | V104: 95 | X104: 0 | Y104: 9 | Z104: 1067 | AC104: C | AD104: =$AG$132 -> 97 | AE104: =$AG$133 -> 31 | AF104: =$AG$134 -> 13 | AG104: =$AG$135 -> 51 | AH104: =$AG$136 -> 99 | AI104: =$AG$137 -> 57 | AJ104: =$AG$138 -> 27 | AK104: =$AG$139 -> 59 | AL104: =$AG$140 -> 83 | AM104: =$AG$141 -> 15 | AR104: 13 | AS104: 371 | AU104: 40 | AV104: 23 | AX104: 1 | AY104: 1 | AZ104: 2 | BA104: 1 | BB104: 0 | BC104: 0 | BD104: 1 | BE104: 2 | BF104: 0 | BG104: 1 | BH104: 1 | BI104: 0 | BJ104: 2 | BK104: 1 | BL104: 1 | BM104: 1 | BN104: 0 | BO104: 1 | BP104: 1 | BQ104: 2 | BR104: 1 | BS104: 0 | BT104: 0 | BU104: 0 | BV104: 0
A105: 103 | C105: 5 | D105: 24 | E105: 25 | F105: 26 | G105: 29 | H105: 30 | I105: 32 | J105: 35 | K105: 45 | L105: 58 | M105: 61 | N105: 72 | O105: 77 | P105: 85 | Q105: 86 | R105: 91 | S105: 92 | T105: 95 | U105: 97 | V105: 99 | X105: 6 | Y105: 8 | Z105: 1164 | AD105: =$AD$142 -> 36 | AE105: =$AD$143 -> 58 | AF105: =$AD$144 -> 64 | AG105: =$AD$145 -> 62 | AH105: =$AD$146 -> 4 | AI105: =$AD$147 -> 44 | AJ105: =$AD$148 -> 52 | AK105: =$AD$149 -> 18 | AL105: =$AD$150 -> 42 | AM105: =$AD$151 -> 34 | AR105: 87 | AS105: 368 | AU105: 45 | AV105: 22 | AX105: 1 | AY105: 1 | AZ105: 1 | BA105: 1 | BB105: 1 | BC105: 1 | BD105: 0 | BE105: 1 | BF105: 1 | BG105: 0 | BH105: 1 | BI105: 0 | BJ105: 1 | BK105: 1 | BL105: 3 | BM105: 0 | BN105: 0 | BO105: 0 | BP105: 0 | BQ105: 0 | BR105: 1 | BS105: 2 | BT105: 1 | BU105: 2 | BV105: 0
A106: 104 | C106: 7 | D106: 10 | E106: 17 | F106: 20 | G106: 23 | H106: 31 | I106: 33 | J106: 35 | K106: 37 | L106: 41 | M106: 44 | N106: 49 | O106: 50 | P106: 53 | Q106: 64 | R106: 65 | S106: 68 | T106: 70 | U106: 71 | V106: 85 | X106: 2 | Y106: 7 | Z106: 873 | AC106: D | AD106: =$AG$142 -> 11 | AE106: =$AG$143 -> 87 | AF106: =$AG$144 -> 73 | AG106: =$AG$145 -> 39 | AH106: =$AG$146 -> 65 | AI106: =$AG$147 -> 55 | AJ106: =$AG$148 -> 69 | AK106: =$AG$149 -> 5 | AL106: =$AG$150 -> 49 | AM106: =$AG$151 -> 17 | AR106: 83 | AS106: 369 | AU106: 11 | AV106: 25 | AX106: 0 | AY106: 1 | AZ106: 2 | BA106: 1 | BB106: 1 | BC106: 1 | BD106: 1 | BE106: 0 | BF106: 2 | BG106: 1 | BH106: 0 | BI106: 0 | BJ106: 0 | BK106: 1 | BL106: 0 | BM106: 1 | BN106: 1 | BO106: 2 | BP106: 2 | BQ106: 1 | BR106: 0 | BS106: 0 | BT106: 0 | BU106: 0 | BV106: 2
A107: 105 | C107: 0 | D107: 1 | E107: 2 | F107: 3 | G107: 4 | H107: 9 | I107: 10 | J107: 15 | K107: 23 | L107: 25 | M107: 28 | N107: 34 | O107: 41 | P107: 48 | Q107: 54 | R107: 72 | S107: 76 | T107: 86 | U107: 87 | V107: 93 | X107: 3 | Y107: 10 | Z107: 711 | AD107: =$AD$152 -> 88 | AE107: =$AD$153 -> 10 | AF107: =$AD$154 -> 28 | AG107: =$AD$155 -> 22 | AH107: =$AD$156 -> 92 | AI107: =$AD$157 -> 40 | AJ107: =$AD$158 -> 86 | AK107: =$AD$159 -> 2 | AL107: =$AD$160 -> 90 | AM107: =$AD$161 -> 96 | AR107: 79 | AS107: 373 | AU107: 88 | AV107: 19 | AX107: 0 | AY107: 2 | AZ107: 0 | BA107: 1 | BB107: 2 | BC107: 0 | BD107: 1 | BE107: 1 | BF107: 0 | BG107: 1 | BH107: 0 | BI107: 2 | BJ107: 0 | BK107: 2 | BL107: 1 | BM107: 0 | BN107: 0 | BO107: 1 | BP107: 0 | BQ107: 0 | BR107: 1 | BS107: 1 | BT107: 2 | BU107: 1 | BV107: 1
A108: 106 | C108: 1 | D108: 9 | E108: 10 | F108: 12 | G108: 15 | H108: 20 | I108: 21 | J108: 25 | K108: 29 | L108: 40 | M108: 55 | N108: 68 | O108: 72 | P108: 75 | Q108: 77 | R108: 78 | S108: 82 | T108: 87 | U108: 88 | V108: 97 | X108: 7 | Y108: 9 | Z108: 961 | AC108: E | AD108: =$AG$152 -> 89 | AE108: =$AG$153 -> 29 | AF108: =$AG$154 -> 19 | AG108: =$AG$155 -> 33 | AH108: =$AG$156 -> 7 | AI108: =$AG$157 -> 81 | AJ108: =$AG$158 -> 21 | AK108: =$AG$159 -> 47 | AL108: =$AG$160 -> 25 | AM108: =$AG$161 -> 23 | AR108: 77 | AS108: 367 | AU108: 22 | AV108: 24 | AX108: 0 | AY108: 0 | AZ108: 1 | BA108: 0 | BB108: 1 | BC108: 1 | BD108: 0 | BE108: 2 | BF108: 2 | BG108: 2 | BH108: 0 | BI108: 2 | BJ108: 0 | BK108: 1 | BL108: 2 | BM108: 2 | BN108: 0 | BO108: 0 | BP108: 0 | BQ108: 1 | BR108: 1 | BS108: 1 | BT108: 1 | BU108: 0 | BV108: 0
A109: 107 | C109: 6 | D109: 13 | E109: 18 | F109: 22 | G109: 26 | H109: 30 | I109: 33 | J109: 34 | K109: 36 | L109: 38 | M109: 40 | N109: 45 | O109: 53 | P109: 54 | Q109: 61 | R109: 62 | S109: 64 | T109: 69 | U109: 75 | V109: 91 | X109: 2 | Y109: 12 | Z109: 870 | AD109: 1 | AF109: 2 | AH109: 3 | AJ109: 4 | AL109: 5 | AR109: 67 | AS109: =COUNTIF($C$3:$V$3000,AR109) -> 366 | AU109: 52 | AV109: =COUNTIF($C$1756:$V$3000,AU109) -> 22 | AX109: 1 | AY109: 2 | AZ109: 0 | BA109: 1 | BB109: 1 | BC109: 0 | BD109: 0 | BE109: 0 | BF109: 0 | BG109: 2 | BH109: 2 | BI109: 0 | BJ109: 1 | BK109: 0 | BL109: 1 | BM109: 1 | BN109: 1 | BO109: 0 | BP109: 2 | BQ109: 1 | BR109: 2 | BS109: 1 | BT109: 0 | BU109: 1 | BV109: 0
A110: 108 | C110: 1 | D110: 9 | E110: 18 | F110: 25 | G110: 28 | H110: 32 | I110: 35 | J110: 41 | K110: 43 | L110: 44 | M110: 48 | N110: 53 | O110: 59 | P110: 61 | Q110: 62 | R110: 67 | S110: 85 | T110: 86 | U110: 90 | V110: 97 | X110: 4 | Y110: 8 | Z110: 984 | AB110: =A$1-50 -> 1820 | AD110: Dos últimos 50 Sorteios | AR110: 36 | AS110: 367 | AU110: 49 | AV110: 24 | AX110: 0 | AY110: 1 | AZ110: 1 | BA110: 1 | BB110: 2 | BC110: 1 | BD110: 2 | BE110: 2 | BF110: 0 | BG110: 1 | BH110: 0 | BI110: 0 | BJ110: 0 | BK110: 1 | BL110: 1 | BM110: 0 | BN110: 0 | BO110: 2 | BP110: 1 | BQ110: 0 | BR110: 0 | BS110: 2 | BT110: 1 | BU110: 0 | BV110: 1
A111: 109 | C111: 0 | D111: 1 | E111: 6 | F111: 13 | G111: 16 | H111: 19 | I111: 20 | J111: 29 | K111: 39 | L111: 40 | M111: 49 | N111: 50 | O111: 65 | P111: 77 | Q111: 79 | R111: 80 | S111: 89 | T111: 92 | U111: 94 | V111: 98 | X111: 1 | Y111: 9 | Z111: 956 | AD111: Dos 50 Pares | AG111: Dos 50 Ímp | AR111: 99 | AS111: 369 | AU111: 65 | AV111: 22 | AX111: 2 | AY111: 0 | AZ111: 2 | BA111: 1 | BB111: 2 | BC111: 3 | BD111: 1 | BE111: 0 | BF111: 1 | BG111: 0 | BH111: 0 | BI111: 1 | BJ111: 2 | BK111: 0 | BL111: 0 | BM111: 2 | BN111: 1 | BO111: 0 | BP111: 0 | BQ111: 0 | BR111: 0 | BS111: 1 | BT111: 0 | BU111: 1 | BV111: 0
A112: 110 | C112: 1 | D112: 13 | E112: 16 | F112: 21 | G112: 22 | H112: 23 | I112: 30 | J112: 35 | K112: 39 | L112: 53 | M112: 61 | N112: 62 | O112: 63 | P112: 65 | Q112: 66 | R112: 67 | S112: 72 | T112: 75 | U112: 81 | V112: 92 | X112: 6 | Y112: 7 | Z112: 957 | AD112: 6 | AE112: =COUNTIF($C$1815:$V$3000,AD112) -> 16 | AG112: 93 | AH112: =COUNTIF($C$1815:$V$3000,AG112) -> 16 | AR112: 88 | AS112: 363 | AU112: 4 | AV112: 18 | AX112: 0 | AY112: 1 | AZ112: 0 | BA112: 1 | BB112: 1 | BC112: 1 | BD112: 1 | BE112: 0 | BF112: 0 | BG112: 2 | BH112: 1 | BI112: 0 | BJ112: 2 | BK112: 1 | BL112: 1 | BM112: 0 | BN112: 2 | BO112: 0 | BP112: 1 | BQ112: 0 | BR112: 2 | BS112: 0 | BT112: 1 | BU112: 1 | BV112: 1
A113: 111 | C113: 7 | D113: 18 | E113: 25 | F113: 30 | G113: 32 | H113: 41 | I113: 44 | J113: 52 | K113: 56 | L113: 58 | M113: 59 | N113: 61 | O113: 71 | P113: 72 | Q113: 79 | R113: 82 | S113: 86 | T113: 88 | U113: 96 | V113: 98 | X113: 3 | Y113: 13 | Z113: 1155 | AC113: Dos últimos 50 PARES | AD113: 70 | AE113: 16 | AF113: Dos últimos 50 ÍMPARES | AG113: 61 | AH113: 18 | AR113: 57 | AS113: 365 | AU113: 44 | AV113: 22 | AX113: 1 | AY113: 1 | AZ113: 0 | BA113: 1 | BB113: 1 | BC113: 0 | BD113: 0 | BE113: 1 | BF113: 0 | BG113: 0 | BH113: 0 | BI113: 1 | BJ113: 0 | BK113: 0 | BL113: 1 | BM113: 1 | BN113: 1 | BO113: 2 | BP113: 1 | BQ113: 1 | BR113: 1 | BS113: 3 | BT113: 1 | BU113: 0 | BV113: 2
A114: 112 | C114: 0 | D114: 9 | E114: 10 | F114: 15 | G114: 18 | H114: 24 | I114: 37 | J114: 47 | K114: 51 | L114: 57 | M114: 58 | N114: 60 | O114: 61 | P114: 63 | Q114: 67 | R114: 74 | S114: 78 | T114: 88 | U114: 94 | V114: 97 | X114: 4 | Y114: 9 | Z114: 1008 | AD114: 38 | AE114: 17 | AG114: 79 | AH114: 19 | AR114: 30 | AS114: 367 | AU114: 73 | AV114: 20 | AX114: 0 | AY114: 1 | AZ114: 1 | BA114: 0 | BB114: 0 | BC114: 0 | BD114: 3 | BE114: 2 | BF114: 0 | BG114: 1 | BH114: 0 | BI114: 2 | BJ114: 1 | BK114: 2 | BL114: 2 | BM114: 1 | BN114: 0 | BO114: 0 | BP114: 0 | BQ114: 1 | BR114: 0 | BS114: 2 | BT114: 0 | BU114: 1 | BV114: 0
A115: 113 | C115: 4 | D115: 11 | E115: 13 | F115: 17 | G115: 27 | H115: 31 | I115: 32 | J115: 34 | K115: 36 | L115: 37 | M115: 38 | N115: 41 | O115: 52 | P115: 71 | Q115: 81 | R115: 83 | S115: 84 | T115: 87 | U115: 88 | V115: 91 | X115: 2 | Y115: 8 | Z115: 958 | AD115: 8 | AE115: 16 | AG115: 85 | AH115: 16 | AR115: 89 | AS115: 364 | AU115: 14 | AV115: 20 | AX115: 1 | AY115: 0 | AZ115: 0 | BA115: 1 | BB115: 1 | BC115: 0 | BD115: 1 | BE115: 1 | BF115: 1 | BG115: 0 | BH115: 3 | BI115: 1 | BJ115: 1 | BK115: 0 | BL115: 0 | BM115: 2 | BN115: 1 | BO115: 2 | BP115: 1 | BQ115: 0 | BR115: 0 | BS115: 0 | BT115: 2 | BU115: 1 | BV115: 0
A116: 114 | C116: 1 | D116: 7 | E116: 11 | F116: 13 | G116: 17 | H116: 25 | I116: 27 | J116: 29 | K116: 32 | L116: 44 | M116: 48 | N116: 49 | O116: 50 | P116: 71 | Q116: 74 | R116: 76 | S116: 80 | T116: 88 | U116: 90 | V116: 91 | X116: 8 | Y116: 9 | Z116: 923 | AD116: 32 | AE116: 15 | AG116: 77 | AH116: 15 | AR116: 71 | AS116: 364 | AU116: 62 | AV116: 22 | AX116: 0 | AY116: 0 | AZ116: 1 | BA116: 0 | BB116: 2 | BC116: 1 | BD116: 0 | BE116: 1 | BF116: 1 | BG116: 1 | BH116: 1 | BI116: 1 | BJ116: 1 | BK116: 1 | BL116: 0 | BM116: 3 | BN116: 0 | BO116: 2 | BP116: 1 | BQ116: 0 | BR116: 0 | BS116: 1 | BT116: 0 | BU116: 0 | BV116: 2
A117: 115 | C117: 2 | D117: 9 | E117: 10 | F117: 17 | G117: 19 | H117: 23 | I117: 26 | J117: 30 | K117: 31 | L117: 32 | M117: 38 | N117: 39 | O117: 40 | P117: 47 | Q117: 56 | R117: 63 | S117: 72 | T117: 84 | U117: 88 | V117: 92 | X117: 3 | Y117: 12 | Z117: 818 | AD117: 78 | AE117: 14 | AG117: 95 | AH117: 17 | AR117: 40 | AS117: 366 | AU117: 59 | AV117: 18 | AX117: 1 | AY117: 0 | AZ117: 0 | BA117: 1 | BB117: 1 | BC117: 0 | BD117: 0 | BE117: 2 | BF117: 1 | BG117: 0 | BH117: 0 | BI117: 0 | BJ117: 1 | BK117: 2 | BL117: 1 | BM117: 2 | BN117: 0 | BO117: 1 | BP117: 0 | BQ117: 2 | BR117: 2 | BS117: 1 | BT117: 0 | BU117: 1 | BV117: 1
A118: 116 | C118: 3 | D118: 4 | E118: 7 | F118: 8 | G118: 11 | H118: 21 | I118: 31 | J118: 35 | K118: 39 | L118: 45 | M118: 46 | N118: 47 | O118: 53 | P118: 56 | Q118: 59 | R118: 64 | S118: 80 | T118: 82 | U118: 83 | V118: 92 | X118: 5 | Y118: 8 | Z118: 866 | AD118: 82 | AE118: 13 | AG118: 3 | AH118: 16 | AR118: 34 | AS118: 365 | AU118: 56 | AV118: 21 | AX118: 0 | AY118: 1 | AZ118: 0 | BA118: 1 | BB118: 1 | BC118: 0 | BD118: 0 | BE118: 0 | BF118: 2 | BG118: 1 | BH118: 1 | BI118: 1 | BJ118: 2 | BK118: 0 | BL118: 1 | BM118: 1 | BN118: 0 | BO118: 2 | BP118: 0 | BQ118: 3 | BR118: 1 | BS118: 0 | BT118: 0 | BU118: 1 | BV118: 1
A119: 117 | C119: 0 | D119: 2 | E119: 14 | F119: 23 | G119: 25 | H119: 30 | I119: 31 | J119: 36 | K119: 37 | L119: 42 | M119: 45 | N119: 46 | O119: 48 | P119: 64 | Q119: 65 | R119: 66 | S119: 67 | T119: 73 | U119: 74 | V119: 99 | X119: 4 | Y119: 10 | Z119: 887 | AD119: 20 | AE119: 15 | AG119: 75 | AH119: 16 | AR119: 81 | AS119: 362 | AU119: 17 | AV119: 21 | AX119: 0 | AY119: 0 | AZ119: 1 | BA119: 0 | BB119: 0 | BC119: 0 | BD119: 2 | BE119: 0 | BF119: 1 | BG119: 0 | BH119: 2 | BI119: 1 | BJ119: 1 | BK119: 2 | BL119: 1 | BM119: 0 | BN119: 2 | BO119: 0 | BP119: 1 | BQ119: 1 | BR119: 2 | BS119: 1 | BT119: 1 | BU119: 0 | BV119: 1
A120: 118 | C120: 2 | D120: 11 | E120: 12 | F120: 14 | G120: 15 | H120: 23 | I120: 29 | J120: 32 | K120: 33 | L120: 41 | M120: 53 | N120: 56 | O120: 60 | P120: 63 | Q120: 65 | R120: 74 | S120: 82 | T120: 83 | U120: 90 | V120: 92 | X120: 5 | Y120: 10 | Z120: 930 | AD120: 26 | AE120: 15 | AG120: 41 | AH120: 14 | AR120: 62 | AS120: 365 | AU120: 71 | AV120: 19 | AX120: 0 | AY120: 0 | AZ120: 1 | BA120: 0 | BB120: 1 | BC120: 0 | BD120: 0 | BE120: 2 | BF120: 1 | BG120: 1 | BH120: 1 | BI120: 2 | BJ120: 0 | BK120: 1 | BL120: 1 | BM120: 1 | BN120: 1 | BO120: 0 | BP120: 2 | BQ120: 1 | BR120: 1 | BS120: 0 | BT120: 0 | BU120: 1 | BV120: 2
A121: 119 | C121: 2 | D121: 3 | E121: 5 | F121: 8 | G121: 25 | H121: 29 | I121: 36 | J121: 38 | K121: 41 | L121: 45 | M121: 50 | N121: 52 | O121: 55 | P121: 64 | Q121: 69 | R121: 73 | S121: 79 | T121: 81 | U121: 82 | V121: 87 | X121: 4 | Y121: 8 | Z121: 924 | AD121: 94 | AE121: 13 | AG121: 63 | AH121: 13 | AR121: 9 | AS121: 362 | AU121: 33 | AV121: 20 | AX121: 1 | AY121: 1 | AZ121: 0 | BA121: 1 | BB121: 1 | BC121: 1 | BD121: 0 | BE121: 0 | BF121: 2 | BG121: 0 | BH121: 1 | BI121: 1 | BJ121: 0 | BK121: 0 | BL121: 1 | BM121: 0 | BN121: 2 | BO121: 0 | BP121: 0 | BQ121: 2 | BR121: 2 | BS121: 1 | BT121: 2 | BU121: 1 | BV121: 0
A122: 120 | C122: 2 | D122: 9 | E122: 10 | F122: 11 | G122: 12 | H122: 19 | I122: 21 | J122: 27 | K122: 29 | L122: 31 | M122: 35 | N122: 47 | O122: 48 | P122: 56 | Q122: 61 | R122: 74 | S122: 75 | T122: 77 | U122: 84 | V122: 94 | X122: 2 | Y122: 8 | Z122: 822 | AD122: 80 | AE122: 14 | AG122: 67 | AH122: 13 | AR122: 46 | AS122: 361 | AU122: 47 | AV122: 19 | AX122: 1 | AY122: 1 | AZ122: 1 | BA122: 1 | BB122: 0 | BC122: 1 | BD122: 1 | BE122: 2 | BF122: 2 | BG122: 1 | BH122: 0 | BI122: 1 | BJ122: 0 | BK122: 2 | BL122: 0 | BM122: 1 | BN122: 0 | BO122: 0 | BP122: 0 | BQ122: 2 | BR122: 2 | BS122: 1 | BT122: 0 | BU122: 0 | BV122: 0
A123: 121 | C123: 0 | D123: 2 | E123: 3 | F123: 9 | G123: 10 | H123: 15 | I123: 27 | J123: 34 | K123: 35 | L123: 40 | M123: 59 | N123: 69 | O123: 70 | P123: 71 | Q123: 73 | R123: 75 | S123: 82 | T123: 89 | U123: 91 | V123: 99 | X123: 6 | Y123: 6 | Z123: 953 | AD123: 14 | AE123: 13 | AG123: 1 | AH123: 13 | AR123: 65 | AS123: 363 | AU123: 64 | AV123: 22 | AX123: 0 | AY123: 2 | AZ123: 1 | BA123: 1 | BB123: 0 | BC123: 0 | BD123: 0 | BE123: 1 | BF123: 0 | BG123: 1 | BH123: 1 | BI123: 4 | BJ123: 0 | BK123: 2 | BL123: 0 | BM123: 1 | BN123: 1 | BO123: 1 | BP123: 1 | BQ123: 0 | BR123: 2 | BS123: 0 | BT123: 0 | BU123: 1 | BV123: 0
A124: 122 | C124: 8 | D124: 12 | E124: 14 | F124: 20 | G124: 21 | H124: 24 | I124: 27 | J124: 30 | K124: 35 | L124: 36 | M124: 43 | N124: 58 | O124: 59 | P124: 77 | Q124: 82 | R124: 84 | S124: 85 | T124: 86 | U124: 88 | V124: 95 | X124: 4 | Y124: 12 | Z124: 984 | AD124: 76 | AE124: 13 | AG124: 37 | AH124: 12 | AR124: 32 | AS124: 361 | AU124: 55 | AV124: 17 | AX124: 2 | AY124: 0 | AZ124: 2 | BA124: 1 | BB124: 0 | BC124: 2 | BD124: 0 | BE124: 1 | BF124: 1 | BG124: 0 | BH124: 1 | BI124: 2 | BJ124: 1 | BK124: 0 | BL124: 0 | BM124: 1 | BN124: 0 | BO124: 1 | BP124: 1 | BQ124: 0 | BR124: 2 | BS124: 1 | BT124: 1 | BU124: 0 | BV124: 0
A125: 123 | C125: 6 | D125: 8 | E125: 19 | F125: 26 | G125: 30 | H125: 33 | I125: 44 | J125: 45 | K125: 50 | L125: 54 | M125: 58 | N125: 60 | O125: 64 | P125: 65 | Q125: 66 | R125: 69 | S125: 76 | T125: 81 | U125: 85 | V125: 90 | X125: 4 | Y125: 13 | Z125: 1029 | AD125: 60 | AE125: 15 | AG125: 71 | AH125: 12 | AR125: 63 | AS125: 358 | AU125: 21 | AV125: 19 | AX125: 1 | AY125: 1 | AZ125: 1 | BA125: 0 | BB125: 1 | BC125: 1 | BD125: 0 | BE125: 0 | BF125: 1 | BG125: 1 | BH125: 1 | BI125: 0 | BJ125: 0 | BK125: 0 | BL125: 2 | BM125: 0 | BN125: 1 | BO125: 1 | BP125: 1 | BQ125: 1 | BR125: 2 | BS125: 2 | BT125: 1 | BU125: 0 | BV125: 1
A126: 124 | C126: 2 | D126: 6 | E126: 8 | F126: 11 | G126: 25 | H126: 26 | I126: 28 | J126: 32 | K126: 39 | L126: 40 | M126: 41 | N126: 59 | O126: 64 | P126: 67 | Q126: 69 | R126: 70 | S126: 76 | T126: 81 | U126: 84 | V126: 95 | X126: 7 | Y126: 11 | Z126: 923 | AD126: 56 | AE126: 13 | AG126: 35 | AH126: 11 | AR126: 59 | AS126: 356 | AU126: 2 | AV126: 20 | AX126: 3 | AY126: 1 | AZ126: 0 | BA126: 0 | BB126: 2 | BC126: 0 | BD126: 2 | BE126: 1 | BF126: 1 | BG126: 1 | BH126: 0 | BI126: 0 | BJ126: 1 | BK126: 0 | BL126: 0 | BM126: 2 | BN126: 0 | BO126: 1 | BP126: 0 | BQ126: 1 | BR126: 2 | BS126: 1 | BT126: 1 | BU126: 0 | BV126: 0
A127: 125 | C127: 0 | D127: 8 | E127: 12 | F127: 23 | G127: 26 | H127: 34 | I127: 45 | J127: 48 | K127: 51 | L127: 52 | M127: 62 | N127: 66 | O127: 68 | P127: 69 | Q127: 71 | R127: 77 | S127: 82 | T127: 86 | U127: 92 | V127: 94 | X127: 3 | Y127: 13 | Z127: 1066 | AD127: 98 | AE127: 13 | AG127: 43 | AH127: 12 | AR127: 10 | AS127: 355 | AU127: 69 | AV127: 19 | AX127: 0 | AY127: 0 | AZ127: 0 | BA127: 0 | BB127: 1 | BC127: 1 | BD127: 1 | BE127: 1 | BF127: 2 | BG127: 0 | BH127: 1 | BI127: 2 | BJ127: 0 | BK127: 1 | BL127: 1 | BM127: 0 | BN127: 1 | BO127: 0 | BP127: 2 | BQ127: 0 | BR127: 1 | BS127: 0 | BT127: 1 | BU127: 3 | BV127: 1
A128: 126 | C128: 1 | D128: 3 | E128: 7 | F128: 8 | G128: 9 | H128: 12 | I128: 14 | J128: 20 | K128: 29 | L128: 37 | M128: 38 | N128: 40 | O128: 41 | P128: 46 | Q128: 56 | R128: 63 | S128: 68 | T128: 83 | U128: 96 | V128: 97 | X128: 3 | Y128: 10 | Z128: 768 | AD128: 74 | AE128: 12 | AG128: 9 | AH128: 11 | AR128: 56 | AS128: 356 | AU128: 30 | AV128: 21 | AX128: 0 | AY128: 1 | AZ128: 1 | BA128: 1 | BB128: 2 | BC128: 0 | BD128: 1 | BE128: 2 | BF128: 3 | BG128: 0 | BH128: 1 | BI128: 0 | BJ128: 1 | BK128: 1 | BL128: 1 | BM128: 1 | BN128: 0 | BO128: 0 | BP128: 1 | BQ128: 1 | BR128: 0 | BS128: 0 | BT128: 0 | BU128: 0 | BV128: 2
A129: 127 | C129: 3 | D129: 7 | E129: 22 | F129: 24 | G129: 27 | H129: 29 | I129: 38 | J129: 39 | K129: 41 | L129: 45 | M129: 48 | N129: 54 | O129: 59 | P129: 62 | Q129: 65 | R129: 67 | S129: 71 | T129: 78 | U129: 79 | V129: 86 | X129: 5 | Y129: 8 | Z129: 944 | AD129: 50 | AE129: 13 | AG129: 91 | AH129: 11 | AR129: 21 | AS129: 355 | AU129: 25 | AV129: 17 | AX129: 1 | AY129: 2 | AZ129: 0 | BA129: 1 | BB129: 1 | BC129: 0 | BD129: 1 | BE129: 0 | BF129: 1 | BG129: 1 | BH129: 0 | BI129: 1 | BJ129: 2 | BK129: 1 | BL129: 1 | BM129: 0 | BN129: 2 | BO129: 1 | BP129: 2 | BQ129: 0 | BR129: 0 | BS129: 0 | BT129: 1 | BU129: 0 | BV129: 1
A130: 128 | C130: 3 | D130: 5 | E130: 17 | F130: 24 | G130: 31 | H130: 34 | I130: 43 | J130: 45 | K130: 46 | L130: 47 | M130: 49 | N130: 52 | O130: 57 | P130: 58 | Q130: 59 | R130: 74 | S130: 84 | T130: 86 | U130: 88 | V130: 97 | X130: 5 | Y130: 9 | Z130: 999 | AD130: 12 | AE130: 15 | AG130: 53 | AH130: 12 | AR130: 7 | AS130: 355 | AU130: 58 | AV130: 19 | AX130: 1 | AY130: 1 | AZ130: 1 | BA130: 0 | BB130: 0 | BC130: 1 | BD130: 0 | BE130: 1 | BF130: 1 | BG130: 0 | BH130: 0 | BI130: 0 | BJ130: 2 | BK130: 0 | BL130: 2 | BM130: 2 | BN130: 1 | BO130: 2 | BP130: 0 | BQ130: 1 | BR130: 0 | BS130: 1 | BT130: 1 | BU130: 2 | BV130: 0
A131: 129 | C131: 10 | D131: 13 | E131: 17 | F131: 21 | G131: 26 | H131: 28 | I131: 36 | J131: 37 | K131: 38 | L131: 41 | M131: 43 | N131: 44 | O131: 47 | P131: 60 | Q131: 65 | R131: 76 | S131: 78 | T131: 80 | U131: 84 | V131: 90 | X131: 4 | Y131: 12 | Z131: 934 | AD131: 48 | AE131: 14 | AG131: 45 | AH131: 12 | AR131: 80 | AS131: 355 | AU131: 19 | AV131: 17 | AX131: =SUMPRODUCT(COUNTIF($C131:$V131,$AB$17:$AC$18)) -> 1 | AY131: =SUMPRODUCT(COUNTIF($C131:$V131,$AD$17:$AE$18)) -> 0 | AZ131: =SUMPRODUCT(COUNTIF($C131:$V131,$AF$17:$AG$18)) -> 0 | BA131: =SUMPRODUCT(COUNTIF($C131:$V131,$AH$17:$AI$18)) -> 1 | BB131: =SUMPRODUCT(COUNTIF($C131:$V131,$AJ$17:$AK$18)) -> 3 | BC131: =SUMPRODUCT(COUNTIF($C131:$V131,$AB$19:$AC$20)) -> 1 | BD131: =SUMPRODUCT(COUNTIF($C131:$V131,$AD$19:$AE$20)) -> 2 | BE131: =SUMPRODUCT(COUNTIF($C131:$V131,$AF$19:$AG$20)) -> 0 | BF131: =SUMPRODUCT(COUNTIF($C131:$V131,$AH$19:$AI$20)) -> 0 | BG131: =SUMPRODUCT(COUNTIF($C131:$V131,$AJ$19:$AK$20)) -> 2 | BH131: =SUMPRODUCT(COUNTIF($C131:$V131,$AB$21:$AC$22)) -> 1 | BI131: =SUMPRODUCT(COUNTIF($C131:$V131,$AD$21:$AE$22)) -> 0 | BJ131: =SUMPRODUCT(COUNTIF($C131:$V131,$AF$21:$AG$22)) -> 1 | BK131: =SUMPRODUCT(COUNTIF($C131:$V131,$AH$21:$AI$22)) -> 1 | BL131: =SUMPRODUCT(COUNTIF($C131:$V131,$AJ$21:$AK$22)) -> 1 | BM131: =SUMPRODUCT(COUNTIF($C131:$V131,$AB$23:$AC$24)) -> 0 | BN131: =SUMPRODUCT(COUNTIF($C131:$V131,$AD$23:$AE$24)) -> 1 | BO131: =SUMPRODUCT(COUNTIF($C131:$V131,$AF$23:$AG$24)) -> 2 | BP131: =SUMPRODUCT(COUNTIF($C131:$V131,$AH$23:$AI$24)) -> 0 | BQ131: =SUMPRODUCT(COUNTIF($C131:$V131,$AJ$23:$AK$24)) -> 1 | BR131: =SUMPRODUCT(COUNTIF($C131:$V131,$AB$25:$AC$26)) -> 1 | BS131: =SUMPRODUCT(COUNTIF($C131:$V131,$AD$25:$AE$26)) -> 0 | BT131: =SUMPRODUCT(COUNTIF($C131:$V131,$AF$25:$AG$26)) -> 0 | BU131: =SUMPRODUCT(COUNTIF($C131:$V131,$AH$25:$AI$26)) -> 0 | BV131: =SUMPRODUCT(COUNTIF($C131:$V131,$AJ$25:$AK$26)) -> 1
A132: 130 | C132: 3 | D132: 5 | E132: 10 | F132: 15 | G132: 16 | H132: 17 | I132: 19 | J132: 21 | K132: 37 | L132: 38 | M132: 41 | N132: 44 | O132: 49 | P132: 51 | Q132: 52 | R132: 76 | S132: 84 | T132: 85 | U132: 94 | V132: 99 | X132: =SUMPRODUCT(COUNTIF(C132:V132,C131:V131)) -> 9 | Y132: =SUMPRODUCT(N(MOD((C132:V132),2)=0)*(C132:V132>0)) -> 8 | Z132: =SUM(C132:V132) -> 856 | AD132: 24 | AE132: 13 | AG132: 97 | AH132: 11 | AR132: 60 | AS132: 358 | AU132: 18 | AV132: 20 | AX132: 1 | AY132: 1 | AZ132: 1 | BA132: 1 | BB132: 1 | BC132: 1 | BD132: 2 | BE132: 0 | BF132: 0 | BG132: 1 | BH132: 0 | BI132: 1 | BJ132: 0 | BK132: 2 | BL132: 0 | BM132: 1 | BN132: 1 | BO132: 2 | BP132: 0 | BQ132: 0 | BR132: 1 | BS132: 1 | BT132: 0 | BU132: 2 | BV132: 0
A133: 131 | C133: 9 | D133: 10 | E133: 12 | F133: 23 | G133: 24 | H133: 27 | I133: 42 | J133: 43 | K133: 45 | L133: 47 | M133: 48 | N133: 55 | O133: 62 | P133: 69 | Q133: 70 | R133: 75 | S133: 80 | T133: 90 | U133: 94 | V133: 98 | X133: 2 | Y133: 11 | Z133: 1023 | AD133: 72 | AE133: 13 | AG133: 31 | AH133: 12 | AR133: 5 | AS133: 356 | AU133: 87 | AV133: 18 | AX133: 0 | AY133: 1 | AZ133: 0 | BA133: 1 | BB133: 1 | BC133: 1 | BD133: 1 | BE133: 2 | BF133: 0 | BG133: 1 | BH133: 0 | BI133: 1 | BJ133: 1 | BK133: 2 | BL133: 1 | BM133: 0 | BN133: 0 | BO133: 0 | BP133: 1 | BQ133: 2 | BR133: 1 | BS133: 0 | BT133: 1 | BU133: 0 | BV133: 2
A134: 132 | C134: 2 | D134: 6 | E134: 7 | F134: 10 | G134: 12 | H134: 21 | I134: 27 | J134: 29 | K134: 40 | L134: 42 | M134: 45 | N134: 49 | O134: 51 | P134: 58 | Q134: 71 | R134: 74 | S134: 76 | T134: 79 | U134: 86 | V134: 96 | X134: 5 | Y134: 11 | Z134: 881 | AD134: 84 | AE134: 11 | AG134: 13 | AH134: 12 | AR134: 22 | AS134: 356 | AU134: 81 | AV134: 17 | AX134: 2 | AY134: 0 | AZ134: 1 | BA134: 0 | BB134: 0 | BC134: 0 | BD134: 0 | BE134: 1 | BF134: 1 | BG134: 1 | BH134: 0 | BI134: 1 | BJ134: 0 | BK134: 1 | BL134: 1 | BM134: 2 | BN134: 0 | BO134: 0 | BP134: 1 | BQ134: 0 | BR134: 2 | BS134: 1 | BT134: 2 | BU134: 1 | BV134: 2
A135: 133 | C135: 2 | D135: 13 | E135: 21 | F135: 32 | G135: 34 | H135: 38 | I135: 42 | J135: 45 | K135: 48 | L135: 52 | M135: 53 | N135: 57 | O135: 62 | P135: 66 | Q135: 71 | R135: 75 | S135: 79 | T135: 86 | U135: 92 | V135: 95 | X135: 7 | Y135: 11 | Z135: 1063 | AD135: 16 | AE135: 11 | AG135: 51 | AH135: 12 | AR135: 2 | AS135: 354 | AU135: 5 | AV135: 20 | AX135: 2 | AY135: 0 | AZ135: 0 | BA135: 1 | BB135: 0 | BC135: 0 | BD135: 0 | BE135: 2 | BF135: 0 | BG135: 2 | BH135: 1 | BI135: 0 | BJ135: 1 | BK135: 1 | BL135: 1 | BM135: 0 | BN135: 1 | BO135: 0 | BP135: 2 | BQ135: 0 | BR135: 2 | BS135: 0 | BT135: 2 | BU135: 2 | BV135: 0
A136: 134 | C136: 7 | D136: 13 | E136: 15 | F136: 20 | G136: 21 | H136: 22 | I136: 24 | J136: 25 | K136: 27 | L136: 38 | M136: 47 | N136: 48 | O136: 55 | P136: 63 | Q136: 65 | R136: 67 | S136: 71 | T136: 73 | U136: 85 | V136: 99 | X136: 5 | Y136: 5 | Z136: 885 | AD136: 30 | AE136: 12 | AG136: 99 | AH136: 13 | AR136: 90 | AS136: 350 | AU136: 42 | AV136: 20 | AX136: 0 | AY136: 0 | AZ136: 2 | BA136: 1 | BB136: 0 | BC136: 0 | BD136: 1 | BE136: 0 | BF136: 0 | BG136: 0 | BH136: 0 | BI136: 2 | BJ136: 2 | BK136: 3 | BL136: 0 | BM136: 0 | BN136: 3 | BO136: 0 | BP136: 1 | BQ136: 2 | BR136: 1 | BS136: 1 | BT136: 0 | BU136: 0 | BV136: 1
A137: 135 | C137: 5 | D137: 13 | E137: 27 | F137: 33 | G137: 37 | H137: 41 | I137: 48 | J137: 49 | K137: 53 | L137: 54 | M137: 58 | N137: 59 | O137: 60 | P137: 68 | Q137: 78 | R137: 80 | S137: 84 | T137: 86 | U137: 95 | V137: 97 | X137: 3 | Y137: 9 | Z137: 1125 | AD137: 0 | AE137: 13 | AG137: 57 | AH137: 11 | AR137: 69 | AS137: 350 | AU137: 86 | AV137: 17 | AX137: 2 | AY137: 1 | AZ137: 0 | BA137: 0 | BB137: 2 | BC137: 0 | BD137: 1 | BE137: 0 | BF137: 1 | BG137: 2 | BH137: 0 | BI137: 1 | BJ137: 1 | BK137: 1 | BL137: 2 | BM137: 1 | BN137: 0 | BO137: 1 | BP137: 1 | BQ137: 0 | BR137: 0 | BS137: 1 | BT137: 1 | BU137: 1 | BV137: 0
A138: 136 | C138: 6 | D138: 7 | E138: 16 | F138: 20 | G138: 22 | H138: 30 | I138: 33 | J138: 35 | K138: 41 | L138: 47 | M138: 50 | N138: 53 | O138: 54 | P138: 55 | Q138: 59 | R138: 71 | S138: 80 | T138: 87 | U138: 89 | V138: 91 | X138: 6 | Y138: 8 | Z138: 946 | AD138: 66 | AE138: 10 | AG138: 27 | AH138: 12 | AR138: 98 | AS138: 347 | AU138: 34 | AV138: 18 | AX138: 1 | AY138: 1 | AZ138: 2 | BA138: 1 | BB138: 2 | BC138: 2 | BD138: 0 | BE138: 0 | BF138: 0 | BG138: 1 | BH138: 1 | BI138: 0 | BJ138: 0 | BK138: 0 | BL138: 0 | BM138: 0 | BN138: 1 | BO138: 1 | BP138: 2 | BQ138: 2 | BR138: 1 | BS138: 0 | BT138: 1 | BU138: 0 | BV138: 1
A139: 137 | C139: 3 | D139: 10 | E139: 18 | F139: 19 | G139: 29 | H139: 32 | I139: 42 | J139: 44 | K139: 50 | L139: 54 | M139: 55 | N139: 64 | O139: 65 | P139: 69 | Q139: 74 | R139: 80 | S139: 81 | T139: 82 | U139: 87 | V139: 91 | X139: 6 | Y139: 11 | Z139: 1049 | AD139: 54 | AE139: 10 | AG139: 59 | AH139: 10 | AR139: 33 | AS139: 347 | AU139: 51 | AV139: 18 | AX139: 0 | AY139: 2 | AZ139: 1 | BA139: 0 | BB139: 1 | BC139: 1 | BD139: 0 | BE139: 1 | BF139: 1 | BG139: 0 | BH139: 1 | BI139: 1 | BJ139: 0 | BK139: 1 | BL139: 0 | BM139: 0 | BN139: 1 | BO139: 1 | BP139: 0 | BQ139: 2 | BR139: 1 | BS139: 2 | BT139: 3 | BU139: 0 | BV139: 0
A140: 138 | C140: 3 | D140: 10 | E140: 12 | F140: 15 | G140: 20 | H140: 25 | I140: 29 | J140: 32 | K140: 41 | L140: 48 | M140: 52 | N140: 53 | O140: 54 | P140: 58 | Q140: 69 | R140: 77 | S140: 79 | T140: 81 | U140: 82 | V140: 88 | X140: 8 | Y140: 10 | Z140: 928 | AD140: 68 | AE140: 10 | AG140: 83 | AH140: 12 | AR140: 96 | AS140: 347 | AU140: 92 | AV140: 17 | AX140: 1 | AY140: 2 | AZ140: 1 | BA140: 0 | BB140: 1 | BC140: 1 | BD140: 0 | BE140: 2 | BF140: 1 | BG140: 1 | BH140: 0 | BI140: 2 | BJ140: 0 | BK140: 2 | BL140: 0 | BM140: 1 | BN140: 1 | BO140: 0 | BP140: 0 | BQ140: 0 | BR140: 1 | BS140: 2 | BT140: 1 | BU140: 0 | BV140: 0
A141: 139 | C141: 2 | D141: 6 | E141: 8 | F141: 10 | G141: 11 | H141: 13 | I141: 23 | J141: 24 | K141: 33 | L141: 43 | M141: 49 | N141: 51 | O141: 55 | P141: 65 | Q141: 66 | R141: 71 | S141: 75 | T141: 85 | U141: 89 | V141: 93 | X141: 1 | Y141: 6 | Z141: 872 | AD141: 46 | AE141: 10 | AG141: 15 | AH141: 11 | AR141: 94 | AS141: =COUNTIF($C$3:$V$3000,AR141) -> 343 | AU141: 90 | AV141: =COUNTIF($C$1756:$V$3000,AU141) -> 14 | AX141: 1 | AY141: 0 | AZ141: 2 | BA141: 1 | BB141: 0 | BC141: 1 | BD141: 0 | BE141: 0 | BF141: 1 | BG141: 1 | BH141: 1 | BI141: 0 | BJ141: 2 | BK141: 1 | BL141: 0 | BM141: 2 | BN141: 1 | BO141: 0 | BP141: 2 | BQ141: 1 | BR141: 1 | BS141: 0 | BT141: 0 | BU141: 1 | BV141: 1
A142: 140 | C142: 4 | D142: 10 | E142: 14 | F142: 15 | G142: 16 | H142: 20 | I142: 28 | J142: 30 | K142: 43 | L142: 50 | M142: 51 | N142: 56 | O142: 57 | P142: 60 | Q142: 62 | R142: 65 | S142: 78 | T142: 83 | U142: 92 | V142: 95 | X142: 4 | Y142: 13 | Z142: 929 | AD142: 36 | AE142: 12 | AG142: 11 | AH142: 11 | AR142: 75 | AS142: 346 | AU142: 96 | AV142: 18 | AX142: 1 | AY142: 0 | AZ142: 1 | BA142: 0 | BB142: 0 | BC142: 3 | BD142: 1 | BE142: 1 | BF142: 0 | BG142: 1 | BH142: 1 | BI142: 1 | BJ142: 0 | BK142: 1 | BL142: 1 | BM142: 0 | BN142: 1 | BO142: 1 | BP142: 2 | BQ142: 1 | BR142: 1 | BS142: 0 | BT142: 0 | BU142: 2 | BV142: 0
A143: 141 | C143: 4 | D143: 10 | E143: 14 | F143: 19 | G143: 24 | H143: 25 | I143: 30 | J143: 40 | K143: 46 | L143: 51 | M143: 56 | N143: 66 | O143: 79 | P143: 84 | Q143: 87 | R143: 89 | S143: 90 | T143: 92 | U143: 93 | V143: 99 | X143: 7 | Y143: 12 | Z143: 1098 | AD143: 58 | AE143: 10 | AG143: 87 | AH143: 11 | AR143: 84 | AS143: 340 | AU143: 23 | AV143: 14 | AX143: 2 | AY143: 0 | AZ143: 1 | BA143: 1 | BB143: 0 | BC143: 0 | BD143: 0 | BE143: 0 | BF143: 0 | BG143: 0 | BH143: 1 | BI143: 0 | BJ143: 2 | BK143: 2 | BL143: 0 | BM143: 1 | BN143: 0 | BO143: 1 | BP143: 1 | BQ143: 1 | BR143: 1 | BS143: 2 | BT143: 1 | BU143: 2 | BV143: 1
A144: 142 | C144: 7 | D144: 13 | E144: 14 | F144: 24 | G144: 25 | H144: 31 | I144: 35 | J144: 38 | K144: 44 | L144: 51 | M144: 54 | N144: 55 | O144: 60 | P144: 63 | Q144: 68 | R144: 82 | S144: 89 | T144: 94 | U144: 96 | V144: 98 | X144: 5 | Y144: 11 | Z144: 1041 | AD144: 64 | AE144: =COUNTIF($C$1815:$V$3000,AD144) -> 13 | AG144: 73 | AH144: =COUNTIF($C$1815:$V$3000,AG144) -> 10 | AR144: 52 | AS144: 335 | AU144: 7 | AV144: 14 | AX144: 0 | AY144: 1 | AZ144: 1 | BA144: 3 | BB144: 0 | BC144: 0 | BD144: 1 | BE144: 0 | BF144: 2 | BG144: 0 | BH144: 0 | BI144: 1 | BJ144: 2 | BK144: 1 | BL144: 1 | BM144: 0 | BN144: 0 | BO144: 1 | BP144: 1 | BQ144: 1 | BR144: 0 | BS144: 1 | BT144: 0 | BU144: 1 | BV144: 2
A145: 143 | C145: 5 | D145: 18 | E145: 22 | F145: 26 | G145: 32 | H145: 33 | I145: 38 | J145: 45 | K145: 47 | L145: 48 | M145: 53 | N145: 54 | O145: 58 | P145: 69 | Q145: 76 | R145: 78 | S145: 80 | T145: 81 | U145: 82 | V145: 83 | X145: 3 | Y145: 12 | Z145: 1028 | AD145: 62 | AE145: 11 | AG145: 39 | AH145: 12 | AX145: 0 | AY145: 1 | AZ145: 0 | BA145: 1 | BB145: 2 | BC145: 0 | BD145: 0 | BE145: 1 | BF145: 0 | BG145: 3 | BH145: 1 | BI145: 1 | BJ145: 0 | BK145: 1 | BL145: 1 | BM145: 0 | BN145: 1 | BO145: 0 | BP145: 1 | BQ145: 1 | BR145: 1 | BS145: 2 | BT145: 1 | BU145: 1 | BV145: 0
A146: 144 | C146: 14 | D146: 15 | E146: 25 | F146: 36 | G146: 38 | H146: 41 | I146: 45 | J146: 46 | K146: 50 | L146: 51 | M146: 59 | N146: 60 | O146: 62 | P146: 66 | Q146: 74 | R146: 81 | S146: 85 | T146: 87 | U146: 95 | V146: 99 | X146: 3 | Y146: 9 | Z146: 1129 | AD146: 4 | AE146: 9 | AG146: 65 | AH146: 10 | AX146: 1 | AY146: 0 | AZ146: 2 | BA146: 1 | BB146: 1 | BC146: 1 | BD146: 0 | BE146: 0 | BF146: 0 | BG146: 0 | BH146: 2 | BI146: 1 | BJ146: 1 | BK146: 1 | BL146: 2 | BM146: 0 | BN146: 0 | BO146: 1 | BP146: 2 | BQ146: 0 | BR146: 0 | BS146: 1 | BT146: 2 | BU146: 1 | BV146: 0
A147: 145 | C147: 3 | D147: 5 | E147: 22 | F147: 33 | G147: 34 | H147: 39 | I147: 40 | J147: 41 | K147: 42 | L147: 43 | M147: 45 | N147: 46 | O147: 50 | P147: 57 | Q147: 64 | R147: 70 | S147: 76 | T147: 79 | U147: 85 | V147: 99 | X147: 6 | Y147: 9 | Z147: 973 | AD147: 44 | AE147: 10 | AG147: 55 | AH147: 9 | AX147: 1 | AY147: 2 | AZ147: 1 | BA147: 0 | BB147: 1 | BC147: 2 | BD147: 0 | BE147: 1 | BF147: 0 | BG147: 1 | BH147: 0 | BI147: 0 | BJ147: 2 | BK147: 1 | BL147: 1 | BM147: 1 | BN147: 1 | BO147: 0 | BP147: 1 | BQ147: 1 | BR147: 0 | BS147: 0 | BT147: 1 | BU147: 2 | BV147: 0
A148: 146 | C148: 3 | D148: 6 | E148: 17 | F148: 24 | G148: 26 | H148: 37 | I148: 43 | J148: 47 | K148: 49 | L148: 57 | M148: 59 | N148: 60 | O148: 67 | P148: 73 | Q148: 75 | R148: 87 | S148: 88 | T148: 92 | U148: 93 | V148: 96 | X148: 3 | Y148: 7 | Z148: 1099 | AD148: 52 | AE148: 10 | AG148: 69 | AH148: 10 | AX148: 1 | AY148: 1 | AZ148: 0 | BA148: 1 | BB148: 1 | BC148: 1 | BD148: 2 | BE148: 1 | BF148: 0 | BG148: 1 | BH148: 0 | BI148: 0 | BJ148: 1 | BK148: 0 | BL148: 1 | BM148: 2 | BN148: 1 | BO148: 2 | BP148: 0 | BQ148: 1 | BR148: 0 | BS148: 0 | BT148: 1 | BU148: 1 | BV148: 1
A149: 147 | C149: 2 | D149: 4 | E149: 6 | F149: 7 | G149: 8 | H149: 21 | I149: 23 | J149: 26 | K149: 35 | L149: 40 | M149: 48 | N149: 56 | O149: 59 | P149: 65 | Q149: 73 | R149: 81 | S149: 82 | T149: 85 | U149: 88 | V149: 98 | X149: 5 | Y149: 11 | Z149: 907 | AD149: 18 | AE149: 11 | AG149: 5 | AH149: 11 | AX149: 1 | AY149: 0 | AZ149: 1 | BA149: 2 | BB149: 1 | BC149: 0 | BD149: 0 | BE149: 0 | BF149: 1 | BG149: 0 | BH149: 0 | BI149: 1 | BJ149: 0 | BK149: 1 | BL149: 0 | BM149: 2 | BN149: 2 | BO149: 2 | BP149: 0 | BQ149: 1 | BR149: 2 | BS149: 0 | BT149: 1 | BU149: 0 | BV149: 2
A150: 148 | C150: 0 | D150: 9 | E150: 10 | F150: 12 | G150: 22 | H150: 24 | I150: 26 | J150: 33 | K150: 40 | L150: 41 | M150: 43 | N150: 45 | O150: 49 | P150: 60 | Q150: 77 | R150: 81 | S150: 84 | T150: 85 | U150: 91 | V150: 98 | X150: 5 | Y150: 9 | Z150: 930 | AD150: 42 | AE150: 11 | AG150: 49 | AH150: 11 | AX150: 1 | AY150: 0 | AZ150: 1 | BA150: 1 | BB150: 2 | BC150: 2 | BD150: 0 | BE150: 2 | BF150: 0 | BG150: 0 | BH150: 1 | BI150: 1 | BJ150: 1 | BK150: 1 | BL150: 2 | BM150: 2 | BN150: 1 | BO150: 0 | BP150: 1 | BQ150: 0 | BR150: 0 | BS150: 0 | BT150: 1 | BU150: 0 | BV150: 0
A151: 149 | C151: 10 | D151: 18 | E151: 24 | F151: 25 | G151: 29 | H151: 38 | I151: 39 | J151: 43 | K151: 45 | L151: 49 | M151: 50 | N151: 55 | O151: 58 | P151: 63 | Q151: 66 | R151: 70 | S151: 82 | T151: 85 | U151: 90 | V151: 93 | X151: 6 | Y151: 10 | Z151: 1032 | AD151: 34 | AE151: 9 | AG151: 17 | AH151: 10 | AX151: 0 | AY151: 1 | AZ151: 1 | BA151: 2 | BB151: 0 | BC151: 2 | BD151: 0 | BE151: 0 | BF151: 1 | BG151: 0 | BH151: 1 | BI151: 1 | BJ151: 2 | BK151: 2 | BL151: 1 | BM151: 1 | BN151: 0 | BO151: 0 | BP151: 0 | BQ151: 1 | BR151: 0 | BS151: 3 | BT151: 0 | BU151: 0 | BV151: 1
A152: 150 | C152: 7 | D152: 9 | E152: 15 | F152: 18 | G152: 20 | H152: 23 | I152: 25 | J152: 26 | K152: 29 | L152: 37 | M152: 38 | N152: 39 | O152: 48 | P152: 50 | Q152: 52 | R152: 54 | S152: 55 | T152: 79 | U152: 89 | V152: 96 | X152: 7 | Y152: 9 | Z152: 809 | AD152: 88 | AE152: 8 | AG152: 89 | AH152: 9 | AX152: 1 | AY152: 1 | AZ152: 2 | BA152: 1 | BB152: 1 | BC152: 1 | BD152: 1 | BE152: 1 | BF152: 1 | BG152: 0 | BH152: 0 | BI152: 1 | BJ152: 1 | BK152: 1 | BL152: 0 | BM152: 0 | BN152: 1 | BO152: 0 | BP152: 0 | BQ152: 1 | BR152: 0 | BS152: 2 | BT152: 0 | BU152: 0 | BV152: 3
A153: 151 | C153: 4 | D153: 7 | E153: 11 | F153: 12 | G153: 25 | H153: 33 | I153: 34 | J153: 39 | K153: 45 | L153: 48 | M153: 50 | N153: 51 | O153: 56 | P153: 73 | Q153: 78 | R153: 81 | S153: 84 | T153: 85 | U153: 90 | V153: 94 | X153: 5 | Y153: 10 | Z153: 1000 | AD153: 10 | AE153: 9 | AG153: 29 | AH153: 9 | AX153: 1 | AY153: 0 | AZ153: 1 | BA153: 0 | BB153: 0 | BC153: 1 | BD153: 1 | BE153: 1 | BF153: 0 | BG153: 1 | BH153: 0 | BI153: 0 | BJ153: 1 | BK153: 1 | BL153: 1 | BM153: 1 | BN153: 1 | BO153: 1 | BP153: 1 | BQ153: 1 | BR153: 0 | BS153: 1 | BT153: 1 | BU153: 2 | BV153: 2
A154: 152 | C154: 6 | D154: 8 | E154: 9 | F154: 18 | G154: 19 | H154: 27 | I154: 28 | J154: 46 | K154: 48 | L154: 51 | M154: 52 | N154: 60 | O154: 66 | P154: 73 | Q154: 75 | R154: 81 | S154: 83 | T154: 86 | U154: 87 | V154: 95 | X154: 4 | Y154: 10 | Z154: 1018 | AD154: 28 | AE154: 8 | AG154: 19 | AH154: 9 | AX154: 2 | AY154: 0 | AZ154: 0 | BA154: 0 | BB154: 0 | BC154: 0 | BD154: 1 | BE154: 1 | BF154: 1 | BG154: 1 | BH154: 2 | BI154: 1 | BJ154: 1 | BK154: 1 | BL154: 1 | BM154: 0 | BN154: 2 | BO154: 0 | BP154: 0 | BQ154: 0 | BR154: 0 | BS154: 2 | BT154: 3 | BU154: 1 | BV154: 0
A155: 153 | C155: 4 | D155: 9 | E155: 10 | F155: 11 | G155: 12 | H155: 28 | I155: 36 | J155: 39 | K155: 43 | L155: 50 | M155: 51 | N155: 63 | O155: 64 | P155: 67 | Q155: 69 | R155: 71 | S155: 75 | T155: 76 | U155: 79 | V155: 97 | X155: 4 | Y155: 8 | Z155: 954 | AD155: 22 | AE155: 10 | AG155: 33 | AH155: 9 | AX155: 1 | AY155: 0 | AZ155: 0 | BA155: 0 | BB155: 0 | BC155: 2 | BD155: 2 | BE155: 2 | BF155: 0 | BG155: 2 | BH155: 1 | BI155: 0 | BJ155: 1 | BK155: 2 | BL155: 1 | BM155: 1 | BN155: 0 | BO155: 1 | BP155: 1 | BQ155: 1 | BR155: 1 | BS155: 0 | BT155: 0 | BU155: 1 | BV155: 0
A156: 154 | C156: 4 | D156: 6 | E156: 12 | F156: 28 | G156: 30 | H156: 43 | I156: 44 | J156: 45 | K156: 49 | L156: 51 | M156: 55 | N156: 62 | O156: 65 | P156: 66 | Q156: 73 | R156: 79 | S156: 81 | T156: 88 | U156: 92 | V156: 98 | X156: 6 | Y156: 11 | Z156: 1071 | AD156: 92 | AE156: 8 | AG156: 7 | AH156: 7 | AX156: 2 | AY156: 0 | AZ156: 0 | BA156: 1 | BB156: 0 | BC156: 1 | BD156: 1 | BE156: 1 | BF156: 0 | BG156: 0 | BH156: 1 | BI156: 0 | BJ156: 0 | BK156: 0 | BL156: 1 | BM156: 2 | BN156: 2 | BO156: 2 | BP156: 1 | BQ156: 1 | BR156: 1 | BS156: 0 | BT156: 1 | BU156: 2 | BV156: 0
A157: 155 | C157: 1 | D157: 5 | E157: 15 | F157: 17 | G157: 18 | H157: 24 | I157: 26 | J157: 27 | K157: 29 | L157: 32 | M157: 33 | N157: 34 | O157: 37 | P157: 38 | Q157: 42 | R157: 47 | S157: 50 | T157: 70 | U157: 72 | V157: 93 | X157: 0 | Y157: 10 | Z157: 710 | AD157: 40 | AE157: 10 | AG157: 81 | AH157: 6 | AX157: 0 | AY157: 1 | AZ157: 0 | BA157: 2 | BB157: 2 | BC157: 1 | BD157: 1 | BE157: 1 | BF157: 1 | BG157: 0 | BH157: 0 | BI157: 2 | BJ157: 1 | BK157: 0 | BL157: 1 | BM157: 0 | BN157: 0 | BO157: 1 | BP157: 1 | BQ157: 1 | BR157: 0 | BS157: 1 | BT157: 1 | BU157: 2 | BV157: 0
A158: 156 | C158: 1 | D158: 10 | E158: 19 | F158: 20 | G158: 24 | H158: 32 | I158: 38 | J158: 40 | K158: 42 | L158: 48 | M158: 50 | N158: 59 | O158: 66 | P158: 68 | Q158: 77 | R158: 82 | S158: 85 | T158: 91 | U158: 95 | V158: 98 | X158: 6 | Y158: 13 | Z158: 1045 | AD158: 86 | AE158: 8 | AG158: 21 | AH158: 8 | AX158: 1 | AY158: 0 | AZ158: 2 | BA158: 2 | BB158: 1 | BC158: 2 | BD158: 0 | BE158: 1 | BF158: 1 | BG158: 0 | BH158: 2 | BI158: 1 | BJ158: 1 | BK158: 2 | BL158: 0 | BM158: 1 | BN158: 0 | BO158: 1 | BP158: 0 | BQ158: 0 | BR158: 0 | BS158: 1 | BT158: 1 | BU158: 0 | BV158: 0
A159: 157 | C159: 4 | D159: 8 | E159: 16 | F159: 17 | G159: 23 | H159: 30 | I159: 38 | J159: 44 | K159: 51 | L159: 54 | M159: 57 | N159: 59 | O159: 62 | P159: 63 | Q159: 66 | R159: 81 | S159: 84 | T159: 86 | U159: 88 | V159: 90 | X159: 3 | Y159: 13 | Z159: 1021 | AD159: 2 | AE159: 6 | AG159: 47 | AH159: 7 | AX159: 1 | AY159: 1 | AZ159: 0 | BA159: 1 | BB159: 0 | BC159: 1 | BD159: 0 | BE159: 1 | BF159: 1 | BG159: 0 | BH159: 1 | BI159: 0 | BJ159: 0 | BK159: 1 | BL159: 0 | BM159: 1 | BN159: 0 | BO159: 4 | BP159: 1 | BQ159: 0 | BR159: 1 | BS159: 0 | BT159: 2 | BU159: 1 | BV159: 2
A160: 158 | C160: 6 | D160: 13 | E160: 24 | F160: 31 | G160: 36 | H160: 51 | I160: 52 | J160: 53 | K160: 54 | L160: 55 | M160: 56 | N160: 62 | O160: 63 | P160: 66 | Q160: 70 | R160: 72 | S160: 86 | T160: 89 | U160: 93 | V160: 98 | X160: 6 | Y160: 12 | Z160: 1130 | AD160: 90 | AE160: 6 | AG160: 25 | AH160: 6 | AX160: 1 | AY160: 2 | AZ160: 1 | BA160: 2 | BB160: 0 | BC160: 0 | BD160: 0 | BE160: 0 | BF160: 1 | BG160: 1 | BH160: 2 | BI160: 0 | BJ160: 2 | BK160: 1 | BL160: 1 | BM160: 0 | BN160: 1 | BO160: 0 | BP160: 1 | BQ160: 2 | BR160: 0 | BS160: 0 | BT160: 1 | BU160: 1 | BV160: 0
A161: 159 | C161: 5 | D161: 8 | E161: 11 | F161: 14 | G161: 29 | H161: 35 | I161: 45 | J161: 48 | K161: 53 | L161: 55 | M161: 61 | N161: 65 | O161: 67 | P161: 68 | Q161: 73 | R161: 74 | S161: 75 | T161: 79 | U161: 86 | V161: 96 | X161: 3 | Y161: 7 | Z161: 1047 | AD161: 96 | AE161: 8 | AG161: 23 | AH161: 5 | AX161: 1 | AY161: 1 | AZ161: 1 | BA161: 1 | BB161: 0 | BC161: 0 | BD161: 1 | BE161: 0 | BF161: 3 | BG161: 2 | BH161: 0 | BI161: 0 | BJ161: 0 | BK161: 1 | BL161: 1 | BM161: 1 | BN161: 2 | BO161: 0 | BP161: 1 | BQ161: 1 | BR161: 0 | BS161: 0 | BT161: 1 | BU161: 1 | BV161: 1
A162: 160 | C162: 0 | D162: 1 | E162: 23 | F162: 25 | G162: 26 | H162: 29 | I162: 33 | J162: 37 | K162: 38 | L162: 42 | M162: 48 | N162: 56 | O162: 62 | P162: 65 | Q162: 66 | R162: 68 | S162: 83 | T162: 89 | U162: 92 | V162: 94 | X162: 4 | Y162: 10 | Z162: 977 | AX162: 0 | AY162: 0 | AZ162: 1 | BA162: 1 | BB162: 2 | BC162: 0 | BD162: 2 | BE162: 0 | BF162: 2 | BG162: 0 | BH162: 2 | BI162: 1 | BJ162: 0 | BK162: 1 | BL162: 0 | BM162: 0 | BN162: 1 | BO162: 0 | BP162: 2 | BQ162: 1 | BR162: 0 | BS162: 1 | BT162: 1 | BU162: 1 | BV162: 1
A163: 161 | C163: 2 | D163: 4 | E163: 11 | F163: 13 | G163: 16 | H163: 32 | I163: 33 | J163: 43 | K163: 50 | L163: 55 | M163: 58 | N163: 60 | O163: 61 | P163: 69 | Q163: 73 | R163: 80 | S163: 82 | T163: 83 | U163: 92 | V163: 98 | X163: 3 | Y163: 11 | Z163: 1015 | AX163: 0 | AY163: 1 | AZ163: 0 | BA163: 1 | BB163: 1 | BC163: 3 | BD163: 0 | BE163: 1 | BF163: 0 | BG163: 0 | BH163: 1 | BI163: 1 | BJ163: 1 | BK163: 0 | BL163: 1 | BM163: 1 | BN163: 1 | BO163: 1 | BP163: 1 | BQ163: 1 | BR163: 2 | BS163: 1 | BT163: 0 | BU163: 1 | BV163: 0
A164: 162 | C164: 1 | D164: 8 | E164: 12 | F164: 18 | G164: 25 | H164: 27 | I164: 29 | J164: 41 | K164: 49 | L164: 61 | M164: 62 | N164: 70 | O164: 74 | P164: 80 | Q164: 81 | R164: 83 | S164: 86 | T164: 91 | U164: 95 | V164: 98 | X164: 4 | Y164: 9 | Z164: 1091 | AX164: 1 | AY164: 2 | AZ164: 1 | BA164: 1 | BB164: 3 | BC164: 0 | BD164: 0 | BE164: 1 | BF164: 2 | BG164: 0 | BH164: 2 | BI164: 1 | BJ164: 0 | BK164: 0 | BL164: 0 | BM164: 1 | BN164: 0 | BO164: 0 | BP164: 1 | BQ164: 0 | BR164: 0 | BS164: 2 | BT164: 2 | BU164: 0 | BV164: 0
A165: 163 | C165: 6 | D165: 9 | E165: 11 | F165: 13 | G165: 15 | H165: 18 | I165: 19 | J165: 26 | K165: 30 | L165: 33 | M165: 47 | N165: 52 | O165: 53 | P165: 59 | Q165: 69 | R165: 78 | S165: 81 | T165: 83 | U165: 85 | V165: 96 | X165: 3 | Y165: 7 | Z165: 883 | AD165: Da FORÇA pela FREQUÊNCIA dos 25 PARES & ÍMPARES | AX165: 1 | AY165: 0 | AZ165: 1 | BA165: 0 | BB165: 1 | BC165: 0 | BD165: 0 | BE165: 1 | BF165: 0 | BG165: 2 | BH165: 1 | BI165: 1 | BJ165: 1 | BK165: 0 | BL165: 0 | BM165: 1 | BN165: 1 | BO165: 1 | BP165: 1 | BQ165: 1 | BR165: 2 | BS165: 2 | BT165: 1 | BU165: 0 | BV165: 1
A166: 164 | C166: 12 | D166: 15 | E166: 24 | F166: 40 | G166: 45 | H166: 47 | I166: 49 | J166: 54 | K166: 55 | L166: 59 | M166: 63 | N166: 64 | O166: 69 | P166: 73 | Q166: 77 | R166: 80 | S166: 81 | T166: 84 | U166: 87 | V166: 96 | X166: 6 | Y166: 8 | Z166: 1174 | AX166: 1 | AY166: 1 | AZ166: 0 | BA166: 0 | BB166: 1 | BC166: 1 | BD166: 0 | BE166: 1 | BF166: 0 | BG166: 0 | BH166: 0 | BI166: 1 | BJ166: 1 | BK166: 1 | BL166: 1 | BM166: 2 | BN166: 1 | BO166: 1 | BP166: 0 | BQ166: 3 | BR166: 1 | BS166: 0 | BT166: 2 | BU166: 0 | BV166: 1
A167: 165 | C167: 1 | D167: 9 | E167: 14 | F167: 15 | G167: 29 | H167: 39 | I167: 41 | J167: 43 | K167: 45 | L167: 46 | M167: 49 | N167: 60 | O167: 61 | P167: 65 | Q167: 67 | R167: 71 | S167: 76 | T167: 82 | U167: 89 | V167: 92 | X167: 3 | Y167: 6 | Z167: 994 | AD167: =$AD$180 -> 38 | AE167: =$AD$181 -> 72 | AF167: =$AD$182 -> 60 | AG167: =$AD$183 -> 14 | AH167: =$AD$184 -> 64 | AI167: =$AD$185 -> 6 | AJ167: =$AD$186 -> 32 | AK167: =$AD$187 -> 12 | AL167: =$AD$188 -> 8 | AM167: =$AD$189 -> 26 | AX167: 0 | AY167: 1 | AZ167: 1 | BA167: 0 | BB167: 2 | BC167: 1 | BD167: 1 | BE167: 1 | BF167: 1 | BG167: 1 | BH167: 0 | BI167: 2 | BJ167: 2 | BK167: 0 | BL167: 2 | BM167: 1 | BN167: 1 | BO167: 0 | BP167: 2 | BQ167: 0 | BR167: 0 | BS167: 0 | BT167: 0 | BU167: 1 | BV167: 0
A168: 166 | C168: 12 | D168: 15 | E168: 17 | F168: 21 | G168: 22 | H168: 24 | I168: 30 | J168: 31 | K168: 34 | L168: 38 | M168: 62 | N168: 70 | O168: 72 | P168: 76 | Q168: 77 | R168: 81 | S168: 87 | T168: 89 | U168: 92 | V168: 94 | X168: 4 | Y168: 12 | Z168: 1044 | AC168: A | AD168: =$AG$180 -> 61 | AE168: =$AG$181 -> 95 | AF168: =$AG$182 -> 79 | AG168: =$AG$183 -> 75 | AH168: =$AG$184 -> 41 | AI168: =$AG$185 -> 39 | AJ168: =$AG$186 -> 99 | AK168: =$AG$187 -> 65 | AL168: =$AG$188 -> 35 | AM168: =$AG$189 -> 1 | AX168: 0 | AY168: 1 | AZ168: 1 | BA168: 1 | BB168: 0 | BC168: 1 | BD168: 1 | BE168: 1 | BF168: 1 | BG168: 1 | BH168: 0 | BI168: 1 | BJ168: 1 | BK168: 0 | BL168: 1 | BM168: 0 | BN168: 1 | BO168: 1 | BP168: 1 | BQ168: 0 | BR168: 2 | BS168: 0 | BT168: 2 | BU168: 2 | BV168: 0
A169: 167 | C169: 1 | D169: 17 | E169: 23 | F169: 29 | G169: 30 | H169: 35 | I169: 36 | J169: 43 | K169: 51 | L169: 52 | M169: 57 | N169: 59 | O169: 63 | P169: 65 | Q169: 76 | R169: 82 | S169: 86 | T169: 95 | U169: 96 | V169: 99 | X169: 3 | Y169: 7 | Z169: 1095 | AD169: =$AD$190 -> 20 | AE169: =$AD$191 -> 0 | AF169: =$AD$192 -> 70 | AG169: =$AD$193 -> 80 | AH169: =$AD$194 -> 74 | AI169: =$AD$195 -> 56 | AJ169: =$AD$196 -> 48 | AK169: =$AD$197 -> 78 | AL169: =$AD$198 -> 30 | AM169: =$AD$199 -> 94 | AX169: 1 | AY169: 0 | AZ169: 0 | BA169: 1 | BB169: 1 | BC169: 1 | BD169: 0 | BE169: 1 | BF169: 1 | BG169: 1 | BH169: 1 | BI169: 1 | BJ169: 0 | BK169: 2 | BL169: 0 | BM169: 0 | BN169: 2 | BO169: 2 | BP169: 0 | BQ169: 0 | BR169: 1 | BS169: 0 | BT169: 1 | BU169: 1 | BV169: 2
A170: 168 | C170: 0 | D170: 1 | E170: 13 | F170: 14 | G170: 15 | H170: 19 | I170: 20 | J170: 23 | K170: 25 | L170: 27 | M170: 40 | N170: 46 | O170: 53 | P170: 55 | Q170: 57 | R170: 69 | S170: 77 | T170: 79 | U170: 83 | V170: 89 | X170: 3 | Y170: 4 | Z170: 805 | AC170: B | AD170: =$AG$190 -> 51 | AE170: =$AG$191 -> 53 | AF170: =$AG$192 -> 85 | AG170: =$AG$193 -> 9 | AH170: =$AG$194 -> 71 | AI170: =$AG$195 -> 93 | AJ170: =$AG$196 -> 3 | AK170: =$AG$197 -> 91 | AL170: =$AG$198 -> 77 | AM170: =$AG$199 -> 5 | AX170: 1 | AY170: 0 | AZ170: 2 | BA170: 0 | BB170: 1 | BC170: 1 | BD170: 0 | BE170: 1 | BF170: 0 | BG170: 1 | BH170: 1 | BI170: 3 | BJ170: 2 | BK170: 0 | BL170: 0 | BM170: 1 | BN170: 0 | BO170: 0 | BP170: 1 | BQ170: 1 | BR170: 1 | BS170: 2 | BT170: 0 | BU170: 0 | BV170: 1
A171: 169 | C171: 4 | D171: 11 | E171: 23 | F171: 24 | G171: 25 | H171: 39 | I171: 42 | J171: 43 | K171: 53 | L171: 54 | M171: 55 | N171: 59 | O171: 65 | P171: 68 | Q171: 75 | R171: 78 | S171: 91 | T171: 94 | U171: 95 | V171: 96 | X171: 4 | Y171: 8 | Z171: 1094 | AD171: =$AD$200 -> 84 | AE171: =$AD$201 -> 46 | AF171: =$AD$202 -> 76 | AG171: =$AD$203 -> 50 | AH171: =$AD$204 -> 24 | AI171: =$AD$205 -> 44 | AJ171: =$AD$206 -> 92 | AK171: =$AD$207 -> 62 | AL171: =$AD$208 -> 40 | AM171: =$AD$209 -> 22 | AX171: 1 | AY171: 1 | AZ171: 0 | BA171: 0 | BB171: 0 | BC171: 1 | BD171: 1 | BE171: 0 | BF171: 1 | BG171: 3 | BH171: 1 | BI171: 0 | BJ171: 2 | BK171: 0 | BL171: 0 | BM171: 1 | BN171: 1 | BO171: 2 | BP171: 0 | BQ171: 1 | BR171: 0 | BS171: 1 | BT171: 1 | BU171: 0 | BV171: 2
A172: 170 | C172: 0 | D172: 13 | E172: 14 | F172: 22 | G172: 27 | H172: 29 | I172: 34 | J172: 36 | K172: 47 | L172: 53 | M172: 56 | N172: 61 | O172: 65 | P172: 66 | Q172: 69 | R172: 73 | S172: 77 | T172: 89 | U172: 97 | V172: 98 | X172: 2 | Y172: 7 | Z172: 1026 | AC172: C | AD172: =$AG$200 -> 31 | AE172: =$AG$201 -> 45 | AF172: =$AG$202 -> 43 | AG172: =$AG$203 -> 37 | AH172: =$AG$204 -> 13 | AI172: =$AG$205 -> 97 | AJ172: =$AG$206 -> 19 | AK172: =$AG$207 -> 57 | AL172: =$AG$208 -> 63 | AM172: =$AG$209 -> 49 | AX172: 0 | AY172: 1 | AZ172: 1 | BA172: 1 | BB172: 0 | BC172: 1 | BD172: 0 | BE172: 0 | BF172: 1 | BG172: 1 | BH172: 2 | BI172: 2 | BJ172: 1 | BK172: 0 | BL172: 1 | BM172: 0 | BN172: 3 | BO172: 0 | BP172: 1 | BQ172: 2 | BR172: 1 | BS172: 0 | BT172: 0 | BU172: 1 | BV172: 0
A173: 171 | C173: 4 | D173: 6 | E173: 10 | F173: 12 | G173: 14 | H173: 35 | I173: 41 | J173: 48 | K173: 51 | L173: 57 | M173: 60 | N173: 62 | O173: 69 | P173: 71 | Q173: 76 | R173: 81 | S173: 84 | T173: 86 | U173: 91 | V173: 92 | X173: 2 | Y173: 12 | Z173: 1050 | AD173: =$AD$210 -> 36 | AE173: =$AD$211 -> 58 | AF173: =$AD$212 -> 16 | AG173: =$AD$213 -> 4 | AH173: =$AD$214 -> 42 | AI173: =$AD$215 -> 96 | AJ173: =$AD$216 -> 10 | AK173: =$AD$217 -> 34 | AL173: =$AD$218 -> 82 | AM173: =$AD$219 -> 98 | AX173: 2 | AY173: 0 | AZ173: 0 | BA173: 1 | BB173: 1 | BC173: 0 | BD173: 0 | BE173: 2 | BF173: 0 | BG173: 1 | BH173: 1 | BI173: 0 | BJ173: 0 | BK173: 2 | BL173: 1 | BM173: 0 | BN173: 0 | BO173: 1 | BP173: 3 | BQ173: 0 | BR173: 1 | BS173: 0 | BT173: 2 | BU173: 2 | BV173: 0
A174: 172 | C174: 12 | D174: 13 | E174: 14 | F174: 19 | G174: 26 | H174: 30 | I174: 34 | J174: 35 | K174: 38 | L174: 46 | M174: 52 | N174: 53 | O174: 55 | P174: 56 | Q174: 57 | R174: 67 | S174: 71 | T174: 73 | U174: 91 | V174: 95 | X174: 6 | Y174: 9 | Z174: 937 | AC174: D | AD174: =$AG$210 -> 33 | AE174: =$AG$211 -> 67 | AF174: =$AG$212 -> 17 | AG174: =$AG$213 -> 11 | AH174: =$AG$214 -> 83 | AI174: =$AG$215 -> 27 | AJ174: =$AG$216 -> 73 | AK174: =$AG$217 -> 69 | AL174: =$AG$218 -> 59 | AM174: =$AG$219 -> 89 | AX174: 1 | AY174: 0 | AZ174: 0 | BA174: 2 | BB174: 1 | BC174: 0 | BD174: 1 | BE174: 2 | BF174: 0 | BG174: 1 | BH174: 1 | BI174: 0 | BJ174: 2 | BK174: 0 | BL174: 0 | BM174: 0 | BN174: 2 | BO174: 0 | BP174: 2 | BQ174: 2 | BR174: 1 | BS174: 1 | BT174: 0 | BU174: 1 | BV174: 0
A175: 173 | C175: 1 | D175: 3 | E175: 4 | F175: 6 | G175: 11 | H175: 15 | I175: 21 | J175: 22 | K175: 28 | L175: 32 | M175: 43 | N175: 44 | O175: 47 | P175: 51 | Q175: 52 | R175: 57 | S175: 63 | T175: 73 | U175: 84 | V175: 88 | X175: 3 | Y175: 9 | Z175: 745 | AD175: =$AD$220 -> 28 | AE175: =$AD$221 -> 52 | AF175: =$AD$222 -> 68 | AG175: =$AD$223 -> 88 | AH175: =$AD$224 -> 2 | AI175: =$AD$225 -> 86 | AJ175: =$AD$226 -> 90 | AK175: =$AD$227 -> 54 | AL175: =$AD$228 -> 18 | AM175: =$AD$229 -> 66 | AX175: 2 | AY175: 1 | AZ175: 0 | BA175: 0 | BB175: 1 | BC175: 1 | BD175: 1 | BE175: 2 | BF175: 0 | BG175: 0 | BH175: 0 | BI175: 1 | BJ175: 0 | BK175: 1 | BL175: 0 | BM175: 2 | BN175: 3 | BO175: 2 | BP175: 0 | BQ175: 1 | BR175: 1 | BS175: 0 | BT175: 0 | BU175: 1 | BV175: 0
A176: 174 | C176: 0 | D176: 5 | E176: 11 | F176: 12 | G176: 17 | H176: 23 | I176: 26 | J176: 31 | K176: 33 | L176: 35 | M176: 41 | N176: 58 | O176: 63 | P176: 68 | Q176: 69 | R176: 72 | S176: 76 | T176: 83 | U176: 91 | V176: 92 | X176: 2 | Y176: 7 | Z176: 906 | AC176: E | AD176: =$AG$220 -> 15 | AE176: =$AG$221 -> 21 | AF176: =$AG$222 -> 87 | AG176: =$AG$223 -> 7 | AH176: =$AG$224 -> 47 | AI176: =$AG$225 -> 29 | AJ176: =$AG$226 -> 81 | AK176: =$AG$227 -> 23 | AL176: =$AG$228 -> 55 | AM176: =$AG$229 -> 25 | AX176: 0 | AY176: 0 | AZ176: 0 | BA176: 1 | BB176: 2 | BC176: 0 | BD176: 0 | BE176: 1 | BF176: 2 | BG176: 1 | BH176: 2 | BI176: 1 | BJ176: 0 | BK176: 1 | BL176: 1 | BM176: 1 | BN176: 0 | BO176: 1 | BP176: 1 | BQ176: 0 | BR176: 1 | BS176: 1 | BT176: 0 | BU176: 2 | BV176: 1
A177: 175 | C177: 2 | D177: 19 | E177: 25 | F177: 29 | G177: 39 | H177: 43 | I177: 45 | J177: 51 | K177: 56 | L177: 57 | M177: 63 | N177: 64 | O177: 75 | P177: 77 | Q177: 82 | R177: 83 | S177: 84 | T177: 91 | U177: 92 | V177: 98 | X177: 4 | Y177: 7 | Z177: 1175 | AD177: 1 | AF177: 2 | AH177: 3 | AJ177: 4 | AL177: 5 | AX177: 1 | AY177: 0 | AZ177: 0 | BA177: 1 | BB177: 0 | BC177: 2 | BD177: 0 | BE177: 1 | BF177: 1 | BG177: 1 | BH177: 2 | BI177: 1 | BJ177: 1 | BK177: 1 | BL177: 1 | BM177: 0 | BN177: 0 | BO177: 0 | BP177: 0 | BQ177: 2 | BR177: 1 | BS177: 2 | BT177: 0 | BU177: 2 | BV177: 0
A178: 176 | C178: 0 | D178: 5 | E178: 9 | F178: 15 | G178: 21 | H178: 30 | I178: 31 | J178: 41 | K178: 47 | L178: 49 | M178: 50 | N178: 53 | O178: 55 | P178: 65 | Q178: 72 | R178: 75 | S178: 76 | T178: 82 | U178: 89 | V178: 91 | X178: 3 | Y178: 5 | Z178: 956 | AB178: =A$1-25 -> 1845 | AD178: Dos últimos 25 Sorteios | AX178: 0 | AY178: 0 | AZ178: 1 | BA178: 0 | BB178: 1 | BC178: 1 | BD178: 0 | BE178: 1 | BF178: 1 | BG178: 3 | BH178: 1 | BI178: 3 | BJ178: 0 | BK178: 0 | BL178: 1 | BM178: 1 | BN178: 1 | BO178: 0 | BP178: 0 | BQ178: 2 | BR178: 2 | BS178: 0 | BT178: 0 | BU178: 1 | BV178: 0
A179: 177 | C179: 1 | D179: 3 | E179: 5 | F179: 16 | G179: 19 | H179: 22 | I179: 29 | J179: 33 | K179: 34 | L179: 39 | M179: 42 | N179: 43 | O179: 54 | P179: 71 | Q179: 77 | R179: 80 | S179: 83 | T179: 88 | U179: 89 | V179: 98 | X179: 2 | Y179: 8 | Z179: 926 | AD179: Dos 25 Pares | AG179: Dos 25 Ímp | AX179: 0 | AY179: 2 | AZ179: 1 | BA179: 1 | BB179: 2 | BC179: 3 | BD179: 0 | BE179: 0 | BF179: 1 | BG179: 0 | BH179: 1 | BI179: 0 | BJ179: 1 | BK179: 0 | BL179: 0 | BM179: 1 | BN179: 1 | BO179: 0 | BP179: 2 | BQ179: 0 | BR179: 0 | BS179: 1 | BT179: 1 | BU179: 2 | BV179: 0
A180: 178 | C180: 0 | D180: 4 | E180: 11 | F180: 12 | G180: 17 | H180: 18 | I180: 27 | J180: 33 | K180: 37 | L180: 39 | M180: 42 | N180: 44 | O180: 48 | P180: 51 | Q180: 59 | R180: 85 | S180: 91 | T180: 94 | U180: 97 | V180: 98 | X180: 4 | Y180: 8 | Z180: 907 | AD180: 38 | AE180: =COUNTIF($C$1843:$V$3000,AD180) -> 13 | AG180: 61 | AH180: =COUNTIF($C$1843:$V$3000,AG180) -> 11 | AX180: 0 | AY180: 0 | AZ180: 1 | BA180: 1 | BB180: 0 | BC180: 0 | BD180: 2 | BE180: 1 | BF180: 0 | BG180: 0 | BH180: 1 | BI180: 2 | BJ180: 1 | BK180: 1 | BL180: 1 | BM180: 1 | BN180: 0 | BO180: 4 | BP180: 1 | BQ180: 0 | BR180: 0 | BS180: 1 | BT180: 1 | BU180: 1 | BV180: 0
A181: 179 | C181: 2 | D181: 11 | E181: 23 | F181: 25 | G181: 30 | H181: 33 | I181: 35 | J181: 38 | K181: 39 | L181: 48 | M181: 50 | N181: 52 | O181: 58 | P181: 61 | Q181: 64 | R181: 65 | S181: 73 | T181: 83 | U181: 84 | V181: 99 | X181: 4 | Y181: 9 | Z181: 973 | AC181: Dos últimos 50 PARES | AD181: 72 | AE181: 10 | AF181: Dos últimos 50 ÍMPARES | AG181: 95 | AH181: 12 | AX181: 1 | AY181: 1 | AZ181: 0 | BA181: 2 | BB181: 0 | BC181: 1 | BD181: 0 | BE181: 0 | BF181: 0 | BG181: 0 | BH181: 1 | BI181: 0 | BJ181: 1 | BK181: 2 | BL181: 0 | BM181: 1 | BN181: 3 | BO181: 0 | BP181: 1 | BQ181: 1 | BR181: 2 | BS181: 2 | BT181: 0 | BU181: 0 | BV181: 1
A182: 180 | C182: 1 | D182: 7 | E182: 16 | F182: 24 | G182: 33 | H182: 34 | I182: 40 | J182: 45 | K182: 48 | L182: 51 | M182: 54 | N182: 55 | O182: 56 | P182: 64 | Q182: 71 | R182: 72 | S182: 74 | T182: 76 | U182: 77 | V182: 95 | X182: 3 | Y182: 11 | Z182: 993 | AD182: 60 | AE182: 10 | AG182: 79 | AH182: 11 | AX182: 1 | AY182: 1 | AZ182: 1 | BA182: 0 | BB182: 1 | BC182: 2 | BD182: 0 | BE182: 0 | BF182: 0 | BG182: 1 | BH182: 0 | BI182: 0 | BJ182: 1 | BK182: 1 | BL182: 2 | BM182: 1 | BN182: 0 | BO182: 0 | BP182: 2 | BQ182: 3 | BR182: 0 | BS182: 0 | BT182: 0 | BU182: 2 | BV182: 1
A183: 181 | C183: 2 | D183: 6 | E183: 17 | F183: 19 | G183: 24 | H183: 25 | I183: 26 | J183: 28 | K183: 37 | L183: 41 | M183: 49 | N183: 50 | O183: 63 | P183: 71 | Q183: 72 | R183: 78 | S183: 82 | T183: 93 | U183: 95 | V183: 97 | X183: 4 | Y183: 9 | Z183: 975 | AD183: 14 | AE183: 9 | AG183: 75 | AH183: 10 | AX183: 2 | AY183: 0 | AZ183: 0 | BA183: 1 | BB183: 2 | BC183: 1 | BD183: 2 | BE183: 0 | BF183: 0 | BG183: 1 | BH183: 0 | BI183: 1 | BJ183: 1 | BK183: 1 | BL183: 2 | BM183: 1 | BN183: 0 | BO183: 1 | BP183: 1 | BQ183: 0 | BR183: 1 | BS183: 2 | BT183: 0 | BU183: 0 | BV183: 0
A184: 182 | C184: 0 | D184: 1 | E184: 8 | F184: 10 | G184: 12 | H184: 18 | I184: 25 | J184: 26 | K184: 30 | L184: 35 | M184: 44 | N184: 55 | O184: 61 | P184: 62 | Q184: 65 | R184: 67 | S184: 69 | T184: 84 | U184: 85 | V184: 93 | X184: 3 | Y184: 9 | Z184: 850 | AD184: 64 | AE184: 9 | AG184: 41 | AH184: 9 | AX184: 1 | AY184: 1 | AZ184: 1 | BA184: 2 | BB184: 2 | BC184: 0 | BD184: 1 | BE184: 1 | BF184: 1 | BG184: 0 | BH184: 0 | BI184: 1 | BJ184: 0 | BK184: 1 | BL184: 0 | BM184: 0 | BN184: 1 | BO184: 1 | BP184: 1 | BQ184: 1 | BR184: 2 | BS184: 2 | BT184: 0 | BU184: 0 | BV184: 0
A185: 183 | C185: 9 | D185: 14 | E185: 24 | F185: 28 | G185: 33 | H185: 40 | I185: 41 | J185: 42 | K185: 48 | L185: 54 | M185: 59 | N185: 62 | O185: 64 | P185: 65 | Q185: 73 | R185: 74 | S185: 79 | T185: 84 | U185: 96 | V185: 97 | X185: 3 | Y185: 12 | Z185: 1086 | AD185: 6 | AE185: 8 | AG185: 39 | AH185: 9 | AX185: 2 | AY185: 1 | AZ185: 1 | BA185: 0 | BB185: 1 | BC185: 0 | BD185: 1 | BE185: 1 | BF185: 0 | BG185: 0 | BH185: 0 | BI185: 0 | BJ185: 1 | BK185: 1 | BL185: 1 | BM185: 1 | BN185: 2 | BO185: 1 | BP185: 3 | BQ185: 1 | BR185: 0 | BS185: 0 | BT185: 1 | BU185: 0 | BV185: 1
A186: 184 | C186: 0 | D186: 4 | E186: 16 | F186: 19 | G186: 21 | H186: 24 | I186: 27 | J186: 29 | K186: 31 | L186: 45 | M186: 50 | N186: 58 | O186: 72 | P186: 86 | Q186: 88 | R186: 92 | S186: 93 | T186: 94 | U186: 95 | V186: 96 | X186: 2 | Y186: 11 | Z186: 1040 | AD186: 32 | AE186: 9 | AG186: 99 | AH186: 8 | AX186: 1 | AY186: 0 | AZ186: 0 | BA186: 1 | BB186: 0 | BC186: 2 | BD186: 1 | BE186: 0 | BF186: 2 | BG186: 0 | BH186: 0 | BI186: 2 | BJ186: 1 | BK186: 0 | BL186: 2 | BM186: 1 | BN186: 0 | BO186: 1 | BP186: 0 | BQ186: 0 | BR186: 1 | BS186: 2 | BT186: 1 | BU186: 1 | BV186: 1
A187: 185 | C187: 19 | D187: 21 | E187: 27 | F187: 31 | G187: 37 | H187: 40 | I187: 47 | J187: 48 | K187: 51 | L187: 56 | M187: 58 | N187: 60 | O187: 66 | P187: 72 | Q187: 73 | R187: 78 | S187: 81 | T187: 83 | U187: 94 | V187: 98 | X187: 7 | Y187: 10 | Z187: 1140 | AD187: 12 | AE187: 10 | AG187: 65 | AH187: 8 | AX187: 0 | AY187: 0 | AZ187: 0 | BA187: 1 | BB187: 0 | BC187: 0 | BD187: 2 | BE187: 0 | BF187: 1 | BG187: 1 | BH187: 2 | BI187: 1 | BJ187: 0 | BK187: 1 | BL187: 2 | BM187: 1 | BN187: 1 | BO187: 0 | BP187: 0 | BQ187: 2 | BR187: 1 | BS187: 2 | BT187: 1 | BU187: 1 | BV187: 0
A188: 186 | C188: 4 | D188: 5 | E188: 11 | F188: 17 | G188: 21 | H188: 23 | I188: 24 | J188: 25 | K188: 27 | L188: 38 | M188: 40 | N188: 62 | O188: 64 | P188: 68 | Q188: 69 | R188: 88 | S188: 90 | T188: 94 | U188: 96 | V188: 97 | X188: 4 | Y188: 11 | Z188: 963 | AD188: 8 | AE188: 8 | AG188: 35 | AH188: 7 | AX188: 0 | AY188: 0 | AZ188: 0 | BA188: 1 | BB188: 0 | BC188: 0 | BD188: 1 | BE188: 0 | BF188: 1 | BG188: 0 | BH188: 0 | BI188: 1 | BJ188: 1 | BK188: 0 | BL188: 1 | BM188: 3 | BN188: 0 | BO188: 2 | BP188: 1 | BQ188: 1 | BR188: 2 | BS188: 1 | BT188: 0 | BU188: 1 | BV188: 3
A189: 187 | C189: 3 | D189: 7 | E189: 12 | F189: 20 | G189: 23 | H189: 27 | I189: 28 | J189: 31 | K189: 36 | L189: 42 | M189: 44 | N189: 55 | O189: 58 | P189: 76 | Q189: 79 | R189: 80 | S189: 83 | T189: 84 | U189: 88 | V189: 93 | X189: 3 | Y189: 11 | Z189: 969 | AD189: 26 | AE189: 9 | AG189: 1 | AH189: 8 | AX189: 2 | AY189: 1 | AZ189: 1 | BA189: 1 | BB189: 1 | BC189: 0 | BD189: 1 | BE189: 1 | BF189: 1 | BG189: 1 | BH189: 2 | BI189: 1 | BJ189: 0 | BK189: 0 | BL189: 0 | BM189: 1 | BN189: 0 | BO189: 1 | BP189: 0 | BQ189: 1 | BR189: 0 | BS189: 1 | BT189: 1 | BU189: 0 | BV189: 2
A190: 188 | C190: 0 | D190: 1 | E190: 21 | F190: 25 | G190: 26 | H190: 30 | I190: 33 | J190: 39 | K190: 47 | L190: 54 | M190: 57 | N190: 62 | O190: 64 | P190: 71 | Q190: 78 | R190: 86 | S190: 90 | T190: 92 | U190: 94 | V190: 95 | X190: 0 | Y190: 10 | Z190: 1065 | AD190: 20 | AE190: 9 | AG190: 51 | AH190: 7 | AX190: 1 | AY190: 1 | AZ190: 0 | BA190: 0 | BB190: 2 | BC190: 0 | BD190: 1 | BE190: 1 | BF190: 0 | BG190: 1 | BH190: 0 | BI190: 1 | BJ190: 1 | BK190: 0 | BL190: 0 | BM190: 0 | BN190: 0 | BO190: 0 | BP190: 3 | BQ190: 2 | BR190: 2 | BS190: 1 | BT190: 1 | BU190: 1 | BV190: 1
A191: 189 | C191: 20 | D191: 21 | E191: 29 | F191: 31 | G191: 32 | H191: 34 | I191: 35 | J191: 37 | K191: 46 | L191: 47 | M191: 48 | N191: 49 | O191: 51 | P191: 52 | Q191: 74 | R191: 77 | S191: 79 | T191: 81 | U191: 83 | V191: 86 | X191: 3 | Y191: 8 | Z191: 1012 | AD191: 0 | AE191: 9 | AG191: 53 | AH191: 7 | AX191: 1 | AY191: 0 | AZ191: 2 | BA191: 1 | BB191: 0 | BC191: 1 | BD191: 1 | BE191: 1 | BF191: 2 | BG191: 0 | BH191: 1 | BI191: 0 | BJ191: 1 | BK191: 1 | BL191: 0 | BM191: 1 | BN191: 1 | BO191: 0 | BP191: 0 | BQ191: 1 | BR191: 1 | BS191: 0 | BT191: 2 | BU191: 2 | BV191: 0
A192: 190 | C192: 0 | D192: 1 | E192: 16 | F192: 17 | G192: 22 | H192: 23 | I192: 25 | J192: 29 | K192: 30 | L192: 42 | M192: 46 | N192: 49 | O192: 51 | P192: 53 | Q192: 81 | R192: 83 | S192: 84 | T192: 87 | U192: 88 | V192: 90 | X192: 6 | Y192: 8 | Z192: 917 | AD192: 70 | AE192: 7 | AG192: 85 | AH192: 6 | AX192: 1 | AY192: 0 | AZ192: 0 | BA192: 0 | BB192: 1 | BC192: 1 | BD192: 0 | BE192: 0 | BF192: 1 | BG192: 1 | BH192: 1 | BI192: 1 | BJ192: 1 | BK192: 0 | BL192: 0 | BM192: 2 | BN192: 1 | BO192: 1 | BP192: 0 | BQ192: 0 | BR192: 1 | BS192: 1 | BT192: 3 | BU192: 1 | BV192: 2
A193: 191 | C193: 2 | D193: 6 | E193: 7 | F193: 9 | G193: 13 | H193: 14 | I193: 18 | J193: 25 | K193: 27 | L193: 36 | M193: 47 | N193: 50 | O193: 53 | P193: 68 | Q193: 69 | R193: 75 | S193: 79 | T193: 80 | U193: 88 | V193: 90 | X193: 4 | Y193: 10 | Z193: 856 | AD193: 80 | AE193: 8 | AG193: 9 | AH193: 6 | AX193: 2 | AY193: 0 | AZ193: 0 | BA193: 0 | BB193: 1 | BC193: 1 | BD193: 0 | BE193: 1 | BF193: 1 | BG193: 2 | BH193: 1 | BI193: 1 | BJ193: 1 | BK193: 0 | BL193: 0 | BM193: 1 | BN193: 0 | BO193: 0 | BP193: 1 | BQ193: 1 | BR193: 2 | BS193: 2 | BT193: 0 | BU193: 0 | BV193: 2
A194: 192 | C194: 5 | D194: 6 | E194: 10 | F194: 17 | G194: 23 | H194: 34 | I194: 35 | J194: 44 | K194: 53 | L194: 54 | M194: 56 | N194: 61 | O194: 65 | P194: 68 | Q194: 69 | R194: 75 | S194: 77 | T194: 80 | U194: 86 | V194: 88 | X194: 7 | Y194: 10 | Z194: 1006 | AD194: 74 | AE194: 7 | AG194: 71 | AH194: 6 | AX194: 1 | AY194: 2 | AZ194: 0 | BA194: 1 | BB194: 1 | BC194: 1 | BD194: 0 | BE194: 0 | BF194: 1 | BG194: 2 | BH194: 0 | BI194: 0 | BJ194: 0 | BK194: 1 | BL194: 0 | BM194: 1 | BN194: 1 | BO194: 2 | BP194: 0 | BQ194: 1 | BR194: 1 | BS194: 0 | BT194: 1 | BU194: 2 | BV194: 1
A195: 193 | C195: 6 | D195: 11 | E195: 13 | F195: 15 | G195: 20 | H195: 22 | I195: 24 | J195: 28 | K195: 44 | L195: 49 | M195: 54 | N195: 59 | O195: 61 | P195: 66 | Q195: 70 | R195: 74 | S195: 86 | T195: 95 | U195: 96 | V195: 97 | X195: 5 | Y195: 12 | Z195: 990 | AD195: 56 | AE195: 7 | AG195: 93 | AH195: 6 | AX195: =SUMPRODUCT(COUNTIF($C195:$V195,$AB$17:$AC$18)) -> 2 | AY195: =SUMPRODUCT(COUNTIF($C195:$V195,$AD$17:$AE$18)) -> 3 | AZ195: =SUMPRODUCT(COUNTIF($C195:$V195,$AF$17:$AG$18)) -> 2 | BA195: =SUMPRODUCT(COUNTIF($C195:$V195,$AH$17:$AI$18)) -> 0 | BB195: =SUMPRODUCT(COUNTIF($C195:$V195,$AJ$17:$AK$18)) -> 0 | BC195: =SUMPRODUCT(COUNTIF($C195:$V195,$AB$19:$AC$20)) -> 0 | BD195: =SUMPRODUCT(COUNTIF($C195:$V195,$AD$19:$AE$20)) -> 1 | BE195: =SUMPRODUCT(COUNTIF($C195:$V195,$AF$19:$AG$20)) -> 0 | BF195: =SUMPRODUCT(COUNTIF($C195:$V195,$AH$19:$AI$20)) -> 0 | BG195: =SUMPRODUCT(COUNTIF($C195:$V195,$AJ$19:$AK$20)) -> 0 | BH195: =SUMPRODUCT(COUNTIF($C195:$V195,$AB$21:$AC$22)) -> 1 | BI195: =SUMPRODUCT(COUNTIF($C195:$V195,$AD$21:$AE$22)) -> 1 | BJ195: =SUMPRODUCT(COUNTIF($C195:$V195,$AF$21:$AG$22)) -> 2 | BK195: =SUMPRODUCT(COUNTIF($C195:$V195,$AH$21:$AI$22)) -> 0 | BL195: =SUMPRODUCT(COUNTIF($C195:$V195,$AJ$21:$AK$22)) -> 1 | BM195: =SUMPRODUCT(COUNTIF($C195:$V195,$AB$23:$AC$24)) -> 2 | BN195: =SUMPRODUCT(COUNTIF($C195:$V195,$AD$23:$AE$24)) -> 1 | BO195: =SUMPRODUCT(COUNTIF($C195:$V195,$AF$23:$AG$24)) -> 2 | BP195: =SUMPRODUCT(COUNTIF($C195:$V195,$AH$23:$AI$24)) -> 0 | BQ195: =SUMPRODUCT(COUNTIF($C195:$V195,$AJ$23:$AK$24)) -> 0 | BR195: =SUMPRODUCT(COUNTIF($C195:$V195,$AB$25:$AC$26)) -> 0 | BS195: =SUMPRODUCT(COUNTIF($C195:$V195,$AD$25:$AE$26)) -> 0 | BT195: =SUMPRODUCT(COUNTIF($C195:$V195,$AF$25:$AG$26)) -> 1 | BU195: =SUMPRODUCT(COUNTIF($C195:$V195,$AH$25:$AI$26)) -> 0 | BV195: =SUMPRODUCT(COUNTIF($C195:$V195,$AJ$25:$AK$26)) -> 1
A196: 194 | C196: 9 | D196: 13 | E196: 18 | F196: 22 | G196: 28 | H196: 33 | I196: 34 | J196: 37 | K196: 41 | L196: 46 | M196: 48 | N196: 62 | O196: 63 | P196: 65 | Q196: 72 | R196: 76 | S196: 77 | T196: 85 | U196: 87 | V196: 93 | X196: =SUMPRODUCT(COUNTIF(C196:V196,C195:V195)) -> 3 | Y196: =SUMPRODUCT(N(MOD((C196:V196),2)=0)*(C196:V196>0)) -> 9 | Z196: =SUM(C196:V196) -> 1009 | AD196: 48 | AE196: 7 | AG196: 3 | AH196: 7 | AX196: 0 | AY196: 0 | AZ196: 1 | BA196: 1 | BB196: 1 | BC196: 1 | BD196: 2 | BE196: 1 | BF196: 0 | BG196: 1 | BH196: 0 | BI196: 0 | BJ196: 2 | BK196: 2 | BL196: 1 | BM196: 0 | BN196: 2 | BO196: 0 | BP196: 2 | BQ196: 0 | BR196: 0 | BS196: 1 | BT196: 1 | BU196: 1 | BV196: 0
A197: 195 | C197: 4 | D197: 8 | E197: 12 | F197: 14 | G197: 16 | H197: 25 | I197: 28 | J197: 36 | K197: 42 | L197: 45 | M197: 48 | N197: 49 | O197: 51 | P197: 52 | Q197: 53 | R197: 54 | S197: 61 | T197: 66 | U197: 81 | V197: 92 | X197: 2 | Y197: 13 | Z197: 837 | AD197: 78 | AE197: 6 | AG197: 91 | AH197: 6 | AX197: 0 | AY197: 2 | AZ197: 0 | BA197: 0 | BB197: 0 | BC197: 1 | BD197: 1 | BE197: 1 | BF197: 1 | BG197: 1 | BH197: 2 | BI197: 0 | BJ197: 0 | BK197: 1 | BL197: 1 | BM197: 1 | BN197: 1 | BO197: 1 | BP197: 1 | BQ197: 0 | BR197: 0 | BS197: 1 | BT197: 2 | BU197: 2 | BV197: 0
A198: 196 | C198: 3 | D198: 4 | E198: 12 | F198: 14 | G198: 16 | H198: 17 | I198: 19 | J198: 23 | K198: 33 | L198: 34 | M198: 35 | N198: 38 | O198: 48 | P198: 51 | Q198: 58 | R198: 66 | S198: 78 | T198: 84 | U198: 93 | V198: 97 | X198: 7 | Y198: 11 | Z198: 823 | AD198: 30 | AE198: 7 | AG198: 77 | AH198: 6 | AX198: 1 | AY198: 1 | AZ198: 0 | BA198: 3 | BB198: 0 | BC198: 1 | BD198: 0 | BE198: 1 | BF198: 0 | BG198: 1 | BH198: 1 | BI198: 0 | BJ198: 0 | BK198: 1 | BL198: 1 | BM198: 0 | BN198: 0 | BO198: 2 | BP198: 2 | BQ198: 0 | BR198: 0 | BS198: 2 | BT198: 0 | BU198: 2 | BV198: 1
A199: 197 | C199: 8 | D199: 11 | E199: 12 | F199: 13 | G199: 14 | H199: 24 | I199: 26 | J199: 36 | K199: 37 | L199: 38 | M199: 42 | N199: 52 | O199: 54 | P199: 57 | Q199: 58 | R199: 61 | S199: 90 | T199: 91 | U199: 92 | V199: 99 | X199: 4 | Y199: 13 | Z199: 915 | AD199: 94 | AE199: 6 | AG199: 5 | AH199: 6 | AX199: 0 | AY199: 2 | AZ199: 0 | BA199: 1 | BB199: 1 | BC199: 0 | BD199: 1 | BE199: 2 | BF199: 1 | BG199: 0 | BH199: 2 | BI199: 0 | BJ199: 2 | BK199: 1 | BL199: 0 | BM199: 1 | BN199: 1 | BO199: 0 | BP199: 1 | BQ199: 0 | BR199: 0 | BS199: 1 | BT199: 1 | BU199: 1 | BV199: 1
A200: 198 | C200: 1 | D200: 7 | E200: 12 | F200: 14 | G200: 16 | H200: 25 | I200: 33 | J200: 55 | K200: 57 | L200: 59 | M200: 64 | N200: 65 | O200: 66 | P200: 68 | Q200: 76 | R200: 77 | S200: 78 | T200: 85 | U200: 92 | V200: 93 | X200: 4 | Y200: 9 | Z200: 1043 | AD200: 84 | AE200: 6 | AG200: 31 | AH200: 6 | AX200: 0 | AY200: 0 | AZ200: 1 | BA200: 1 | BB200: 1 | BC200: 2 | BD200: 0 | BE200: 2 | BF200: 1 | BG200: 2 | BH200: 1 | BI200: 0 | BJ200: 0 | BK200: 0 | BL200: 0 | BM200: 0 | BN200: 1 | BO200: 1 | BP200: 2 | BQ200: 2 | BR200: 0 | BS200: 1 | BT200: 0 | BU200: 1 | BV200: 1
... 925 more rows

Sheet Matrix
AV1: =SUM( IF(SUMPRODUCT(COUNTIF($D$3:$W$3,$AV$2:$AZ$2)),1,0)+IF(SUMPRODUCT(COUNTIF($D$3:$W$3,$AV$3:$AZ$3)),1,0)+IF(SUMPRODUCT(COUNTIF($D$3:$W$3,$AV$4:$AZ$4)),1,0)+IF(SUMPRODUCT(COUNTIF($D$3:$W$3,$AV$5:$AZ$5)),1,0)+IF(SUMPRODUCT(COUNTIF($D$3:$W$3,$AV$6:$AZ$6)),1,0)+IF(SUMPRODUCT(COUNTIF($D$3:$W$3,$AV$7:$AZ$7)),1,0)+IF(SUMPRODUCT(COUNTIF($D$3:$W$3,$AV$8:$AZ$8)),1,0)+IF(SUMPRODUCT(COUNTIF($D$3:$W$3,$AV$9:$AZ$9)),1,0)+IF(SUMPRODUCT(COUNTIF($D$3:$W$3,$AV$10:$AZ$10)),1,0)+IF(SUMPRODUCT(COUNTIF($D$3:$W$3,$AV$11:$AZ$11)),1,0) )&" Linhas" -> 6 Linhas | CA1: =$B$2 -> 1869
B2: 1869 | F2: RESULTADO DO SORTEIO | P2: =SUMPRODUCT(COUNTIF($B$3:$U$3,B4:U4)) -> 4 | R2: =SUMPRODUCT(N(MOD((B3:U3),2)=0)*(B3:U3>0)) -> 9 | T2: =SUM(B3:U3) -> 863 | W2: 1 | X2: 2 | Y2: 3 | Z2: 4 | AA2: 5 | AB2: 6 | AC2: 7 | AD2: 8 | AE2: 9 | AF2: 10 | AH2: =IF(B15="F","F",IF(B15="X","X",1)) -> X | AI2: =IF(C15="F","F",IF(C15="X","X",2)) -> X | AJ2: =IF(D15="F","F",IF(D15="X","X",3)) -> 3 | AK2: =IF(E15="F","F",IF(E15="X","X",4)) -> F | AL2: =IF(F15="F","F",IF(F15="X","X",5)) -> F | AM2: =IF(G15="F","F",IF(G15="X","X",6)) -> 6 | AN2: =IF(H15="F","F",IF(H15="X","X",7)) -> X | AO2: =IF(I15="F","F",IF(I15="X","X",8)) -> 8 | AP2: =IF(J15="F","F",IF(J15="X","X",9)) -> X | AQ2: =IF(K15="F","F",IF(K15="X","X",10)) -> F | AR2: =COUNTIF($AH$2:$AQ$11,"X") -> 20 | AS2: X | AV2: =IFERROR(SMALL($AH$2:$AQ$11,21),"") -> 58 | AW2: =IFERROR(SMALL($AH$2:$AQ$11,22),"") -> 59 | AX2: =IFERROR(SMALL($AH$2:$AQ$11,23),"") -> 60 | AY2: =IFERROR(SMALL($AH$2:$AQ$11,24),"") -> 63 | AZ2: =IFERROR(SMALL($AH$2:$AQ$11,25),"") -> 64 | BA2: =SUM(INDEX(($B$67:$CW$67,$B$69:$CW$69),1,AW2,2)+INDEX(($B$67:$CW$67,$B$69:$CW$69),1,AX2,2)+INDEX(($B$67:$CW$67,$B$69:$CW$69),1,AY2,2)+INDEX(($B$67:$CW$67,$B$69:$CW$69),1,AZ2,2)+INDEX(($B$67:$CW$67,$B$69:$CW$69),1,AV2,2)) -> 32 | BB2: Quadro Freq. 25 Sorteios | BC2: =J!AD167 -> 38 | BD2: =J!AE167 -> 72 | BE2: =J!AF167 -> 60 | BF2: =J!AG167 -> 14 | BG2: =J!AH167 -> 64 | BH2: =J!AI167 -> 6 | BI2: =J!AJ167 -> 32 | BJ2: =J!AK167 -> 12 | BK2: =J!AL167 -> 8 | BL2: =J!AM167 -> 26 | BN2: A | BO2: Veio no atual | CG2: Formação dos OPOSTOS + GÊMEOS | CL2: ByJ | CN2: ByJ | CP2: ByJ
B3: =VLOOKUP($B$2,J!$A$3:$V$4000,3,FALSE) -> 12 | C3: =VLOOKUP($B$2,J!$A$3:$V$4000,4,FALSE) -> 13 | D3: =VLOOKUP($B$2,J!$A$3:$V$4000,5,FALSE) -> 18 | E3: =VLOOKUP($B$2,J!$A$3:$V$4000,6,FALSE) -> 20 | F3: =VLOOKUP($B$2,J!$A$3:$V$4000,7,FALSE) -> 21 | G3: =VLOOKUP($B$2,J!$A$3:$V$4000,8,FALSE) -> 26 | H3: =VLOOKUP($B$2,J!$A$3:$V$4000,9,FALSE) -> 27 | I3: =VLOOKUP($B$2,J!$A$3:$V$4000,10,FALSE) -> 30 | J3: =VLOOKUP($B$2,J!$A$3:$V$4000,11,FALSE) -> 32 | K3: =VLOOKUP($B$2,J!$A$3:$V$4000,12,FALSE) -> 33 | L3: =VLOOKUP($B$2,J!$A$3:$V$4000,13,FALSE) -> 36 | M3: =VLOOKUP($B$2,J!$A$3:$V$4000,14,FALSE) -> 41 | N3: =VLOOKUP($B$2,J!$A$3:$V$4000,15,FALSE) -> 43 | O3: =VLOOKUP($B$2,J!$A$3:$V$4000,16,FALSE) -> 48 | P3: =VLOOKUP($B$2,J!$A$3:$V$4000,17,FALSE) -> 49 | Q3: =VLOOKUP($B$2,J!$A$3:$V$4000,18,FALSE) -> 65 | R3: =VLOOKUP($B$2,J!$A$3:$V$4000,19,FALSE) -> 75 | S3: =VLOOKUP($B$2,J!$A$3:$V$4000,20,FALSE) -> 83 | T3: =VLOOKUP($B$2,J!$A$3:$V$4000,21,FALSE) -> 95 | U3: =VLOOKUP($B$2,J!$A$3:$V$4000,22,FALSE) -> 96 | W3: 11 | X3: 12 | Y3: 13 | Z3: 14 | AA3: 15 | AB3: 16 | AC3: 17 | AD3: 18 | AE3: 19 | AF3: 20 | AH3: =IF(L15="F","F",IF(L15="X","X",11)) -> X | AI3: =IF(M15="F","F",IF(M15="X","X",12)) -> F | AJ3: =IF(N15="F","F",IF(N15="X","X",13)) -> F | AK3: =IF(O15="F","F",IF(O15="X","X",14)) -> X | AL3: =IF(P15="F","F",IF(P15="X","X",15)) -> F | AM3: =IF(Q15="F","F",IF(Q15="X","X",16)) -> F | AN3: =IF(R15="F","F",IF(R15="X","X",17)) -> 17 | AO3: =IF(S15="F","F",IF(S15="X","X",18)) -> F | AP3: =IF(T15="F","F",IF(T15="X","X",19)) -> F | AQ3: =IF(U15="F","F",IF(U15="X","X",20)) -> 20 | AR3: = 22 Fixos | AV3: =IFERROR(SMALL($AH$2:$AQ$11,1),"") -> 3 | AW3: =IFERROR(SMALL($AH$2:$AQ$11,2),"") -> 6 | AX3: =IFERROR(SMALL($AH$2:$AQ$11,3),"") -> 8 | AY3: =IFERROR(SMALL($AH$2:$AQ$11,4),"") -> 17 | AZ3: =IFERROR(SMALL($AH$2:$AQ$11,5),"") -> 20 | BA3: =SUM(INDEX(($B$67:$CW$67,$B$69:$CW$69),1,AW3,2)+INDEX(($B$67:$CW$67,$B$69:$CW$69),1,AX3,2)+INDEX(($B$67:$CW$67,$B$69:$CW$69),1,AY3,2)+INDEX(($B$67:$CW$67,$B$69:$CW$69),1,AZ3,2)+INDEX(($B$67:$CW$67,$B$69:$CW$69),1,AV3,2)) -> 31 | BC3: =J!AD168 -> 61 | BD3: =J!AE168 -> 95 | BE3: =J!AF168 -> 79 | BF3: =J!AG168 -> 75 | BG3: =J!AH168 -> 41 | BH3: =J!AI168 -> 39 | BI3: =J!AJ168 -> 99 | BJ3: =J!AK168 -> 65 | BK3: =J!AL168 -> 35 | BL3: =J!AM168 -> 1 | BN3: A | BO3: Veio no anterior | CD3: ByJ | CL3: Nando | CN3: Nando | CP3: Nando
B4: =VLOOKUP($B$2-1,J!$A$3:$V$4000,3,FALSE) -> 0 | C4: =VLOOKUP($B$2-1,J!$A$3:$V$4000,4,FALSE) -> 8 | D4: =VLOOKUP($B$2-1,J!$A$3:$V$4000,5,FALSE) -> 12 | E4: =VLOOKUP($B$2-1,J!$A$3:$V$4000,6,FALSE) -> 22 | F4: =VLOOKUP($B$2-1,J!$A$3:$V$4000,7,FALSE) -> 27 | G4: =VLOOKUP($B$2-1,J!$A$3:$V$4000,8,FALSE) -> 29 | H4: =VLOOKUP($B$2-1,J!$A$3:$V$4000,9,FALSE) -> 31 | I4: =VLOOKUP($B$2-1,J!$A$3:$V$4000,10,FALSE) -> 39 | J4: =VLOOKUP($B$2-1,J!$A$3:$V$4000,11,FALSE) -> 40 | K4: =VLOOKUP($B$2-1,J!$A$3:$V$4000,12,FALSE) -> 42 | L4: =VLOOKUP($B$2-1,J!$A$3:$V$4000,13,FALSE) -> 47 | M4: =VLOOKUP($B$2-1,J!$A$3:$V$4000,14,FALSE) -> 48 | N4: =VLOOKUP($B$2-1,J!$A$3:$V$4000,15,FALSE) -> 51 | O4: =VLOOKUP($B$2-1,J!$A$3:$V$4000,16,FALSE) -> 60 | P4: =VLOOKUP($B$2-1,J!$A$3:$V$4000,17,FALSE) -> 61 | Q4: =VLOOKUP($B$2-1,J!$A$3:$V$4000,18,FALSE) -> 64 | R4: =VLOOKUP($B$2-1,J!$A$3:$V$4000,19,FALSE) -> 87 | S4: =VLOOKUP($B$2-1,J!$A$3:$V$4000,20,FALSE) -> 89 | T4: =VLOOKUP($B$2-1,J!$A$3:$V$4000,21,FALSE) -> 95 | U4: =VLOOKUP($B$2-1,J!$A$3:$V$4000,22,FALSE) -> 99 | W4: 21 | X4: 22 | Y4: 23 | Z4: 24 | AA4: 25 | AB4: 26 | AC4: 27 | AD4: 28 | AE4: 29 | AF4: 30 | AH4: =IF(V15="F","F",IF(V15="X","X",21)) -> 21 | AI4: =IF(W15="F","F",IF(W15="X","X",22)) -> 22 | AJ4: =IF(X15="F","F",IF(X15="X","X",23)) -> F | AK4: =IF(Y15="F","F",IF(Y15="X","X",24)) -> 24 | AL4: =IF(Z15="F","F",IF(Z15="X","X",25)) -> 25 | AM4: =IF(AA15="F","F",IF(AA15="X","X",26)) -> X | AN4: =IF(AB15="F","F",IF(AB15="X","X",27)) -> 27 | AO4: =IF(AC15="F","F",IF(AC15="X","X",28)) -> 28 | AP4: =IF(AD15="F","F",IF(AD15="X","X",29)) -> F | AQ4: =IF(AE15="F","F",IF(AE15="X","X",30)) -> F | AV4: =IFERROR(SMALL($AH$2:$AQ$11,31),"") -> 70 | AW4: =IFERROR(SMALL($AH$2:$AQ$11,32),"") -> 71 | AX4: =IFERROR(SMALL($AH$2:$AQ$11,33),"") -> 72 | AY4: =IFERROR(SMALL($AH$2:$AQ$11,34),"") -> 73 | AZ4: =IFERROR(SMALL($AH$2:$AQ$11,35),"") -> 74 | BA4: =SUM(INDEX(($B$67:$CW$67,$B$69:$CW$69),1,AW4,2)+INDEX(($B$67:$CW$67,$B$69:$CW$69),1,AX4,2)+INDEX(($B$67:$CW$67,$B$69:$CW$69),1,AY4,2)+INDEX(($B$67:$CW$67,$B$69:$CW$69),1,AZ4,2)+INDEX(($B$67:$CW$67,$B$69:$CW$69),1,AV4,2)) -> 29 | BC4: =J!AD169 -> 20 | BD4: =J!AE169 -> 0 | BE4: =J!AF169 -> 70 | BF4: =J!AG169 -> 80 | BG4: =J!AH169 -> 74 | BH4: =J!AI169 -> 56 | BI4: =J!AJ169 -> 48 | BJ4: =J!AK169 -> 78 | BK4: =J!AL169 -> 30 | BL4: =J!AM169 -> 94 | BN4: A | BO4: Veio no antipenultimo | CD4: Nando | CL4: ͡͡ ° ͜ ʖ ͡ ° ♣ | CO4: የቢሚን ዲያስ
B5: Números GÊMEOS (Capicuas) | H5: Números OPOSTOS | M5: =SUMPRODUCT(COUNTIF($B$3:$U$3,$W$2:$X$3)) -> 1 | N5: =SUMPRODUCT(COUNTIF($B$3:$U$3,$Y$2:$Z$3)) -> 1 | O5: =SUMPRODUCT(COUNTIF($B$3:$U$3,$AA$2:$AB$3)) -> 0 | P5: =SUMPRODUCT(COUNTIF($B$3:$U$3,$AC$2:$AD$3)) -> 1 | Q5: =SUMPRODUCT(COUNTIF($B$3:$U$3,$AE$2:$AF$3)) -> 1 | S5: & | V5: Quadro das VINDAS | W5: 31 | X5: 32 | Y5: 33 | Z5: 34 | AA5: 35 | AB5: 36 | AC5: 37 | AD5: 38 | AE5: 39 | AF5: 40 | AG5: Quadro das ESCOLHAS | AH5: =IF(AF15="F","F",IF(AF15="X","X",31)) -> F | AI5: =IF(AG15="F","F",IF(AG15="X","X",32)) -> 32 | AJ5: =IF(AH15="F","F",IF(AH15="X","X",33)) -> F | AK5: =IF(AI15="F","F",IF(AI15="X","X",34)) -> F | AL5: =IF(AJ15="F","F",IF(AJ15="X","X",35)) -> 35 | AM5: =IF(AK15="F","F",IF(AK15="X","X",36)) -> F | AN5: =IF(AL15="F","F",IF(AL15="X","X",37)) -> X | AO5: =IF(AM15="F","F",IF(AM15="X","X",38)) -> 38 | AP5: =IF(AN15="F","F",IF(AN15="X","X",39)) -> 39 | AQ5: =IF(AO15="F","F",IF(AO15="X","X",40)) -> 40 | AR5: =COUNTIF($AH$2:$AQ$11,"F") -> 30 | AS5: F | AV5: =IFERROR(SMALL($AH$2:$AQ$11,46),"") -> 94 | AW5: =IFERROR(SMALL($AH$2:$AQ$11,47),"") -> 95 | AX5: =IFERROR(SMALL($AH$2:$AQ$11,48),"") -> 97 | AY5: =IFERROR(SMALL($AH$2:$AQ$11,49),"") -> 98 | AZ5: =IFERROR(SMALL($AH$2:$AQ$11,50),"") -> 99 | BA5: =SUM(INDEX(($B$67:$CW$67,$B$69:$CW$69),1,AW5,2)+INDEX(($B$67:$CW$67,$B$69:$CW$69),1,AX5,2)+INDEX(($B$67:$CW$67,$B$69:$CW$69),1,AY5,2)+INDEX(($B$67:$CW$67,$B$69:$CW$69),1,AZ5,2)+INDEX(($B$67:$CW$67,$B$69:$CW$69),1,AV5,2)) -> 29 | BC5: =J!AD170 -> 51 | BD5: =J!AE170 -> 53 | BE5: =J!AF170 -> 85 | BF5: =J!AG170 -> 9 | BG5: =J!AH170 -> 71 | BH5: =J!AI170 -> 93 | BI5: =J!AJ170 -> 3 | BJ5: =J!AK170 -> 91 | BK5: =J!AL170 -> 77 | BL5: =J!AM170 -> 5 | BN5: A | BO5: Veio nos 3 últimos sorteios | CO5: (๏.๏)
B6: 00 | C6: 11 | D6: 22 | E6: 33 | F6: 44 | G6: 55 | H6: 66 | I6: 77 | J6: 88 | K6: 99 | M6: =SUMPRODUCT(COUNTIF($B$3:$U$3,$W$4:$X$5)) -> 2 | N6: =SUMPRODUCT(COUNTIF($B$3:$U$3,$Y$4:$Z$5)) -> 1 | O6: =SUMPRODUCT(COUNTIF($B$3:$U$3,$AA$4:$AB$5)) -> 2 | P6: =SUMPRODUCT(COUNTIF($B$3:$U$3,$AC$4:$AD$5)) -> 1 | Q6: =SUMPRODUCT(COUNTIF($B$3:$U$3,$AE$4:$AF$5)) -> 1 | W6: 41 | X6: 42 | Y6: 43 | Z6: 44 | AA6: 45 | AB6: 46 | AC6: 47 | AD6: 48 | AE6: 49 | AF6: 50 | AH6: =IF(AP15="F","F",IF(AP15="X","X",41)) -> X | AI6: =IF(AQ15="F","F",IF(AQ15="X","X",42)) -> F | AJ6: =IF(AR15="F","F",IF(AR15="X","X",43)) -> F | AK6: =IF(AS15="F","F",IF(AS15="X","X",44)) -> X | AL6: =IF(AT15="F","F",IF(AT15="X","X",45)) -> F | AM6: =IF(AU15="F","F",IF(AU15="X","X",46)) -> F | AN6: =IF(AV15="F","F",IF(AV15="X","X",47)) -> F | AO6: =IF(AW15="F","F",IF(AW15="X","X",48)) -> 48 | AP6: =IF(AX15="F","F",IF(AX15="X","X",49)) -> F | AQ6: =IF(AY15="F","F",IF(AY15="X","X",50)) -> F | AR6: = 30 Retirados | AV6: =IFERROR(SMALL($AH$2:$AQ$11,11),"") -> 28 | AW6: =IFERROR(SMALL($AH$2:$AQ$11,12),"") -> 32 | AX6: =IFERROR(SMALL($AH$2:$AQ$11,13),"") -> 35 | AY6: =IFERROR(SMALL($AH$2:$AQ$11,14),"") -> 38 | AZ6: =IFERROR(SMALL($AH$2:$AQ$11,15),"") -> 39 | BA6: =SUM(INDEX(($B$67:$CW$67,$B$69:$CW$69),1,AW6,2)+INDEX(($B$67:$CW$67,$B$69:$CW$69),1,AX6,2)+INDEX(($B$67:$CW$67,$B$69:$CW$69),1,AY6,2)+INDEX(($B$67:$CW$67,$B$69:$CW$69),1,AZ6,2)+INDEX(($B$67:$CW$67,$B$69:$CW$69),1,AV6,2)) -> 29 | BC6: =J!AD171 -> 84 | BD6: =J!AE171 -> 46 | BE6: =J!AF171 -> 76 | BF6: =J!AG171 -> 50 | BG6: =J!AH171 -> 24 | BH6: =J!AI171 -> 44 | BI6: =J!AJ171 -> 92 | BJ6: =J!AK171 -> 62 | BK6: =J!AL171 -> 40 | BL6: =J!AM171 -> 22 | BN6: A | BO6: Veio nos 4 últimos sorteios
M7: =SUMPRODUCT(COUNTIF($B$3:$U$3,$W$6:$X$7)) -> 1 | N7: =SUMPRODUCT(COUNTIF($B$3:$U$3,$Y$6:$Z$7)) -> 1 | O7: =SUMPRODUCT(COUNTIF($B$3:$U$3,$AA$6:$AB$7)) -> 0 | P7: =SUMPRODUCT(COUNTIF($B$3:$U$3,$AC$6:$AD$7)) -> 1 | Q7: =SUMPRODUCT(COUNTIF($B$3:$U$3,$AE$6:$AF$7)) -> 1 | W7: 51 | X7: 52 | Y7: 53 | Z7: 54 | AA7: 55 | AB7: 56 | AC7: 57 | AD7: 58 | AE7: 59 | AF7: 60 | AH7: =IF(AZ15="F","F",IF(AZ15="X","X",51)) -> X | AI7: =IF(BA15="F","F",IF(BA15="X","X",52)) -> X | AJ7: =IF(BB15="F","F",IF(BB15="X","X",53)) -> 53 | AK7: =IF(BC15="F","F",IF(BC15="X","X",54)) -> F | AL7: =IF(BD15="F","F",IF(BD15="X","X",55)) -> 55 | AM7: =IF(BE15="F","F",IF(BE15="X","X",56)) -> X | AN7: =IF(BF15="F","F",IF(BF15="X","X",57)) -> 57 | AO7: =IF(BG15="F","F",IF(BG15="X","X",58)) -> 58 | AP7: =IF(BH15="F","F",IF(BH15="X","X",59)) -> 59 | AQ7: =IF(BI15="F","F",IF(BI15="X","X",60)) -> 60 | AV7: =IFERROR(SMALL($AH$2:$AQ$11,16),"") -> 40 | AW7: =IFERROR(SMALL($AH$2:$AQ$11,17),"") -> 48 | AX7: =IFERROR(SMALL($AH$2:$AQ$11,18),"") -> 53 | AY7: =IFERROR(SMALL($AH$2:$AQ$11,19),"") -> 55 | AZ7: =IFERROR(SMALL($AH$2:$AQ$11,20),"") -> 57 | BA7: =SUM(INDEX(($B$67:$CW$67,$B$69:$CW$69),1,AW7,2)+INDEX(($B$67:$CW$67,$B$69:$CW$69),1,AX7,2)+INDEX(($B$67:$CW$67,$B$69:$CW$69),1,AY7,2)+INDEX(($B$67:$CW$67,$B$69:$CW$69),1,AZ7,2)+INDEX(($B$67:$CW$67,$B$69:$CW$69),1,AV7,2)) -> 23 | BC7: =J!AD172 -> 31 | BD7: =J!AE172 -> 45 | BE7: =J!AF172 -> 43 | BF7: =J!AG172 -> 37 | BG7: =J!AH172 -> 13 | BH7: =J!AI172 -> 97 | BI7: =J!AJ172 -> 19 | BJ7: =J!AK172 -> 57 | BK7: =J!AL172 -> 63 | BL7: =J!AM172 -> 49 | BN7: A | BO7: Não veio está em atraso a + de 4 Sorteios
M8: =SUMPRODUCT(COUNTIF($B$3:$U$3,$W$8:$X$9)) -> 0 | N8: =SUMPRODUCT(COUNTIF($B$3:$U$3,$Y$8:$Z$9)) -> 0 | O8: =SUMPRODUCT(COUNTIF($B$3:$U$3,$AA$8:$AB$9)) -> 2 | P8: =SUMPRODUCT(COUNTIF($B$3:$U$3,$AC$8:$AD$9)) -> 0 | Q8: =SUMPRODUCT(COUNTIF($B$3:$U$3,$AE$8:$AF$9)) -> 0 | W8: 61 | X8: 62 | Y8: 63 | Z8: 64 | AA8: 65 | AB8: 66 | AC8: 67 | AD8: 68 | AE8: 69 | AF8: 70 | AH8: =IF(BJ15="F","F",IF(BJ15="X","X",61)) -> X | AI8: =IF(BK15="F","F",IF(BK15="X","X",62)) -> X | AJ8: =IF(BL15="F","F",IF(BL15="X","X",63)) -> 63 | AK8: =IF(BM15="F","F",IF(BM15="X","X",64)) -> 64 | AL8: =IF(BN15="F","F",IF(BN15="X","X",65)) -> 65 | AM8: =IF(BO15="F","F",IF(BO15="X","X",66)) -> 66 | AN8: =IF(BP15="F","F",IF(BP15="X","X",67)) -> 67 | AO8: =IF(BQ15="F","F",IF(BQ15="X","X",68)) -> 68 | AP8: =IF(BR15="F","F",IF(BR15="X","X",69)) -> 69 | AQ8: =IF(BS15="F","F",IF(BS15="X","X",70)) -> 70 | AV8: =IFERROR(SMALL($AH$2:$AQ$11,36),"") -> 78 | AW8: =IFERROR(SMALL($AH$2:$AQ$11,37),"") -> 84 | AX8: =IFERROR(SMALL($AH$2:$AQ$11,38),"") -> 85 | AY8: =IFERROR(SMALL($AH$2:$AQ$11,39),"") -> 86 | AZ8: =IFERROR(SMALL($AH$2:$AQ$11,40),"") -> 87 | BA8: =SUM(INDEX(($B$67:$CW$67,$B$69:$CW$69),1,AW8,2)+INDEX(($B$67:$CW$67,$B$69:$CW$69),1,AX8,2)+INDEX(($B$67:$CW$67,$B$69:$CW$69),1,AY8,2)+INDEX(($B$67:$CW$67,$B$69:$CW$69),1,AZ8,2)+INDEX(($B$67:$CW$67,$B$69:$CW$69),1,AV8,2)) -> 22 | BC8: =J!AD173 -> 36 | BD8: =J!AE173 -> 58 | BE8: =J!AF173 -> 16 | BF8: =J!AG173 -> 4 | BG8: =J!AH173 -> 42 | BH8: =J!AI173 -> 96 | BI8: =J!AJ173 -> 10 | BJ8: =J!AK173 -> 34 | BK8: =J!AL173 -> 82 | BL8: =J!AM173 -> 98
M9: =SUMPRODUCT(COUNTIF($B$3:$U$3,$W$10:$X$11)) -> 0 | N9: =SUMPRODUCT(COUNTIF($B$3:$U$3,$Y$10:$Z$11)) -> 1 | O9: =SUMPRODUCT(COUNTIF($B$3:$U$3,$AA$10:$AB$11)) -> 2 | P9: =SUMPRODUCT(COUNTIF($B$3:$U$3,$AC$10:$AD$11)) -> 0 | Q9: =SUMPRODUCT(COUNTIF($B$3:$U$3,$AE$10:$AF$11)) -> 0 | W9: 71 | X9: 72 | Y9: 73 | Z9: 74 | AA9: 75 | AB9: 76 | AC9: 77 | AD9: 78 | AE9: 79 | AF9: 80 | AH9: =IF(BT15="F","F",IF(BT15="X","X",71)) -> 71 | AI9: =IF(BU15="F","F",IF(BU15="X","X",72)) -> 72 | AJ9: =IF(BV15="F","F",IF(BV15="X","X",73)) -> 73 | AK9: =IF(BW15="F","F",IF(BW15="X","X",74)) -> 74 | AL9: =IF(BX15="F","F",IF(BX15="X","X",75)) -> X | AM9: =IF(BY15="F","F",IF(BY15="X","X",76)) -> X | AN9: =IF(BZ15="F","F",IF(BZ15="X","X",77)) -> F | AO9: =IF(CA15="F","F",IF(CA15="X","X",78)) -> 78 | AP9: =IF(CB15="F","F",IF(CB15="X","X",79)) -> X | AQ9: =IF(CC15="F","F",IF(CC15="X","X",80)) -> X | AV9: =IFERROR(SMALL($AH$2:$AQ$11,6),"") -> 21 | AW9: =IFERROR(SMALL($AH$2:$AQ$11,7),"") -> 22 | AX9: =IFERROR(SMALL($AH$2:$AQ$11,8),"") -> 24 | AY9: =IFERROR(SMALL($AH$2:$AQ$11,9),"") -> 25 | AZ9: =IFERROR(SMALL($AH$2:$AQ$11,10),"") -> 27 | BA9: =SUM(INDEX(($B$67:$CW$67,$B$69:$CW$69),1,AW9,2)+INDEX(($B$67:$CW$67,$B$69:$CW$69),1,AX9,2)+INDEX(($B$67:$CW$67,$B$69:$CW$69),1,AY9,2)+INDEX(($B$67:$CW$67,$B$69:$CW$69),1,AZ9,2)+INDEX(($B$67:$CW$67,$B$69:$CW$69),1,AV9,2)) -> 22 | BC9: =J!AD174 -> 33 | BD9: =J!AE174 -> 67 | BE9: =J!AF174 -> 17 | BF9: =J!AG174 -> 11 | BG9: =J!AH174 -> 83 | BH9: =J!AI174 -> 27 | BI9: =J!AJ174 -> 73 | BJ9: =J!AK174 -> 69 | BK9: =J!AL174 -> 59 | BL9: =J!AM174 -> 89 | BN9: =SUMPRODUCT(COUNTIF($B$3:$U$3,#REF!)) -> 0 | BO9: Resultado Setorial (MIOLO)
W10: 81 | X10: 82 | Y10: 83 | Z10: 84 | AA10: 85 | AB10: 86 | AC10: 87 | AD10: 88 | AE10: 89 | AF10: 90 | AH10: =IF(CD15="F","F",IF(CD15="X","X",81)) -> F | AI10: =IF(CE15="F","F",IF(CE15="X","X",82)) -> X | AJ10: =IF(CF15="F","F",IF(CF15="X","X",83)) -> F | AK10: =IF(CG15="F","F",IF(CG15="X","X",84)) -> 84 | AL10: =IF(CH15="F","F",IF(CH15="X","X",85)) -> 85 | AM10: =IF(CI15="F","F",IF(CI15="X","X",86)) -> 86 | AN10: =IF(CJ15="F","F",IF(CJ15="X","X",87)) -> 87 | AO10: =IF(CK15="F","F",IF(CK15="X","X",88)) -> 88 | AP10: =IF(CL15="F","F",IF(CL15="X","X",89)) -> F | AQ10: =IF(CM15="F","F",IF(CM15="X","X",90)) -> 90 | AV10: =IFERROR(SMALL($AH$2:$AQ$11,26),"") -> 65 | AW10: =IFERROR(SMALL($AH$2:$AQ$11,27),"") -> 66 | AX10: =IFERROR(SMALL($AH$2:$AQ$11,28),"") -> 67 | AY10: =IFERROR(SMALL($AH$2:$AQ$11,29),"") -> 68 | AZ10: =IFERROR(SMALL($AH$2:$AQ$11,30),"") -> 69 | BA10: =SUM(INDEX(($B$67:$CW$67,$B$69:$CW$69),1,AW10,2)+INDEX(($B$67:$CW$67,$B$69:$CW$69),1,AX10,2)+INDEX(($B$67:$CW$67,$B$69:$CW$69),1,AY10,2)+INDEX(($B$67:$CW$67,$B$69:$CW$69),1,AZ10,2)+INDEX(($B$67:$CW$67,$B$69:$CW$69),1,AV10,2)) -> 21 | BC10: =J!AD175 -> 28 | BD10: =J!AE175 -> 52 | BE10: =J!AF175 -> 68 | BF10: =J!AG175 -> 88 | BG10: =J!AH175 -> 2 | BH10: =J!AI175 -> 86 | BI10: =J!AJ175 -> 90 | BJ10: =J!AK175 -> 54 | BK10: =J!AL175 -> 18 | BL10: =J!AM175 -> 66 | BN10: =SUMPRODUCT(COUNTIF($B$3:$U$3,Y4:AD9)) -> 8 | BO10: Quantidade de vindas setorial (MIOLO)
M11: MATRIX | W11: 91 | X11: 92 | Y11: 93 | Z11: 94 | AA11: 95 | AB11: 96 | AC11: 97 | AD11: 98 | AE11: 99 | AF11: 0 | AH11: =IF(CN15="F","F",IF(CN15="X","X",91)) -> 91 | AI11: =IF(CO15="F","F",IF(CO15="X","X",92)) -> 92 | AJ11: =IF(CP15="F","F",IF(CP15="X","X",93)) -> 93 | AK11: =IF(CQ15="F","F",IF(CQ15="X","X",94)) -> 94 | AL11: =IF(CR15="F","F",IF(CR15="X","X",95)) -> 95 | AM11: =IF(CS15="F","F",IF(CS15="X","X",96)) -> F | AN11: =IF(CT15="F","F",IF(CT15="X","X",97)) -> 97 | AO11: =IF(CU15="F","F",IF(CU15="X","X",98)) -> 98 | AP11: =IF(CV15="F","F",IF(CV15="X","X",99)) -> 99 | AQ11: =IF(CW15="F","F",IF(CW15="X","X","0")) -> F | AV11: =IFERROR(SMALL($AH$2:$AQ$11,41),"") -> 88 | AW11: =IFERROR(SMALL($AH$2:$AQ$11,42),"") -> 90 | AX11: =IFERROR(SMALL($AH$2:$AQ$11,43),"") -> 91 | AY11: =IFERROR(SMALL($AH$2:$AQ$11,44),"") -> 92 | AZ11: =IFERROR(SMALL($AH$2:$AQ$11,45),"") -> 93 | BA11: =SUM(INDEX(($B$67:$CW$67,$B$69:$CW$69),1,AW11,2)+INDEX(($B$67:$CW$67,$B$69:$CW$69),1,AX11,2)+INDEX(($B$67:$CW$67,$B$69:$CW$69),1,AY11,2)+INDEX(($B$67:$CW$67,$B$69:$CW$69),1,AZ11,2)+INDEX(($B$67:$CW$67,$B$69:$CW$69),1,AV11,2)) -> 19 | BC11: =J!AD176 -> 15 | BD11: =J!AE176 -> 21 | BE11: =J!AF176 -> 87 | BF11: =J!AG176 -> 7 | BG11: =J!AH176 -> 47 | BH11: =J!AI176 -> 29 | BI11: =J!AJ176 -> 81 | BJ11: =J!AK176 -> 23 | BK11: =J!AL176 -> 55 | BL11: =J!AM176 -> 25 | BN11: =SUMPRODUCT(COUNTIF($B$3:$U$3,$W$2:$X$11))+SUMPRODUCT(COUNTIF($B$3:$U$3,$Y$2:$AF$3))+SUMPRODUCT(COUNTIF($B$3:$U$3,AE4:AF11))+SUMPRODUCT(COUNTIF($B$3:$U$3,Y10:AD11)) -> 12 | BO11: Quantidade de vindas setorial (BORDAS)
W12: Dos últimos 4 Sorteios | AB12: Números GÊMEOS (Capicuas)
K13: =COUNTIF($AH$2:$AQ$11,"X") -> 20 | L13: X | M13: =COUNTIF($AH$2:$AQ$11,"F") -> 30 | N13: F | S13: ATENÇÃO!!! NÃO DIGITE nos QUADROS acima | BB13: =COUNTIF($AH$2:$AQ$11,"X") -> 20 | BC13: X | BD13: =COUNTIF($AH$2:$AQ$11,"F") -> 30 | BE13: F | CD13: =COUNTIF($AH$2:$AQ$11,"X") -> 20 | CE13: X | CF13: =COUNTIF($AH$2:$AQ$11,"F") -> 30 | CG13: F
B14: # | C14: LIMPA ESCOLHA E REPÕE DE 1 A 100 | M14: COLOQUE NA LINHA ABAIXO AS SUAS ESCOLHAS DE 22 "X" PARA FIXAR E 30 "F" PARA RETIRAR
B15: X | C15: X | D15: 3 | E15: F | F15: F | G15: 6 | H15: X | I15: 8 | J15: X | K15: F | L15: X | M15: F | N15: F | O15: X | P15: F | Q15: F | R15: 17 | S15: F | T15: F | U15: 20 | V15: 21 | W15: 22 | X15: F | Y15: 24 | Z15: 25 | AA15: X | AB15: 27 | AC15: 28 | AD15: F | AE15: F | AF15: F | AG15: 32 | AH15: F | AI15: F | AJ15: 35 | AK15: F | AL15: X | AM15: 33 | AN15: 39 | AO15: 40 | AP15: X | AQ15: F | AR15: F | AS15: X | AT15: F | AU15: F | AV15: F | AW15: 48 | AX15: F | AY15: F | AZ15: X | BA15: X | BB15: 53 | BC15: F | BD15: 55 | BE15: X | BF15: 57 | BG15: 58 | BH15: 59 | BI15: 60 | BJ15: X | BK15: X | BL15: 63 | BM15: 64 | BN15: 65 | BO15: 66 | BP15: 67 | BQ15: 68 | BR15: 69 | BS15: 70 | BT15: 71 | BU15: 72 | BV15: 73 | BW15: 74 | BX15: X | BY15: X | BZ15: F | CA15: 78 | CB15: X | CC15: X | CD15: F | CE15: X | CF15: F | CG15: 84 | CH15: 85 | CI15: 86 | CJ15: 87 | CK15: 88 | CL15: F | CM15: 90 | CN15: 91 | CO15: 92 | CP15: 93 | CQ15: 94 | CR15: 95 | CS15: F | CT15: 97 | CU15: 98 | CV15: 99 | CW15: F
B16: 1 | C16: 2 | D16: 3 | E16: 4 | F16: 5 | G16: 6 | H16: 7 | I16: 8 | J16: 9 | K16: 10 | L16: 11 | M16: 12 | N16: 13 | O16: 14 | P16: 15 | Q16: 16 | R16: 17 | S16: 18 | T16: 19 | U16: 20 | V16: 21 | W16: 22 | X16: 23 | Y16: 24 | Z16: 25 | AA16: 26 | AB16: 27 | AC16: 28 | AD16: 29 | AE16: 30 | AF16: 31 | AG16: 32 | AH16: 33 | AI16: 34 | AJ16: 35 | AK16: 36 | AL16: 37 | AM16: 38 | AN16: 39 | AO16: 40 | AP16: 41 | AQ16: 42 | AR16: 43 | AS16: 44 | AT16: 45 | AU16: 46 | AV16: 47 | AW16: 48 | AX16: 49 | AY16: 50 | AZ16: 51 | BA16: 52 | BB16: 53 | BC16: 54 | BD16: 55 | BE16: 56 | BF16: 57 | BG16: 58 | BH16: 59 | BI16: 60 | BJ16: 61 | BK16: 62 | BL16: 63 | BM16: 64 | BN16: 65 | BO16: 66 | BP16: 67 | BQ16: 68 | BR16: 69 | BS16: 70 | BT16: 71 | BU16: 72 | BV16: 73 | BW16: 74 | BX16: 75 | BY16: 76 | BZ16: 77 | CA16: 78 | CB16: 79 | CC16: 80 | CD16: 81 | CE16: 82 | CF16: 83 | CG16: 84 | CH16: 85 | CI16: 86 | CJ16: 87 | CK16: 88 | CL16: 89 | CM16: 90 | CN16: 91 | CO16: 92 | CP16: 93 | CQ16: 94 | CR16: 95 | CS16: 96 | CT16: 97 | CU16: 98 | CV16: 99 | CW16: 100 | DI16: Resultado dos SORTEIOS
B17: =IF(COUNTIF($CZ17:$DS17,B$16),B$16,"") ->  | C17: =IF(COUNTIF($CZ17:$DS17,C$16),C$16,"") ->  | D17: =IF(COUNTIF($CZ17:$DS17,D$16),D$16,"") ->  | E17: =IF(COUNTIF($CZ17:$DS17,E$16),E$16,"") ->  | F17: =IF(COUNTIF($CZ17:$DS17,F$16),F$16,"") ->  | G17: =IF(COUNTIF($CZ17:$DS17,G$16),G$16,"") ->  | H17: =IF(COUNTIF($CZ17:$DS17,H$16),H$16,"") ->  | I17: =IF(COUNTIF($CZ17:$DS17,I$16),I$16,"") ->  | J17: =IF(COUNTIF($CZ17:$DS17,J$16),J$16,"") ->  | K17: =IF(COUNTIF($CZ17:$DS17,K$16),K$16,"") ->  | L17: =IF(COUNTIF($CZ17:$DS17,L$16),L$16,"") ->  | M17: =IF(COUNTIF($CZ17:$DS17,M$16),M$16,"") -> 12 | N17: =IF(COUNTIF($CZ17:$DS17,N$16),N$16,"") -> 13 | O17: =IF(COUNTIF($CZ17:$DS17,O$16),O$16,"") ->  | P17: =IF(COUNTIF($CZ17:$DS17,P$16),P$16,"") ->  | Q17: =IF(COUNTIF($CZ17:$DS17,Q$16),Q$16,"") ->  | R17: =IF(COUNTIF($CZ17:$DS17,R$16),R$16,"") ->  | S17: =IF(COUNTIF($CZ17:$DS17,S$16),S$16,"") -> 18 | T17: =IF(COUNTIF($CZ17:$DS17,T$16),T$16,"") ->  | U17: =IF(COUNTIF($CZ17:$DS17,U$16),U$16,"") -> 20 | V17: =IF(COUNTIF($CZ17:$DS17,V$16),V$16,"") -> 21 | W17: =IF(COUNTIF($CZ17:$DS17,W$16),W$16,"") ->  | X17: =IF(COUNTIF($CZ17:$DS17,X$16),X$16,"") ->  | Y17: =IF(COUNTIF($CZ17:$DS17,Y$16),Y$16,"") ->  | Z17: =IF(COUNTIF($CZ17:$DS17,Z$16),Z$16,"") ->  | AA17: =IF(COUNTIF($CZ17:$DS17,AA$16),AA$16,"") -> 26 | AB17: =IF(COUNTIF($CZ17:$DS17,AB$16),AB$16,"") -> 27 | AC17: =IF(COUNTIF($CZ17:$DS17,AC$16),AC$16,"") ->  | AD17: =IF(COUNTIF($CZ17:$DS17,AD$16),AD$16,"") ->  | AE17: =IF(COUNTIF($CZ17:$DS17,AE$16),AE$16,"") -> 30 | AF17: =IF(COUNTIF($CZ17:$DS17,AF$16),AF$16,"") ->  | AG17: =IF(COUNTIF($CZ17:$DS17,AG$16),AG$16,"") -> 32 | AH17: =IF(COUNTIF($CZ17:$DS17,AH$16),AH$16,"") -> 33 | AI17: =IF(COUNTIF($CZ17:$DS17,AI$16),AI$16,"") ->  | AJ17: =IF(COUNTIF($CZ17:$DS17,AJ$16),AJ$16,"") ->  | AK17: =IF(COUNTIF($CZ17:$DS17,AK$16),AK$16,"") -> 36 | AL17: =IF(COUNTIF($CZ17:$DS17,AL$16),AL$16,"") ->  | AM17: =IF(COUNTIF($CZ17:$DS17,AM$16),AM$16,"") ->  | AN17: =IF(COUNTIF($CZ17:$DS17,AN$16),AN$16,"") ->  | AO17: =IF(COUNTIF($CZ17:$DS17,AO$16),AO$16,"") ->  | AP17: =IF(COUNTIF($CZ17:$DS17,AP$16),AP$16,"") -> 41 | AQ17: =IF(COUNTIF($CZ17:$DS17,AQ$16),AQ$16,"") ->  | AR17: =IF(COUNTIF($CZ17:$DS17,AR$16),AR$16,"") -> 43 | AS17: =IF(COUNTIF($CZ17:$DS17,AS$16),AS$16,"") ->  | AT17: =IF(COUNTIF($CZ17:$DS17,AT$16),AT$16,"") ->  | AU17: =IF(COUNTIF($CZ17:$DS17,AU$16),AU$16,"") ->  | AV17: =IF(COUNTIF($CZ17:$DS17,AV$16),AV$16,"") ->  | AW17: =IF(COUNTIF($CZ17:$DS17,AW$16),AW$16,"") -> 48 | AX17: =IF(COUNTIF($CZ17:$DS17,AX$16),AX$16,"") -> 49 | AY17: =IF(COUNTIF($CZ17:$DS17,AY$16),AY$16,"") ->  | AZ17: =IF(COUNTIF($CZ17:$DS17,AZ$16),AZ$16,"") ->  | BA17: =IF(COUNTIF($CZ17:$DS17,BA$16),BA$16,"") ->  | BB17: =IF(COUNTIF($CZ17:$DS17,BB$16),BB$16,"") ->  | BC17: =IF(COUNTIF($CZ17:$DS17,BC$16),BC$16,"") ->  | BD17: =IF(COUNTIF($CZ17:$DS17,BD$16),BD$16,"") ->  | BE17: =IF(COUNTIF($CZ17:$DS17,BE$16),BE$16,"") ->  | BF17: =IF(COUNTIF($CZ17:$DS17,BF$16),BF$16,"") ->  | BG17: =IF(COUNTIF($CZ17:$DS17,BG$16),BG$16,"") ->  | BH17: =IF(COUNTIF($CZ17:$DS17,BH$16),BH$16,"") ->  | BI17: =IF(COUNTIF($CZ17:$DS17,BI$16),BI$16,"") ->  | BJ17: =IF(COUNTIF($CZ17:$DS17,BJ$16),BJ$16,"") ->  | BK17: =IF(COUNTIF($CZ17:$DS17,BK$16),BK$16,"") ->  | BL17: =IF(COUNTIF($CZ17:$DS17,BL$16),BL$16,"") ->  | BM17: =IF(COUNTIF($CZ17:$DS17,BM$16),BM$16,"") ->  | BN17: =IF(COUNTIF($CZ17:$DS17,BN$16),BN$16,"") -> 65 | BO17: =IF(COUNTIF($CZ17:$DS17,BO$16),BO$16,"") ->  | BP17: =IF(COUNTIF($CZ17:$DS17,BP$16),BP$16,"") ->  | BQ17: =IF(COUNTIF($CZ17:$DS17,BQ$16),BQ$16,"") ->  | BR17: =IF(COUNTIF($CZ17:$DS17,BR$16),BR$16,"") ->  | BS17: =IF(COUNTIF($CZ17:$DS17,BS$16),BS$16,"") ->  | BT17: =IF(COUNTIF($CZ17:$DS17,BT$16),BT$16,"") ->  | BU17: =IF(COUNTIF($CZ17:$DS17,BU$16),BU$16,"") ->  | BV17: =IF(COUNTIF($CZ17:$DS17,BV$16),BV$16,"") ->  | BW17: =IF(COUNTIF($CZ17:$DS17,BW$16),BW$16,"") ->  | BX17: =IF(COUNTIF($CZ17:$DS17,BX$16),BX$16,"") -> 75 | BY17: =IF(COUNTIF($CZ17:$DS17,BY$16),BY$16,"") ->  | BZ17: =IF(COUNTIF($CZ17:$DS17,BZ$16),BZ$16,"") ->  | CA17: =IF(COUNTIF($CZ17:$DS17,CA$16),CA$16,"") ->  | CB17: =IF(COUNTIF($CZ17:$DS17,CB$16),CB$16,"") ->  | CC17: =IF(COUNTIF($CZ17:$DS17,CC$16),CC$16,"") ->  | CD17: =IF(COUNTIF($CZ17:$DS17,CD$16),CD$16,"") ->  | CE17: =IF(COUNTIF($CZ17:$DS17,CE$16),CE$16,"") ->  | CF17: =IF(COUNTIF($CZ17:$DS17,CF$16),CF$16,"") -> 83 | CG17: =IF(COUNTIF($CZ17:$DS17,CG$16),CG$16,"") ->  | CH17: =IF(COUNTIF($CZ17:$DS17,CH$16),CH$16,"") ->  | CI17: =IF(COUNTIF($CZ17:$DS17,CI$16),CI$16,"") ->  | CJ17: =IF(COUNTIF($CZ17:$DS17,CJ$16),CJ$16,"") ->  | CK17: =IF(COUNTIF($CZ17:$DS17,CK$16),CK$16,"") ->  | CL17: =IF(COUNTIF($CZ17:$DS17,CL$16),CL$16,"") ->  | CM17: =IF(COUNTIF($CZ17:$DS17,CM$16),CM$16,"") ->  | CN17: =IF(COUNTIF($CZ17:$DS17,CN$16),CN$16,"") ->  | CO17: =IF(COUNTIF($CZ17:$DS17,CO$16),CO$16,"") ->  | CP17: =IF(COUNTIF($CZ17:$DS17,CP$16),CP$16,"") ->  | CQ17: =IF(COUNTIF($CZ17:$DS17,CQ$16),CQ$16,"") ->  | CR17: =IF(COUNTIF($CZ17:$DS17,CR$16),CR$16,"") -> 95 | CS17: =IF(COUNTIF($CZ17:$DS17,CS$16),CS$16,"") -> 96 | CT17: =IF(COUNTIF($CZ17:$DS17,CT$16),CT$16,"") ->  | CU17: =IF(COUNTIF($CZ17:$DS17,CU$16),CU$16,"") ->  | CV17: =IF(COUNTIF($CZ17:$DS17,CV$16),CV$16,"") ->  | CW17: =IF(COUNTIF($CZ17:$DS17,0),0,"") ->  | CX17: 1 | CY17: =$B$2 -> 1869 | CZ17: =VLOOKUP($CY17,J!$A$2:$AW$4000,3,FALSE) -> 12 | DA17: =VLOOKUP($CY17,J!$A$2:$AW$4000,4,FALSE) -> 13 | DB17: =VLOOKUP($CY17,J!$A$2:$AW$4000,5,FALSE) -> 18 | DC17: =VLOOKUP($CY17,J!$A$2:$AW$4000,6,FALSE) -> 20 | DD17: =VLOOKUP($CY17,J!$A$2:$AW$4000,7,FALSE) -> 21 | DE17: =VLOOKUP($CY17,J!$A$2:$AW$4000,8,FALSE) -> 26 | DF17: =VLOOKUP($CY17,J!$A$2:$AW$4000,9,FALSE) -> 27 | DG17: =VLOOKUP($CY17,J!$A$2:$AW$4000,10,FALSE) -> 30 | DH17: =VLOOKUP($CY17,J!$A$2:$AW$4000,11,FALSE) -> 32 | DI17: =VLOOKUP($CY17,J!$A$2:$AW$4000,12,FALSE) -> 33 | DJ17: =VLOOKUP($CY17,J!$A$2:$AW$4000,13,FALSE) -> 36 | DK17: =VLOOKUP($CY17,J!$A$2:$AW$4000,14,FALSE) -> 41 | DL17: =VLOOKUP($CY17,J!$A$2:$AW$4000,15,FALSE) -> 43 | DM17: =VLOOKUP($CY17,J!$A$2:$AW$4000,16,FALSE) -> 48 | DN17: =VLOOKUP($CY17,J!$A$2:$AW$4000,17,FALSE) -> 49 | DO17: =VLOOKUP($CY17,J!$A$2:$AW$4000,18,FALSE) -> 65 | DP17: =VLOOKUP($CY17,J!$A$2:$AW$4000,19,FALSE) -> 75 | DQ17: =VLOOKUP($CY17,J!$A$2:$AW$4000,20,FALSE) -> 83 | DR17: =VLOOKUP($CY17,J!$A$2:$AW$4000,21,FALSE) -> 95 | DS17: =VLOOKUP($CY17,J!$A$2:$AW$4000,22,FALSE) -> 96
B18: =IF(COUNTIF($CZ18:$DS18,B$16),B$16,"") ->  | C18: =IF(COUNTIF($CZ18:$DS18,C$16),C$16,"") ->  | D18: =IF(COUNTIF($CZ18:$DS18,D$16),D$16,"") ->  | E18: =IF(COUNTIF($CZ18:$DS18,E$16),E$16,"") ->  | F18: =IF(COUNTIF($CZ18:$DS18,F$16),F$16,"") ->  | G18: =IF(COUNTIF($CZ18:$DS18,G$16),G$16,"") ->  | H18: =IF(COUNTIF($CZ18:$DS18,H$16),H$16,"") ->  | I18: =IF(COUNTIF($CZ18:$DS18,I$16),I$16,"") -> 8 | J18: =IF(COUNTIF($CZ18:$DS18,J$16),J$16,"") ->  | K18: =IF(COUNTIF($CZ18:$DS18,K$16),K$16,"") ->  | L18: =IF(COUNTIF($CZ18:$DS18,L$16),L$16,"") ->  | M18: =IF(COUNTIF($CZ18:$DS18,M$16),M$16,"") -> 12 | N18: =IF(COUNTIF($CZ18:$DS18,N$16),N$16,"") ->  | O18: =IF(COUNTIF($CZ18:$DS18,O$16),O$16,"") ->  | P18: =IF(COUNTIF($CZ18:$DS18,P$16),P$16,"") ->  | Q18: =IF(COUNTIF($CZ18:$DS18,Q$16),Q$16,"") ->  | R18: =IF(COUNTIF($CZ18:$DS18,R$16),R$16,"") ->  | S18: =IF(COUNTIF($CZ18:$DS18,S$16),S$16,"") ->  | T18: =IF(COUNTIF($CZ18:$DS18,T$16),T$16,"") ->  | U18: =IF(COUNTIF($CZ18:$DS18,U$16),U$16,"") ->  | V18: =IF(COUNTIF($CZ18:$DS18,V$16),V$16,"") ->  | W18: =IF(COUNTIF($CZ18:$DS18,W$16),W$16,"") -> 22 | X18: =IF(COUNTIF($CZ18:$DS18,X$16),X$16,"") ->  | Y18: =IF(COUNTIF($CZ18:$DS18,Y$16),Y$16,"") ->  | Z18: =IF(COUNTIF($CZ18:$DS18,Z$16),Z$16,"") ->  | AA18: =IF(COUNTIF($CZ18:$DS18,AA$16),AA$16,"") ->  | AB18: =IF(COUNTIF($CZ18:$DS18,AB$16),AB$16,"") -> 27 | AC18: =IF(COUNTIF($CZ18:$DS18,AC$16),AC$16,"") ->  | AD18: =IF(COUNTIF($CZ18:$DS18,AD$16),AD$16,"") -> 29 | AE18: =IF(COUNTIF($CZ18:$DS18,AE$16),AE$16,"") ->  | AF18: =IF(COUNTIF($CZ18:$DS18,AF$16),AF$16,"") -> 31 | AG18: =IF(COUNTIF($CZ18:$DS18,AG$16),AG$16,"") ->  | AH18: =IF(COUNTIF($CZ18:$DS18,AH$16),AH$16,"") ->  | AI18: =IF(COUNTIF($CZ18:$DS18,AI$16),AI$16,"") ->  | AJ18: =IF(COUNTIF($CZ18:$DS18,AJ$16),AJ$16,"") ->  | AK18: =IF(COUNTIF($CZ18:$DS18,AK$16),AK$16,"") ->  | AL18: =IF(COUNTIF($CZ18:$DS18,AL$16),AL$16,"") ->  | AM18: =IF(COUNTIF($CZ18:$DS18,AM$16),AM$16,"") ->  | AN18: =IF(COUNTIF($CZ18:$DS18,AN$16),AN$16,"") -> 39 | AO18: =IF(COUNTIF($CZ18:$DS18,AO$16),AO$16,"") -> 40 | AP18: =IF(COUNTIF($CZ18:$DS18,AP$16),AP$16,"") ->  | AQ18: =IF(COUNTIF($CZ18:$DS18,AQ$16),AQ$16,"") -> 42 | AR18: =IF(COUNTIF($CZ18:$DS18,AR$16),AR$16,"") ->  | AS18: =IF(COUNTIF($CZ18:$DS18,AS$16),AS$16,"") ->  | AT18: =IF(COUNTIF($CZ18:$DS18,AT$16),AT$16,"") ->  | AU18: =IF(COUNTIF($CZ18:$DS18,AU$16),AU$16,"") ->  | AV18: =IF(COUNTIF($CZ18:$DS18,AV$16),AV$16,"") -> 47 | AW18: =IF(COUNTIF($CZ18:$DS18,AW$16),AW$16,"") -> 48 | AX18: =IF(COUNTIF($CZ18:$DS18,AX$16),AX$16,"") ->  | AY18: =IF(COUNTIF($CZ18:$DS18,AY$16),AY$16,"") ->  | AZ18: =IF(COUNTIF($CZ18:$DS18,AZ$16),AZ$16,"") -> 51 | BA18: =IF(COUNTIF($CZ18:$DS18,BA$16),BA$16,"") ->  | BB18: =IF(COUNTIF($CZ18:$DS18,BB$16),BB$16,"") ->  | BC18: =IF(COUNTIF($CZ18:$DS18,BC$16),BC$16,"") ->  | BD18: =IF(COUNTIF($CZ18:$DS18,BD$16),BD$16,"") ->  | BE18: =IF(COUNTIF($CZ18:$DS18,BE$16),BE$16,"") ->  | BF18: =IF(COUNTIF($CZ18:$DS18,BF$16),BF$16,"") ->  | BG18: =IF(COUNTIF($CZ18:$DS18,BG$16),BG$16,"") ->  | BH18: =IF(COUNTIF($CZ18:$DS18,BH$16),BH$16,"") ->  | BI18: =IF(COUNTIF($CZ18:$DS18,BI$16),BI$16,"") -> 60 | BJ18: =IF(COUNTIF($CZ18:$DS18,BJ$16),BJ$16,"") -> 61 | BK18: =IF(COUNTIF($CZ18:$DS18,BK$16),BK$16,"") ->  | BL18: =IF(COUNTIF($CZ18:$DS18,BL$16),BL$16,"") ->  | BM18: =IF(COUNTIF($CZ18:$DS18,BM$16),BM$16,"") -> 64 | BN18: =IF(COUNTIF($CZ18:$DS18,BN$16),BN$16,"") ->  | BO18: =IF(COUNTIF($CZ18:$DS18,BO$16),BO$16,"") ->  | BP18: =IF(COUNTIF($CZ18:$DS18,BP$16),BP$16,"") ->  | BQ18: =IF(COUNTIF($CZ18:$DS18,BQ$16),BQ$16,"") ->  | BR18: =IF(COUNTIF($CZ18:$DS18,BR$16),BR$16,"") ->  | BS18: =IF(COUNTIF($CZ18:$DS18,BS$16),BS$16,"") ->  | BT18: =IF(COUNTIF($CZ18:$DS18,BT$16),BT$16,"") ->  | BU18: =IF(COUNTIF($CZ18:$DS18,BU$16),BU$16,"") ->  | BV18: =IF(COUNTIF($CZ18:$DS18,BV$16),BV$16,"") ->  | BW18: =IF(COUNTIF($CZ18:$DS18,BW$16),BW$16,"") ->  | BX18: =IF(COUNTIF($CZ18:$DS18,BX$16),BX$16,"") ->  | BY18: =IF(COUNTIF($CZ18:$DS18,BY$16),BY$16,"") ->  | BZ18: =IF(COUNTIF($CZ18:$DS18,BZ$16),BZ$16,"") ->  | CA18: =IF(COUNTIF($CZ18:$DS18,CA$16),CA$16,"") ->  | CB18: =IF(COUNTIF($CZ18:$DS18,CB$16),CB$16,"") ->  | CC18: =IF(COUNTIF($CZ18:$DS18,CC$16),CC$16,"") ->  | CD18: =IF(COUNTIF($CZ18:$DS18,CD$16),CD$16,"") ->  | CE18: =IF(COUNTIF($CZ18:$DS18,CE$16),CE$16,"") ->  | CF18: =IF(COUNTIF($CZ18:$DS18,CF$16),CF$16,"") ->  | CG18: =IF(COUNTIF($CZ18:$DS18,CG$16),CG$16,"") ->  | CH18: =IF(COUNTIF($CZ18:$DS18,CH$16),CH$16,"") ->  | CI18: =IF(COUNTIF($CZ18:$DS18,CI$16),CI$16,"") ->  | CJ18: =IF(COUNTIF($CZ18:$DS18,CJ$16),CJ$16,"") -> 87 | CK18: =IF(COUNTIF($CZ18:$DS18,CK$16),CK$16,"") ->  | CL18: =IF(COUNTIF($CZ18:$DS18,CL$16),CL$16,"") -> 89 | CM18: =IF(COUNTIF($CZ18:$DS18,CM$16),CM$16,"") ->  | CN18: =IF(COUNTIF($CZ18:$DS18,CN$16),CN$16,"") ->  | CO18: =IF(COUNTIF($CZ18:$DS18,CO$16),CO$16,"") ->  | CP18: =IF(COUNTIF($CZ18:$DS18,CP$16),CP$16,"") ->  | CQ18: =IF(COUNTIF($CZ18:$DS18,CQ$16),CQ$16,"") ->  | CR18: =IF(COUNTIF($CZ18:$DS18,CR$16),CR$16,"") -> 95 | CS18: =IF(COUNTIF($CZ18:$DS18,CS$16),CS$16,"") ->  | CT18: =IF(COUNTIF($CZ18:$DS18,CT$16),CT$16,"") ->  | CU18: =IF(COUNTIF($CZ18:$DS18,CU$16),CU$16,"") ->  | CV18: =IF(COUNTIF($CZ18:$DS18,CV$16),CV$16,"") -> 99 | CW18: =IF(COUNTIF($CZ18:$DS18,0),0,"") -> 0 | CX18: 2 | CY18: =CY17-1 -> 1868 | CZ18: =VLOOKUP($CY18,J!$A$2:$AW$4000,3,FALSE) -> 0 | DA18: =VLOOKUP($CY18,J!$A$2:$AW$4000,4,FALSE) -> 8 | DB18: =VLOOKUP($CY18,J!$A$2:$AW$4000,5,FALSE) -> 12 | DC18: =VLOOKUP($CY18,J!$A$2:$AW$4000,6,FALSE) -> 22 | DD18: =VLOOKUP($CY18,J!$A$2:$AW$4000,7,FALSE) -> 27 | DE18: =VLOOKUP($CY18,J!$A$2:$AW$4000,8,FALSE) -> 29 | DF18: =VLOOKUP($CY18,J!$A$2:$AW$4000,9,FALSE) -> 31 | DG18: =VLOOKUP($CY18,J!$A$2:$AW$4000,10,FALSE) -> 39 | DH18: =VLOOKUP($CY18,J!$A$2:$AW$4000,11,FALSE) -> 40 | DI18: =VLOOKUP($CY18,J!$A$2:$AW$4000,12,FALSE) -> 42 | DJ18: =VLOOKUP($CY18,J!$A$2:$AW$4000,13,FALSE) -> 47 | DK18: =VLOOKUP($CY18,J!$A$2:$AW$4000,14,FALSE) -> 48 | DL18: =VLOOKUP($CY18,J!$A$2:$AW$4000,15,FALSE) -> 51 | DM18: =VLOOKUP($CY18,J!$A$2:$AW$4000,16,FALSE) -> 60 | DN18: =VLOOKUP($CY18,J!$A$2:$AW$4000,17,FALSE) -> 61 | DO18: =VLOOKUP($CY18,J!$A$2:$AW$4000,18,FALSE) -> 64 | DP18: =VLOOKUP($CY18,J!$A$2:$AW$4000,19,FALSE) -> 87 | DQ18: =VLOOKUP($CY18,J!$A$2:$AW$4000,20,FALSE) -> 89 | DR18: =VLOOKUP($CY18,J!$A$2:$AW$4000,21,FALSE) -> 95 | DS18: =VLOOKUP($CY18,J!$A$2:$AW$4000,22,FALSE) -> 99
B19: =IF(COUNTIF($CZ19:$DS19,B$16),B$16,"") ->  | C19: =IF(COUNTIF($CZ19:$DS19,C$16),C$16,"") ->  | D19: =IF(COUNTIF($CZ19:$DS19,D$16),D$16,"") -> 3 | E19: =IF(COUNTIF($CZ19:$DS19,E$16),E$16,"") ->  | F19: =IF(COUNTIF($CZ19:$DS19,F$16),F$16,"") -> 5 | G19: =IF(COUNTIF($CZ19:$DS19,G$16),G$16,"") ->  | H19: =IF(COUNTIF($CZ19:$DS19,H$16),H$16,"") ->  | I19: =IF(COUNTIF($CZ19:$DS19,I$16),I$16,"") ->  | J19: =IF(COUNTIF($CZ19:$DS19,J$16),J$16,"") ->  | K19: =IF(COUNTIF($CZ19:$DS19,K$16),K$16,"") -> 10 | L19: =IF(COUNTIF($CZ19:$DS19,L$16),L$16,"") ->  | M19: =IF(COUNTIF($CZ19:$DS19,M$16),M$16,"") ->  | N19: =IF(COUNTIF($CZ19:$DS19,N$16),N$16,"") ->  | O19: =IF(COUNTIF($CZ19:$DS19,O$16),O$16,"") ->  | P19: =IF(COUNTIF($CZ19:$DS19,P$16),P$16,"") -> 15 | Q19: =IF(COUNTIF($CZ19:$DS19,Q$16),Q$16,"") ->  | R19: =IF(COUNTIF($CZ19:$DS19,R$16),R$16,"") ->  | S19: =IF(COUNTIF($CZ19:$DS19,S$16),S$16,"") ->  | T19: =IF(COUNTIF($CZ19:$DS19,T$16),T$16,"") ->  | U19: =IF(COUNTIF($CZ19:$DS19,U$16),U$16,"") -> 20 | V19: =IF(COUNTIF($CZ19:$DS19,V$16),V$16,"") ->  | W19: =IF(COUNTIF($CZ19:$DS19,W$16),W$16,"") ->  | X19: =IF(COUNTIF($CZ19:$DS19,X$16),X$16,"") ->  | Y19: =IF(COUNTIF($CZ19:$DS19,Y$16),Y$16,"") ->  | Z19: =IF(COUNTIF($CZ19:$DS19,Z$16),Z$16,"") ->  | AA19: =IF(COUNTIF($CZ19:$DS19,AA$16),AA$16,"") ->  | AB19: =IF(COUNTIF($CZ19:$DS19,AB$16),AB$16,"") ->  | AC19: =IF(COUNTIF($CZ19:$DS19,AC$16),AC$16,"") ->  | AD19: =IF(COUNTIF($CZ19:$DS19,AD$16),AD$16,"") ->  | AE19: =IF(COUNTIF($CZ19:$DS19,AE$16),AE$16,"") ->  | AF19: =IF(COUNTIF($CZ19:$DS19,AF$16),AF$16,"") ->  | AG19: =IF(COUNTIF($CZ19:$DS19,AG$16),AG$16,"") ->  | AH19: =IF(COUNTIF($CZ19:$DS19,AH$16),AH$16,"") ->  | AI19: =IF(COUNTIF($CZ19:$DS19,AI$16),AI$16,"") ->  | AJ19: =IF(COUNTIF($CZ19:$DS19,AJ$16),AJ$16,"") ->  | AK19: =IF(COUNTIF($CZ19:$DS19,AK$16),AK$16,"") ->  | AL19: =IF(COUNTIF($CZ19:$DS19,AL$16),AL$16,"") ->  | AM19: =IF(COUNTIF($CZ19:$DS19,AM$16),AM$16,"") -> 38 | AN19: =IF(COUNTIF($CZ19:$DS19,AN$16),AN$16,"") -> 39 | AO19: =IF(COUNTIF($CZ19:$DS19,AO$16),AO$16,"") ->  | AP19: =IF(COUNTIF($CZ19:$DS19,AP$16),AP$16,"") ->  | AQ19: =IF(COUNTIF($CZ19:$DS19,AQ$16),AQ$16,"") ->  | AR19: =IF(COUNTIF($CZ19:$DS19,AR$16),AR$16,"") ->  | AS19: =IF(COUNTIF($CZ19:$DS19,AS$16),AS$16,"") ->  | AT19: =IF(COUNTIF($CZ19:$DS19,AT$16),AT$16,"") -> 45 | AU19: =IF(COUNTIF($CZ19:$DS19,AU$16),AU$16,"") ->  | AV19: =IF(COUNTIF($CZ19:$DS19,AV$16),AV$16,"") ->  | AW19: =IF(COUNTIF($CZ19:$DS19,AW$16),AW$16,"") ->  | AX19: =IF(COUNTIF($CZ19:$DS19,AX$16),AX$16,"") ->  | AY19: =IF(COUNTIF($CZ19:$DS19,AY$16),AY$16,"") -> 50 | AZ19: =IF(COUNTIF($CZ19:$DS19,AZ$16),AZ$16,"") ->  | BA19: =IF(COUNTIF($CZ19:$DS19,BA$16),BA$16,"") ->  | BB19: =IF(COUNTIF($CZ19:$DS19,BB$16),BB$16,"") -> 53 | BC19: =IF(COUNTIF($CZ19:$DS19,BC$16),BC$16,"") ->  | BD19: =IF(COUNTIF($CZ19:$DS19,BD$16),BD$16,"") ->  | BE19: =IF(COUNTIF($CZ19:$DS19,BE$16),BE$16,"") ->  | BF19: =IF(COUNTIF($CZ19:$DS19,BF$16),BF$16,"") -> 57 | BG19: =IF(COUNTIF($CZ19:$DS19,BG$16),BG$16,"") ->  | BH19: =IF(COUNTIF($CZ19:$DS19,BH$16),BH$16,"") ->  | BI19: =IF(COUNTIF($CZ19:$DS19,BI$16),BI$16,"") -> 60 | BJ19: =IF(COUNTIF($CZ19:$DS19,BJ$16),BJ$16,"") ->  | BK19: =IF(COUNTIF($CZ19:$DS19,BK$16),BK$16,"") ->  | BL19: =IF(COUNTIF($CZ19:$DS19,BL$16),BL$16,"") ->  | BM19: =IF(COUNTIF($CZ19:$DS19,BM$16),BM$16,"") -> 64 | BN19: =IF(COUNTIF($CZ19:$DS19,BN$16),BN$16,"") ->  | BO19: =IF(COUNTIF($CZ19:$DS19,BO$16),BO$16,"") ->  | BP19: =IF(COUNTIF($CZ19:$DS19,BP$16),BP$16,"") ->  | BQ19: =IF(COUNTIF($CZ19:$DS19,BQ$16),BQ$16,"") ->  | BR19: =IF(COUNTIF($CZ19:$DS19,BR$16),BR$16,"") ->  | BS19: =IF(COUNTIF($CZ19:$DS19,BS$16),BS$16,"") ->  | BT19: =IF(COUNTIF($CZ19:$DS19,BT$16),BT$16,"") ->  | BU19: =IF(COUNTIF($CZ19:$DS19,BU$16),BU$16,"") -> 72 | BV19: =IF(COUNTIF($CZ19:$DS19,BV$16),BV$16,"") ->  | BW19: =IF(COUNTIF($CZ19:$DS19,BW$16),BW$16,"") ->  | BX19: =IF(COUNTIF($CZ19:$DS19,BX$16),BX$16,"") ->  | BY19: =IF(COUNTIF($CZ19:$DS19,BY$16),BY$16,"") ->  | BZ19: =IF(COUNTIF($CZ19:$DS19,BZ$16),BZ$16,"") -> 77 | CA19: =IF(COUNTIF($CZ19:$DS19,CA$16),CA$16,"") ->  | CB19: =IF(COUNTIF($CZ19:$DS19,CB$16),CB$16,"") -> 79 | CC19: =IF(COUNTIF($CZ19:$DS19,CC$16),CC$16,"") ->  | CD19: =IF(COUNTIF($CZ19:$DS19,CD$16),CD$16,"") ->  | CE19: =IF(COUNTIF($CZ19:$DS19,CE$16),CE$16,"") ->  | CF19: =IF(COUNTIF($CZ19:$DS19,CF$16),CF$16,"") ->  | CG19: =IF(COUNTIF($CZ19:$DS19,CG$16),CG$16,"") ->  | CH19: =IF(COUNTIF($CZ19:$DS19,CH$16),CH$16,"") -> 85 | CI19: =IF(COUNTIF($CZ19:$DS19,CI$16),CI$16,"") -> 86 | CJ19: =IF(COUNTIF($CZ19:$DS19,CJ$16),CJ$16,"") ->  | CK19: =IF(COUNTIF($CZ19:$DS19,CK$16),CK$16,"") ->  | CL19: =IF(COUNTIF($CZ19:$DS19,CL$16),CL$16,"") ->  | CM19: =IF(COUNTIF($CZ19:$DS19,CM$16),CM$16,"") ->  | CN19: =IF(COUNTIF($CZ19:$DS19,CN$16),CN$16,"") ->  | CO19: =IF(COUNTIF($CZ19:$DS19,CO$16),CO$16,"") ->  | CP19: =IF(COUNTIF($CZ19:$DS19,CP$16),CP$16,"") ->  | CQ19: =IF(COUNTIF($CZ19:$DS19,CQ$16),CQ$16,"") ->  | CR19: =IF(COUNTIF($CZ19:$DS19,CR$16),CR$16,"") ->  | CS19: =IF(COUNTIF($CZ19:$DS19,CS$16),CS$16,"") -> 96 | CT19: =IF(COUNTIF($CZ19:$DS19,CT$16),CT$16,"") ->  | CU19: =IF(COUNTIF($CZ19:$DS19,CU$16),CU$16,"") ->  | CV19: =IF(COUNTIF($CZ19:$DS19,CV$16),CV$16,"") -> 99 | CW19: =IF(COUNTIF($CZ19:$DS19,0),0,"") ->  | CX19: 3 | CY19: =CY18-1 -> 1867 | CZ19: =VLOOKUP($CY19,J!$A$2:$AW$4000,3,FALSE) -> 3 | DA19: =VLOOKUP($CY19,J!$A$2:$AW$4000,4,FALSE) -> 5 | DB19: =VLOOKUP($CY19,J!$A$2:$AW$4000,5,FALSE) -> 10 | DC19: =VLOOKUP($CY19,J!$A$2:$AW$4000,6,FALSE) -> 15 | DD19: =VLOOKUP($CY19,J!$A$2:$AW$4000,7,FALSE) -> 20 | DE19: =VLOOKUP($CY19,J!$A$2:$AW$4000,8,FALSE) -> 38 | DF19: =VLOOKUP($CY19,J!$A$2:$AW$4000,9,FALSE) -> 39 | DG19: =VLOOKUP($CY19,J!$A$2:$AW$4000,10,FALSE) -> 45 | DH19: =VLOOKUP($CY19,J!$A$2:$AW$4000,11,FALSE) -> 50 | DI19: =VLOOKUP($CY19,J!$A$2:$AW$4000,12,FALSE) -> 53 | DJ19: =VLOOKUP($CY19,J!$A$2:$AW$4000,13,FALSE) -> 57 | DK19: =VLOOKUP($CY19,J!$A$2:$AW$4000,14,FALSE) -> 60 | DL19: =VLOOKUP($CY19,J!$A$2:$AW$4000,15,FALSE) -> 64 | DM19: =VLOOKUP($CY19,J!$A$2:$AW$4000,16,FALSE) -> 72 | DN19: =VLOOKUP($CY19,J!$A$2:$AW$4000,17,FALSE) -> 77 | DO19: =VLOOKUP($CY19,J!$A$2:$AW$4000,18,FALSE) -> 79 | DP19: =VLOOKUP($CY19,J!$A$2:$AW$4000,19,FALSE) -> 85 | DQ19: =VLOOKUP($CY19,J!$A$2:$AW$4000,20,FALSE) -> 86 | DR19: =VLOOKUP($CY19,J!$A$2:$AW$4000,21,FALSE) -> 96 | DS19: =VLOOKUP($CY19,J!$A$2:$AW$4000,22,FALSE) -> 99
B20: =IF(COUNTIF($CZ20:$DS20,B$16),B$16,"") ->  | C20: =IF(COUNTIF($CZ20:$DS20,C$16),C$16,"") ->  | D20: =IF(COUNTIF($CZ20:$DS20,D$16),D$16,"") ->  | E20: =IF(COUNTIF($CZ20:$DS20,E$16),E$16,"") ->  | F20: =IF(COUNTIF($CZ20:$DS20,F$16),F$16,"") -> 5 | G20: =IF(COUNTIF($CZ20:$DS20,G$16),G$16,"") ->  | H20: =IF(COUNTIF($CZ20:$DS20,H$16),H$16,"") ->  | I20: =IF(COUNTIF($CZ20:$DS20,I$16),I$16,"") ->  | J20: =IF(COUNTIF($CZ20:$DS20,J$16),J$16,"") ->  | K20: =IF(COUNTIF($CZ20:$DS20,K$16),K$16,"") ->  | L20: =IF(COUNTIF($CZ20:$DS20,L$16),L$16,"") ->  | M20: =IF(COUNTIF($CZ20:$DS20,M$16),M$16,"") ->  | N20: =IF(COUNTIF($CZ20:$DS20,N$16),N$16,"") ->  | O20: =IF(COUNTIF($CZ20:$DS20,O$16),O$16,"") ->  | P20: =IF(COUNTIF($CZ20:$DS20,P$16),P$16,"") ->  | Q20: =IF(COUNTIF($CZ20:$DS20,Q$16),Q$16,"") ->  | R20: =IF(COUNTIF($CZ20:$DS20,R$16),R$16,"") -> 17 | S20: =IF(COUNTIF($CZ20:$DS20,S$16),S$16,"") ->  | T20: =IF(COUNTIF($CZ20:$DS20,T$16),T$16,"") -> 19 | U20: =IF(COUNTIF($CZ20:$DS20,U$16),U$16,"") ->  | V20: =IF(COUNTIF($CZ20:$DS20,V$16),V$16,"") ->  | W20: =IF(COUNTIF($CZ20:$DS20,W$16),W$16,"") -> 22 | X20: =IF(COUNTIF($CZ20:$DS20,X$16),X$16,"") ->  | Y20: =IF(COUNTIF($CZ20:$DS20,Y$16),Y$16,"") -> 24 | Z20: =IF(COUNTIF($CZ20:$DS20,Z$16),Z$16,"") ->  | AA20: =IF(COUNTIF($CZ20:$DS20,AA$16),AA$16,"") -> 26 | AB20: =IF(COUNTIF($CZ20:$DS20,AB$16),AB$16,"") ->  | AC20: =IF(COUNTIF($CZ20:$DS20,AC$16),AC$16,"") ->  | AD20: =IF(COUNTIF($CZ20:$DS20,AD$16),AD$16,"") ->  | AE20: =IF(COUNTIF($CZ20:$DS20,AE$16),AE$16,"") ->  | AF20: =IF(COUNTIF($CZ20:$DS20,AF$16),AF$16,"") ->  | AG20: =IF(COUNTIF($CZ20:$DS20,AG$16),AG$16,"") ->  | AH20: =IF(COUNTIF($CZ20:$DS20,AH$16),AH$16,"") -> 33 | AI20: =IF(COUNTIF($CZ20:$DS20,AI$16),AI$16,"") ->  | AJ20: =IF(COUNTIF($CZ20:$DS20,AJ$16),AJ$16,"") ->  | AK20: =IF(COUNTIF($CZ20:$DS20,AK$16),AK$16,"") ->  | AL20: =IF(COUNTIF($CZ20:$DS20,AL$16),AL$16,"") ->  | AM20: =IF(COUNTIF($CZ20:$DS20,AM$16),AM$16,"") ->  | AN20: =IF(COUNTIF($CZ20:$DS20,AN$16),AN$16,"") ->  | AO20: =IF(COUNTIF($CZ20:$DS20,AO$16),AO$16,"") -> 40 | AP20: =IF(COUNTIF($CZ20:$DS20,AP$16),AP$16,"") ->  | AQ20: =IF(COUNTIF($CZ20:$DS20,AQ$16),AQ$16,"") ->  | AR20: =IF(COUNTIF($CZ20:$DS20,AR$16),AR$16,"") ->  | AS20: =IF(COUNTIF($CZ20:$DS20,AS$16),AS$16,"") ->  | AT20: =IF(COUNTIF($CZ20:$DS20,AT$16),AT$16,"") ->  | AU20: =IF(COUNTIF($CZ20:$DS20,AU$16),AU$16,"") ->  | AV20: =IF(COUNTIF($CZ20:$DS20,AV$16),AV$16,"") ->  | AW20: =IF(COUNTIF($CZ20:$DS20,AW$16),AW$16,"") ->  | AX20: =IF(COUNTIF($CZ20:$DS20,AX$16),AX$16,"") ->  | AY20: =IF(COUNTIF($CZ20:$DS20,AY$16),AY$16,"") ->  | AZ20: =IF(COUNTIF($CZ20:$DS20,AZ$16),AZ$16,"") ->  | BA20: =IF(COUNTIF($CZ20:$DS20,BA$16),BA$16,"") -> 52 | BB20: =IF(COUNTIF($CZ20:$DS20,BB$16),BB$16,"") ->  | BC20: =IF(COUNTIF($CZ20:$DS20,BC$16),BC$16,"") ->  | BD20: =IF(COUNTIF($CZ20:$DS20,BD$16),BD$16,"") ->  | BE20: =IF(COUNTIF($CZ20:$DS20,BE$16),BE$16,"") ->  | BF20: =IF(COUNTIF($CZ20:$DS20,BF$16),BF$16,"") ->  | BG20: =IF(COUNTIF($CZ20:$DS20,BG$16),BG$16,"") ->  | BH20: =IF(COUNTIF($CZ20:$DS20,BH$16),BH$16,"") ->  | BI20: =IF(COUNTIF($CZ20:$DS20,BI$16),BI$16,"") ->  | BJ20: =IF(COUNTIF($CZ20:$DS20,BJ$16),BJ$16,"") -> 61 | BK20: =IF(COUNTIF($CZ20:$DS20,BK$16),BK$16,"") -> 62 | BL20: =IF(COUNTIF($CZ20:$DS20,BL$16),BL$16,"") ->  | BM20: =IF(COUNTIF($CZ20:$DS20,BM$16),BM$16,"") -> 64 | BN20: =IF(COUNTIF($CZ20:$DS20,BN$16),BN$16,"") ->  | BO20: =IF(COUNTIF($CZ20:$DS20,BO$16),BO$16,"") ->  | BP20: =IF(COUNTIF($CZ20:$DS20,BP$16),BP$16,"") -> 67 | BQ20: =IF(COUNTIF($CZ20:$DS20,BQ$16),BQ$16,"") ->  | BR20: =IF(COUNTIF($CZ20:$DS20,BR$16),BR$16,"") -> 69 | BS20: =IF(COUNTIF($CZ20:$DS20,BS$16),BS$16,"") -> 70 | BT20: =IF(COUNTIF($CZ20:$DS20,BT$16),BT$16,"") ->  | BU20: =IF(COUNTIF($CZ20:$DS20,BU$16),BU$16,"") ->  | BV20: =IF(COUNTIF($CZ20:$DS20,BV$16),BV$16,"") -> 73 | BW20: =IF(COUNTIF($CZ20:$DS20,BW$16),BW$16,"") ->  | BX20: =IF(COUNTIF($CZ20:$DS20,BX$16),BX$16,"") -> 75 | BY20: =IF(COUNTIF($CZ20:$DS20,BY$16),BY$16,"") ->  | BZ20: =IF(COUNTIF($CZ20:$DS20,BZ$16),BZ$16,"") ->  | CA20: =IF(COUNTIF($CZ20:$DS20,CA$16),CA$16,"") ->  | CB20: =IF(COUNTIF($CZ20:$DS20,CB$16),CB$16,"") -> 79 | CC20: =IF(COUNTIF($CZ20:$DS20,CC$16),CC$16,"") ->  | CD20: =IF(COUNTIF($CZ20:$DS20,CD$16),CD$16,"") ->  | CE20: =IF(COUNTIF($CZ20:$DS20,CE$16),CE$16,"") ->  | CF20: =IF(COUNTIF($CZ20:$DS20,CF$16),CF$16,"") -> 83 | CG20: =IF(COUNTIF($CZ20:$DS20,CG$16),CG$16,"") ->  | CH20: =IF(COUNTIF($CZ20:$DS20,CH$16),CH$16,"") ->  | CI20: =IF(COUNTIF($CZ20:$DS20,CI$16),CI$16,"") ->  | CJ20: =IF(COUNTIF($CZ20:$DS20,CJ$16),CJ$16,"") ->  | CK20: =IF(COUNTIF($CZ20:$DS20,CK$16),CK$16,"") ->  | CL20: =IF(COUNTIF($CZ20:$DS20,CL$16),CL$16,"") ->  | CM20: =IF(COUNTIF($CZ20:$DS20,CM$16),CM$16,"") ->  | CN20: =IF(COUNTIF($CZ20:$DS20,CN$16),CN$16,"") ->  | CO20: =IF(COUNTIF($CZ20:$DS20,CO$16),CO$16,"") ->  | CP20: =IF(COUNTIF($CZ20:$DS20,CP$16),CP$16,"") ->  | CQ20: =IF(COUNTIF($CZ20:$DS20,CQ$16),CQ$16,"") ->  | CR20: =IF(COUNTIF($CZ20:$DS20,CR$16),CR$16,"") ->  | CS20: =IF(COUNTIF($CZ20:$DS20,CS$16),CS$16,"") ->  | CT20: =IF(COUNTIF($CZ20:$DS20,CT$16),CT$16,"") ->  | CU20: =IF(COUNTIF($CZ20:$DS20,CU$16),CU$16,"") ->  | CV20: =IF(COUNTIF($CZ20:$DS20,CV$16),CV$16,"") -> 99 | CW20: =IF(COUNTIF($CZ20:$DS20,0),0,"") ->  | CX20: 4 | CY20: 1866 | CZ20: =VLOOKUP($CY20,J!$A$2:$AW$4000,3,FALSE) -> 5 | DA20: =VLOOKUP($CY20,J!$A$2:$AW$4000,4,FALSE) -> 17 | DB20: =VLOOKUP($CY20,J!$A$2:$AW$4000,5,FALSE) -> 19 | DC20: =VLOOKUP($CY20,J!$A$2:$AW$4000,6,FALSE) -> 22 | DD20: =VLOOKUP($CY20,J!$A$2:$AW$4000,7,FALSE) -> 24 | DE20: =VLOOKUP($CY20,J!$A$2:$AW$4000,8,FALSE) -> 26 | DF20: =VLOOKUP($CY20,J!$A$2:$AW$4000,9,FALSE) -> 33 | DG20: =VLOOKUP($CY20,J!$A$2:$AW$4000,10,FALSE) -> 40 | DH20: =VLOOKUP($CY20,J!$A$2:$AW$4000,11,FALSE) -> 52 | DI20: =VLOOKUP($CY20,J!$A$2:$AW$4000,12,FALSE) -> 61 | DJ20: =VLOOKUP($CY20,J!$A$2:$AW$4000,13,FALSE) -> 62 | DK20: =VLOOKUP($CY20,J!$A$2:$AW$4000,14,FALSE) -> 64 | DL20: =VLOOKUP($CY20,J!$A$2:$AW$4000,15,FALSE) -> 67 | DM20: =VLOOKUP($CY20,J!$A$2:$AW$4000,16,FALSE) -> 69 | DN20: =VLOOKUP($CY20,J!$A$2:$AW$4000,17,FALSE) -> 70 | DO20: =VLOOKUP($CY20,J!$A$2:$AW$4000,18,FALSE) -> 73 | DP20: =VLOOKUP($CY20,J!$A$2:$AW$4000,19,FALSE) -> 75 | DQ20: =VLOOKUP($CY20,J!$A$2:$AW$4000,20,FALSE) -> 79 | DR20: =VLOOKUP($CY20,J!$A$2:$AW$4000,21,FALSE) -> 83 | DS20: =VLOOKUP($CY20,J!$A$2:$AW$4000,22,FALSE) -> 99
B21: =IF(COUNTIF($CZ21:$DS21,B$16),B$16,"") -> 1 | C21: =IF(COUNTIF($CZ21:$DS21,C$16),C$16,"") ->  | D21: =IF(COUNTIF($CZ21:$DS21,D$16),D$16,"") ->  | E21: =IF(COUNTIF($CZ21:$DS21,E$16),E$16,"") ->  | F21: =IF(COUNTIF($CZ21:$DS21,F$16),F$16,"") ->  | G21: =IF(COUNTIF($CZ21:$DS21,G$16),G$16,"") ->  | H21: =IF(COUNTIF($CZ21:$DS21,H$16),H$16,"") ->  | I21: =IF(COUNTIF($CZ21:$DS21,I$16),I$16,"") -> 8 | J21: =IF(COUNTIF($CZ21:$DS21,J$16),J$16,"") ->  | K21: =IF(COUNTIF($CZ21:$DS21,K$16),K$16,"") ->  | L21: =IF(COUNTIF($CZ21:$DS21,L$16),L$16,"") ->  | M21: =IF(COUNTIF($CZ21:$DS21,M$16),M$16,"") ->  | N21: =IF(COUNTIF($CZ21:$DS21,N$16),N$16,"") ->  | O21: =IF(COUNTIF($CZ21:$DS21,O$16),O$16,"") -> 14 | P21: =IF(COUNTIF($CZ21:$DS21,P$16),P$16,"") ->  | Q21: =IF(COUNTIF($CZ21:$DS21,Q$16),Q$16,"") ->  | R21: =IF(COUNTIF($CZ21:$DS21,R$16),R$16,"") -> 17 | S21: =IF(COUNTIF($CZ21:$DS21,S$16),S$16,"") ->  | T21: =IF(COUNTIF($CZ21:$DS21,T$16),T$16,"") ->  | U21: =IF(COUNTIF($CZ21:$DS21,U$16),U$16,"") ->  | V21: =IF(COUNTIF($CZ21:$DS21,V$16),V$16,"") ->  | W21: =IF(COUNTIF($CZ21:$DS21,W$16),W$16,"") ->  | X21: =IF(COUNTIF($CZ21:$DS21,X$16),X$16,"") ->  | Y21: =IF(COUNTIF($CZ21:$DS21,Y$16),Y$16,"") ->  | Z21: =IF(COUNTIF($CZ21:$DS21,Z$16),Z$16,"") ->  | AA21: =IF(COUNTIF($CZ21:$DS21,AA$16),AA$16,"") ->  | AB21: =IF(COUNTIF($CZ21:$DS21,AB$16),AB$16,"") ->  | AC21: =IF(COUNTIF($CZ21:$DS21,AC$16),AC$16,"") ->  | AD21: =IF(COUNTIF($CZ21:$DS21,AD$16),AD$16,"") ->  | AE21: =IF(COUNTIF($CZ21:$DS21,AE$16),AE$16,"") ->  | AF21: =IF(COUNTIF($CZ21:$DS21,AF$16),AF$16,"") -> 31 | AG21: =IF(COUNTIF($CZ21:$DS21,AG$16),AG$16,"") ->  | AH21: =IF(COUNTIF($CZ21:$DS21,AH$16),AH$16,"") ->  | AI21: =IF(COUNTIF($CZ21:$DS21,AI$16),AI$16,"") ->  | AJ21: =IF(COUNTIF($CZ21:$DS21,AJ$16),AJ$16,"") ->  | AK21: =IF(COUNTIF($CZ21:$DS21,AK$16),AK$16,"") ->  | AL21: =IF(COUNTIF($CZ21:$DS21,AL$16),AL$16,"") ->  | AM21: =IF(COUNTIF($CZ21:$DS21,AM$16),AM$16,"") ->  | AN21: =IF(COUNTIF($CZ21:$DS21,AN$16),AN$16,"") ->  | AO21: =IF(COUNTIF($CZ21:$DS21,AO$16),AO$16,"") ->  | AP21: =IF(COUNTIF($CZ21:$DS21,AP$16),AP$16,"") -> 41 | AQ21: =IF(COUNTIF($CZ21:$DS21,AQ$16),AQ$16,"") ->  | AR21: =IF(COUNTIF($CZ21:$DS21,AR$16),AR$16,"") ->  | AS21: =IF(COUNTIF($CZ21:$DS21,AS$16),AS$16,"") ->  | AT21: =IF(COUNTIF($CZ21:$DS21,AT$16),AT$16,"") -> 45 | AU21: =IF(COUNTIF($CZ21:$DS21,AU$16),AU$16,"") ->  | AV21: =IF(COUNTIF($CZ21:$DS21,AV$16),AV$16,"") ->  | AW21: =IF(COUNTIF($CZ21:$DS21,AW$16),AW$16,"") ->  | AX21: =IF(COUNTIF($CZ21:$DS21,AX$16),AX$16,"") -> 49 | AY21: =IF(COUNTIF($CZ21:$DS21,AY$16),AY$16,"") ->  | AZ21: =IF(COUNTIF($CZ21:$DS21,AZ$16),AZ$16,"") -> 51 | BA21: =IF(COUNTIF($CZ21:$DS21,BA$16),BA$16,"") ->  | BB21: =IF(COUNTIF($CZ21:$DS21,BB$16),BB$16,"") ->  | BC21: =IF(COUNTIF($CZ21:$DS21,BC$16),BC$16,"") ->  | BD21: =IF(COUNTIF($CZ21:$DS21,BD$16),BD$16,"") ->  | BE21: =IF(COUNTIF($CZ21:$DS21,BE$16),BE$16,"") ->  | BF21: =IF(COUNTIF($CZ21:$DS21,BF$16),BF$16,"") ->  | BG21: =IF(COUNTIF($CZ21:$DS21,BG$16),BG$16,"") -> 58 | BH21: =IF(COUNTIF($CZ21:$DS21,BH$16),BH$16,"") ->  | BI21: =IF(COUNTIF($CZ21:$DS21,BI$16),BI$16,"") ->  | BJ21: =IF(COUNTIF($CZ21:$DS21,BJ$16),BJ$16,"") -> 61 | BK21: =IF(COUNTIF($CZ21:$DS21,BK$16),BK$16,"") -> 62 | BL21: =IF(COUNTIF($CZ21:$DS21,BL$16),BL$16,"") ->  | BM21: =IF(COUNTIF($CZ21:$DS21,BM$16),BM$16,"") ->  | BN21: =IF(COUNTIF($CZ21:$DS21,BN$16),BN$16,"") ->  | BO21: =IF(COUNTIF($CZ21:$DS21,BO$16),BO$16,"") -> 66 | BP21: =IF(COUNTIF($CZ21:$DS21,BP$16),BP$16,"") -> 67 | BQ21: =IF(COUNTIF($CZ21:$DS21,BQ$16),BQ$16,"") ->  | BR21: =IF(COUNTIF($CZ21:$DS21,BR$16),BR$16,"") ->  | BS21: =IF(COUNTIF($CZ21:$DS21,BS$16),BS$16,"") ->  | BT21: =IF(COUNTIF($CZ21:$DS21,BT$16),BT$16,"") ->  | BU21: =IF(COUNTIF($CZ21:$DS21,BU$16),BU$16,"") ->  | BV21: =IF(COUNTIF($CZ21:$DS21,BV$16),BV$16,"") ->  | BW21: =IF(COUNTIF($CZ21:$DS21,BW$16),BW$16,"") ->  | BX21: =IF(COUNTIF($CZ21:$DS21,BX$16),BX$16,"") -> 75 | BY21: =IF(COUNTIF($CZ21:$DS21,BY$16),BY$16,"") ->  | BZ21: =IF(COUNTIF($CZ21:$DS21,BZ$16),BZ$16,"") ->  | CA21: =IF(COUNTIF($CZ21:$DS21,CA$16),CA$16,"") ->  | CB21: =IF(COUNTIF($CZ21:$DS21,CB$16),CB$16,"") ->  | CC21: =IF(COUNTIF($CZ21:$DS21,CC$16),CC$16,"") ->  | CD21: =IF(COUNTIF($CZ21:$DS21,CD$16),CD$16,"") -> 81 | CE21: =IF(COUNTIF($CZ21:$DS21,CE$16),CE$16,"") ->  | CF21: =IF(COUNTIF($CZ21:$DS21,CF$16),CF$16,"") ->  | CG21: =IF(COUNTIF($CZ21:$DS21,CG$16),CG$16,"") ->  | CH21: =IF(COUNTIF($CZ21:$DS21,CH$16),CH$16,"") ->  | CI21: =IF(COUNTIF($CZ21:$DS21,CI$16),CI$16,"") -> 86 | CJ21: =IF(COUNTIF($CZ21:$DS21,CJ$16),CJ$16,"") ->  | CK21: =IF(COUNTIF($CZ21:$DS21,CK$16),CK$16,"") ->  | CL21: =IF(COUNTIF($CZ21:$DS21,CL$16),CL$16,"") ->  | CM21: =IF(COUNTIF($CZ21:$DS21,CM$16),CM$16,"") ->  | CN21: =IF(COUNTIF($CZ21:$DS21,CN$16),CN$16,"") ->  | CO21: =IF(COUNTIF($CZ21:$DS21,CO$16),CO$16,"") -> 92 | CP21: =IF(COUNTIF($CZ21:$DS21,CP$16),CP$16,"") ->  | CQ21: =IF(COUNTIF($CZ21:$DS21,CQ$16),CQ$16,"") ->  | CR21: =IF(COUNTIF($CZ21:$DS21,CR$16),CR$16,"") ->  | CS21: =IF(COUNTIF($CZ21:$DS21,CS$16),CS$16,"") ->  | CT21: =IF(COUNTIF($CZ21:$DS21,CT$16),CT$16,"") -> 97 | CU21: =IF(COUNTIF($CZ21:$DS21,CU$16),CU$16,"") ->  | CV21: =IF(COUNTIF($CZ21:$DS21,CV$16),CV$16,"") ->  | CW21: =IF(COUNTIF($CZ21:$DS21,0),0,"") -> 0 | CX21: 5 | CY21: 1865 | CZ21: =VLOOKUP($CY21,J!$A$2:$AW$4000,3,FALSE) -> 0 | DA21: =VLOOKUP($CY21,J!$A$2:$AW$4000,4,FALSE) -> 1 | DB21: =VLOOKUP($CY21,J!$A$2:$AW$4000,5,FALSE) -> 8 | DC21: =VLOOKUP($CY21,J!$A$2:$AW$4000,6,FALSE) -> 14 | DD21: =VLOOKUP($CY21,J!$A$2:$AW$4000,7,FALSE) -> 17 | DE21: =VLOOKUP($CY21,J!$A$2:$AW$4000,8,FALSE) -> 31 | DF21: =VLOOKUP($CY21,J!$A$2:$AW$4000,9,FALSE) -> 41 | DG21: =VLOOKUP($CY21,J!$A$2:$AW$4000,10,FALSE) -> 45 | DH21: =VLOOKUP($CY21,J!$A$2:$AW$4000,11,FALSE) -> 49 | DI21: =VLOOKUP($CY21,J!$A$2:$AW$4000,12,FALSE) -> 51 | DJ21: =VLOOKUP($CY21,J!$A$2:$AW$4000,13,FALSE) -> 58 | DK21: =VLOOKUP($CY21,J!$A$2:$AW$4000,14,FALSE) -> 61 | DL21: =VLOOKUP($CY21,J!$A$2:$AW$4000,15,FALSE) -> 62 | DM21: =VLOOKUP($CY21,J!$A$2:$AW$4000,16,FALSE) -> 66 | DN21: =VLOOKUP($CY21,J!$A$2:$AW$4000,17,FALSE) -> 67 | DO21: =VLOOKUP($CY21,J!$A$2:$AW$4000,18,FALSE) -> 75 | DP21: =VLOOKUP($CY21,J!$A$2:$AW$4000,19,FALSE) -> 81 | DQ21: =VLOOKUP($CY21,J!$A$2:$AW$4000,20,FALSE) -> 86 | DR21: =VLOOKUP($CY21,J!$A$2:$AW$4000,21,FALSE) -> 92 | DS21: =VLOOKUP($CY21,J!$A$2:$AW$4000,22,FALSE) -> 97
B22: =IF(COUNTIF($CZ22:$DS22,B$16),B$16,"") ->  | C22: =IF(COUNTIF($CZ22:$DS22,C$16),C$16,"") -> 2 | D22: =IF(COUNTIF($CZ22:$DS22,D$16),D$16,"") ->  | E22: =IF(COUNTIF($CZ22:$DS22,E$16),E$16,"") ->  | F22: =IF(COUNTIF($CZ22:$DS22,F$16),F$16,"") ->  | G22: =IF(COUNTIF($CZ22:$DS22,G$16),G$16,"") ->  | H22: =IF(COUNTIF($CZ22:$DS22,H$16),H$16,"") -> 7 | I22: =IF(COUNTIF($CZ22:$DS22,I$16),I$16,"") ->  | J22: =IF(COUNTIF($CZ22:$DS22,J$16),J$16,"") ->  | K22: =IF(COUNTIF($CZ22:$DS22,K$16),K$16,"") ->  | L22: =IF(COUNTIF($CZ22:$DS22,L$16),L$16,"") -> 11 | M22: =IF(COUNTIF($CZ22:$DS22,M$16),M$16,"") ->  | N22: =IF(COUNTIF($CZ22:$DS22,N$16),N$16,"") ->  | O22: =IF(COUNTIF($CZ22:$DS22,O$16),O$16,"") ->  | P22: =IF(COUNTIF($CZ22:$DS22,P$16),P$16,"") ->  | Q22: =IF(COUNTIF($CZ22:$DS22,Q$16),Q$16,"") ->  | R22: =IF(COUNTIF($CZ22:$DS22,R$16),R$16,"") ->  | S22: =IF(COUNTIF($CZ22:$DS22,S$16),S$16,"") ->  | T22: =IF(COUNTIF($CZ22:$DS22,T$16),T$16,"") ->  | U22: =IF(COUNTIF($CZ22:$DS22,U$16),U$16,"") ->  | V22: =IF(COUNTIF($CZ22:$DS22,V$16),V$16,"") ->  | W22: =IF(COUNTIF($CZ22:$DS22,W$16),W$16,"") -> 22 | X22: =IF(COUNTIF($CZ22:$DS22,X$16),X$16,"") ->  | Y22: =IF(COUNTIF($CZ22:$DS22,Y$16),Y$16,"") -> 24 | Z22: =IF(COUNTIF($CZ22:$DS22,Z$16),Z$16,"") ->  | AA22: =IF(COUNTIF($CZ22:$DS22,AA$16),AA$16,"") ->  | AB22: =IF(COUNTIF($CZ22:$DS22,AB$16),AB$16,"") ->  | AC22: =IF(COUNTIF($CZ22:$DS22,AC$16),AC$16,"") ->  | AD22: =IF(COUNTIF($CZ22:$DS22,AD$16),AD$16,"") ->  | AE22: =IF(COUNTIF($CZ22:$DS22,AE$16),AE$16,"") ->  | AF22: =IF(COUNTIF($CZ22:$DS22,AF$16),AF$16,"") ->  | AG22: =IF(COUNTIF($CZ22:$DS22,AG$16),AG$16,"") ->  | AH22: =IF(COUNTIF($CZ22:$DS22,AH$16),AH$16,"") ->  | AI22: =IF(COUNTIF($CZ22:$DS22,AI$16),AI$16,"") -> 34 | AJ22: =IF(COUNTIF($CZ22:$DS22,AJ$16),AJ$16,"") ->  | AK22: =IF(COUNTIF($CZ22:$DS22,AK$16),AK$16,"") ->  | AL22: =IF(COUNTIF($CZ22:$DS22,AL$16),AL$16,"") ->  | AM22: =IF(COUNTIF($CZ22:$DS22,AM$16),AM$16,"") ->  | AN22: =IF(COUNTIF($CZ22:$DS22,AN$16),AN$16,"") ->  | AO22: =IF(COUNTIF($CZ22:$DS22,AO$16),AO$16,"") ->  | AP22: =IF(COUNTIF($CZ22:$DS22,AP$16),AP$16,"") ->  | AQ22: =IF(COUNTIF($CZ22:$DS22,AQ$16),AQ$16,"") -> 42 | AR22: =IF(COUNTIF($CZ22:$DS22,AR$16),AR$16,"") ->  | AS22: =IF(COUNTIF($CZ22:$DS22,AS$16),AS$16,"") ->  | AT22: =IF(COUNTIF($CZ22:$DS22,AT$16),AT$16,"") -> 45 | AU22: =IF(COUNTIF($CZ22:$DS22,AU$16),AU$16,"") ->  | AV22: =IF(COUNTIF($CZ22:$DS22,AV$16),AV$16,"") ->  | AW22: =IF(COUNTIF($CZ22:$DS22,AW$16),AW$16,"") ->  | AX22: =IF(COUNTIF($CZ22:$DS22,AX$16),AX$16,"") ->  | AY22: =IF(COUNTIF($CZ22:$DS22,AY$16),AY$16,"") ->  | AZ22: =IF(COUNTIF($CZ22:$DS22,AZ$16),AZ$16,"") -> 51 | BA22: =IF(COUNTIF($CZ22:$DS22,BA$16),BA$16,"") -> 52 | BB22: =IF(COUNTIF($CZ22:$DS22,BB$16),BB$16,"") ->  | BC22: =IF(COUNTIF($CZ22:$DS22,BC$16),BC$16,"") ->  | BD22: =IF(COUNTIF($CZ22:$DS22,BD$16),BD$16,"") ->  | BE22: =IF(COUNTIF($CZ22:$DS22,BE$16),BE$16,"") -> 56 | BF22: =IF(COUNTIF($CZ22:$DS22,BF$16),BF$16,"") ->  | BG22: =IF(COUNTIF($CZ22:$DS22,BG$16),BG$16,"") -> 58 | BH22: =IF(COUNTIF($CZ22:$DS22,BH$16),BH$16,"") ->  | BI22: =IF(COUNTIF($CZ22:$DS22,BI$16),BI$16,"") ->  | BJ22: =IF(COUNTIF($CZ22:$DS22,BJ$16),BJ$16,"") ->  | BK22: =IF(COUNTIF($CZ22:$DS22,BK$16),BK$16,"") -> 62 | BL22: =IF(COUNTIF($CZ22:$DS22,BL$16),BL$16,"") ->  | BM22: =IF(COUNTIF($CZ22:$DS22,BM$16),BM$16,"") -> 64 | BN22: =IF(COUNTIF($CZ22:$DS22,BN$16),BN$16,"") ->  | BO22: =IF(COUNTIF($CZ22:$DS22,BO$16),BO$16,"") ->  | BP22: =IF(COUNTIF($CZ22:$DS22,BP$16),BP$16,"") ->  | BQ22: =IF(COUNTIF($CZ22:$DS22,BQ$16),BQ$16,"") -> 68 | BR22: =IF(COUNTIF($CZ22:$DS22,BR$16),BR$16,"") ->  | BS22: =IF(COUNTIF($CZ22:$DS22,BS$16),BS$16,"") ->  | BT22: =IF(COUNTIF($CZ22:$DS22,BT$16),BT$16,"") ->  | BU22: =IF(COUNTIF($CZ22:$DS22,BU$16),BU$16,"") ->  | BV22: =IF(COUNTIF($CZ22:$DS22,BV$16),BV$16,"") ->  | BW22: =IF(COUNTIF($CZ22:$DS22,BW$16),BW$16,"") ->  | BX22: =IF(COUNTIF($CZ22:$DS22,BX$16),BX$16,"") -> 75 | BY22: =IF(COUNTIF($CZ22:$DS22,BY$16),BY$16,"") ->  | BZ22: =IF(COUNTIF($CZ22:$DS22,BZ$16),BZ$16,"") ->  | CA22: =IF(COUNTIF($CZ22:$DS22,CA$16),CA$16,"") ->  | CB22: =IF(COUNTIF($CZ22:$DS22,CB$16),CB$16,"") -> 79 | CC22: =IF(COUNTIF($CZ22:$DS22,CC$16),CC$16,"") ->  | CD22: =IF(COUNTIF($CZ22:$DS22,CD$16),CD$16,"") ->  | CE22: =IF(COUNTIF($CZ22:$DS22,CE$16),CE$16,"") ->  | CF22: =IF(COUNTIF($CZ22:$DS22,CF$16),CF$16,"") ->  | CG22: =IF(COUNTIF($CZ22:$DS22,CG$16),CG$16,"") ->  | CH22: =IF(COUNTIF($CZ22:$DS22,CH$16),CH$16,"") ->  | CI22: =IF(COUNTIF($CZ22:$DS22,CI$16),CI$16,"") ->  | CJ22: =IF(COUNTIF($CZ22:$DS22,CJ$16),CJ$16,"") ->  | CK22: =IF(COUNTIF($CZ22:$DS22,CK$16),CK$16,"") ->  | CL22: =IF(COUNTIF($CZ22:$DS22,CL$16),CL$16,"") ->  | CM22: =IF(COUNTIF($CZ22:$DS22,CM$16),CM$16,"") ->  | CN22: =IF(COUNTIF($CZ22:$DS22,CN$16),CN$16,"") ->  | CO22: =IF(COUNTIF($CZ22:$DS22,CO$16),CO$16,"") ->  | CP22: =IF(COUNTIF($CZ22:$DS22,CP$16),CP$16,"") ->  | CQ22: =IF(COUNTIF($CZ22:$DS22,CQ$16),CQ$16,"") -> 94 | CR22: =IF(COUNTIF($CZ22:$DS22,CR$16),CR$16,"") ->  | CS22: =IF(COUNTIF($CZ22:$DS22,CS$16),CS$16,"") -> 96 | CT22: =IF(COUNTIF($CZ22:$DS22,CT$16),CT$16,"") ->  | CU22: =IF(COUNTIF($CZ22:$DS22,CU$16),CU$16,"") ->  | CV22: =IF(COUNTIF($CZ22:$DS22,CV$16),CV$16,"") -> 99 | CW22: =IF(COUNTIF($CZ22:$DS22,0),0,"") ->  | CX22: 6 | CY22: 1864 | CZ22: =VLOOKUP($CY22,J!$A$2:$AW$4000,3,FALSE) -> 2 | DA22: =VLOOKUP($CY22,J!$A$2:$AW$4000,4,FALSE) -> 7 | DB22: =VLOOKUP($CY22,J!$A$2:$AW$4000,5,FALSE) -> 11 | DC22: =VLOOKUP($CY22,J!$A$2:$AW$4000,6,FALSE) -> 22 | DD22: =VLOOKUP($CY22,J!$A$2:$AW$4000,7,FALSE) -> 24 | DE22: =VLOOKUP($CY22,J!$A$2:$AW$4000,8,FALSE) -> 34 | DF22: =VLOOKUP($CY22,J!$A$2:$AW$4000,9,FALSE) -> 42 | DG22: =VLOOKUP($CY22,J!$A$2:$AW$4000,10,FALSE) -> 45 | DH22: =VLOOKUP($CY22,J!$A$2:$AW$4000,11,FALSE) -> 51 | DI22: =VLOOKUP($CY22,J!$A$2:$AW$4000,12,FALSE) -> 52 | DJ22: =VLOOKUP($CY22,J!$A$2:$AW$4000,13,FALSE) -> 56 | DK22: =VLOOKUP($CY22,J!$A$2:$AW$4000,14,FALSE) -> 58 | DL22: =VLOOKUP($CY22,J!$A$2:$AW$4000,15,FALSE) -> 62 | DM22: =VLOOKUP($CY22,J!$A$2:$AW$4000,16,FALSE) -> 64 | DN22: =VLOOKUP($CY22,J!$A$2:$AW$4000,17,FALSE) -> 68 | DO22: =VLOOKUP($CY22,J!$A$2:$AW$4000,18,FALSE) -> 75 | DP22: =VLOOKUP($CY22,J!$A$2:$AW$4000,19,FALSE) -> 79 | DQ22: =VLOOKUP($CY22,J!$A$2:$AW$4000,20,FALSE) -> 94 | DR22: =VLOOKUP($CY22,J!$A$2:$AW$4000,21,FALSE) -> 96 | DS22: =VLOOKUP($CY22,J!$A$2:$AW$4000,22,FALSE) -> 99
B23: =IF(COUNTIF($CZ23:$DS23,B$16),B$16,"") ->  | C23: =IF(COUNTIF($CZ23:$DS23,C$16),C$16,"") -> 2 | D23: =IF(COUNTIF($CZ23:$DS23,D$16),D$16,"") ->  | E23: =IF(COUNTIF($CZ23:$DS23,E$16),E$16,"") ->  | F23: =IF(COUNTIF($CZ23:$DS23,F$16),F$16,"") ->  | G23: =IF(COUNTIF($CZ23:$DS23,G$16),G$16,"") ->  | H23: =IF(COUNTIF($CZ23:$DS23,H$16),H$16,"") ->  | I23: =IF(COUNTIF($CZ23:$DS23,I$16),I$16,"") -> 8 | J23: =IF(COUNTIF($CZ23:$DS23,J$16),J$16,"") ->  | K23: =IF(COUNTIF($CZ23:$DS23,K$16),K$16,"") ->  | L23: =IF(COUNTIF($CZ23:$DS23,L$16),L$16,"") ->  | M23: =IF(COUNTIF($CZ23:$DS23,M$16),M$16,"") ->  | N23: =IF(COUNTIF($CZ23:$DS23,N$16),N$16,"") ->  | O23: =IF(COUNTIF($CZ23:$DS23,O$16),O$16,"") -> 14 | P23: =IF(COUNTIF($CZ23:$DS23,P$16),P$16,"") ->  | Q23: =IF(COUNTIF($CZ23:$DS23,Q$16),Q$16,"") ->  | R23: =IF(COUNTIF($CZ23:$DS23,R$16),R$16,"") -> 17 | S23: =IF(COUNTIF($CZ23:$DS23,S$16),S$16,"") ->  | T23: =IF(COUNTIF($CZ23:$DS23,T$16),T$16,"") ->  | U23: =IF(COUNTIF($CZ23:$DS23,U$16),U$16,"") ->  | V23: =IF(COUNTIF($CZ23:$DS23,V$16),V$16,"") ->  | W23: =IF(COUNTIF($CZ23:$DS23,W$16),W$16,"") -> 22 | X23: =IF(COUNTIF($CZ23:$DS23,X$16),X$16,"") ->  | Y23: =IF(COUNTIF($CZ23:$DS23,Y$16),Y$16,"") ->  | Z23: =IF(COUNTIF($CZ23:$DS23,Z$16),Z$16,"") ->  | AA23: =IF(COUNTIF($CZ23:$DS23,AA$16),AA$16,"") ->  | AB23: =IF(COUNTIF($CZ23:$DS23,AB$16),AB$16,"") ->  | AC23: =IF(COUNTIF($CZ23:$DS23,AC$16),AC$16,"") ->  | AD23: =IF(COUNTIF($CZ23:$DS23,AD$16),AD$16,"") ->  | AE23: =IF(COUNTIF($CZ23:$DS23,AE$16),AE$16,"") ->  | AF23: =IF(COUNTIF($CZ23:$DS23,AF$16),AF$16,"") ->  | AG23: =IF(COUNTIF($CZ23:$DS23,AG$16),AG$16,"") ->  | AH23: =IF(COUNTIF($CZ23:$DS23,AH$16),AH$16,"") -> 33 | AI23: =IF(COUNTIF($CZ23:$DS23,AI$16),AI$16,"") -> 34 | AJ23: =IF(COUNTIF($CZ23:$DS23,AJ$16),AJ$16,"") ->  | AK23: =IF(COUNTIF($CZ23:$DS23,AK$16),AK$16,"") ->  | AL23: =IF(COUNTIF($CZ23:$DS23,AL$16),AL$16,"") ->  | AM23: =IF(COUNTIF($CZ23:$DS23,AM$16),AM$16,"") ->  | AN23: =IF(COUNTIF($CZ23:$DS23,AN$16),AN$16,"") ->  | AO23: =IF(COUNTIF($CZ23:$DS23,AO$16),AO$16,"") ->  | AP23: =IF(COUNTIF($CZ23:$DS23,AP$16),AP$16,"") ->  | AQ23: =IF(COUNTIF($CZ23:$DS23,AQ$16),AQ$16,"") ->  | AR23: =IF(COUNTIF($CZ23:$DS23,AR$16),AR$16,"") -> 43 | AS23: =IF(COUNTIF($CZ23:$DS23,AS$16),AS$16,"") -> 44 | AT23: =IF(COUNTIF($CZ23:$DS23,AT$16),AT$16,"") ->  | AU23: =IF(COUNTIF($CZ23:$DS23,AU$16),AU$16,"") ->  | AV23: =IF(COUNTIF($CZ23:$DS23,AV$16),AV$16,"") ->  | AW23: =IF(COUNTIF($CZ23:$DS23,AW$16),AW$16,"") -> 48 | AX23: =IF(COUNTIF($CZ23:$DS23,AX$16),AX$16,"") ->  | AY23: =IF(COUNTIF($CZ23:$DS23,AY$16),AY$16,"") ->  | AZ23: =IF(COUNTIF($CZ23:$DS23,AZ$16),AZ$16,"") ->  | BA23: =IF(COUNTIF($CZ23:$DS23,BA$16),BA$16,"") ->  | BB23: =IF(COUNTIF($CZ23:$DS23,BB$16),BB$16,"") -> 53 | BC23: =IF(COUNTIF($CZ23:$DS23,BC$16),BC$16,"") ->  | BD23: =IF(COUNTIF($CZ23:$DS23,BD$16),BD$16,"") ->  | BE23: =IF(COUNTIF($CZ23:$DS23,BE$16),BE$16,"") -> 56 | BF23: =IF(COUNTIF($CZ23:$DS23,BF$16),BF$16,"") ->  | BG23: =IF(COUNTIF($CZ23:$DS23,BG$16),BG$16,"") ->  | BH23: =IF(COUNTIF($CZ23:$DS23,BH$16),BH$16,"") ->  | BI23: =IF(COUNTIF($CZ23:$DS23,BI$16),BI$16,"") -> 60 | BJ23: =IF(COUNTIF($CZ23:$DS23,BJ$16),BJ$16,"") ->  | BK23: =IF(COUNTIF($CZ23:$DS23,BK$16),BK$16,"") ->  | BL23: =IF(COUNTIF($CZ23:$DS23,BL$16),BL$16,"") ->  | BM23: =IF(COUNTIF($CZ23:$DS23,BM$16),BM$16,"") ->  | BN23: =IF(COUNTIF($CZ23:$DS23,BN$16),BN$16,"") ->  | BO23: =IF(COUNTIF($CZ23:$DS23,BO$16),BO$16,"") ->  | BP23: =IF(COUNTIF($CZ23:$DS23,BP$16),BP$16,"") ->  | BQ23: =IF(COUNTIF($CZ23:$DS23,BQ$16),BQ$16,"") ->  | BR23: =IF(COUNTIF($CZ23:$DS23,BR$16),BR$16,"") ->  | BS23: =IF(COUNTIF($CZ23:$DS23,BS$16),BS$16,"") -> 70 | BT23: =IF(COUNTIF($CZ23:$DS23,BT$16),BT$16,"") ->  | BU23: =IF(COUNTIF($CZ23:$DS23,BU$16),BU$16,"") -> 72 | BV23: =IF(COUNTIF($CZ23:$DS23,BV$16),BV$16,"") ->  | BW23: =IF(COUNTIF($CZ23:$DS23,BW$16),BW$16,"") ->  | BX23: =IF(COUNTIF($CZ23:$DS23,BX$16),BX$16,"") ->  | BY23: =IF(COUNTIF($CZ23:$DS23,BY$16),BY$16,"") ->  | BZ23: =IF(COUNTIF($CZ23:$DS23,BZ$16),BZ$16,"") ->  | CA23: =IF(COUNTIF($CZ23:$DS23,CA$16),CA$16,"") -> 78 | CB23: =IF(COUNTIF($CZ23:$DS23,CB$16),CB$16,"") -> 79 | CC23: =IF(COUNTIF($CZ23:$DS23,CC$16),CC$16,"") ->  | CD23: =IF(COUNTIF($CZ23:$DS23,CD$16),CD$16,"") ->  | CE23: =IF(COUNTIF($CZ23:$DS23,CE$16),CE$16,"") ->  | CF23: =IF(COUNTIF($CZ23:$DS23,CF$16),CF$16,"") -> 83 | CG23: =IF(COUNTIF($CZ23:$DS23,CG$16),CG$16,"") ->  | CH23: =IF(COUNTIF($CZ23:$DS23,CH$16),CH$16,"") -> 85 | CI23: =IF(COUNTIF($CZ23:$DS23,CI$16),CI$16,"") ->  | CJ23: =IF(COUNTIF($CZ23:$DS23,CJ$16),CJ$16,"") ->  | CK23: =IF(COUNTIF($CZ23:$DS23,CK$16),CK$16,"") ->  | CL23: =IF(COUNTIF($CZ23:$DS23,CL$16),CL$16,"") ->  | CM23: =IF(COUNTIF($CZ23:$DS23,CM$16),CM$16,"") ->  | CN23: =IF(COUNTIF($CZ23:$DS23,CN$16),CN$16,"") ->  | CO23: =IF(COUNTIF($CZ23:$DS23,CO$16),CO$16,"") ->  | CP23: =IF(COUNTIF($CZ23:$DS23,CP$16),CP$16,"") ->  | CQ23: =IF(COUNTIF($CZ23:$DS23,CQ$16),CQ$16,"") ->  | CR23: =IF(COUNTIF($CZ23:$DS23,CR$16),CR$16,"") ->  | CS23: =IF(COUNTIF($CZ23:$DS23,CS$16),CS$16,"") ->  | CT23: =IF(COUNTIF($CZ23:$DS23,CT$16),CT$16,"") -> 97 | CU23: =IF(COUNTIF($CZ23:$DS23,CU$16),CU$16,"") ->  | CV23: =IF(COUNTIF($CZ23:$DS23,CV$16),CV$16,"") ->  | CW23: =IF(COUNTIF($CZ23:$DS23,0),0,"") ->  | CX23: 7 | CY23: 1863 | CZ23: =VLOOKUP($CY23,J!$A$2:$AW$4000,3,FALSE) -> 2 | DA23: =VLOOKUP($CY23,J!$A$2:$AW$4000,4,FALSE) -> 8 | DB23: =VLOOKUP($CY23,J!$A$2:$AW$4000,5,FALSE) -> 14 | DC23: =VLOOKUP($CY23,J!$A$2:$AW$4000,6,FALSE) -> 17 | DD23: =VLOOKUP($CY23,J!$A$2:$AW$4000,7,FALSE) -> 22 | DE23: =VLOOKUP($CY23,J!$A$2:$AW$4000,8,FALSE) -> 33 | DF23: =VLOOKUP($CY23,J!$A$2:$AW$4000,9,FALSE) -> 34 | DG23: =VLOOKUP($CY23,J!$A$2:$AW$4000,10,FALSE) -> 43 | DH23: =VLOOKUP($CY23,J!$A$2:$AW$4000,11,FALSE) -> 44 | DI23: =VLOOKUP($CY23,J!$A$2:$AW$4000,12,FALSE) -> 48 | DJ23: =VLOOKUP($CY23,J!$A$2:$AW$4000,13,FALSE) -> 53 | DK23: =VLOOKUP($CY23,J!$A$2:$AW$4000,14,FALSE) -> 56 | DL23: =VLOOKUP($CY23,J!$A$2:$AW$4000,15,FALSE) -> 60 | DM23: =VLOOKUP($CY23,J!$A$2:$AW$4000,16,FALSE) -> 70 | DN23: =VLOOKUP($CY23,J!$A$2:$AW$4000,17,FALSE) -> 72 | DO23: =VLOOKUP($CY23,J!$A$2:$AW$4000,18,FALSE) -> 78 | DP23: =VLOOKUP($CY23,J!$A$2:$AW$4000,19,FALSE) -> 79 | DQ23: =VLOOKUP($CY23,J!$A$2:$AW$4000,20,FALSE) -> 83 | DR23: =VLOOKUP($CY23,J!$A$2:$AW$4000,21,FALSE) -> 85 | DS23: =VLOOKUP($CY23,J!$A$2:$AW$4000,22,FALSE) -> 97
B24: =IF(COUNTIF($CZ24:$DS24,B$16),B$16,"") ->  | C24: =IF(COUNTIF($CZ24:$DS24,C$16),C$16,"") ->  | D24: =IF(COUNTIF($CZ24:$DS24,D$16),D$16,"") -> 3 | E24: =IF(COUNTIF($CZ24:$DS24,E$16),E$16,"") ->  | F24: =IF(COUNTIF($CZ24:$DS24,F$16),F$16,"") -> 5 | G24: =IF(COUNTIF($CZ24:$DS24,G$16),G$16,"") ->  | H24: =IF(COUNTIF($CZ24:$DS24,H$16),H$16,"") ->  | I24: =IF(COUNTIF($CZ24:$DS24,I$16),I$16,"") -> 8 | J24: =IF(COUNTIF($CZ24:$DS24,J$16),J$16,"") ->  | K24: =IF(COUNTIF($CZ24:$DS24,K$16),K$16,"") ->  | L24: =IF(COUNTIF($CZ24:$DS24,L$16),L$16,"") ->  | M24: =IF(COUNTIF($CZ24:$DS24,M$16),M$16,"") ->  | N24: =IF(COUNTIF($CZ24:$DS24,N$16),N$16,"") ->  | O24: =IF(COUNTIF($CZ24:$DS24,O$16),O$16,"") ->  | P24: =IF(COUNTIF($CZ24:$DS24,P$16),P$16,"") ->  | Q24: =IF(COUNTIF($CZ24:$DS24,Q$16),Q$16,"") ->  | R24: =IF(COUNTIF($CZ24:$DS24,R$16),R$16,"") ->  | S24: =IF(COUNTIF($CZ24:$DS24,S$16),S$16,"") -> 18 | T24: =IF(COUNTIF($CZ24:$DS24,T$16),T$16,"") ->  | U24: =IF(COUNTIF($CZ24:$DS24,U$16),U$16,"") ->  | V24: =IF(COUNTIF($CZ24:$DS24,V$16),V$16,"") ->  | W24: =IF(COUNTIF($CZ24:$DS24,W$16),W$16,"") ->  | X24: =IF(COUNTIF($CZ24:$DS24,X$16),X$16,"") ->  | Y24: =IF(COUNTIF($CZ24:$DS24,Y$16),Y$16,"") ->  | Z24: =IF(COUNTIF($CZ24:$DS24,Z$16),Z$16,"") ->  | AA24: =IF(COUNTIF($CZ24:$DS24,AA$16),AA$16,"") -> 26 | AB24: =IF(COUNTIF($CZ24:$DS24,AB$16),AB$16,"") ->  | AC24: =IF(COUNTIF($CZ24:$DS24,AC$16),AC$16,"") ->  | AD24: =IF(COUNTIF($CZ24:$DS24,AD$16),AD$16,"") ->  | AE24: =IF(COUNTIF($CZ24:$DS24,AE$16),AE$16,"") -> 30 | AF24: =IF(COUNTIF($CZ24:$DS24,AF$16),AF$16,"") ->  | AG24: =IF(COUNTIF($CZ24:$DS24,AG$16),AG$16,"") ->  | AH24: =IF(COUNTIF($CZ24:$DS24,AH$16),AH$16,"") ->  | AI24: =IF(COUNTIF($CZ24:$DS24,AI$16),AI$16,"") ->  | AJ24: =IF(COUNTIF($CZ24:$DS24,AJ$16),AJ$16,"") ->  | AK24: =IF(COUNTIF($CZ24:$DS24,AK$16),AK$16,"") ->  | AL24: =IF(COUNTIF($CZ24:$DS24,AL$16),AL$16,"") ->  | AM24: =IF(COUNTIF($CZ24:$DS24,AM$16),AM$16,"") -> 38 | AN24: =IF(COUNTIF($CZ24:$DS24,AN$16),AN$16,"") ->  | AO24: =IF(COUNTIF($CZ24:$DS24,AO$16),AO$16,"") ->  | AP24: =IF(COUNTIF($CZ24:$DS24,AP$16),AP$16,"") ->  | AQ24: =IF(COUNTIF($CZ24:$DS24,AQ$16),AQ$16,"") ->  | AR24: =IF(COUNTIF($CZ24:$DS24,AR$16),AR$16,"") -> 43 | AS24: =IF(COUNTIF($CZ24:$DS24,AS$16),AS$16,"") -> 44 | AT24: =IF(COUNTIF($CZ24:$DS24,AT$16),AT$16,"") ->  | AU24: =IF(COUNTIF($CZ24:$DS24,AU$16),AU$16,"") -> 46 | AV24: =IF(COUNTIF($CZ24:$DS24,AV$16),AV$16,"") ->  | AW24: =IF(COUNTIF($CZ24:$DS24,AW$16),AW$16,"") ->  | AX24: =IF(COUNTIF($CZ24:$DS24,AX$16),AX$16,"") -> 49 | AY24: =IF(COUNTIF($CZ24:$DS24,AY$16),AY$16,"") ->  | AZ24: =IF(COUNTIF($CZ24:$DS24,AZ$16),AZ$16,"") ->  | BA24: =IF(COUNTIF($CZ24:$DS24,BA$16),BA$16,"") ->  | BB24: =IF(COUNTIF($CZ24:$DS24,BB$16),BB$16,"") ->  | BC24: =IF(COUNTIF($CZ24:$DS24,BC$16),BC$16,"") -> 54 | BD24: =IF(COUNTIF($CZ24:$DS24,BD$16),BD$16,"") ->  | BE24: =IF(COUNTIF($CZ24:$DS24,BE$16),BE$16,"") ->  | BF24: =IF(COUNTIF($CZ24:$DS24,BF$16),BF$16,"") ->  | BG24: =IF(COUNTIF($CZ24:$DS24,BG$16),BG$16,"") ->  | BH24: =IF(COUNTIF($CZ24:$DS24,BH$16),BH$16,"") ->  | BI24: =IF(COUNTIF($CZ24:$DS24,BI$16),BI$16,"") -> 60 | BJ24: =IF(COUNTIF($CZ24:$DS24,BJ$16),BJ$16,"") -> 61 | BK24: =IF(COUNTIF($CZ24:$DS24,BK$16),BK$16,"") ->  | BL24: =IF(COUNTIF($CZ24:$DS24,BL$16),BL$16,"") ->  | BM24: =IF(COUNTIF($CZ24:$DS24,BM$16),BM$16,"") ->  | BN24: =IF(COUNTIF($CZ24:$DS24,BN$16),BN$16,"") -> 65 | BO24: =IF(COUNTIF($CZ24:$DS24,BO$16),BO$16,"") ->  | BP24: =IF(COUNTIF($CZ24:$DS24,BP$16),BP$16,"") ->  | BQ24: =IF(COUNTIF($CZ24:$DS24,BQ$16),BQ$16,"") ->  | BR24: =IF(COUNTIF($CZ24:$DS24,BR$16),BR$16,"") ->  | BS24: =IF(COUNTIF($CZ24:$DS24,BS$16),BS$16,"") -> 70 | BT24: =IF(COUNTIF($CZ24:$DS24,BT$16),BT$16,"") -> 71 | BU24: =IF(COUNTIF($CZ24:$DS24,BU$16),BU$16,"") -> 72 | BV24: =IF(COUNTIF($CZ24:$DS24,BV$16),BV$16,"") ->  | BW24: =IF(COUNTIF($CZ24:$DS24,BW$16),BW$16,"") ->  | BX24: =IF(COUNTIF($CZ24:$DS24,BX$16),BX$16,"") ->  | BY24: =IF(COUNTIF($CZ24:$DS24,BY$16),BY$16,"") ->  | BZ24: =IF(COUNTIF($CZ24:$DS24,BZ$16),BZ$16,"") ->  | CA24: =IF(COUNTIF($CZ24:$DS24,CA$16),CA$16,"") ->  | CB24: =IF(COUNTIF($CZ24:$DS24,CB$16),CB$16,"") ->  | CC24: =IF(COUNTIF($CZ24:$DS24,CC$16),CC$16,"") ->  | CD24: =IF(COUNTIF($CZ24:$DS24,CD$16),CD$16,"") ->  | CE24: =IF(COUNTIF($CZ24:$DS24,CE$16),CE$16,"") ->  | CF24: =IF(COUNTIF($CZ24:$DS24,CF$16),CF$16,"") ->  | CG24: =IF(COUNTIF($CZ24:$DS24,CG$16),CG$16,"") ->  | CH24: =IF(COUNTIF($CZ24:$DS24,CH$16),CH$16,"") ->  | CI24: =IF(COUNTIF($CZ24:$DS24,CI$16),CI$16,"") ->  | CJ24: =IF(COUNTIF($CZ24:$DS24,CJ$16),CJ$16,"") -> 87 | CK24: =IF(COUNTIF($CZ24:$DS24,CK$16),CK$16,"") ->  | CL24: =IF(COUNTIF($CZ24:$DS24,CL$16),CL$16,"") ->  | CM24: =IF(COUNTIF($CZ24:$DS24,CM$16),CM$16,"") ->  | CN24: =IF(COUNTIF($CZ24:$DS24,CN$16),CN$16,"") ->  | CO24: =IF(COUNTIF($CZ24:$DS24,CO$16),CO$16,"") ->  | CP24: =IF(COUNTIF($CZ24:$DS24,CP$16),CP$16,"") ->  | CQ24: =IF(COUNTIF($CZ24:$DS24,CQ$16),CQ$16,"") ->  | CR24: =IF(COUNTIF($CZ24:$DS24,CR$16),CR$16,"") -> 95 | CS24: =IF(COUNTIF($CZ24:$DS24,CS$16),CS$16,"") ->  | CT24: =IF(COUNTIF($CZ24:$DS24,CT$16),CT$16,"") ->  | CU24: =IF(COUNTIF($CZ24:$DS24,CU$16),CU$16,"") ->  | CV24: =IF(COUNTIF($CZ24:$DS24,CV$16),CV$16,"") ->  | CW24: =IF(COUNTIF($CZ24:$DS24,0),0,"") ->  | CX24: 8 | CY24: 1862 | CZ24: =VLOOKUP($CY24,J!$A$2:$AW$4000,3,FALSE) -> 3 | DA24: =VLOOKUP($CY24,J!$A$2:$AW$4000,4,FALSE) -> 5 | DB24: =VLOOKUP($CY24,J!$A$2:$AW$4000,5,FALSE) -> 8 | DC24: =VLOOKUP($CY24,J!$A$2:$AW$4000,6,FALSE) -> 18 | DD24: =VLOOKUP($CY24,J!$A$2:$AW$4000,7,FALSE) -> 26 | DE24: =VLOOKUP($CY24,J!$A$2:$AW$4000,8,FALSE) -> 30 | DF24: =VLOOKUP($CY24,J!$A$2:$AW$4000,9,FALSE) -> 38 | DG24: =VLOOKUP($CY24,J!$A$2:$AW$4000,10,FALSE) -> 43 | DH24: =VLOOKUP($CY24,J!$A$2:$AW$4000,11,FALSE) -> 44 | DI24: =VLOOKUP($CY24,J!$A$2:$AW$4000,12,FALSE) -> 46 | DJ24: =VLOOKUP($CY24,J!$A$2:$AW$4000,13,FALSE) -> 49 | DK24: =VLOOKUP($CY24,J!$A$2:$AW$4000,14,FALSE) -> 54 | DL24: =VLOOKUP($CY24,J!$A$2:$AW$4000,15,FALSE) -> 60 | DM24: =VLOOKUP($CY24,J!$A$2:$AW$4000,16,FALSE) -> 61 | DN24: =VLOOKUP($CY24,J!$A$2:$AW$4000,17,FALSE) -> 65 | DO24: =VLOOKUP($CY24,J!$A$2:$AW$4000,18,FALSE) -> 70 | DP24: =VLOOKUP($CY24,J!$A$2:$AW$4000,19,FALSE) -> 71 | DQ24: =VLOOKUP($CY24,J!$A$2:$AW$4000,20,FALSE) -> 72 | DR24: =VLOOKUP($CY24,J!$A$2:$AW$4000,21,FALSE) -> 87 | DS24: =VLOOKUP($CY24,J!$A$2:$AW$4000,22,FALSE) -> 95
B25: =IF(COUNTIF($CZ25:$DS25,B$16),B$16,"") -> 1 | C25: =IF(COUNTIF($CZ25:$DS25,C$16),C$16,"") ->  | D25: =IF(COUNTIF($CZ25:$DS25,D$16),D$16,"") ->  | E25: =IF(COUNTIF($CZ25:$DS25,E$16),E$16,"") ->  | F25: =IF(COUNTIF($CZ25:$DS25,F$16),F$16,"") ->  | G25: =IF(COUNTIF($CZ25:$DS25,G$16),G$16,"") ->  | H25: =IF(COUNTIF($CZ25:$DS25,H$16),H$16,"") ->  | I25: =IF(COUNTIF($CZ25:$DS25,I$16),I$16,"") -> 8 | J25: =IF(COUNTIF($CZ25:$DS25,J$16),J$16,"") ->  | K25: =IF(COUNTIF($CZ25:$DS25,K$16),K$16,"") ->  | L25: =IF(COUNTIF($CZ25:$DS25,L$16),L$16,"") ->  | M25: =IF(COUNTIF($CZ25:$DS25,M$16),M$16,"") ->  | N25: =IF(COUNTIF($CZ25:$DS25,N$16),N$16,"") -> 13 | O25: =IF(COUNTIF($CZ25:$DS25,O$16),O$16,"") ->  | P25: =IF(COUNTIF($CZ25:$DS25,P$16),P$16,"") -> 15 | Q25: =IF(COUNTIF($CZ25:$DS25,Q$16),Q$16,"") ->  | R25: =IF(COUNTIF($CZ25:$DS25,R$16),R$16,"") ->  | S25: =IF(COUNTIF($CZ25:$DS25,S$16),S$16,"") ->  | T25: =IF(COUNTIF($CZ25:$DS25,T$16),T$16,"") ->  | U25: =IF(COUNTIF($CZ25:$DS25,U$16),U$16,"") ->  | V25: =IF(COUNTIF($CZ25:$DS25,V$16),V$16,"") ->  | W25: =IF(COUNTIF($CZ25:$DS25,W$16),W$16,"") ->  | X25: =IF(COUNTIF($CZ25:$DS25,X$16),X$16,"") ->  | Y25: =IF(COUNTIF($CZ25:$DS25,Y$16),Y$16,"") ->  | Z25: =IF(COUNTIF($CZ25:$DS25,Z$16),Z$16,"") ->  | AA25: =IF(COUNTIF($CZ25:$DS25,AA$16),AA$16,"") ->  | AB25: =IF(COUNTIF($CZ25:$DS25,AB$16),AB$16,"") -> 27 | AC25: =IF(COUNTIF($CZ25:$DS25,AC$16),AC$16,"") ->  | AD25: =IF(COUNTIF($CZ25:$DS25,AD$16),AD$16,"") ->  | AE25: =IF(COUNTIF($CZ25:$DS25,AE$16),AE$16,"") ->  | AF25: =IF(COUNTIF($CZ25:$DS25,AF$16),AF$16,"") ->  | AG25: =IF(COUNTIF($CZ25:$DS25,AG$16),AG$16,"") ->  | AH25: =IF(COUNTIF($CZ25:$DS25,AH$16),AH$16,"") ->  | AI25: =IF(COUNTIF($CZ25:$DS25,AI$16),AI$16,"") ->  | AJ25: =IF(COUNTIF($CZ25:$DS25,AJ$16),AJ$16,"") ->  | AK25: =IF(COUNTIF($CZ25:$DS25,AK$16),AK$16,"") ->  | AL25: =IF(COUNTIF($CZ25:$DS25,AL$16),AL$16,"") ->  | AM25: =IF(COUNTIF($CZ25:$DS25,AM$16),AM$16,"") -> 38 | AN25: =IF(COUNTIF($CZ25:$DS25,AN$16),AN$16,"") ->  | AO25: =IF(COUNTIF($CZ25:$DS25,AO$16),AO$16,"") ->  | AP25: =IF(COUNTIF($CZ25:$DS25,AP$16),AP$16,"") -> 41 | AQ25: =IF(COUNTIF($CZ25:$DS25,AQ$16),AQ$16,"") ->  | AR25: =IF(COUNTIF($CZ25:$DS25,AR$16),AR$16,"") ->  | AS25: =IF(COUNTIF($CZ25:$DS25,AS$16),AS$16,"") ->  | AT25: =IF(COUNTIF($CZ25:$DS25,AT$16),AT$16,"") ->  | AU25: =IF(COUNTIF($CZ25:$DS25,AU$16),AU$16,"") ->  | AV25: =IF(COUNTIF($CZ25:$DS25,AV$16),AV$16,"") ->  | AW25: =IF(COUNTIF($CZ25:$DS25,AW$16),AW$16,"") ->  | AX25: =IF(COUNTIF($CZ25:$DS25,AX$16),AX$16,"") -> 49 | AY25: =IF(COUNTIF($CZ25:$DS25,AY$16),AY$16,"") ->  | AZ25: =IF(COUNTIF($CZ25:$DS25,AZ$16),AZ$16,"") ->  | BA25: =IF(COUNTIF($CZ25:$DS25,BA$16),BA$16,"") -> 52 | BB25: =IF(COUNTIF($CZ25:$DS25,BB$16),BB$16,"") ->  | BC25: =IF(COUNTIF($CZ25:$DS25,BC$16),BC$16,"") ->  | BD25: =IF(COUNTIF($CZ25:$DS25,BD$16),BD$16,"") ->  | BE25: =IF(COUNTIF($CZ25:$DS25,BE$16),BE$16,"") ->  | BF25: =IF(COUNTIF($CZ25:$DS25,BF$16),BF$16,"") ->  | BG25: =IF(COUNTIF($CZ25:$DS25,BG$16),BG$16,"") ->  | BH25: =IF(COUNTIF($CZ25:$DS25,BH$16),BH$16,"") ->  | BI25: =IF(COUNTIF($CZ25:$DS25,BI$16),BI$16,"") -> 60 | BJ25: =IF(COUNTIF($CZ25:$DS25,BJ$16),BJ$16,"") ->  | BK25: =IF(COUNTIF($CZ25:$DS25,BK$16),BK$16,"") ->  | BL25: =IF(COUNTIF($CZ25:$DS25,BL$16),BL$16,"") -> 63 | BM25: =IF(COUNTIF($CZ25:$DS25,BM$16),BM$16,"") -> 64 | BN25: =IF(COUNTIF($CZ25:$DS25,BN$16),BN$16,"") ->  | BO25: =IF(COUNTIF($CZ25:$DS25,BO$16),BO$16,"") ->  | BP25: =IF(COUNTIF($CZ25:$DS25,BP$16),BP$16,"") ->  | BQ25: =IF(COUNTIF($CZ25:$DS25,BQ$16),BQ$16,"") ->  | BR25: =IF(COUNTIF($CZ25:$DS25,BR$16),BR$16,"") -> 69 | BS25: =IF(COUNTIF($CZ25:$DS25,BS$16),BS$16,"") ->  | BT25: =IF(COUNTIF($CZ25:$DS25,BT$16),BT$16,"") ->  | BU25: =IF(COUNTIF($CZ25:$DS25,BU$16),BU$16,"") -> 72 | BV25: =IF(COUNTIF($CZ25:$DS25,BV$16),BV$16,"") ->  | BW25: =IF(COUNTIF($CZ25:$DS25,BW$16),BW$16,"") ->  | BX25: =IF(COUNTIF($CZ25:$DS25,BX$16),BX$16,"") -> 75 | BY25: =IF(COUNTIF($CZ25:$DS25,BY$16),BY$16,"") -> 76 | BZ25: =IF(COUNTIF($CZ25:$DS25,BZ$16),BZ$16,"") ->  | CA25: =IF(COUNTIF($CZ25:$DS25,CA$16),CA$16,"") ->  | CB25: =IF(COUNTIF($CZ25:$DS25,CB$16),CB$16,"") ->  | CC25: =IF(COUNTIF($CZ25:$DS25,CC$16),CC$16,"") ->  | CD25: =IF(COUNTIF($CZ25:$DS25,CD$16),CD$16,"") ->  | CE25: =IF(COUNTIF($CZ25:$DS25,CE$16),CE$16,"") ->  | CF25: =IF(COUNTIF($CZ25:$DS25,CF$16),CF$16,"") ->  | CG25: =IF(COUNTIF($CZ25:$DS25,CG$16),CG$16,"") ->  | CH25: =IF(COUNTIF($CZ25:$DS25,CH$16),CH$16,"") ->  | CI25: =IF(COUNTIF($CZ25:$DS25,CI$16),CI$16,"") ->  | CJ25: =IF(COUNTIF($CZ25:$DS25,CJ$16),CJ$16,"") ->  | CK25: =IF(COUNTIF($CZ25:$DS25,CK$16),CK$16,"") ->  | CL25: =IF(COUNTIF($CZ25:$DS25,CL$16),CL$16,"") -> 89 | CM25: =IF(COUNTIF($CZ25:$DS25,CM$16),CM$16,"") ->  | CN25: =IF(COUNTIF($CZ25:$DS25,CN$16),CN$16,"") -> 91 | CO25: =IF(COUNTIF($CZ25:$DS25,CO$16),CO$16,"") ->  | CP25: =IF(COUNTIF($CZ25:$DS25,CP$16),CP$16,"") -> 93 | CQ25: =IF(COUNTIF($CZ25:$DS25,CQ$16),CQ$16,"") ->  | CR25: =IF(COUNTIF($CZ25:$DS25,CR$16),CR$16,"") ->  | CS25: =IF(COUNTIF($CZ25:$DS25,CS$16),CS$16,"") -> 96 | CT25: =IF(COUNTIF($CZ25:$DS25,CT$16),CT$16,"") ->  | CU25: =IF(COUNTIF($CZ25:$DS25,CU$16),CU$16,"") ->  | CV25: =IF(COUNTIF($CZ25:$DS25,CV$16),CV$16,"") ->  | CW25: =IF(COUNTIF($CZ25:$DS25,0),0,"") ->  | CX25: 9 | CY25: 1861 | CZ25: =VLOOKUP($CY25,J!$A$2:$AW$4000,3,FALSE) -> 1 | DA25: =VLOOKUP($CY25,J!$A$2:$AW$4000,4,FALSE) -> 8 | DB25: =VLOOKUP($CY25,J!$A$2:$AW$4000,5,FALSE) -> 13 | DC25: =VLOOKUP($CY25,J!$A$2:$AW$4000,6,FALSE) -> 15 | DD25: =VLOOKUP($CY25,J!$A$2:$AW$4000,7,FALSE) -> 27 | DE25: =VLOOKUP($CY25,J!$A$2:$AW$4000,8,FALSE) -> 38 | DF25: =VLOOKUP($CY25,J!$A$2:$AW$4000,9,FALSE) -> 41 | DG25: =VLOOKUP($CY25,J!$A$2:$AW$4000,10,FALSE) -> 49 | DH25: =VLOOKUP($CY25,J!$A$2:$AW$4000,11,FALSE) -> 52 | DI25: =VLOOKUP($CY25,J!$A$2:$AW$4000,12,FALSE) -> 60 | DJ25: =VLOOKUP($CY25,J!$A$2:$AW$4000,13,FALSE) -> 63 | DK25: =VLOOKUP($CY25,J!$A$2:$AW$4000,14,FALSE) -> 64 | DL25: =VLOOKUP($CY25,J!$A$2:$AW$4000,15,FALSE) -> 69 | DM25: =VLOOKUP($CY25,J!$A$2:$AW$4000,16,FALSE) -> 72 | DN25: =VLOOKUP($CY25,J!$A$2:$AW$4000,17,FALSE) -> 75 | DO25: =VLOOKUP($CY25,J!$A$2:$AW$4000,18,FALSE) -> 76 | DP25: =VLOOKUP($CY25,J!$A$2:$AW$4000,19,FALSE) -> 89 | DQ25: =VLOOKUP($CY25,J!$A$2:$AW$4000,20,FALSE) -> 91 | DR25: =VLOOKUP($CY25,J!$A$2:$AW$4000,21,FALSE) -> 93 | DS25: =VLOOKUP($CY25,J!$A$2:$AW$4000,22,FALSE) -> 96
B26: =IF(COUNTIF($CZ26:$DS26,B$16),B$16,"") ->  | C26: =IF(COUNTIF($CZ26:$DS26,C$16),C$16,"") ->  | D26: =IF(COUNTIF($CZ26:$DS26,D$16),D$16,"") ->  | E26: =IF(COUNTIF($CZ26:$DS26,E$16),E$16,"") ->  | F26: =IF(COUNTIF($CZ26:$DS26,F$16),F$16,"") ->  | G26: =IF(COUNTIF($CZ26:$DS26,G$16),G$16,"") -> 6 | H26: =IF(COUNTIF($CZ26:$DS26,H$16),H$16,"") ->  | I26: =IF(COUNTIF($CZ26:$DS26,I$16),I$16,"") ->  | J26: =IF(COUNTIF($CZ26:$DS26,J$16),J$16,"") -> 9 | K26: =IF(COUNTIF($CZ26:$DS26,K$16),K$16,"") ->  | L26: =IF(COUNTIF($CZ26:$DS26,L$16),L$16,"") -> 11 | M26: =IF(COUNTIF($CZ26:$DS26,M$16),M$16,"") ->  | N26: =IF(COUNTIF($CZ26:$DS26,N$16),N$16,"") -> 13 | O26: =IF(COUNTIF($CZ26:$DS26,O$16),O$16,"") ->  | P26: =IF(COUNTIF($CZ26:$DS26,P$16),P$16,"") ->  | Q26: =IF(COUNTIF($CZ26:$DS26,Q$16),Q$16,"") ->  | R26: =IF(COUNTIF($CZ26:$DS26,R$16),R$16,"") ->  | S26: =IF(COUNTIF($CZ26:$DS26,S$16),S$16,"") ->  | T26: =IF(COUNTIF($CZ26:$DS26,T$16),T$16,"") ->  | U26: =IF(COUNTIF($CZ26:$DS26,U$16),U$16,"") ->  | V26: =IF(COUNTIF($CZ26:$DS26,V$16),V$16,"") ->  | W26: =IF(COUNTIF($CZ26:$DS26,W$16),W$16,"") ->  | X26: =IF(COUNTIF($CZ26:$DS26,X$16),X$16,"") ->  | Y26: =IF(COUNTIF($CZ26:$DS26,Y$16),Y$16,"") ->  | Z26: =IF(COUNTIF($CZ26:$DS26,Z$16),Z$16,"") ->  | AA26: =IF(COUNTIF($CZ26:$DS26,AA$16),AA$16,"") ->  | AB26: =IF(COUNTIF($CZ26:$DS26,AB$16),AB$16,"") -> 27 | AC26: =IF(COUNTIF($CZ26:$DS26,AC$16),AC$16,"") ->  | AD26: =IF(COUNTIF($CZ26:$DS26,AD$16),AD$16,"") ->  | AE26: =IF(COUNTIF($CZ26:$DS26,AE$16),AE$16,"") -> 30 | AF26: =IF(COUNTIF($CZ26:$DS26,AF$16),AF$16,"") ->  | AG26: =IF(COUNTIF($CZ26:$DS26,AG$16),AG$16,"") ->  | AH26: =IF(COUNTIF($CZ26:$DS26,AH$16),AH$16,"") ->  | AI26: =IF(COUNTIF($CZ26:$DS26,AI$16),AI$16,"") ->  | AJ26: =IF(COUNTIF($CZ26:$DS26,AJ$16),AJ$16,"") ->  | AK26: =IF(COUNTIF($CZ26:$DS26,AK$16),AK$16,"") ->  | AL26: =IF(COUNTIF($CZ26:$DS26,AL$16),AL$16,"") ->  | AM26: =IF(COUNTIF($CZ26:$DS26,AM$16),AM$16,"") -> 38 | AN26: =IF(COUNTIF($CZ26:$DS26,AN$16),AN$16,"") ->  | AO26: =IF(COUNTIF($CZ26:$DS26,AO$16),AO$16,"") ->  | AP26: =IF(COUNTIF($CZ26:$DS26,AP$16),AP$16,"") ->  | AQ26: =IF(COUNTIF($CZ26:$DS26,AQ$16),AQ$16,"") ->  | AR26: =IF(COUNTIF($CZ26:$DS26,AR$16),AR$16,"") ->  | AS26: =IF(COUNTIF($CZ26:$DS26,AS$16),AS$16,"") ->  | AT26: =IF(COUNTIF($CZ26:$DS26,AT$16),AT$16,"") ->  | AU26: =IF(COUNTIF($CZ26:$DS26,AU$16),AU$16,"") ->  | AV26: =IF(COUNTIF($CZ26:$DS26,AV$16),AV$16,"") ->  | AW26: =IF(COUNTIF($CZ26:$DS26,AW$16),AW$16,"") ->  | AX26: =IF(COUNTIF($CZ26:$DS26,AX$16),AX$16,"") ->  | AY26: =IF(COUNTIF($CZ26:$DS26,AY$16),AY$16,"") ->  | AZ26: =IF(COUNTIF($CZ26:$DS26,AZ$16),AZ$16,"") -> 51 | BA26: =IF(COUNTIF($CZ26:$DS26,BA$16),BA$16,"") ->  | BB26: =IF(COUNTIF($CZ26:$DS26,BB$16),BB$16,"") ->  | BC26: =IF(COUNTIF($CZ26:$DS26,BC$16),BC$16,"") ->  | BD26: =IF(COUNTIF($CZ26:$DS26,BD$16),BD$16,"") ->  | BE26: =IF(COUNTIF($CZ26:$DS26,BE$16),BE$16,"") -> 56 | BF26: =IF(COUNTIF($CZ26:$DS26,BF$16),BF$16,"") ->  | BG26: =IF(COUNTIF($CZ26:$DS26,BG$16),BG$16,"") ->  | BH26: =IF(COUNTIF($CZ26:$DS26,BH$16),BH$16,"") ->  | BI26: =IF(COUNTIF($CZ26:$DS26,BI$16),BI$16,"") ->  | BJ26: =IF(COUNTIF($CZ26:$DS26,BJ$16),BJ$16,"") ->  | BK26: =IF(COUNTIF($CZ26:$DS26,BK$16),BK$16,"") ->  | BL26: =IF(COUNTIF($CZ26:$DS26,BL$16),BL$16,"") ->  | BM26: =IF(COUNTIF($CZ26:$DS26,BM$16),BM$16,"") ->  | BN26: =IF(COUNTIF($CZ26:$DS26,BN$16),BN$16,"") -> 65 | BO26: =IF(COUNTIF($CZ26:$DS26,BO$16),BO$16,"") ->  | BP26: =IF(COUNTIF($CZ26:$DS26,BP$16),BP$16,"") ->  | BQ26: =IF(COUNTIF($CZ26:$DS26,BQ$16),BQ$16,"") ->  | BR26: =IF(COUNTIF($CZ26:$DS26,BR$16),BR$16,"") ->  | BS26: =IF(COUNTIF($CZ26:$DS26,BS$16),BS$16,"") ->  | BT26: =IF(COUNTIF($CZ26:$DS26,BT$16),BT$16,"") ->  | BU26: =IF(COUNTIF($CZ26:$DS26,BU$16),BU$16,"") ->  | BV26: =IF(COUNTIF($CZ26:$DS26,BV$16),BV$16,"") -> 73 | BW26: =IF(COUNTIF($CZ26:$DS26,BW$16),BW$16,"") ->  | BX26: =IF(COUNTIF($CZ26:$DS26,BX$16),BX$16,"") -> 75 | BY26: =IF(COUNTIF($CZ26:$DS26,BY$16),BY$16,"") ->  | BZ26: =IF(COUNTIF($CZ26:$DS26,BZ$16),BZ$16,"") -> 77 | CA26: =IF(COUNTIF($CZ26:$DS26,CA$16),CA$16,"") -> 78 | CB26: =IF(COUNTIF($CZ26:$DS26,CB$16),CB$16,"") -> 79 | CC26: =IF(COUNTIF($CZ26:$DS26,CC$16),CC$16,"") -> 80 | CD26: =IF(COUNTIF($CZ26:$DS26,CD$16),CD$16,"") ->  | CE26: =IF(COUNTIF($CZ26:$DS26,CE$16),CE$16,"") ->  | CF26: =IF(COUNTIF($CZ26:$DS26,CF$16),CF$16,"") ->  | CG26: =IF(COUNTIF($CZ26:$DS26,CG$16),CG$16,"") ->  | CH26: =IF(COUNTIF($CZ26:$DS26,CH$16),CH$16,"") ->  | CI26: =IF(COUNTIF($CZ26:$DS26,CI$16),CI$16,"") ->  | CJ26: =IF(COUNTIF($CZ26:$DS26,CJ$16),CJ$16,"") ->  | CK26: =IF(COUNTIF($CZ26:$DS26,CK$16),CK$16,"") ->  | CL26: =IF(COUNTIF($CZ26:$DS26,CL$16),CL$16,"") ->  | CM26: =IF(COUNTIF($CZ26:$DS26,CM$16),CM$16,"") ->  | CN26: =IF(COUNTIF($CZ26:$DS26,CN$16),CN$16,"") -> 91 | CO26: =IF(COUNTIF($CZ26:$DS26,CO$16),CO$16,"") -> 92 | CP26: =IF(COUNTIF($CZ26:$DS26,CP$16),CP$16,"") ->  | CQ26: =IF(COUNTIF($CZ26:$DS26,CQ$16),CQ$16,"") ->  | CR26: =IF(COUNTIF($CZ26:$DS26,CR$16),CR$16,"") -> 95 | CS26: =IF(COUNTIF($CZ26:$DS26,CS$16),CS$16,"") ->  | CT26: =IF(COUNTIF($CZ26:$DS26,CT$16),CT$16,"") ->  | CU26: =IF(COUNTIF($CZ26:$DS26,CU$16),CU$16,"") ->  | CV26: =IF(COUNTIF($CZ26:$DS26,CV$16),CV$16,"") -> 99 | CW26: =IF(COUNTIF($CZ26:$DS26,0),0,"") ->  | CX26: 10 | CY26: 1860 | CZ26: =VLOOKUP($CY26,J!$A$2:$AW$4000,3,FALSE) -> 6 | DA26: =VLOOKUP($CY26,J!$A$2:$AW$4000,4,FALSE) -> 9 | DB26: =VLOOKUP($CY26,J!$A$2:$AW$4000,5,FALSE) -> 11 | DC26: =VLOOKUP($CY26,J!$A$2:$AW$4000,6,FALSE) -> 13 | DD26: =VLOOKUP($CY26,J!$A$2:$AW$4000,7,FALSE) -> 27 | DE26: =VLOOKUP($CY26,J!$A$2:$AW$4000,8,FALSE) -> 30 | DF26: =VLOOKUP($CY26,J!$A$2:$AW$4000,9,FALSE) -> 38 | DG26: =VLOOKUP($CY26,J!$A$2:$AW$4000,10,FALSE) -> 51 | DH26: =VLOOKUP($CY26,J!$A$2:$AW$4000,11,FALSE) -> 56 | DI26: =VLOOKUP($CY26,J!$A$2:$AW$4000,12,FALSE) -> 65 | DJ26: =VLOOKUP($CY26,J!$A$2:$AW$4000,13,FALSE) -> 73 | DK26: =VLOOKUP($CY26,J!$A$2:$AW$4000,14,FALSE) -> 75 | DL26: =VLOOKUP($CY26,J!$A$2:$AW$4000,15,FALSE) -> 77 | DM26: =VLOOKUP($CY26,J!$A$2:$AW$4000,16,FALSE) -> 78 | DN26: =VLOOKUP($CY26,J!$A$2:$AW$4000,17,FALSE) -> 79 | DO26: =VLOOKUP($CY26,J!$A$2:$AW$4000,18,FALSE) -> 80 | DP26: =VLOOKUP($CY26,J!$A$2:$AW$4000,19,FALSE) -> 91 | DQ26: =VLOOKUP($CY26,J!$A$2:$AW$4000,20,FALSE) -> 92 | DR26: =VLOOKUP($CY26,J!$A$2:$AW$4000,21,FALSE) -> 95 | DS26: =VLOOKUP($CY26,J!$A$2:$AW$4000,22,FALSE) -> 99
B27: =IF(COUNTIF($CZ27:$DS27,B$16),B$16,"") ->  | C27: =IF(COUNTIF($CZ27:$DS27,C$16),C$16,"") ->  | D27: =IF(COUNTIF($CZ27:$DS27,D$16),D$16,"") ->  | E27: =IF(COUNTIF($CZ27:$DS27,E$16),E$16,"") ->  | F27: =IF(COUNTIF($CZ27:$DS27,F$16),F$16,"") ->  | G27: =IF(COUNTIF($CZ27:$DS27,G$16),G$16,"") ->  | H27: =IF(COUNTIF($CZ27:$DS27,H$16),H$16,"") -> 7 | I27: =IF(COUNTIF($CZ27:$DS27,I$16),I$16,"") ->  | J27: =IF(COUNTIF($CZ27:$DS27,J$16),J$16,"") ->  | K27: =IF(COUNTIF($CZ27:$DS27,K$16),K$16,"") ->  | L27: =IF(COUNTIF($CZ27:$DS27,L$16),L$16,"") -> 11 | M27: =IF(COUNTIF($CZ27:$DS27,M$16),M$16,"") -> 12 | N27: =IF(COUNTIF($CZ27:$DS27,N$16),N$16,"") ->  | O27: =IF(COUNTIF($CZ27:$DS27,O$16),O$16,"") ->  | P27: =IF(COUNTIF($CZ27:$DS27,P$16),P$16,"") ->  | Q27: =IF(COUNTIF($CZ27:$DS27,Q$16),Q$16,"") ->  | R27: =IF(COUNTIF($CZ27:$DS27,R$16),R$16,"") ->  | S27: =IF(COUNTIF($CZ27:$DS27,S$16),S$16,"") ->  | T27: =IF(COUNTIF($CZ27:$DS27,T$16),T$16,"") ->  | U27: =IF(COUNTIF($CZ27:$DS27,U$16),U$16,"") ->  | V27: =IF(COUNTIF($CZ27:$DS27,V$16),V$16,"") ->  | W27: =IF(COUNTIF($CZ27:$DS27,W$16),W$16,"") ->  | X27: =IF(COUNTIF($CZ27:$DS27,X$16),X$16,"") ->  | Y27: =IF(COUNTIF($CZ27:$DS27,Y$16),Y$16,"") -> 24 | Z27: =IF(COUNTIF($CZ27:$DS27,Z$16),Z$16,"") ->  | AA27: =IF(COUNTIF($CZ27:$DS27,AA$16),AA$16,"") ->  | AB27: =IF(COUNTIF($CZ27:$DS27,AB$16),AB$16,"") ->  | AC27: =IF(COUNTIF($CZ27:$DS27,AC$16),AC$16,"") ->  | AD27: =IF(COUNTIF($CZ27:$DS27,AD$16),AD$16,"") ->  | AE27: =IF(COUNTIF($CZ27:$DS27,AE$16),AE$16,"") ->  | AF27: =IF(COUNTIF($CZ27:$DS27,AF$16),AF$16,"") ->  | AG27: =IF(COUNTIF($CZ27:$DS27,AG$16),AG$16,"") -> 32 | AH27: =IF(COUNTIF($CZ27:$DS27,AH$16),AH$16,"") ->  | AI27: =IF(COUNTIF($CZ27:$DS27,AI$16),AI$16,"") ->  | AJ27: =IF(COUNTIF($CZ27:$DS27,AJ$16),AJ$16,"") ->  | AK27: =IF(COUNTIF($CZ27:$DS27,AK$16),AK$16,"") ->  | AL27: =IF(COUNTIF($CZ27:$DS27,AL$16),AL$16,"") -> 37 | AM27: =IF(COUNTIF($CZ27:$DS27,AM$16),AM$16,"") ->  | AN27: =IF(COUNTIF($CZ27:$DS27,AN$16),AN$16,"") -> 39 | AO27: =IF(COUNTIF($CZ27:$DS27,AO$16),AO$16,"") ->  | AP27: =IF(COUNTIF($CZ27:$DS27,AP$16),AP$16,"") ->  | AQ27: =IF(COUNTIF($CZ27:$DS27,AQ$16),AQ$16,"") ->  | AR27: =IF(COUNTIF($CZ27:$DS27,AR$16),AR$16,"") ->  | AS27: =IF(COUNTIF($CZ27:$DS27,AS$16),AS$16,"") ->  | AT27: =IF(COUNTIF($CZ27:$DS27,AT$16),AT$16,"") ->  | AU27: =IF(COUNTIF($CZ27:$DS27,AU$16),AU$16,"") ->  | AV27: =IF(COUNTIF($CZ27:$DS27,AV$16),AV$16,"") -> 47 | AW27: =IF(COUNTIF($CZ27:$DS27,AW$16),AW$16,"") -> 48 | AX27: =IF(COUNTIF($CZ27:$DS27,AX$16),AX$16,"") ->  | AY27: =IF(COUNTIF($CZ27:$DS27,AY$16),AY$16,"") ->  | AZ27: =IF(COUNTIF($CZ27:$DS27,AZ$16),AZ$16,"") ->  | BA27: =IF(COUNTIF($CZ27:$DS27,BA$16),BA$16,"") ->  | BB27: =IF(COUNTIF($CZ27:$DS27,BB$16),BB$16,"") ->  | BC27: =IF(COUNTIF($CZ27:$DS27,BC$16),BC$16,"") ->  | BD27: =IF(COUNTIF($CZ27:$DS27,BD$16),BD$16,"") ->  | BE27: =IF(COUNTIF($CZ27:$DS27,BE$16),BE$16,"") ->  | BF27: =IF(COUNTIF($CZ27:$DS27,BF$16),BF$16,"") -> 57 | BG27: =IF(COUNTIF($CZ27:$DS27,BG$16),BG$16,"") -> 58 | BH27: =IF(COUNTIF($CZ27:$DS27,BH$16),BH$16,"") ->  | BI27: =IF(COUNTIF($CZ27:$DS27,BI$16),BI$16,"") -> 60 | BJ27: =IF(COUNTIF($CZ27:$DS27,BJ$16),BJ$16,"") ->  | BK27: =IF(COUNTIF($CZ27:$DS27,BK$16),BK$16,"") ->  | BL27: =IF(COUNTIF($CZ27:$DS27,BL$16),BL$16,"") ->  | BM27: =IF(COUNTIF($CZ27:$DS27,BM$16),BM$16,"") ->  | BN27: =IF(COUNTIF($CZ27:$DS27,BN$16),BN$16,"") -> 65 | BO27: =IF(COUNTIF($CZ27:$DS27,BO$16),BO$16,"") -> 66 | BP27: =IF(COUNTIF($CZ27:$DS27,BP$16),BP$16,"") ->  | BQ27: =IF(COUNTIF($CZ27:$DS27,BQ$16),BQ$16,"") ->  | BR27: =IF(COUNTIF($CZ27:$DS27,BR$16),BR$16,"") ->  | BS27: =IF(COUNTIF($CZ27:$DS27,BS$16),BS$16,"") ->  | BT27: =IF(COUNTIF($CZ27:$DS27,BT$16),BT$16,"") -> 71 | BU27: =IF(COUNTIF($CZ27:$DS27,BU$16),BU$16,"") ->  | BV27: =IF(COUNTIF($CZ27:$DS27,BV$16),BV$16,"") ->  | BW27: =IF(COUNTIF($CZ27:$DS27,BW$16),BW$16,"") -> 74 | BX27: =IF(COUNTIF($CZ27:$DS27,BX$16),BX$16,"") ->  | BY27: =IF(COUNTIF($CZ27:$DS27,BY$16),BY$16,"") ->  | BZ27: =IF(COUNTIF($CZ27:$DS27,BZ$16),BZ$16,"") -> 77 | CA27: =IF(COUNTIF($CZ27:$DS27,CA$16),CA$16,"") ->  | CB27: =IF(COUNTIF($CZ27:$DS27,CB$16),CB$16,"") -> 79 | CC27: =IF(COUNTIF($CZ27:$DS27,CC$16),CC$16,"") ->  | CD27: =IF(COUNTIF($CZ27:$DS27,CD$16),CD$16,"") ->  | CE27: =IF(COUNTIF($CZ27:$DS27,CE$16),CE$16,"") ->  | CF27: =IF(COUNTIF($CZ27:$DS27,CF$16),CF$16,"") ->  | CG27: =IF(COUNTIF($CZ27:$DS27,CG$16),CG$16,"") -> 84 | CH27: =IF(COUNTIF($CZ27:$DS27,CH$16),CH$16,"") ->  | CI27: =IF(COUNTIF($CZ27:$DS27,CI$16),CI$16,"") ->  | CJ27: =IF(COUNTIF($CZ27:$DS27,CJ$16),CJ$16,"") ->  | CK27: =IF(COUNTIF($CZ27:$DS27,CK$16),CK$16,"") ->  | CL27: =IF(COUNTIF($CZ27:$DS27,CL$16),CL$16,"") ->  | CM27: =IF(COUNTIF($CZ27:$DS27,CM$16),CM$16,"") ->  | CN27: =IF(COUNTIF($CZ27:$DS27,CN$16),CN$16,"") ->  | CO27: =IF(COUNTIF($CZ27:$DS27,CO$16),CO$16,"") ->  | CP27: =IF(COUNTIF($CZ27:$DS27,CP$16),CP$16,"") ->  | CQ27: =IF(COUNTIF($CZ27:$DS27,CQ$16),CQ$16,"") ->  | CR27: =IF(COUNTIF($CZ27:$DS27,CR$16),CR$16,"") ->  | CS27: =IF(COUNTIF($CZ27:$DS27,CS$16),CS$16,"") ->  | CT27: =IF(COUNTIF($CZ27:$DS27,CT$16),CT$16,"") ->  | CU27: =IF(COUNTIF($CZ27:$DS27,CU$16),CU$16,"") ->  | CV27: =IF(COUNTIF($CZ27:$DS27,CV$16),CV$16,"") ->  | CW27: =IF(COUNTIF($CZ27:$DS27,0),0,"") -> 0 | CX27: 11 | CY27: 1859 | CZ27: =VLOOKUP($CY27,J!$A$2:$AW$4000,3,FALSE) -> 7 | DA27: =VLOOKUP($CY27,J!$A$2:$AW$4000,4,FALSE) -> 11 | DB27: =VLOOKUP($CY27,J!$A$2:$AW$4000,5,FALSE) -> 12 | DC27: =VLOOKUP($CY27,J!$A$2:$AW$4000,6,FALSE) -> 24 | DD27: =VLOOKUP($CY27,J!$A$2:$AW$4000,7,FALSE) -> 32 | DE27: =VLOOKUP($CY27,J!$A$2:$AW$4000,8,FALSE) -> 37 | DF27: =VLOOKUP($CY27,J!$A$2:$AW$4000,9,FALSE) -> 39 | DG27: =VLOOKUP($CY27,J!$A$2:$AW$4000,10,FALSE) -> 47 | DH27: =VLOOKUP($CY27,J!$A$2:$AW$4000,11,FALSE) -> 48 | DI27: =VLOOKUP($CY27,J!$A$2:$AW$4000,12,FALSE) -> 57 | DJ27: =VLOOKUP($CY27,J!$A$2:$AW$4000,13,FALSE) -> 58 | DK27: =VLOOKUP($CY27,J!$A$2:$AW$4000,14,FALSE) -> 60 | DL27: =VLOOKUP($CY27,J!$A$2:$AW$4000,15,FALSE) -> 65 | DM27: =VLOOKUP($CY27,J!$A$2:$AW$4000,16,FALSE) -> 66 | DN27: =VLOOKUP($CY27,J!$A$2:$AW$4000,17,FALSE) -> 71 | DO27: =VLOOKUP($CY27,J!$A$2:$AW$4000,18,FALSE) -> 74 | DP27: =VLOOKUP($CY27,J!$A$2:$AW$4000,19,FALSE) -> 77 | DQ27: =VLOOKUP($CY27,J!$A$2:$AW$4000,20,FALSE) -> 79 | DR27: =VLOOKUP($CY27,J!$A$2:$AW$4000,21,FALSE) -> 84 | DS27: =VLOOKUP($CY27,J!$A$2:$AW$4000,22,FALSE) -> 0
B28: =IF(COUNTIF($CZ28:$DS28,B$16),B$16,"") -> 1 | C28: =IF(COUNTIF($CZ28:$DS28,C$16),C$16,"") -> 2 | D28: =IF(COUNTIF($CZ28:$DS28,D$16),D$16,"") ->  | E28: =IF(COUNTIF($CZ28:$DS28,E$16),E$16,"") ->  | F28: =IF(COUNTIF($CZ28:$DS28,F$16),F$16,"") -> 5 | G28: =IF(COUNTIF($CZ28:$DS28,G$16),G$16,"") -> 6 | H28: =IF(COUNTIF($CZ28:$DS28,H$16),H$16,"") ->  | I28: =IF(COUNTIF($CZ28:$DS28,I$16),I$16,"") ->  | J28: =IF(COUNTIF($CZ28:$DS28,J$16),J$16,"") ->  | K28: =IF(COUNTIF($CZ28:$DS28,K$16),K$16,"") ->  | L28: =IF(COUNTIF($CZ28:$DS28,L$16),L$16,"") -> 11 | M28: =IF(COUNTIF($CZ28:$DS28,M$16),M$16,"") ->  | N28: =IF(COUNTIF($CZ28:$DS28,N$16),N$16,"") ->  | O28: =IF(COUNTIF($CZ28:$DS28,O$16),O$16,"") ->  | P28: =IF(COUNTIF($CZ28:$DS28,P$16),P$16,"") ->  | Q28: =IF(COUNTIF($CZ28:$DS28,Q$16),Q$16,"") -> 16 | R28: =IF(COUNTIF($CZ28:$DS28,R$16),R$16,"") ->  | S28: =IF(COUNTIF($CZ28:$DS28,S$16),S$16,"") ->  | T28: =IF(COUNTIF($CZ28:$DS28,T$16),T$16,"") ->  | U28: =IF(COUNTIF($CZ28:$DS28,U$16),U$16,"") ->  | V28: =IF(COUNTIF($CZ28:$DS28,V$16),V$16,"") ->  | W28: =IF(COUNTIF($CZ28:$DS28,W$16),W$16,"") -> 22 | X28: =IF(COUNTIF($CZ28:$DS28,X$16),X$16,"") ->  | Y28: =IF(COUNTIF($CZ28:$DS28,Y$16),Y$16,"") ->  | Z28: =IF(COUNTIF($CZ28:$DS28,Z$16),Z$16,"") ->  | AA28: =IF(COUNTIF($CZ28:$DS28,AA$16),AA$16,"") ->  | AB28: =IF(COUNTIF($CZ28:$DS28,AB$16),AB$16,"") ->  | AC28: =IF(COUNTIF($CZ28:$DS28,AC$16),AC$16,"") ->  | AD28: =IF(COUNTIF($CZ28:$DS28,AD$16),AD$16,"") ->  | AE28: =IF(COUNTIF($CZ28:$DS28,AE$16),AE$16,"") -> 30 | AF28: =IF(COUNTIF($CZ28:$DS28,AF$16),AF$16,"") -> 31 | AG28: =IF(COUNTIF($CZ28:$DS28,AG$16),AG$16,"") ->  | AH28: =IF(COUNTIF($CZ28:$DS28,AH$16),AH$16,"") ->  | AI28: =IF(COUNTIF($CZ28:$DS28,AI$16),AI$16,"") -> 34 | AJ28: =IF(COUNTIF($CZ28:$DS28,AJ$16),AJ$16,"") ->  | AK28: =IF(COUNTIF($CZ28:$DS28,AK$16),AK$16,"") -> 36 | AL28: =IF(COUNTIF($CZ28:$DS28,AL$16),AL$16,"") ->  | AM28: =IF(COUNTIF($CZ28:$DS28,AM$16),AM$16,"") -> 38 | AN28: =IF(COUNTIF($CZ28:$DS28,AN$16),AN$16,"") -> 39 | AO28: =IF(COUNTIF($CZ28:$DS28,AO$16),AO$16,"") -> 40 | AP28: =IF(COUNTIF($CZ28:$DS28,AP$16),AP$16,"") ->  | AQ28: =IF(COUNTIF($CZ28:$DS28,AQ$16),AQ$16,"") -> 42 | AR28: =IF(COUNTIF($CZ28:$DS28,AR$16),AR$16,"") ->  | AS28: =IF(COUNTIF($CZ28:$DS28,AS$16),AS$16,"") ->  | AT28: =IF(COUNTIF($CZ28:$DS28,AT$16),AT$16,"") ->  | AU28: =IF(COUNTIF($CZ28:$DS28,AU$16),AU$16,"") ->  | AV28: =IF(COUNTIF($CZ28:$DS28,AV$16),AV$16,"") ->  | AW28: =IF(COUNTIF($CZ28:$DS28,AW$16),AW$16,"") ->  | AX28: =IF(COUNTIF($CZ28:$DS28,AX$16),AX$16,"") -> 49 | AY28: =IF(COUNTIF($CZ28:$DS28,AY$16),AY$16,"") ->  | AZ28: =IF(COUNTIF($CZ28:$DS28,AZ$16),AZ$16,"") ->  | BA28: =IF(COUNTIF($CZ28:$DS28,BA$16),BA$16,"") ->  | BB28: =IF(COUNTIF($CZ28:$DS28,BB$16),BB$16,"") ->  | BC28: =IF(COUNTIF($CZ28:$DS28,BC$16),BC$16,"") ->  | BD28: =IF(COUNTIF($CZ28:$DS28,BD$16),BD$16,"") ->  | BE28: =IF(COUNTIF($CZ28:$DS28,BE$16),BE$16,"") ->  | BF28: =IF(COUNTIF($CZ28:$DS28,BF$16),BF$16,"") ->  | BG28: =IF(COUNTIF($CZ28:$DS28,BG$16),BG$16,"") ->  | BH28: =IF(COUNTIF($CZ28:$DS28,BH$16),BH$16,"") ->  | BI28: =IF(COUNTIF($CZ28:$DS28,BI$16),BI$16,"") ->  | BJ28: =IF(COUNTIF($CZ28:$DS28,BJ$16),BJ$16,"") ->  | BK28: =IF(COUNTIF($CZ28:$DS28,BK$16),BK$16,"") -> 62 | BL28: =IF(COUNTIF($CZ28:$DS28,BL$16),BL$16,"") ->  | BM28: =IF(COUNTIF($CZ28:$DS28,BM$16),BM$16,"") ->  | BN28: =IF(COUNTIF($CZ28:$DS28,BN$16),BN$16,"") ->  | BO28: =IF(COUNTIF($CZ28:$DS28,BO$16),BO$16,"") ->  | BP28: =IF(COUNTIF($CZ28:$DS28,BP$16),BP$16,"") ->  | BQ28: =IF(COUNTIF($CZ28:$DS28,BQ$16),BQ$16,"") ->  | BR28: =IF(COUNTIF($CZ28:$DS28,BR$16),BR$16,"") ->  | BS28: =IF(COUNTIF($CZ28:$DS28,BS$16),BS$16,"") ->  | BT28: =IF(COUNTIF($CZ28:$DS28,BT$16),BT$16,"") ->  | BU28: =IF(COUNTIF($CZ28:$DS28,BU$16),BU$16,"") ->  | BV28: =IF(COUNTIF($CZ28:$DS28,BV$16),BV$16,"") ->  | BW28: =IF(COUNTIF($CZ28:$DS28,BW$16),BW$16,"") ->  | BX28: =IF(COUNTIF($CZ28:$DS28,BX$16),BX$16,"") ->  | BY28: =IF(COUNTIF($CZ28:$DS28,BY$16),BY$16,"") -> 76 | BZ28: =IF(COUNTIF($CZ28:$DS28,BZ$16),BZ$16,"") ->  | CA28: =IF(COUNTIF($CZ28:$DS28,CA$16),CA$16,"") ->  | CB28: =IF(COUNTIF($CZ28:$DS28,CB$16),CB$16,"") -> 79 | CC28: =IF(COUNTIF($CZ28:$DS28,CC$16),CC$16,"") ->  | CD28: =IF(COUNTIF($CZ28:$DS28,CD$16),CD$16,"") ->  | CE28: =IF(COUNTIF($CZ28:$DS28,CE$16),CE$16,"") ->  | CF28: =IF(COUNTIF($CZ28:$DS28,CF$16),CF$16,"") ->  | CG28: =IF(COUNTIF($CZ28:$DS28,CG$16),CG$16,"") ->  | CH28: =IF(COUNTIF($CZ28:$DS28,CH$16),CH$16,"") ->  | CI28: =IF(COUNTIF($CZ28:$DS28,CI$16),CI$16,"") ->  | CJ28: =IF(COUNTIF($CZ28:$DS28,CJ$16),CJ$16,"") ->  | CK28: =IF(COUNTIF($CZ28:$DS28,CK$16),CK$16,"") ->  | CL28: =IF(COUNTIF($CZ28:$DS28,CL$16),CL$16,"") ->  | CM28: =IF(COUNTIF($CZ28:$DS28,CM$16),CM$16,"") ->  | CN28: =IF(COUNTIF($CZ28:$DS28,CN$16),CN$16,"") ->  | CO28: =IF(COUNTIF($CZ28:$DS28,CO$16),CO$16,"") ->  | CP28: =IF(COUNTIF($CZ28:$DS28,CP$16),CP$16,"") ->  | CQ28: =IF(COUNTIF($CZ28:$DS28,CQ$16),CQ$16,"") ->  | CR28: =IF(COUNTIF($CZ28:$DS28,CR$16),CR$16,"") -> 95 | CS28: =IF(COUNTIF($CZ28:$DS28,CS$16),CS$16,"") ->  | CT28: =IF(COUNTIF($CZ28:$DS28,CT$16),CT$16,"") ->  | CU28: =IF(COUNTIF($CZ28:$DS28,CU$16),CU$16,"") ->  | CV28: =IF(COUNTIF($CZ28:$DS28,CV$16),CV$16,"") ->  | CW28: =IF(COUNTIF($CZ28:$DS28,0),0,"") ->  | CX28: 12 | CY28: 1858 | CZ28: =VLOOKUP($CY28,J!$A$2:$AW$4000,3,FALSE) -> 1 | DA28: =VLOOKUP($CY28,J!$A$2:$AW$4000,4,FALSE) -> 2 | DB28: =VLOOKUP($CY28,J!$A$2:$AW$4000,5,FALSE) -> 5 | DC28: =VLOOKUP($CY28,J!$A$2:$AW$4000,6,FALSE) -> 6 | DD28: =VLOOKUP($CY28,J!$A$2:$AW$4000,7,FALSE) -> 11 | DE28: =VLOOKUP($CY28,J!$A$2:$AW$4000,8,FALSE) -> 16 | DF28: =VLOOKUP($CY28,J!$A$2:$AW$4000,9,FALSE) -> 22 | DG28: =VLOOKUP($CY28,J!$A$2:$AW$4000,10,FALSE) -> 30 | DH28: =VLOOKUP($CY28,J!$A$2:$AW$4000,11,FALSE) -> 31 | DI28: =VLOOKUP($CY28,J!$A$2:$AW$4000,12,FALSE) -> 34 | DJ28: =VLOOKUP($CY28,J!$A$2:$AW$4000,13,FALSE) -> 36 | DK28: =VLOOKUP($CY28,J!$A$2:$AW$4000,14,FALSE) -> 38 | DL28: =VLOOKUP($CY28,J!$A$2:$AW$4000,15,FALSE) -> 39 | DM28: =VLOOKUP($CY28,J!$A$2:$AW$4000,16,FALSE) -> 40 | DN28: =VLOOKUP($CY28,J!$A$2:$AW$4000,17,FALSE) -> 42 | DO28: =VLOOKUP($CY28,J!$A$2:$AW$4000,18,FALSE) -> 49 | DP28: =VLOOKUP($CY28,J!$A$2:$AW$4000,19,FALSE) -> 62 | DQ28: =VLOOKUP($CY28,J!$A$2:$AW$4000,20,FALSE) -> 76 | DR28: =VLOOKUP($CY28,J!$A$2:$AW$4000,21,FALSE) -> 79 | DS28: =VLOOKUP($CY28,J!$A$2:$AW$4000,22,FALSE) -> 95
B29: =IF(COUNTIF($CZ29:$DS29,B$16),B$16,"") -> 1 | C29: =IF(COUNTIF($CZ29:$DS29,C$16),C$16,"") ->  | D29: =IF(COUNTIF($CZ29:$DS29,D$16),D$16,"") ->  | E29: =IF(COUNTIF($CZ29:$DS29,E$16),E$16,"") ->  | F29: =IF(COUNTIF($CZ29:$DS29,F$16),F$16,"") ->  | G29: =IF(COUNTIF($CZ29:$DS29,G$16),G$16,"") -> 6 | H29: =IF(COUNTIF($CZ29:$DS29,H$16),H$16,"") ->  | I29: =IF(COUNTIF($CZ29:$DS29,I$16),I$16,"") ->  | J29: =IF(COUNTIF($CZ29:$DS29,J$16),J$16,"") ->  | K29: =IF(COUNTIF($CZ29:$DS29,K$16),K$16,"") ->  | L29: =IF(COUNTIF($CZ29:$DS29,L$16),L$16,"") -> 11 | M29: =IF(COUNTIF($CZ29:$DS29,M$16),M$16,"") ->  | N29: =IF(COUNTIF($CZ29:$DS29,N$16),N$16,"") -> 13 | O29: =IF(COUNTIF($CZ29:$DS29,O$16),O$16,"") ->  | P29: =IF(COUNTIF($CZ29:$DS29,P$16),P$16,"") ->  | Q29: =IF(COUNTIF($CZ29:$DS29,Q$16),Q$16,"") ->  | R29: =IF(COUNTIF($CZ29:$DS29,R$16),R$16,"") ->  | S29: =IF(COUNTIF($CZ29:$DS29,S$16),S$16,"") -> 18 | T29: =IF(COUNTIF($CZ29:$DS29,T$16),T$16,"") ->  | U29: =IF(COUNTIF($CZ29:$DS29,U$16),U$16,"") ->  | V29: =IF(COUNTIF($CZ29:$DS29,V$16),V$16,"") ->  | W29: =IF(COUNTIF($CZ29:$DS29,W$16),W$16,"") ->  | X29: =IF(COUNTIF($CZ29:$DS29,X$16),X$16,"") ->  | Y29: =IF(COUNTIF($CZ29:$DS29,Y$16),Y$16,"") -> 24 | Z29: =IF(COUNTIF($CZ29:$DS29,Z$16),Z$16,"") ->  | AA29: =IF(COUNTIF($CZ29:$DS29,AA$16),AA$16,"") ->  | AB29: =IF(COUNTIF($CZ29:$DS29,AB$16),AB$16,"") ->  | AC29: =IF(COUNTIF($CZ29:$DS29,AC$16),AC$16,"") -> 28 | AD29: =IF(COUNTIF($CZ29:$DS29,AD$16),AD$16,"") ->  | AE29: =IF(COUNTIF($CZ29:$DS29,AE$16),AE$16,"") ->  | AF29: =IF(COUNTIF($CZ29:$DS29,AF$16),AF$16,"") ->  | AG29: =IF(COUNTIF($CZ29:$DS29,AG$16),AG$16,"") ->  | AH29: =IF(COUNTIF($CZ29:$DS29,AH$16),AH$16,"") ->  | AI29: =IF(COUNTIF($CZ29:$DS29,AI$16),AI$16,"") ->  | AJ29: =IF(COUNTIF($CZ29:$DS29,AJ$16),AJ$16,"") ->  | AK29: =IF(COUNTIF($CZ29:$DS29,AK$16),AK$16,"") ->  | AL29: =IF(COUNTIF($CZ29:$DS29,AL$16),AL$16,"") ->  | AM29: =IF(COUNTIF($CZ29:$DS29,AM$16),AM$16,"") -> 38 | AN29: =IF(COUNTIF($CZ29:$DS29,AN$16),AN$16,"") ->  | AO29: =IF(COUNTIF($CZ29:$DS29,AO$16),AO$16,"") ->  | AP29: =IF(COUNTIF($CZ29:$DS29,AP$16),AP$16,"") -> 41 | AQ29: =IF(COUNTIF($CZ29:$DS29,AQ$16),AQ$16,"") ->  | AR29: =IF(COUNTIF($CZ29:$DS29,AR$16),AR$16,"") ->  | AS29: =IF(COUNTIF($CZ29:$DS29,AS$16),AS$16,"") -> 44 | AT29: =IF(COUNTIF($CZ29:$DS29,AT$16),AT$16,"") ->  | AU29: =IF(COUNTIF($CZ29:$DS29,AU$16),AU$16,"") ->  | AV29: =IF(COUNTIF($CZ29:$DS29,AV$16),AV$16,"") ->  | AW29: =IF(COUNTIF($CZ29:$DS29,AW$16),AW$16,"") ->  | AX29: =IF(COUNTIF($CZ29:$DS29,AX$16),AX$16,"") ->  | AY29: =IF(COUNTIF($CZ29:$DS29,AY$16),AY$16,"") -> 50 | AZ29: =IF(COUNTIF($CZ29:$DS29,AZ$16),AZ$16,"") ->  | BA29: =IF(COUNTIF($CZ29:$DS29,BA$16),BA$16,"") ->  | BB29: =IF(COUNTIF($CZ29:$DS29,BB$16),BB$16,"") -> 53 | BC29: =IF(COUNTIF($CZ29:$DS29,BC$16),BC$16,"") ->  | BD29: =IF(COUNTIF($CZ29:$DS29,BD$16),BD$16,"") ->  | BE29: =IF(COUNTIF($CZ29:$DS29,BE$16),BE$16,"") ->  | BF29: =IF(COUNTIF($CZ29:$DS29,BF$16),BF$16,"") ->  | BG29: =IF(COUNTIF($CZ29:$DS29,BG$16),BG$16,"") ->  | BH29: =IF(COUNTIF($CZ29:$DS29,BH$16),BH$16,"") ->  | BI29: =IF(COUNTIF($CZ29:$DS29,BI$16),BI$16,"") ->  | BJ29: =IF(COUNTIF($CZ29:$DS29,BJ$16),BJ$16,"") -> 61 | BK29: =IF(COUNTIF($CZ29:$DS29,BK$16),BK$16,"") ->  | BL29: =IF(COUNTIF($CZ29:$DS29,BL$16),BL$16,"") -> 63 | BM29: =IF(COUNTIF($CZ29:$DS29,BM$16),BM$16,"") ->  | BN29: =IF(COUNTIF($CZ29:$DS29,BN$16),BN$16,"") ->  | BO29: =IF(COUNTIF($CZ29:$DS29,BO$16),BO$16,"") ->  | BP29: =IF(COUNTIF($CZ29:$DS29,BP$16),BP$16,"") ->  | BQ29: =IF(COUNTIF($CZ29:$DS29,BQ$16),BQ$16,"") ->  | BR29: =IF(COUNTIF($CZ29:$DS29,BR$16),BR$16,"") ->  | BS29: =IF(COUNTIF($CZ29:$DS29,BS$16),BS$16,"") -> 70 | BT29: =IF(COUNTIF($CZ29:$DS29,BT$16),BT$16,"") ->  | BU29: =IF(COUNTIF($CZ29:$DS29,BU$16),BU$16,"") ->  | BV29: =IF(COUNTIF($CZ29:$DS29,BV$16),BV$16,"") ->  | BW29: =IF(COUNTIF($CZ29:$DS29,BW$16),BW$16,"") ->  | BX29: =IF(COUNTIF($CZ29:$DS29,BX$16),BX$16,"") ->  | BY29: =IF(COUNTIF($CZ29:$DS29,BY$16),BY$16,"") -> 76 | BZ29: =IF(COUNTIF($CZ29:$DS29,BZ$16),BZ$16,"") ->  | CA29: =IF(COUNTIF($CZ29:$DS29,CA$16),CA$16,"") -> 78 | CB29: =IF(COUNTIF($CZ29:$DS29,CB$16),CB$16,"") ->  | CC29: =IF(COUNTIF($CZ29:$DS29,CC$16),CC$16,"") ->  | CD29: =IF(COUNTIF($CZ29:$DS29,CD$16),CD$16,"") ->  | CE29: =IF(COUNTIF($CZ29:$DS29,CE$16),CE$16,"") ->  | CF29: =IF(COUNTIF($CZ29:$DS29,CF$16),CF$16,"") ->  | CG29: =IF(COUNTIF($CZ29:$DS29,CG$16),CG$16,"") ->  | CH29: =IF(COUNTIF($CZ29:$DS29,CH$16),CH$16,"") ->  | CI29: =IF(COUNTIF($CZ29:$DS29,CI$16),CI$16,"") ->  | CJ29: =IF(COUNTIF($CZ29:$DS29,CJ$16),CJ$16,"") ->  | CK29: =IF(COUNTIF($CZ29:$DS29,CK$16),CK$16,"") ->  | CL29: =IF(COUNTIF($CZ29:$DS29,CL$16),CL$16,"") ->  | CM29: =IF(COUNTIF($CZ29:$DS29,CM$16),CM$16,"") ->  | CN29: =IF(COUNTIF($CZ29:$DS29,CN$16),CN$16,"") -> 91 | CO29: =IF(COUNTIF($CZ29:$DS29,CO$16),CO$16,"") -> 92 | CP29: =IF(COUNTIF($CZ29:$DS29,CP$16),CP$16,"") ->  | CQ29: =IF(COUNTIF($CZ29:$DS29,CQ$16),CQ$16,"") ->  | CR29: =IF(COUNTIF($CZ29:$DS29,CR$16),CR$16,"") ->  | CS29: =IF(COUNTIF($CZ29:$DS29,CS$16),CS$16,"") ->  | CT29: =IF(COUNTIF($CZ29:$DS29,CT$16),CT$16,"") ->  | CU29: =IF(COUNTIF($CZ29:$DS29,CU$16),CU$16,"") -> 98 | CV29: =IF(COUNTIF($CZ29:$DS29,CV$16),CV$16,"") ->  | CW29: =IF(COUNTIF($CZ29:$DS29,0),0,"") ->  | CX29: 13 | CY29: 1857 | CZ29: =VLOOKUP($CY29,J!$A$2:$AW$4000,3,FALSE) -> 50 | DA29: =VLOOKUP($CY29,J!$A$2:$AW$4000,4,FALSE) -> 76 | DB29: =VLOOKUP($CY29,J!$A$2:$AW$4000,5,FALSE) -> 78 | DC29: =VLOOKUP($CY29,J!$A$2:$AW$4000,6,FALSE) -> 24 | DD29: =VLOOKUP($CY29,J!$A$2:$AW$4000,7,FALSE) -> 70 | DE29: =VLOOKUP($CY29,J!$A$2:$AW$4000,8,FALSE) -> 91 | DF29: =VLOOKUP($CY29,J!$A$2:$AW$4000,9,FALSE) -> 63 | DG29: =VLOOKUP($CY29,J!$A$2:$AW$4000,10,FALSE) -> 6 | DH29: =VLOOKUP($CY29,J!$A$2:$AW$4000,11,FALSE) -> 44 | DI29: =VLOOKUP($CY29,J!$A$2:$AW$4000,12,FALSE) -> 98 | DJ29: =VLOOKUP($CY29,J!$A$2:$AW$4000,13,FALSE) -> 41 | DK29: =VLOOKUP($CY29,J!$A$2:$AW$4000,14,FALSE) -> 61 | DL29: =VLOOKUP($CY29,J!$A$2:$AW$4000,15,FALSE) -> 13 | DM29: =VLOOKUP($CY29,J!$A$2:$AW$4000,16,FALSE) -> 11 | DN29: =VLOOKUP($CY29,J!$A$2:$AW$4000,17,FALSE) -> 92 | DO29: =VLOOKUP($CY29,J!$A$2:$AW$4000,18,FALSE) -> 53 | DP29: =VLOOKUP($CY29,J!$A$2:$AW$4000,19,FALSE) -> 28 | DQ29: =VLOOKUP($CY29,J!$A$2:$AW$4000,20,FALSE) -> 38 | DR29: =VLOOKUP($CY29,J!$A$2:$AW$4000,21,FALSE) -> 18 | DS29: =VLOOKUP($CY29,J!$A$2:$AW$4000,22,FALSE) -> 1
B30: =IF(COUNTIF($CZ30:$DS30,B$16),B$16,"") ->  | C30: =IF(COUNTIF($CZ30:$DS30,C$16),C$16,"") ->  | D30: =IF(COUNTIF($CZ30:$DS30,D$16),D$16,"") -> 3 | E30: =IF(COUNTIF($CZ30:$DS30,E$16),E$16,"") ->  | F30: =IF(COUNTIF($CZ30:$DS30,F$16),F$16,"") ->  | G30: =IF(COUNTIF($CZ30:$DS30,G$16),G$16,"") ->  | H30: =IF(COUNTIF($CZ30:$DS30,H$16),H$16,"") ->  | I30: =IF(COUNTIF($CZ30:$DS30,I$16),I$16,"") -> 8 | J30: =IF(COUNTIF($CZ30:$DS30,J$16),J$16,"") -> 9 | K30: =IF(COUNTIF($CZ30:$DS30,K$16),K$16,"") ->  | L30: =IF(COUNTIF($CZ30:$DS30,L$16),L$16,"") ->  | M30: =IF(COUNTIF($CZ30:$DS30,M$16),M$16,"") -> 12 | N30: =IF(COUNTIF($CZ30:$DS30,N$16),N$16,"") ->  | O30: =IF(COUNTIF($CZ30:$DS30,O$16),O$16,"") ->  | P30: =IF(COUNTIF($CZ30:$DS30,P$16),P$16,"") ->  | Q30: =IF(COUNTIF($CZ30:$DS30,Q$16),Q$16,"") ->  | R30: =IF(COUNTIF($CZ30:$DS30,R$16),R$16,"") -> 17 | S30: =IF(COUNTIF($CZ30:$DS30,S$16),S$16,"") ->  | T30: =IF(COUNTIF($CZ30:$DS30,T$16),T$16,"") ->  | U30: =IF(COUNTIF($CZ30:$DS30,U$16),U$16,"") ->  | V30: =IF(COUNTIF($CZ30:$DS30,V$16),V$16,"") ->  | W30: =IF(COUNTIF($CZ30:$DS30,W$16),W$16,"") ->  | X30: =IF(COUNTIF($CZ30:$DS30,X$16),X$16,"") ->  | Y30: =IF(COUNTIF($CZ30:$DS30,Y$16),Y$16,"") -> 24 | Z30: =IF(COUNTIF($CZ30:$DS30,Z$16),Z$16,"") ->  | AA30: =IF(COUNTIF($CZ30:$DS30,AA$16),AA$16,"") ->  | AB30: =IF(COUNTIF($CZ30:$DS30,AB$16),AB$16,"") ->  | AC30: =IF(COUNTIF($CZ30:$DS30,AC$16),AC$16,"") ->  | AD30: =IF(COUNTIF($CZ30:$DS30,AD$16),AD$16,"") ->  | AE30: =IF(COUNTIF($CZ30:$DS30,AE$16),AE$16,"") -> 30 | AF30: =IF(COUNTIF($CZ30:$DS30,AF$16),AF$16,"") ->  | AG30: =IF(COUNTIF($CZ30:$DS30,AG$16),AG$16,"") -> 32 | AH30: =IF(COUNTIF($CZ30:$DS30,AH$16),AH$16,"") ->  | AI30: =IF(COUNTIF($CZ30:$DS30,AI$16),AI$16,"") ->  | AJ30: =IF(COUNTIF($CZ30:$DS30,AJ$16),AJ$16,"") -> 35 | AK30: =IF(COUNTIF($CZ30:$DS30,AK$16),AK$16,"") ->  | AL30: =IF(COUNTIF($CZ30:$DS30,AL$16),AL$16,"") ->  | AM30: =IF(COUNTIF($CZ30:$DS30,AM$16),AM$16,"") -> 38 | AN30: =IF(COUNTIF($CZ30:$DS30,AN$16),AN$16,"") ->  | AO30: =IF(COUNTIF($CZ30:$DS30,AO$16),AO$16,"") ->  | AP30: =IF(COUNTIF($CZ30:$DS30,AP$16),AP$16,"") ->  | AQ30: =IF(COUNTIF($CZ30:$DS30,AQ$16),AQ$16,"") -> 42 | AR30: =IF(COUNTIF($CZ30:$DS30,AR$16),AR$16,"") ->  | AS30: =IF(COUNTIF($CZ30:$DS30,AS$16),AS$16,"") ->  | AT30: =IF(COUNTIF($CZ30:$DS30,AT$16),AT$16,"") -> 45 | AU30: =IF(COUNTIF($CZ30:$DS30,AU$16),AU$16,"") ->  | AV30: =IF(COUNTIF($CZ30:$DS30,AV$16),AV$16,"") ->  | AW30: =IF(COUNTIF($CZ30:$DS30,AW$16),AW$16,"") ->  | AX30: =IF(COUNTIF($CZ30:$DS30,AX$16),AX$16,"") ->  | AY30: =IF(COUNTIF($CZ30:$DS30,AY$16),AY$16,"") ->  | AZ30: =IF(COUNTIF($CZ30:$DS30,AZ$16),AZ$16,"") -> 51 | BA30: =IF(COUNTIF($CZ30:$DS30,BA$16),BA$16,"") ->  | BB30: =IF(COUNTIF($CZ30:$DS30,BB$16),BB$16,"") ->  | BC30: =IF(COUNTIF($CZ30:$DS30,BC$16),BC$16,"") ->  | BD30: =IF(COUNTIF($CZ30:$DS30,BD$16),BD$16,"") ->  | BE30: =IF(COUNTIF($CZ30:$DS30,BE$16),BE$16,"") ->  | BF30: =IF(COUNTIF($CZ30:$DS30,BF$16),BF$16,"") ->  | BG30: =IF(COUNTIF($CZ30:$DS30,BG$16),BG$16,"") ->  | BH30: =IF(COUNTIF($CZ30:$DS30,BH$16),BH$16,"") ->  | BI30: =IF(COUNTIF($CZ30:$DS30,BI$16),BI$16,"") ->  | BJ30: =IF(COUNTIF($CZ30:$DS30,BJ$16),BJ$16,"") ->  | BK30: =IF(COUNTIF($CZ30:$DS30,BK$16),BK$16,"") ->  | BL30: =IF(COUNTIF($CZ30:$DS30,BL$16),BL$16,"") ->  | BM30: =IF(COUNTIF($CZ30:$DS30,BM$16),BM$16,"") ->  | BN30: =IF(COUNTIF($CZ30:$DS30,BN$16),BN$16,"") ->  | BO30: =IF(COUNTIF($CZ30:$DS30,BO$16),BO$16,"") ->  | BP30: =IF(COUNTIF($CZ30:$DS30,BP$16),BP$16,"") ->  | BQ30: =IF(COUNTIF($CZ30:$DS30,BQ$16),BQ$16,"") ->  | BR30: =IF(COUNTIF($CZ30:$DS30,BR$16),BR$16,"") ->  | BS30: =IF(COUNTIF($CZ30:$DS30,BS$16),BS$16,"") ->  | BT30: =IF(COUNTIF($CZ30:$DS30,BT$16),BT$16,"") ->  | BU30: =IF(COUNTIF($CZ30:$DS30,BU$16),BU$16,"") ->  | BV30: =IF(COUNTIF($CZ30:$DS30,BV$16),BV$16,"") ->  | BW30: =IF(COUNTIF($CZ30:$DS30,BW$16),BW$16,"") ->  | BX30: =IF(COUNTIF($CZ30:$DS30,BX$16),BX$16,"") ->  | BY30: =IF(COUNTIF($CZ30:$DS30,BY$16),BY$16,"") ->  | BZ30: =IF(COUNTIF($CZ30:$DS30,BZ$16),BZ$16,"") ->  | CA30: =IF(COUNTIF($CZ30:$DS30,CA$16),CA$16,"") ->  | CB30: =IF(COUNTIF($CZ30:$DS30,CB$16),CB$16,"") -> 79 | CC30: =IF(COUNTIF($CZ30:$DS30,CC$16),CC$16,"") -> 80 | CD30: =IF(COUNTIF($CZ30:$DS30,CD$16),CD$16,"") ->  | CE30: =IF(COUNTIF($CZ30:$DS30,CE$16),CE$16,"") -> 82 | CF30: =IF(COUNTIF($CZ30:$DS30,CF$16),CF$16,"") -> 83 | CG30: =IF(COUNTIF($CZ30:$DS30,CG$16),CG$16,"") ->  | CH30: =IF(COUNTIF($CZ30:$DS30,CH$16),CH$16,"") -> 85 | CI30: =IF(COUNTIF($CZ30:$DS30,CI$16),CI$16,"") ->  | CJ30: =IF(COUNTIF($CZ30:$DS30,CJ$16),CJ$16,"") ->  | CK30: =IF(COUNTIF($CZ30:$DS30,CK$16),CK$16,"") ->  | CL30: =IF(COUNTIF($CZ30:$DS30,CL$16),CL$16,"") ->  | CM30: =IF(COUNTIF($CZ30:$DS30,CM$16),CM$16,"") ->  | CN30: =IF(COUNTIF($CZ30:$DS30,CN$16),CN$16,"") ->  | CO30: =IF(COUNTIF($CZ30:$DS30,CO$16),CO$16,"") ->  | CP30: =IF(COUNTIF($CZ30:$DS30,CP$16),CP$16,"") ->  | CQ30: =IF(COUNTIF($CZ30:$DS30,CQ$16),CQ$16,"") ->  | CR30: =IF(COUNTIF($CZ30:$DS30,CR$16),CR$16,"") ->  | CS30: =IF(COUNTIF($CZ30:$DS30,CS$16),CS$16,"") -> 96 | CT30: =IF(COUNTIF($CZ30:$DS30,CT$16),CT$16,"") ->  | CU30: =IF(COUNTIF($CZ30:$DS30,CU$16),CU$16,"") ->  | CV30: =IF(COUNTIF($CZ30:$DS30,CV$16),CV$16,"") -> 99 | CW30: =IF(COUNTIF($CZ30:$DS30,0),0,"") ->  | CX30: 14 | CY30: 1856 | CZ30: =VLOOKUP($CY30,J!$A$2:$AW$4000,3,FALSE) -> 3 | DA30: =VLOOKUP($CY30,J!$A$2:$AW$4000,4,FALSE) -> 8 | DB30: =VLOOKUP($CY30,J!$A$2:$AW$4000,5,FALSE) -> 9 | DC30: =VLOOKUP($CY30,J!$A$2:$AW$4000,6,FALSE) -> 12 | DD30: =VLOOKUP($CY30,J!$A$2:$AW$4000,7,FALSE) -> 17 | DE30: =VLOOKUP($CY30,J!$A$2:$AW$4000,8,FALSE) -> 24 | DF30: =VLOOKUP($CY30,J!$A$2:$AW$4000,9,FALSE) -> 30 | DG30: =VLOOKUP($CY30,J!$A$2:$AW$4000,10,FALSE) -> 32 | DH30: =VLOOKUP($CY30,J!$A$2:$AW$4000,11,FALSE) -> 35 | DI30: =VLOOKUP($CY30,J!$A$2:$AW$4000,12,FALSE) -> 38 | DJ30: =VLOOKUP($CY30,J!$A$2:$AW$4000,13,FALSE) -> 42 | DK30: =VLOOKUP($CY30,J!$A$2:$AW$4000,14,FALSE) -> 45 | DL30: =VLOOKUP($CY30,J!$A$2:$AW$4000,15,FALSE) -> 51 | DM30: =VLOOKUP($CY30,J!$A$2:$AW$4000,16,FALSE) -> 79 | DN30: =VLOOKUP($CY30,J!$A$2:$AW$4000,17,FALSE) -> 80 | DO30: =VLOOKUP($CY30,J!$A$2:$AW$4000,18,FALSE) -> 82 | DP30: =VLOOKUP($CY30,J!$A$2:$AW$4000,19,FALSE) -> 83 | DQ30: =VLOOKUP($CY30,J!$A$2:$AW$4000,20,FALSE) -> 85 | DR30: =VLOOKUP($CY30,J!$A$2:$AW$4000,21,FALSE) -> 96 | DS30: =VLOOKUP($CY30,J!$A$2:$AW$4000,22,FALSE) -> 99
B31: =IF(COUNTIF($CZ31:$DS31,B$16),B$16,"") ->  | C31: =IF(COUNTIF($CZ31:$DS31,C$16),C$16,"") ->  | D31: =IF(COUNTIF($CZ31:$DS31,D$16),D$16,"") -> 3 | E31: =IF(COUNTIF($CZ31:$DS31,E$16),E$16,"") -> 4 | F31: =IF(COUNTIF($CZ31:$DS31,F$16),F$16,"") ->  | G31: =IF(COUNTIF($CZ31:$DS31,G$16),G$16,"") -> 6 | H31: =IF(COUNTIF($CZ31:$DS31,H$16),H$16,"") ->  | I31: =IF(COUNTIF($CZ31:$DS31,I$16),I$16,"") ->  | J31: =IF(COUNTIF($CZ31:$DS31,J$16),J$16,"") ->  | K31: =IF(COUNTIF($CZ31:$DS31,K$16),K$16,"") -> 10 | L31: =IF(COUNTIF($CZ31:$DS31,L$16),L$16,"") ->  | M31: =IF(COUNTIF($CZ31:$DS31,M$16),M$16,"") ->  | N31: =IF(COUNTIF($CZ31:$DS31,N$16),N$16,"") ->  | O31: =IF(COUNTIF($CZ31:$DS31,O$16),O$16,"") ->  | P31: =IF(COUNTIF($CZ31:$DS31,P$16),P$16,"") -> 15 | Q31: =IF(COUNTIF($CZ31:$DS31,Q$16),Q$16,"") ->  | R31: =IF(COUNTIF($CZ31:$DS31,R$16),R$16,"") ->  | S31: =IF(COUNTIF($CZ31:$DS31,S$16),S$16,"") ->  | T31: =IF(COUNTIF($CZ31:$DS31,T$16),T$16,"") -> 19 | U31: =IF(COUNTIF($CZ31:$DS31,U$16),U$16,"") -> 20 | V31: =IF(COUNTIF($CZ31:$DS31,V$16),V$16,"") -> 21 | W31: =IF(COUNTIF($CZ31:$DS31,W$16),W$16,"") ->  | X31: =IF(COUNTIF($CZ31:$DS31,X$16),X$16,"") ->  | Y31: =IF(COUNTIF($CZ31:$DS31,Y$16),Y$16,"") ->  | Z31: =IF(COUNTIF($CZ31:$DS31,Z$16),Z$16,"") ->  | AA31: =IF(COUNTIF($CZ31:$DS31,AA$16),AA$16,"") ->  | AB31: =IF(COUNTIF($CZ31:$DS31,AB$16),AB$16,"") ->  | AC31: =IF(COUNTIF($CZ31:$DS31,AC$16),AC$16,"") -> 28 | AD31: =IF(COUNTIF($CZ31:$DS31,AD$16),AD$16,"") ->  | AE31: =IF(COUNTIF($CZ31:$DS31,AE$16),AE$16,"") ->  | AF31: =IF(COUNTIF($CZ31:$DS31,AF$16),AF$16,"") ->  | AG31: =IF(COUNTIF($CZ31:$DS31,AG$16),AG$16,"") ->  | AH31: =IF(COUNTIF($CZ31:$DS31,AH$16),AH$16,"") ->  | AI31: =IF(COUNTIF($CZ31:$DS31,AI$16),AI$16,"") ->  | AJ31: =IF(COUNTIF($CZ31:$DS31,AJ$16),AJ$16,"") ->  | AK31: =IF(COUNTIF($CZ31:$DS31,AK$16),AK$16,"") ->  | AL31: =IF(COUNTIF($CZ31:$DS31,AL$16),AL$16,"") ->  | AM31: =IF(COUNTIF($CZ31:$DS31,AM$16),AM$16,"") ->  | AN31: =IF(COUNTIF($CZ31:$DS31,AN$16),AN$16,"") ->  | AO31: =IF(COUNTIF($CZ31:$DS31,AO$16),AO$16,"") ->  | AP31: =IF(COUNTIF($CZ31:$DS31,AP$16),AP$16,"") ->  | AQ31: =IF(COUNTIF($CZ31:$DS31,AQ$16),AQ$16,"") ->  | AR31: =IF(COUNTIF($CZ31:$DS31,AR$16),AR$16,"") ->  | AS31: =IF(COUNTIF($CZ31:$DS31,AS$16),AS$16,"") ->  | AT31: =IF(COUNTIF($CZ31:$DS31,AT$16),AT$16,"") -> 45 | AU31: =IF(COUNTIF($CZ31:$DS31,AU$16),AU$16,"") ->  | AV31: =IF(COUNTIF($CZ31:$DS31,AV$16),AV$16,"") ->  | AW31: =IF(COUNTIF($CZ31:$DS31,AW$16),AW$16,"") ->  | AX31: =IF(COUNTIF($CZ31:$DS31,AX$16),AX$16,"") ->  | AY31: =IF(COUNTIF($CZ31:$DS31,AY$16),AY$16,"") -> 50 | AZ31: =IF(COUNTIF($CZ31:$DS31,AZ$16),AZ$16,"") ->  | BA31: =IF(COUNTIF($CZ31:$DS31,BA$16),BA$16,"") ->  | BB31: =IF(COUNTIF($CZ31:$DS31,BB$16),BB$16,"") ->  | BC31: =IF(COUNTIF($CZ31:$DS31,BC$16),BC$16,"") ->  | BD31: =IF(COUNTIF($CZ31:$DS31,BD$16),BD$16,"") ->  | BE31: =IF(COUNTIF($CZ31:$DS31,BE$16),BE$16,"") -> 56 | BF31: =IF(COUNTIF($CZ31:$DS31,BF$16),BF$16,"") -> 57 | BG31: =IF(COUNTIF($CZ31:$DS31,BG$16),BG$16,"") ->  | BH31: =IF(COUNTIF($CZ31:$DS31,BH$16),BH$16,"") ->  | BI31: =IF(COUNTIF($CZ31:$DS31,BI$16),BI$16,"") -> 60 | BJ31: =IF(COUNTIF($CZ31:$DS31,BJ$16),BJ$16,"") -> 61 | BK31: =IF(COUNTIF($CZ31:$DS31,BK$16),BK$16,"") ->  | BL31: =IF(COUNTIF($CZ31:$DS31,BL$16),BL$16,"") ->  | BM31: =IF(COUNTIF($CZ31:$DS31,BM$16),BM$16,"") -> 64 | BN31: =IF(COUNTIF($CZ31:$DS31,BN$16),BN$16,"") -> 65 | BO31: =IF(COUNTIF($CZ31:$DS31,BO$16),BO$16,"") ->  | BP31: =IF(COUNTIF($CZ31:$DS31,BP$16),BP$16,"") ->  | BQ31: =IF(COUNTIF($CZ31:$DS31,BQ$16),BQ$16,"") ->  | BR31: =IF(COUNTIF($CZ31:$DS31,BR$16),BR$16,"") ->  | BS31: =IF(COUNTIF($CZ31:$DS31,BS$16),BS$16,"") ->  | BT31: =IF(COUNTIF($CZ31:$DS31,BT$16),BT$16,"") ->  | BU31: =IF(COUNTIF($CZ31:$DS31,BU$16),BU$16,"") ->  | BV31: =IF(COUNTIF($CZ31:$DS31,BV$16),BV$16,"") ->  | BW31: =IF(COUNTIF($CZ31:$DS31,BW$16),BW$16,"") ->  | BX31: =IF(COUNTIF($CZ31:$DS31,BX$16),BX$16,"") ->  | BY31: =IF(COUNTIF($CZ31:$DS31,BY$16),BY$16,"") ->  | BZ31: =IF(COUNTIF($CZ31:$DS31,BZ$16),BZ$16,"") ->  | CA31: =IF(COUNTIF($CZ31:$DS31,CA$16),CA$16,"") ->  | CB31: =IF(COUNTIF($CZ31:$DS31,CB$16),CB$16,"") -> 79 | CC31: =IF(COUNTIF($CZ31:$DS31,CC$16),CC$16,"") -> 80 | CD31: =IF(COUNTIF($CZ31:$DS31,CD$16),CD$16,"") ->  | CE31: =IF(COUNTIF($CZ31:$DS31,CE$16),CE$16,"") ->  | CF31: =IF(COUNTIF($CZ31:$DS31,CF$16),CF$16,"") ->  | CG31: =IF(COUNTIF($CZ31:$DS31,CG$16),CG$16,"") ->  | CH31: =IF(COUNTIF($CZ31:$DS31,CH$16),CH$16,"") ->  | CI31: =IF(COUNTIF($CZ31:$DS31,CI$16),CI$16,"") ->  | CJ31: =IF(COUNTIF($CZ31:$DS31,CJ$16),CJ$16,"") ->  | CK31: =IF(COUNTIF($CZ31:$DS31,CK$16),CK$16,"") ->  | CL31: =IF(COUNTIF($CZ31:$DS31,CL$16),CL$16,"") ->  | CM31: =IF(COUNTIF($CZ31:$DS31,CM$16),CM$16,"") ->  | CN31: =IF(COUNTIF($CZ31:$DS31,CN$16),CN$16,"") ->  | CO31: =IF(COUNTIF($CZ31:$DS31,CO$16),CO$16,"") ->  | CP31: =IF(COUNTIF($CZ31:$DS31,CP$16),CP$16,"") ->  | CQ31: =IF(COUNTIF($CZ31:$DS31,CQ$16),CQ$16,"") ->  | CR31: =IF(COUNTIF($CZ31:$DS31,CR$16),CR$16,"") ->  | CS31: =IF(COUNTIF($CZ31:$DS31,CS$16),CS$16,"") ->  | CT31: =IF(COUNTIF($CZ31:$DS31,CT$16),CT$16,"") -> 97 | CU31: =IF(COUNTIF($CZ31:$DS31,CU$16),CU$16,"") ->  | CV31: =IF(COUNTIF($CZ31:$DS31,CV$16),CV$16,"") ->  | CW31: =IF(COUNTIF($CZ31:$DS31,0),0,"") ->  | CX31: 15 | CY31: 1855 | CZ31: =VLOOKUP($CY31,J!$A$2:$AW$4000,3,FALSE) -> 3 | DA31: =VLOOKUP($CY31,J!$A$2:$AW$4000,4,FALSE) -> 4 | DB31: =VLOOKUP($CY31,J!$A$2:$AW$4000,5,FALSE) -> 6 | DC31: =VLOOKUP($CY31,J!$A$2:$AW$4000,6,FALSE) -> 10 | DD31: =VLOOKUP($CY31,J!$A$2:$AW$4000,7,FALSE) -> 15 | DE31: =VLOOKUP($CY31,J!$A$2:$AW$4000,8,FALSE) -> 19 | DF31: =VLOOKUP($CY31,J!$A$2:$AW$4000,9,FALSE) -> 20 | DG31: =VLOOKUP($CY31,J!$A$2:$AW$4000,10,FALSE) -> 21 | DH31: =VLOOKUP($CY31,J!$A$2:$AW$4000,11,FALSE) -> 28 | DI31: =VLOOKUP($CY31,J!$A$2:$AW$4000,12,FALSE) -> 45 | DJ31: =VLOOKUP($CY31,J!$A$2:$AW$4000,13,FALSE) -> 50 | DK31: =VLOOKUP($CY31,J!$A$2:$AW$4000,14,FALSE) -> 56 | DL31: =VLOOKUP($CY31,J!$A$2:$AW$4000,15,FALSE) -> 57 | DM31: =VLOOKUP($CY31,J!$A$2:$AW$4000,16,FALSE) -> 60 | DN31: =VLOOKUP($CY31,J!$A$2:$AW$4000,17,FALSE) -> 61 | DO31: =VLOOKUP($CY31,J!$A$2:$AW$4000,18,FALSE) -> 64 | DP31: =VLOOKUP($CY31,J!$A$2:$AW$4000,19,FALSE) -> 65 | DQ31: =VLOOKUP($CY31,J!$A$2:$AW$4000,20,FALSE) -> 79 | DR31: =VLOOKUP($CY31,J!$A$2:$AW$4000,21,FALSE) -> 80 | DS31: =VLOOKUP($CY31,J!$A$2:$AW$4000,22,FALSE) -> 97
B32: =IF(COUNTIF($CZ32:$DS32,B$16),B$16,"") ->  | C32: =IF(COUNTIF($CZ32:$DS32,C$16),C$16,"") ->  | D32: =IF(COUNTIF($CZ32:$DS32,D$16),D$16,"") ->  | E32: =IF(COUNTIF($CZ32:$DS32,E$16),E$16,"") -> 4 | F32: =IF(COUNTIF($CZ32:$DS32,F$16),F$16,"") ->  | G32: =IF(COUNTIF($CZ32:$DS32,G$16),G$16,"") ->  | H32: =IF(COUNTIF($CZ32:$DS32,H$16),H$16,"") ->  | I32: =IF(COUNTIF($CZ32:$DS32,I$16),I$16,"") ->  | J32: =IF(COUNTIF($CZ32:$DS32,J$16),J$16,"") ->  | K32: =IF(COUNTIF($CZ32:$DS32,K$16),K$16,"") ->  | L32: =IF(COUNTIF($CZ32:$DS32,L$16),L$16,"") ->  | M32: =IF(COUNTIF($CZ32:$DS32,M$16),M$16,"") ->  | N32: =IF(COUNTIF($CZ32:$DS32,N$16),N$16,"") ->  | O32: =IF(COUNTIF($CZ32:$DS32,O$16),O$16,"") ->  | P32: =IF(COUNTIF($CZ32:$DS32,P$16),P$16,"") ->  | Q32: =IF(COUNTIF($CZ32:$DS32,Q$16),Q$16,"") ->  | R32: =IF(COUNTIF($CZ32:$DS32,R$16),R$16,"") ->  | S32: =IF(COUNTIF($CZ32:$DS32,S$16),S$16,"") ->  | T32: =IF(COUNTIF($CZ32:$DS32,T$16),T$16,"") ->  | U32: =IF(COUNTIF($CZ32:$DS32,U$16),U$16,"") -> 20 | V32: =IF(COUNTIF($CZ32:$DS32,V$16),V$16,"") ->  | W32: =IF(COUNTIF($CZ32:$DS32,W$16),W$16,"") ->  | X32: =IF(COUNTIF($CZ32:$DS32,X$16),X$16,"") ->  | Y32: =IF(COUNTIF($CZ32:$DS32,Y$16),Y$16,"") -> 24 | Z32: =IF(COUNTIF($CZ32:$DS32,Z$16),Z$16,"") ->  | AA32: =IF(COUNTIF($CZ32:$DS32,AA$16),AA$16,"") ->  | AB32: =IF(COUNTIF($CZ32:$DS32,AB$16),AB$16,"") ->  | AC32: =IF(COUNTIF($CZ32:$DS32,AC$16),AC$16,"") ->  | AD32: =IF(COUNTIF($CZ32:$DS32,AD$16),AD$16,"") ->  | AE32: =IF(COUNTIF($CZ32:$DS32,AE$16),AE$16,"") ->  | AF32: =IF(COUNTIF($CZ32:$DS32,AF$16),AF$16,"") ->  | AG32: =IF(COUNTIF($CZ32:$DS32,AG$16),AG$16,"") -> 32 | AH32: =IF(COUNTIF($CZ32:$DS32,AH$16),AH$16,"") -> 33 | AI32: =IF(COUNTIF($CZ32:$DS32,AI$16),AI$16,"") ->  | AJ32: =IF(COUNTIF($CZ32:$DS32,AJ$16),AJ$16,"") -> 35 | AK32: =IF(COUNTIF($CZ32:$DS32,AK$16),AK$16,"") ->  | AL32: =IF(COUNTIF($CZ32:$DS32,AL$16),AL$16,"") -> 37 | AM32: =IF(COUNTIF($CZ32:$DS32,AM$16),AM$16,"") ->  | AN32: =IF(COUNTIF($CZ32:$DS32,AN$16),AN$16,"") ->  | AO32: =IF(COUNTIF($CZ32:$DS32,AO$16),AO$16,"") ->  | AP32: =IF(COUNTIF($CZ32:$DS32,AP$16),AP$16,"") ->  | AQ32: =IF(COUNTIF($CZ32:$DS32,AQ$16),AQ$16,"") ->  | AR32: =IF(COUNTIF($CZ32:$DS32,AR$16),AR$16,"") ->  | AS32: =IF(COUNTIF($CZ32:$DS32,AS$16),AS$16,"") ->  | AT32: =IF(COUNTIF($CZ32:$DS32,AT$16),AT$16,"") ->  | AU32: =IF(COUNTIF($CZ32:$DS32,AU$16),AU$16,"") ->  | AV32: =IF(COUNTIF($CZ32:$DS32,AV$16),AV$16,"") ->  | AW32: =IF(COUNTIF($CZ32:$DS32,AW$16),AW$16,"") ->  | AX32: =IF(COUNTIF($CZ32:$DS32,AX$16),AX$16,"") ->  | AY32: =IF(COUNTIF($CZ32:$DS32,AY$16),AY$16,"") ->  | AZ32: =IF(COUNTIF($CZ32:$DS32,AZ$16),AZ$16,"") ->  | BA32: =IF(COUNTIF($CZ32:$DS32,BA$16),BA$16,"") ->  | BB32: =IF(COUNTIF($CZ32:$DS32,BB$16),BB$16,"") ->  | BC32: =IF(COUNTIF($CZ32:$DS32,BC$16),BC$16,"") ->  | BD32: =IF(COUNTIF($CZ32:$DS32,BD$16),BD$16,"") ->  | BE32: =IF(COUNTIF($CZ32:$DS32,BE$16),BE$16,"") ->  | BF32: =IF(COUNTIF($CZ32:$DS32,BF$16),BF$16,"") ->  | BG32: =IF(COUNTIF($CZ32:$DS32,BG$16),BG$16,"") ->  | BH32: =IF(COUNTIF($CZ32:$DS32,BH$16),BH$16,"") ->  | BI32: =IF(COUNTIF($CZ32:$DS32,BI$16),BI$16,"") -> 60 | BJ32: =IF(COUNTIF($CZ32:$DS32,BJ$16),BJ$16,"") -> 61 | BK32: =IF(COUNTIF($CZ32:$DS32,BK$16),BK$16,"") ->  | BL32: =IF(COUNTIF($CZ32:$DS32,BL$16),BL$16,"") ->  | BM32: =IF(COUNTIF($CZ32:$DS32,BM$16),BM$16,"") ->  | BN32: =IF(COUNTIF($CZ32:$DS32,BN$16),BN$16,"") -> 65 | BO32: =IF(COUNTIF($CZ32:$DS32,BO$16),BO$16,"") ->  | BP32: =IF(COUNTIF($CZ32:$DS32,BP$16),BP$16,"") -> 67 | BQ32: =IF(COUNTIF($CZ32:$DS32,BQ$16),BQ$16,"") ->  | BR32: =IF(COUNTIF($CZ32:$DS32,BR$16),BR$16,"") -> 69 | BS32: =IF(COUNTIF($CZ32:$DS32,BS$16),BS$16,"") ->  | BT32: =IF(COUNTIF($CZ32:$DS32,BT$16),BT$16,"") ->  | BU32: =IF(COUNTIF($CZ32:$DS32,BU$16),BU$16,"") -> 72 | BV32: =IF(COUNTIF($CZ32:$DS32,BV$16),BV$16,"") ->  | BW32: =IF(COUNTIF($CZ32:$DS32,BW$16),BW$16,"") ->  | BX32: =IF(COUNTIF($CZ32:$DS32,BX$16),BX$16,"") ->  | BY32: =IF(COUNTIF($CZ32:$DS32,BY$16),BY$16,"") ->  | BZ32: =IF(COUNTIF($CZ32:$DS32,BZ$16),BZ$16,"") ->  | CA32: =IF(COUNTIF($CZ32:$DS32,CA$16),CA$16,"") ->  | CB32: =IF(COUNTIF($CZ32:$DS32,CB$16),CB$16,"") ->  | CC32: =IF(COUNTIF($CZ32:$DS32,CC$16),CC$16,"") ->  | CD32: =IF(COUNTIF($CZ32:$DS32,CD$16),CD$16,"") ->  | CE32: =IF(COUNTIF($CZ32:$DS32,CE$16),CE$16,"") ->  | CF32: =IF(COUNTIF($CZ32:$DS32,CF$16),CF$16,"") ->  | CG32: =IF(COUNTIF($CZ32:$DS32,CG$16),CG$16,"") -> 84 | CH32: =IF(COUNTIF($CZ32:$DS32,CH$16),CH$16,"") ->  | CI32: =IF(COUNTIF($CZ32:$DS32,CI$16),CI$16,"") ->  | CJ32: =IF(COUNTIF($CZ32:$DS32,CJ$16),CJ$16,"") ->  | CK32: =IF(COUNTIF($CZ32:$DS32,CK$16),CK$16,"") -> 88 | CL32: =IF(COUNTIF($CZ32:$DS32,CL$16),CL$16,"") ->  | CM32: =IF(COUNTIF($CZ32:$DS32,CM$16),CM$16,"") -> 90 | CN32: =IF(COUNTIF($CZ32:$DS32,CN$16),CN$16,"") -> 91 | CO32: =IF(COUNTIF($CZ32:$DS32,CO$16),CO$16,"") ->  | CP32: =IF(COUNTIF($CZ32:$DS32,CP$16),CP$16,"") ->  | CQ32: =IF(COUNTIF($CZ32:$DS32,CQ$16),CQ$16,"") ->  | CR32: =IF(COUNTIF($CZ32:$DS32,CR$16),CR$16,"") ->  | CS32: =IF(COUNTIF($CZ32:$DS32,CS$16),CS$16,"") -> 96 | CT32: =IF(COUNTIF($CZ32:$DS32,CT$16),CT$16,"") ->  | CU32: =IF(COUNTIF($CZ32:$DS32,CU$16),CU$16,"") ->  | CV32: =IF(COUNTIF($CZ32:$DS32,CV$16),CV$16,"") -> 99 | CW32: =IF(COUNTIF($CZ32:$DS32,0),0,"") -> 0 | CX32: 16 | CY32: 1854 | CZ32: =VLOOKUP($CY32,J!$A$2:$AW$4000,3,FALSE) -> 4 | DA32: =VLOOKUP($CY32,J!$A$2:$AW$4000,4,FALSE) -> 20 | DB32: =VLOOKUP($CY32,J!$A$2:$AW$4000,5,FALSE) -> 24 | DC32: =VLOOKUP($CY32,J!$A$2:$AW$4000,6,FALSE) -> 32 | DD32: =VLOOKUP($CY32,J!$A$2:$AW$4000,7,FALSE) -> 33 | DE32: =VLOOKUP($CY32,J!$A$2:$AW$4000,8,FALSE) -> 35 | DF32: =VLOOKUP($CY32,J!$A$2:$AW$4000,9,FALSE) -> 37 | DG32: =VLOOKUP($CY32,J!$A$2:$AW$4000,10,FALSE) -> 60 | DH32: =VLOOKUP($CY32,J!$A$2:$AW$4000,11,FALSE) -> 61 | DI32: =VLOOKUP($CY32,J!$A$2:$AW$4000,12,FALSE) -> 65 | DJ32: =VLOOKUP($CY32,J!$A$2:$AW$4000,13,FALSE) -> 67 | DK32: =VLOOKUP($CY32,J!$A$2:$AW$4000,14,FALSE) -> 69 | DL32: =VLOOKUP($CY32,J!$A$2:$AW$4000,15,FALSE) -> 72 | DM32: =VLOOKUP($CY32,J!$A$2:$AW$4000,16,FALSE) -> 84 | DN32: =VLOOKUP($CY32,J!$A$2:$AW$4000,17,FALSE) -> 88 | DO32: =VLOOKUP($CY32,J!$A$2:$AW$4000,18,FALSE) -> 90 | DP32: =VLOOKUP($CY32,J!$A$2:$AW$4000,19,FALSE) -> 91 | DQ32: =VLOOKUP($CY32,J!$A$2:$AW$4000,20,FALSE) -> 96 | DR32: =VLOOKUP($CY32,J!$A$2:$AW$4000,21,FALSE) -> 99 | DS32: =VLOOKUP($CY32,J!$A$2:$AW$4000,22,FALSE) -> 0
B33: =IF(COUNTIF($CZ33:$DS33,B$16),B$16,"") ->  | C33: =IF(COUNTIF($CZ33:$DS33,C$16),C$16,"") ->  | D33: =IF(COUNTIF($CZ33:$DS33,D$16),D$16,"") ->  | E33: =IF(COUNTIF($CZ33:$DS33,E$16),E$16,"") ->  | F33: =IF(COUNTIF($CZ33:$DS33,F$16),F$16,"") ->  | G33: =IF(COUNTIF($CZ33:$DS33,G$16),G$16,"") ->  | H33: =IF(COUNTIF($CZ33:$DS33,H$16),H$16,"") ->  | I33: =IF(COUNTIF($CZ33:$DS33,I$16),I$16,"") ->  | J33: =IF(COUNTIF($CZ33:$DS33,J$16),J$16,"") -> 9 | K33: =IF(COUNTIF($CZ33:$DS33,K$16),K$16,"") ->  | L33: =IF(COUNTIF($CZ33:$DS33,L$16),L$16,"") ->  | M33: =IF(COUNTIF($CZ33:$DS33,M$16),M$16,"") -> 12 | N33: =IF(COUNTIF($CZ33:$DS33,N$16),N$16,"") ->  | O33: =IF(COUNTIF($CZ33:$DS33,O$16),O$16,"") -> 14 | P33: =IF(COUNTIF($CZ33:$DS33,P$16),P$16,"") ->  | Q33: =IF(COUNTIF($CZ33:$DS33,Q$16),Q$16,"") ->  | R33: =IF(COUNTIF($CZ33:$DS33,R$16),R$16,"") ->  | S33: =IF(COUNTIF($CZ33:$DS33,S$16),S$16,"") ->  | T33: =IF(COUNTIF($CZ33:$DS33,T$16),T$16,"") ->  | U33: =IF(COUNTIF($CZ33:$DS33,U$16),U$16,"") ->  | V33: =IF(COUNTIF($CZ33:$DS33,V$16),V$16,"") -> 21 | W33: =IF(COUNTIF($CZ33:$DS33,W$16),W$16,"") ->  | X33: =IF(COUNTIF($CZ33:$DS33,X$16),X$16,"") ->  | Y33: =IF(COUNTIF($CZ33:$DS33,Y$16),Y$16,"") ->  | Z33: =IF(COUNTIF($CZ33:$DS33,Z$16),Z$16,"") ->  | AA33: =IF(COUNTIF($CZ33:$DS33,AA$16),AA$16,"") ->  | AB33: =IF(COUNTIF($CZ33:$DS33,AB$16),AB$16,"") ->  | AC33: =IF(COUNTIF($CZ33:$DS33,AC$16),AC$16,"") ->  | AD33: =IF(COUNTIF($CZ33:$DS33,AD$16),AD$16,"") ->  | AE33: =IF(COUNTIF($CZ33:$DS33,AE$16),AE$16,"") ->  | AF33: =IF(COUNTIF($CZ33:$DS33,AF$16),AF$16,"") ->  | AG33: =IF(COUNTIF($CZ33:$DS33,AG$16),AG$16,"") ->  | AH33: =IF(COUNTIF($CZ33:$DS33,AH$16),AH$16,"") ->  | AI33: =IF(COUNTIF($CZ33:$DS33,AI$16),AI$16,"") -> 34 | AJ33: =IF(COUNTIF($CZ33:$DS33,AJ$16),AJ$16,"") ->  | AK33: =IF(COUNTIF($CZ33:$DS33,AK$16),AK$16,"") ->  | AL33: =IF(COUNTIF($CZ33:$DS33,AL$16),AL$16,"") ->  | AM33: =IF(COUNTIF($CZ33:$DS33,AM$16),AM$16,"") ->  | AN33: =IF(COUNTIF($CZ33:$DS33,AN$16),AN$16,"") -> 39 | AO33: =IF(COUNTIF($CZ33:$DS33,AO$16),AO$16,"") ->  | AP33: =IF(COUNTIF($CZ33:$DS33,AP$16),AP$16,"") ->  | AQ33: =IF(COUNTIF($CZ33:$DS33,AQ$16),AQ$16,"") ->  | AR33: =IF(COUNTIF($CZ33:$DS33,AR$16),AR$16,"") -> 43 | AS33: =IF(COUNTIF($CZ33:$DS33,AS$16),AS$16,"") ->  | AT33: =IF(COUNTIF($CZ33:$DS33,AT$16),AT$16,"") ->  | AU33: =IF(COUNTIF($CZ33:$DS33,AU$16),AU$16,"") ->  | AV33: =IF(COUNTIF($CZ33:$DS33,AV$16),AV$16,"") ->  | AW33: =IF(COUNTIF($CZ33:$DS33,AW$16),AW$16,"") ->  | AX33: =IF(COUNTIF($CZ33:$DS33,AX$16),AX$16,"") ->  | AY33: =IF(COUNTIF($CZ33:$DS33,AY$16),AY$16,"") ->  | AZ33: =IF(COUNTIF($CZ33:$DS33,AZ$16),AZ$16,"") ->  | BA33: =IF(COUNTIF($CZ33:$DS33,BA$16),BA$16,"") ->  | BB33: =IF(COUNTIF($CZ33:$DS33,BB$16),BB$16,"") ->  | BC33: =IF(COUNTIF($CZ33:$DS33,BC$16),BC$16,"") ->  | BD33: =IF(COUNTIF($CZ33:$DS33,BD$16),BD$16,"") ->  | BE33: =IF(COUNTIF($CZ33:$DS33,BE$16),BE$16,"") -> 56 | BF33: =IF(COUNTIF($CZ33:$DS33,BF$16),BF$16,"") -> 57 | BG33: =IF(COUNTIF($CZ33:$DS33,BG$16),BG$16,"") ->  | BH33: =IF(COUNTIF($CZ33:$DS33,BH$16),BH$16,"") -> 59 | BI33: =IF(COUNTIF($CZ33:$DS33,BI$16),BI$16,"") ->  | BJ33: =IF(COUNTIF($CZ33:$DS33,BJ$16),BJ$16,"") -> 61 | BK33: =IF(COUNTIF($CZ33:$DS33,BK$16),BK$16,"") ->  | BL33: =IF(COUNTIF($CZ33:$DS33,BL$16),BL$16,"") -> 63 | BM33: =IF(COUNTIF($CZ33:$DS33,BM$16),BM$16,"") ->  | BN33: =IF(COUNTIF($CZ33:$DS33,BN$16),BN$16,"") ->  | BO33: =IF(COUNTIF($CZ33:$DS33,BO$16),BO$16,"") ->  | BP33: =IF(COUNTIF($CZ33:$DS33,BP$16),BP$16,"") ->  | BQ33: =IF(COUNTIF($CZ33:$DS33,BQ$16),BQ$16,"") ->  | BR33: =IF(COUNTIF($CZ33:$DS33,BR$16),BR$16,"") ->  | BS33: =IF(COUNTIF($CZ33:$DS33,BS$16),BS$16,"") ->  | BT33: =IF(COUNTIF($CZ33:$DS33,BT$16),BT$16,"") ->  | BU33: =IF(COUNTIF($CZ33:$DS33,BU$16),BU$16,"") -> 72 | BV33: =IF(COUNTIF($CZ33:$DS33,BV$16),BV$16,"") ->  | BW33: =IF(COUNTIF($CZ33:$DS33,BW$16),BW$16,"") ->  | BX33: =IF(COUNTIF($CZ33:$DS33,BX$16),BX$16,"") -> 75 | BY33: =IF(COUNTIF($CZ33:$DS33,BY$16),BY$16,"") ->  | BZ33: =IF(COUNTIF($CZ33:$DS33,BZ$16),BZ$16,"") -> 77 | CA33: =IF(COUNTIF($CZ33:$DS33,CA$16),CA$16,"") ->  | CB33: =IF(COUNTIF($CZ33:$DS33,CB$16),CB$16,"") ->  | CC33: =IF(COUNTIF($CZ33:$DS33,CC$16),CC$16,"") -> 80 | CD33: =IF(COUNTIF($CZ33:$DS33,CD$16),CD$16,"") ->  | CE33: =IF(COUNTIF($CZ33:$DS33,CE$16),CE$16,"") ->  | CF33: =IF(COUNTIF($CZ33:$DS33,CF$16),CF$16,"") ->  | CG33: =IF(COUNTIF($CZ33:$DS33,CG$16),CG$16,"") -> 84 | CH33: =IF(COUNTIF($CZ33:$DS33,CH$16),CH$16,"") ->  | CI33: =IF(COUNTIF($CZ33:$DS33,CI$16),CI$16,"") ->  | CJ33: =IF(COUNTIF($CZ33:$DS33,CJ$16),CJ$16,"") -> 87 | CK33: =IF(COUNTIF($CZ33:$DS33,CK$16),CK$16,"") -> 88 | CL33: =IF(COUNTIF($CZ33:$DS33,CL$16),CL$16,"") ->  | CM33: =IF(COUNTIF($CZ33:$DS33,CM$16),CM$16,"") ->  | CN33: =IF(COUNTIF($CZ33:$DS33,CN$16),CN$16,"") ->  | CO33: =IF(COUNTIF($CZ33:$DS33,CO$16),CO$16,"") ->  | CP33: =IF(COUNTIF($CZ33:$DS33,CP$16),CP$16,"") -> 93 | CQ33: =IF(COUNTIF($CZ33:$DS33,CQ$16),CQ$16,"") ->  | CR33: =IF(COUNTIF($CZ33:$DS33,CR$16),CR$16,"") ->  | CS33: =IF(COUNTIF($CZ33:$DS33,CS$16),CS$16,"") ->  | CT33: =IF(COUNTIF($CZ33:$DS33,CT$16),CT$16,"") ->  | CU33: =IF(COUNTIF($CZ33:$DS33,CU$16),CU$16,"") ->  | CV33: =IF(COUNTIF($CZ33:$DS33,CV$16),CV$16,"") ->  | CW33: =IF(COUNTIF($CZ33:$DS33,0),0,"") ->  | CX33: 17 | CY33: 1853 | CZ33: =VLOOKUP($CY33,J!$A$2:$AW$4000,3,FALSE) -> 9 | DA33: =VLOOKUP($CY33,J!$A$2:$AW$4000,4,FALSE) -> 12 | DB33: =VLOOKUP($CY33,J!$A$2:$AW$4000,5,FALSE) -> 14 | DC33: =VLOOKUP($CY33,J!$A$2:$AW$4000,6,FALSE) -> 21 | DD33: =VLOOKUP($CY33,J!$A$2:$AW$4000,7,FALSE) -> 34 | DE33: =VLOOKUP($CY33,J!$A$2:$AW$4000,8,FALSE) -> 39 | DF33: =VLOOKUP($CY33,J!$A$2:$AW$4000,9,FALSE) -> 43 | DG33: =VLOOKUP($CY33,J!$A$2:$AW$4000,10,FALSE) -> 56 | DH33: =VLOOKUP($CY33,J!$A$2:$AW$4000,11,FALSE) -> 57 | DI33: =VLOOKUP($CY33,J!$A$2:$AW$4000,12,FALSE) -> 59 | DJ33: =VLOOKUP($CY33,J!$A$2:$AW$4000,13,FALSE) -> 61 | DK33: =VLOOKUP($CY33,J!$A$2:$AW$4000,14,FALSE) -> 63 | DL33: =VLOOKUP($CY33,J!$A$2:$AW$4000,15,FALSE) -> 72 | DM33: =VLOOKUP($CY33,J!$A$2:$AW$4000,16,FALSE) -> 75 | DN33: =VLOOKUP($CY33,J!$A$2:$AW$4000,17,FALSE) -> 77 | DO33: =VLOOKUP($CY33,J!$A$2:$AW$4000,18,FALSE) -> 80 | DP33: =VLOOKUP($CY33,J!$A$2:$AW$4000,19,FALSE) -> 84 | DQ33: =VLOOKUP($CY33,J!$A$2:$AW$4000,20,FALSE) -> 87 | DR33: =VLOOKUP($CY33,J!$A$2:$AW$4000,21,FALSE) -> 88 | DS33: =VLOOKUP($CY33,J!$A$2:$AW$4000,22,FALSE) -> 93
B34: =IF(COUNTIF($CZ34:$DS34,B$16),B$16,"") -> 1 | C34: =IF(COUNTIF($CZ34:$DS34,C$16),C$16,"") ->  | D34: =IF(COUNTIF($CZ34:$DS34,D$16),D$16,"") ->  | E34: =IF(COUNTIF($CZ34:$DS34,E$16),E$16,"") ->  | F34: =IF(COUNTIF($CZ34:$DS34,F$16),F$16,"") ->  | G34: =IF(COUNTIF($CZ34:$DS34,G$16),G$16,"") -> 6 | H34: =IF(COUNTIF($CZ34:$DS34,H$16),H$16,"") ->  | I34: =IF(COUNTIF($CZ34:$DS34,I$16),I$16,"") -> 8 | J34: =IF(COUNTIF($CZ34:$DS34,J$16),J$16,"") ->  | K34: =IF(COUNTIF($CZ34:$DS34,K$16),K$16,"") -> 10 | L34: =IF(COUNTIF($CZ34:$DS34,L$16),L$16,"") ->  | M34: =IF(COUNTIF($CZ34:$DS34,M$16),M$16,"") ->  | N34: =IF(COUNTIF($CZ34:$DS34,N$16),N$16,"") ->  | O34: =IF(COUNTIF($CZ34:$DS34,O$16),O$16,"") ->  | P34: =IF(COUNTIF($CZ34:$DS34,P$16),P$16,"") ->  | Q34: =IF(COUNTIF($CZ34:$DS34,Q$16),Q$16,"") ->  | R34: =IF(COUNTIF($CZ34:$DS34,R$16),R$16,"") ->  | S34: =IF(COUNTIF($CZ34:$DS34,S$16),S$16,"") ->  | T34: =IF(COUNTIF($CZ34:$DS34,T$16),T$16,"") ->  | U34: =IF(COUNTIF($CZ34:$DS34,U$16),U$16,"") ->  | V34: =IF(COUNTIF($CZ34:$DS34,V$16),V$16,"") ->  | W34: =IF(COUNTIF($CZ34:$DS34,W$16),W$16,"") ->  | X34: =IF(COUNTIF($CZ34:$DS34,X$16),X$16,"") ->  | Y34: =IF(COUNTIF($CZ34:$DS34,Y$16),Y$16,"") ->  | Z34: =IF(COUNTIF($CZ34:$DS34,Z$16),Z$16,"") ->  | AA34: =IF(COUNTIF($CZ34:$DS34,AA$16),AA$16,"") -> 26 | AB34: =IF(COUNTIF($CZ34:$DS34,AB$16),AB$16,"") -> 27 | AC34: =IF(COUNTIF($CZ34:$DS34,AC$16),AC$16,"") ->  | AD34: =IF(COUNTIF($CZ34:$DS34,AD$16),AD$16,"") ->  | AE34: =IF(COUNTIF($CZ34:$DS34,AE$16),AE$16,"") ->  | AF34: =IF(COUNTIF($CZ34:$DS34,AF$16),AF$16,"") ->  | AG34: =IF(COUNTIF($CZ34:$DS34,AG$16),AG$16,"") ->  | AH34: =IF(COUNTIF($CZ34:$DS34,AH$16),AH$16,"") ->  | AI34: =IF(COUNTIF($CZ34:$DS34,AI$16),AI$16,"") ->  | AJ34: =IF(COUNTIF($CZ34:$DS34,AJ$16),AJ$16,"") ->  | AK34: =IF(COUNTIF($CZ34:$DS34,AK$16),AK$16,"") -> 36 | AL34: =IF(COUNTIF($CZ34:$DS34,AL$16),AL$16,"") ->  | AM34: =IF(COUNTIF($CZ34:$DS34,AM$16),AM$16,"") ->  | AN34: =IF(COUNTIF($CZ34:$DS34,AN$16),AN$16,"") -> 39 | AO34: =IF(COUNTIF($CZ34:$DS34,AO$16),AO$16,"") ->  | AP34: =IF(COUNTIF($CZ34:$DS34,AP$16),AP$16,"") ->  | AQ34: =IF(COUNTIF($CZ34:$DS34,AQ$16),AQ$16,"") ->  | AR34: =IF(COUNTIF($CZ34:$DS34,AR$16),AR$16,"") ->  | AS34: =IF(COUNTIF($CZ34:$DS34,AS$16),AS$16,"") -> 44 | AT34: =IF(COUNTIF($CZ34:$DS34,AT$16),AT$16,"") ->  | AU34: =IF(COUNTIF($CZ34:$DS34,AU$16),AU$16,"") ->  | AV34: =IF(COUNTIF($CZ34:$DS34,AV$16),AV$16,"") ->  | AW34: =IF(COUNTIF($CZ34:$DS34,AW$16),AW$16,"") ->  | AX34: =IF(COUNTIF($CZ34:$DS34,AX$16),AX$16,"") ->  | AY34: =IF(COUNTIF($CZ34:$DS34,AY$16),AY$16,"") ->  | AZ34: =IF(COUNTIF($CZ34:$DS34,AZ$16),AZ$16,"") ->  | BA34: =IF(COUNTIF($CZ34:$DS34,BA$16),BA$16,"") ->  | BB34: =IF(COUNTIF($CZ34:$DS34,BB$16),BB$16,"") -> 53 | BC34: =IF(COUNTIF($CZ34:$DS34,BC$16),BC$16,"") ->  | BD34: =IF(COUNTIF($CZ34:$DS34,BD$16),BD$16,"") ->  | BE34: =IF(COUNTIF($CZ34:$DS34,BE$16),BE$16,"") ->  | BF34: =IF(COUNTIF($CZ34:$DS34,BF$16),BF$16,"") ->  | BG34: =IF(COUNTIF($CZ34:$DS34,BG$16),BG$16,"") ->  | BH34: =IF(COUNTIF($CZ34:$DS34,BH$16),BH$16,"") ->  | BI34: =IF(COUNTIF($CZ34:$DS34,BI$16),BI$16,"") ->  | BJ34: =IF(COUNTIF($CZ34:$DS34,BJ$16),BJ$16,"") ->  | BK34: =IF(COUNTIF($CZ34:$DS34,BK$16),BK$16,"") -> 62 | BL34: =IF(COUNTIF($CZ34:$DS34,BL$16),BL$16,"") -> 63 | BM34: =IF(COUNTIF($CZ34:$DS34,BM$16),BM$16,"") ->  | BN34: =IF(COUNTIF($CZ34:$DS34,BN$16),BN$16,"") ->  | BO34: =IF(COUNTIF($CZ34:$DS34,BO$16),BO$16,"") ->  | BP34: =IF(COUNTIF($CZ34:$DS34,BP$16),BP$16,"") ->  | BQ34: =IF(COUNTIF($CZ34:$DS34,BQ$16),BQ$16,"") -> 68 | BR34: =IF(COUNTIF($CZ34:$DS34,BR$16),BR$16,"") ->  | BS34: =IF(COUNTIF($CZ34:$DS34,BS$16),BS$16,"") ->  | BT34: =IF(COUNTIF($CZ34:$DS34,BT$16),BT$16,"") ->  | BU34: =IF(COUNTIF($CZ34:$DS34,BU$16),BU$16,"") ->  | BV34: =IF(COUNTIF($CZ34:$DS34,BV$16),BV$16,"") -> 73 | BW34: =IF(COUNTIF($CZ34:$DS34,BW$16),BW$16,"") ->  | BX34: =IF(COUNTIF($CZ34:$DS34,BX$16),BX$16,"") ->  | BY34: =IF(COUNTIF($CZ34:$DS34,BY$16),BY$16,"") -> 76 | BZ34: =IF(COUNTIF($CZ34:$DS34,BZ$16),BZ$16,"") ->  | CA34: =IF(COUNTIF($CZ34:$DS34,CA$16),CA$16,"") -> 78 | CB34: =IF(COUNTIF($CZ34:$DS34,CB$16),CB$16,"") ->  | CC34: =IF(COUNTIF($CZ34:$DS34,CC$16),CC$16,"") ->  | CD34: =IF(COUNTIF($CZ34:$DS34,CD$16),CD$16,"") ->  | CE34: =IF(COUNTIF($CZ34:$DS34,CE$16),CE$16,"") ->  | CF34: =IF(COUNTIF($CZ34:$DS34,CF$16),CF$16,"") ->  | CG34: =IF(COUNTIF($CZ34:$DS34,CG$16),CG$16,"") -> 84 | CH34: =IF(COUNTIF($CZ34:$DS34,CH$16),CH$16,"") -> 85 | CI34: =IF(COUNTIF($CZ34:$DS34,CI$16),CI$16,"") ->  | CJ34: =IF(COUNTIF($CZ34:$DS34,CJ$16),CJ$16,"") ->  | CK34: =IF(COUNTIF($CZ34:$DS34,CK$16),CK$16,"") ->  | CL34: =IF(COUNTIF($CZ34:$DS34,CL$16),CL$16,"") ->  | CM34: =IF(COUNTIF($CZ34:$DS34,CM$16),CM$16,"") ->  | CN34: =IF(COUNTIF($CZ34:$DS34,CN$16),CN$16,"") ->  | CO34: =IF(COUNTIF($CZ34:$DS34,CO$16),CO$16,"") ->  | CP34: =IF(COUNTIF($CZ34:$DS34,CP$16),CP$16,"") -> 93 | CQ34: =IF(COUNTIF($CZ34:$DS34,CQ$16),CQ$16,"") ->  | CR34: =IF(COUNTIF($CZ34:$DS34,CR$16),CR$16,"") ->  | CS34: =IF(COUNTIF($CZ34:$DS34,CS$16),CS$16,"") ->  | CT34: =IF(COUNTIF($CZ34:$DS34,CT$16),CT$16,"") ->  | CU34: =IF(COUNTIF($CZ34:$DS34,CU$16),CU$16,"") -> 98 | CV34: =IF(COUNTIF($CZ34:$DS34,CV$16),CV$16,"") ->  | CW34: =IF(COUNTIF($CZ34:$DS34,0),0,"") ->  | CX34: 18 | CY34: 1852 | CZ34: =VLOOKUP($CY34,J!$A$2:$AW$4000,3,FALSE) -> 1 | DA34: =VLOOKUP($CY34,J!$A$2:$AW$4000,4,FALSE) -> 6 | DB34: =VLOOKUP($CY34,J!$A$2:$AW$4000,5,FALSE) -> 8 | DC34: =VLOOKUP($CY34,J!$A$2:$AW$4000,6,FALSE) -> 10 | DD34: =VLOOKUP($CY34,J!$A$2:$AW$4000,7,FALSE) -> 26 | DE34: =VLOOKUP($CY34,J!$A$2:$AW$4000,8,FALSE) -> 27 | DF34: =VLOOKUP($CY34,J!$A$2:$AW$4000,9,FALSE) -> 36 | DG34: =VLOOKUP($CY34,J!$A$2:$AW$4000,10,FALSE) -> 39 | DH34: =VLOOKUP($CY34,J!$A$2:$AW$4000,11,FALSE) -> 44 | DI34: =VLOOKUP($CY34,J!$A$2:$AW$4000,12,FALSE) -> 53 | DJ34: =VLOOKUP($CY34,J!$A$2:$AW$4000,13,FALSE) -> 62 | DK34: =VLOOKUP($CY34,J!$A$2:$AW$4000,14,FALSE) -> 63 | DL34: =VLOOKUP($CY34,J!$A$2:$AW$4000,15,FALSE) -> 68 | DM34: =VLOOKUP($CY34,J!$A$2:$AW$4000,16,FALSE) -> 73 | DN34: =VLOOKUP($CY34,J!$A$2:$AW$4000,17,FALSE) -> 76 | DO34: =VLOOKUP($CY34,J!$A$2:$AW$4000,18,FALSE) -> 78 | DP34: =VLOOKUP($CY34,J!$A$2:$AW$4000,19,FALSE) -> 84 | DQ34: =VLOOKUP($CY34,J!$A$2:$AW$4000,20,FALSE) -> 85 | DR34: =VLOOKUP($CY34,J!$A$2:$AW$4000,21,FALSE) -> 93 | DS34: =VLOOKUP($CY34,J!$A$2:$AW$4000,22,FALSE) -> 98
B35: =IF(COUNTIF($CZ35:$DS35,B$16),B$16,"") ->  | C35: =IF(COUNTIF($CZ35:$DS35,C$16),C$16,"") ->  | D35: =IF(COUNTIF($CZ35:$DS35,D$16),D$16,"") ->  | E35: =IF(COUNTIF($CZ35:$DS35,E$16),E$16,"") ->  | F35: =IF(COUNTIF($CZ35:$DS35,F$16),F$16,"") ->  | G35: =IF(COUNTIF($CZ35:$DS35,G$16),G$16,"") ->  | H35: =IF(COUNTIF($CZ35:$DS35,H$16),H$16,"") ->  | I35: =IF(COUNTIF($CZ35:$DS35,I$16),I$16,"") ->  | J35: =IF(COUNTIF($CZ35:$DS35,J$16),J$16,"") -> 9 | K35: =IF(COUNTIF($CZ35:$DS35,K$16),K$16,"") ->  | L35: =IF(COUNTIF($CZ35:$DS35,L$16),L$16,"") ->  | M35: =IF(COUNTIF($CZ35:$DS35,M$16),M$16,"") ->  | N35: =IF(COUNTIF($CZ35:$DS35,N$16),N$16,"") ->  | O35: =IF(COUNTIF($CZ35:$DS35,O$16),O$16,"") ->  | P35: =IF(COUNTIF($CZ35:$DS35,P$16),P$16,"") ->  | Q35: =IF(COUNTIF($CZ35:$DS35,Q$16),Q$16,"") ->  | R35: =IF(COUNTIF($CZ35:$DS35,R$16),R$16,"") -> 17 | S35: =IF(COUNTIF($CZ35:$DS35,S$16),S$16,"") ->  | T35: =IF(COUNTIF($CZ35:$DS35,T$16),T$16,"") ->  | U35: =IF(COUNTIF($CZ35:$DS35,U$16),U$16,"") ->  | V35: =IF(COUNTIF($CZ35:$DS35,V$16),V$16,"") ->  | W35: =IF(COUNTIF($CZ35:$DS35,W$16),W$16,"") ->  | X35: =IF(COUNTIF($CZ35:$DS35,X$16),X$16,"") ->  | Y35: =IF(COUNTIF($CZ35:$DS35,Y$16),Y$16,"") ->  | Z35: =IF(COUNTIF($CZ35:$DS35,Z$16),Z$16,"") ->  | AA35: =IF(COUNTIF($CZ35:$DS35,AA$16),AA$16,"") -> 26 | AB35: =IF(COUNTIF($CZ35:$DS35,AB$16),AB$16,"") ->  | AC35: =IF(COUNTIF($CZ35:$DS35,AC$16),AC$16,"") ->  | AD35: =IF(COUNTIF($CZ35:$DS35,AD$16),AD$16,"") ->  | AE35: =IF(COUNTIF($CZ35:$DS35,AE$16),AE$16,"") ->  | AF35: =IF(COUNTIF($CZ35:$DS35,AF$16),AF$16,"") -> 31 | AG35: =IF(COUNTIF($CZ35:$DS35,AG$16),AG$16,"") -> 32 | AH35: =IF(COUNTIF($CZ35:$DS35,AH$16),AH$16,"") ->  | AI35: =IF(COUNTIF($CZ35:$DS35,AI$16),AI$16,"") ->  | AJ35: =IF(COUNTIF($CZ35:$DS35,AJ$16),AJ$16,"") ->  | AK35: =IF(COUNTIF($CZ35:$DS35,AK$16),AK$16,"") ->  | AL35: =IF(COUNTIF($CZ35:$DS35,AL$16),AL$16,"") -> 37 | AM35: =IF(COUNTIF($CZ35:$DS35,AM$16),AM$16,"") -> 38 | AN35: =IF(COUNTIF($CZ35:$DS35,AN$16),AN$16,"") ->  | AO35: =IF(COUNTIF($CZ35:$DS35,AO$16),AO$16,"") -> 40 | AP35: =IF(COUNTIF($CZ35:$DS35,AP$16),AP$16,"") ->  | AQ35: =IF(COUNTIF($CZ35:$DS35,AQ$16),AQ$16,"") ->  | AR35: =IF(COUNTIF($CZ35:$DS35,AR$16),AR$16,"") -> 43 | AS35: =IF(COUNTIF($CZ35:$DS35,AS$16),AS$16,"") -> 44 | AT35: =IF(COUNTIF($CZ35:$DS35,AT$16),AT$16,"") ->  | AU35: =IF(COUNTIF($CZ35:$DS35,AU$16),AU$16,"") ->  | AV35: =IF(COUNTIF($CZ35:$DS35,AV$16),AV$16,"") ->  | AW35: =IF(COUNTIF($CZ35:$DS35,AW$16),AW$16,"") -> 48 | AX35: =IF(COUNTIF($CZ35:$DS35,AX$16),AX$16,"") ->  | AY35: =IF(COUNTIF($CZ35:$DS35,AY$16),AY$16,"") -> 50 | AZ35: =IF(COUNTIF($CZ35:$DS35,AZ$16),AZ$16,"") ->  | BA35: =IF(COUNTIF($CZ35:$DS35,BA$16),BA$16,"") ->  | BB35: =IF(COUNTIF($CZ35:$DS35,BB$16),BB$16,"") ->  | BC35: =IF(COUNTIF($CZ35:$DS35,BC$16),BC$16,"") ->  | BD35: =IF(COUNTIF($CZ35:$DS35,BD$16),BD$16,"") ->  | BE35: =IF(COUNTIF($CZ35:$DS35,BE$16),BE$16,"") ->  | BF35: =IF(COUNTIF($CZ35:$DS35,BF$16),BF$16,"") ->  | BG35: =IF(COUNTIF($CZ35:$DS35,BG$16),BG$16,"") ->  | BH35: =IF(COUNTIF($CZ35:$DS35,BH$16),BH$16,"") ->  | BI35: =IF(COUNTIF($CZ35:$DS35,BI$16),BI$16,"") -> 60 | BJ35: =IF(COUNTIF($CZ35:$DS35,BJ$16),BJ$16,"") ->  | BK35: =IF(COUNTIF($CZ35:$DS35,BK$16),BK$16,"") ->  | BL35: =IF(COUNTIF($CZ35:$DS35,BL$16),BL$16,"") -> 63 | BM35: =IF(COUNTIF($CZ35:$DS35,BM$16),BM$16,"") ->  | BN35: =IF(COUNTIF($CZ35:$DS35,BN$16),BN$16,"") ->  | BO35: =IF(COUNTIF($CZ35:$DS35,BO$16),BO$16,"") ->  | BP35: =IF(COUNTIF($CZ35:$DS35,BP$16),BP$16,"") ->  | BQ35: =IF(COUNTIF($CZ35:$DS35,BQ$16),BQ$16,"") ->  | BR35: =IF(COUNTIF($CZ35:$DS35,BR$16),BR$16,"") ->  | BS35: =IF(COUNTIF($CZ35:$DS35,BS$16),BS$16,"") ->  | BT35: =IF(COUNTIF($CZ35:$DS35,BT$16),BT$16,"") ->  | BU35: =IF(COUNTIF($CZ35:$DS35,BU$16),BU$16,"") ->  | BV35: =IF(COUNTIF($CZ35:$DS35,BV$16),BV$16,"") ->  | BW35: =IF(COUNTIF($CZ35:$DS35,BW$16),BW$16,"") ->  | BX35: =IF(COUNTIF($CZ35:$DS35,BX$16),BX$16,"") ->  | BY35: =IF(COUNTIF($CZ35:$DS35,BY$16),BY$16,"") ->  | BZ35: =IF(COUNTIF($CZ35:$DS35,BZ$16),BZ$16,"") ->  | CA35: =IF(COUNTIF($CZ35:$DS35,CA$16),CA$16,"") ->  | CB35: =IF(COUNTIF($CZ35:$DS35,CB$16),CB$16,"") ->  | CC35: =IF(COUNTIF($CZ35:$DS35,CC$16),CC$16,"") -> 80 | CD35: =IF(COUNTIF($CZ35:$DS35,CD$16),CD$16,"") ->  | CE35: =IF(COUNTIF($CZ35:$DS35,CE$16),CE$16,"") -> 82 | CF35: =IF(COUNTIF($CZ35:$DS35,CF$16),CF$16,"") -> 83 | CG35: =IF(COUNTIF($CZ35:$DS35,CG$16),CG$16,"") ->  | CH35: =IF(COUNTIF($CZ35:$DS35,CH$16),CH$16,"") -> 85 | CI35: =IF(COUNTIF($CZ35:$DS35,CI$16),CI$16,"") ->  | CJ35: =IF(COUNTIF($CZ35:$DS35,CJ$16),CJ$16,"") ->  | CK35: =IF(COUNTIF($CZ35:$DS35,CK$16),CK$16,"") -> 88 | CL35: =IF(COUNTIF($CZ35:$DS35,CL$16),CL$16,"") ->  | CM35: =IF(COUNTIF($CZ35:$DS35,CM$16),CM$16,"") ->  | CN35: =IF(COUNTIF($CZ35:$DS35,CN$16),CN$16,"") ->  | CO35: =IF(COUNTIF($CZ35:$DS35,CO$16),CO$16,"") ->  | CP35: =IF(COUNTIF($CZ35:$DS35,CP$16),CP$16,"") ->  | CQ35: =IF(COUNTIF($CZ35:$DS35,CQ$16),CQ$16,"") ->  | CR35: =IF(COUNTIF($CZ35:$DS35,CR$16),CR$16,"") -> 95 | CS35: =IF(COUNTIF($CZ35:$DS35,CS$16),CS$16,"") ->  | CT35: =IF(COUNTIF($CZ35:$DS35,CT$16),CT$16,"") ->  | CU35: =IF(COUNTIF($CZ35:$DS35,CU$16),CU$16,"") ->  | CV35: =IF(COUNTIF($CZ35:$DS35,CV$16),CV$16,"") ->  | CW35: =IF(COUNTIF($CZ35:$DS35,0),0,"") ->  | CX35: 19 | CY35: 1851 | CZ35: =VLOOKUP($CY35,J!$A$2:$AW$4000,3,FALSE) -> 9 | DA35: =VLOOKUP($CY35,J!$A$2:$AW$4000,4,FALSE) -> 17 | DB35: =VLOOKUP($CY35,J!$A$2:$AW$4000,5,FALSE) -> 26 | DC35: =VLOOKUP($CY35,J!$A$2:$AW$4000,6,FALSE) -> 31 | DD35: =VLOOKUP($CY35,J!$A$2:$AW$4000,7,FALSE) -> 32 | DE35: =VLOOKUP($CY35,J!$A$2:$AW$4000,8,FALSE) -> 37 | DF35: =VLOOKUP($CY35,J!$A$2:$AW$4000,9,FALSE) -> 38 | DG35: =VLOOKUP($CY35,J!$A$2:$AW$4000,10,FALSE) -> 40 | DH35: =VLOOKUP($CY35,J!$A$2:$AW$4000,11,FALSE) -> 43 | DI35: =VLOOKUP($CY35,J!$A$2:$AW$4000,12,FALSE) -> 44 | DJ35: =VLOOKUP($CY35,J!$A$2:$AW$4000,13,FALSE) -> 48 | DK35: =VLOOKUP($CY35,J!$A$2:$AW$4000,14,FALSE) -> 50 | DL35: =VLOOKUP($CY35,J!$A$2:$AW$4000,15,FALSE) -> 60 | DM35: =VLOOKUP($CY35,J!$A$2:$AW$4000,16,FALSE) -> 63 | DN35: =VLOOKUP($CY35,J!$A$2:$AW$4000,17,FALSE) -> 80 | DO35: =VLOOKUP($CY35,J!$A$2:$AW$4000,18,FALSE) -> 82 | DP35: =VLOOKUP($CY35,J!$A$2:$AW$4000,19,FALSE) -> 83 | DQ35: =VLOOKUP($CY35,J!$A$2:$AW$4000,20,FALSE) -> 85 | DR35: =VLOOKUP($CY35,J!$A$2:$AW$4000,21,FALSE) -> 88 | DS35: =VLOOKUP($CY35,J!$A$2:$AW$4000,22,FALSE) -> 95
